Workbook

Sheet Publish
B1: Root Directory | D1: C:\Users\Georg\Documents\IMARKET\Updategraphs | K1: .pdf
B2: Sub-Directory | D2: Month | E2: This directory will be created with date appended | K2: .png
B3: FileName | E3: First part of filename | K3: =TODAY() -> 2016-06-07
B4: Date | D4: x | E4: x=todays's date anything else will be appended to filename | K4: =IF(D4="x",MONTH(K3)&"-"&DAY(K3)&"-"&YEAR(K3),D4) -> 6-7-2016
B5: extension for Tables | D5: Tbl | K5: =D1&"\"&D2&"-"&K4 -> C:\Users\Georg\Documents\IMARKET\Updategraphs\Month-6-7-2016
B6: extension for Figures | D6: Fig | E6: Do not change green fields
K8: Existing Files are over written!
D9: Type | E9: SaveAs | F9: Second Part of filename | G9: Sheet Name | H9: Range | K9: Path
B10: 1 | D10: Fig | E10: .png | F10: Fig-8. | G10: 2000-15 | K10: =IF(ISBLANK(D10),"",$K$5&"\"&$D$3&F10&"-"&$K$4&E10) -> C:\Users\Georg\Documents\IMARKET\Updategraphs\Month-6-7-2016\Fig-8.-6-7-2016.png | M10: ok!
B11: 2 | D11: Fig | E11: .pdf | F11: Fig-8. | G11: 2000-15 | K11: =IF(ISBLANK(D11),"",$K$5&"\"&$D$3&F11&"-"&$K$4&E11) -> C:\Users\Georg\Documents\IMARKET\Updategraphs\Month-6-7-2016\Fig-8.-6-7-2016.pdf | M11: ok!
B12: 3
B13: 4
B14: 5
B15: 6

Sheet Fred
A1: UNRATE | C1: CIVPART
A2: lin | B2: Percent | C2: lin | D2: Percent
A3: M | B3: Monthly | C3: M | D3: Monthly
A4: 1948-01-01 | B4: 1948-01-01 to 2016-05-01 | C4: 1948-01-01 | D4: 1948-01-01 to 2016-05-01
A5: Civilian Unemployment Rate | C5: Civilian Labor Force Participation Rate
A6: US. Bureau of Labor Statistics | C6: US. Bureau of Labor Statistics
A7: date | B7: value | C7: date | D7: value
A8: 1948-01-01 | B8: 3.4 | C8: 1948-01-01 | D8: 58.6 | G8: =A8 -> 1948-01-01 | H8: =B8*65/D8 -> 3.771331058
A9: 1948-02-01 | B9: 3.8 | C9: 1948-02-01 | D9: 58.9 | G9: =A9 -> 1948-02-01 | H9: =B9*65/D9 -> 4.193548387
A10: 1948-03-01 | B10: 4 | C10: 1948-03-01 | D10: 58.5 | G10: 1948-03-01 | H10: 4.444444444
A11: 1948-04-01 | B11: 3.9 | C11: 1948-04-01 | D11: 59 | G11: 1948-04-01 | H11: 4.296610169
A12: 1948-05-01 | B12: 3.5 | C12: 1948-05-01 | D12: 58.3 | G12: 1948-05-01 | H12: 3.902229846
A13: 1948-06-01 | B13: 3.6 | C13: 1948-06-01 | D13: 59.2 | G13: 1948-06-01 | H13: 3.952702703
A14: 1948-07-01 | B14: 3.6 | C14: 1948-07-01 | D14: 59.3 | G14: 1948-07-01 | H14: 3.946037099
A15: 1948-08-01 | B15: 3.9 | C15: 1948-08-01 | D15: 58.9 | G15: 1948-08-01 | H15: 4.303904924
A16: 1948-09-01 | B16: 3.8 | C16: 1948-09-01 | D16: 58.9 | G16: 1948-09-01 | H16: 4.193548387
A17: 1948-10-01 | B17: 3.7 | C17: 1948-10-01 | D17: 58.7 | G17: 1948-10-01 | H17: 4.097103918
A18: 1948-11-01 | B18: 3.8 | C18: 1948-11-01 | D18: 58.7 | G18: 1948-11-01 | H18: 4.207836457
A19: 1948-12-01 | B19: 4 | C19: 1948-12-01 | D19: 59.1 | G19: 1948-12-01 | H19: 4.399323181
A20: 1949-01-01 | B20: 4.3 | C20: 1949-01-01 | D20: 58.7 | G20: 1949-01-01 | H20: 4.761499148
A21: 1949-02-01 | B21: 4.7 | C21: 1949-02-01 | D21: 59 | G21: 1949-02-01 | H21: 5.177966102
A22: 1949-03-01 | B22: 5 | C22: 1949-03-01 | D22: 58.9 | G22: 1949-03-01 | H22: 5.517826825
A23: 1949-04-01 | B23: 5.3 | C23: 1949-04-01 | D23: 58.8 | G23: 1949-04-01 | H23: 5.858843537
A24: 1949-05-01 | B24: 6.1 | C24: 1949-05-01 | D24: 59 | G24: 1949-05-01 | H24: 6.720338983
A25: 1949-06-01 | B25: 6.2 | C25: 1949-06-01 | D25: 58.6 | G25: 1949-06-01 | H25: 6.877133106
A26: 1949-07-01 | B26: 6.7 | C26: 1949-07-01 | D26: 58.9 | G26: 1949-07-01 | H26: 7.393887946
A27: 1949-08-01 | B27: 6.8 | C27: 1949-08-01 | D27: 59.2 | G27: 1949-08-01 | H27: 7.466216216
A28: 1949-09-01 | B28: 6.6 | C28: 1949-09-01 | D28: 59.1 | G28: 1949-09-01 | H28: 7.258883249
A29: 1949-10-01 | B29: 7.9 | C29: 1949-10-01 | D29: 59.6 | G29: 1949-10-01 | H29: 8.615771812
A30: 1949-11-01 | B30: 6.4 | C30: 1949-11-01 | D30: 59.4 | G30: 1949-11-01 | H30: 7.003367003
A31: 1949-12-01 | B31: 6.6 | C31: 1949-12-01 | D31: 59.2 | G31: 1949-12-01 | H31: 7.246621622
A32: 1950-01-01 | B32: 6.5 | C32: 1950-01-01 | D32: 58.9 | G32: 1950-01-01 | H32: 7.173174873
A33: 1950-02-01 | B33: 6.4 | C33: 1950-02-01 | D33: 58.9 | G33: 1950-02-01 | H33: 7.062818336
A34: 1950-03-01 | B34: 6.3 | C34: 1950-03-01 | D34: 58.8 | G34: 1950-03-01 | H34: 6.964285714
A35: 1950-04-01 | B35: 5.8 | C35: 1950-04-01 | D35: 59.2 | G35: 1950-04-01 | H35: 6.368243243
A36: 1950-05-01 | B36: 5.5 | C36: 1950-05-01 | D36: 59.1 | G36: 1950-05-01 | H36: 6.049069374
A37: 1950-06-01 | B37: 5.4 | C37: 1950-06-01 | D37: 59.4 | G37: 1950-06-01 | H37: 5.909090909
A38: 1950-07-01 | B38: 5 | C38: 1950-07-01 | D38: 59.1 | G38: 1950-07-01 | H38: 5.499153976
A39: 1950-08-01 | B39: 4.5 | C39: 1950-08-01 | D39: 59.5 | G39: 1950-08-01 | H39: 4.915966387
A40: 1950-09-01 | B40: 4.4 | C40: 1950-09-01 | D40: 59.2 | G40: 1950-09-01 | H40: 4.831081081
A41: 1950-10-01 | B41: 4.2 | C41: 1950-10-01 | D41: 59.4 | G41: 1950-10-01 | H41: 4.595959596
A42: 1950-11-01 | B42: 4.2 | C42: 1950-11-01 | D42: 59.3 | G42: 1950-11-01 | H42: 4.603709949
A43: 1950-12-01 | B43: 4.3 | C43: 1950-12-01 | D43: 59.2 | G43: 1950-12-01 | H43: 4.721283784
A44: 1951-01-01 | B44: 3.7 | C44: 1951-01-01 | D44: 59.1 | G44: 1951-01-01 | H44: 4.069373942
A45: 1951-02-01 | B45: 3.4 | C45: 1951-02-01 | D45: 59.1 | G45: 1951-02-01 | H45: 3.739424704
A46: 1951-03-01 | B46: 3.4 | C46: 1951-03-01 | D46: 59.8 | G46: 1951-03-01 | H46: 3.695652174
A47: 1951-04-01 | B47: 3.1 | C47: 1951-04-01 | D47: 59.1 | G47: 1951-04-01 | H47: 3.409475465
A48: 1951-05-01 | B48: 3 | C48: 1951-05-01 | D48: 59.4 | G48: 1951-05-01 | H48: 3.282828283
A49: 1951-06-01 | B49: 3.2 | C49: 1951-06-01 | D49: 59 | G49: 1951-06-01 | H49: 3.525423729
A50: 1951-07-01 | B50: 3.1 | C50: 1951-07-01 | D50: 59.4 | G50: 1951-07-01 | H50: 3.392255892
A51: 1951-08-01 | B51: 3.1 | C51: 1951-08-01 | D51: 59.2 | G51: 1951-08-01 | H51: 3.403716216
A52: 1951-09-01 | B52: 3.3 | C52: 1951-09-01 | D52: 59.1 | G52: 1951-09-01 | H52: 3.629441624
A53: 1951-10-01 | B53: 3.5 | C53: 1951-10-01 | D53: 59.4 | G53: 1951-10-01 | H53: 3.82996633
A54: 1951-11-01 | B54: 3.5 | C54: 1951-11-01 | D54: 59.2 | G54: 1951-11-01 | H54: 3.842905405
A55: 1951-12-01 | B55: 3.1 | C55: 1951-12-01 | D55: 59.6 | G55: 1951-12-01 | H55: 3.380872483
A56: 1952-01-01 | B56: 3.2 | C56: 1952-01-01 | D56: 59.5 | G56: 1952-01-01 | H56: 3.495798319
A57: 1952-02-01 | B57: 3.1 | C57: 1952-02-01 | D57: 59.5 | G57: 1952-02-01 | H57: 3.386554622
A58: 1952-03-01 | B58: 2.9 | C58: 1952-03-01 | D58: 58.9 | G58: 1952-03-01 | H58: 3.200339559
A59: 1952-04-01 | B59: 2.9 | C59: 1952-04-01 | D59: 58.8 | G59: 1952-04-01 | H59: 3.205782313
A60: 1952-05-01 | B60: 3 | C60: 1952-05-01 | D60: 59.1 | G60: 1952-05-01 | H60: 3.299492386
A61: 1952-06-01 | B61: 3 | C61: 1952-06-01 | D61: 59.1 | G61: 1952-06-01 | H61: 3.299492386
A62: 1952-07-01 | B62: 3.2 | C62: 1952-07-01 | D62: 58.9 | G62: 1952-07-01 | H62: 3.531409168
A63: 1952-08-01 | B63: 3.4 | C63: 1952-08-01 | D63: 58.7 | G63: 1952-08-01 | H63: 3.764906303
A64: 1952-09-01 | B64: 3.1 | C64: 1952-09-01 | D64: 59.2 | G64: 1952-09-01 | H64: 3.403716216
A65: 1952-10-01 | B65: 3 | C65: 1952-10-01 | D65: 58.7 | G65: 1952-10-01 | H65: 3.32197615
A66: 1952-11-01 | B66: 2.8 | C66: 1952-11-01 | D66: 59.1 | G66: 1952-11-01 | H66: 3.079526227
A67: 1952-12-01 | B67: 2.7 | C67: 1952-12-01 | D67: 59.2 | G67: 1952-12-01 | H67: 2.964527027
A68: 1953-01-01 | B68: 2.9 | C68: 1953-01-01 | D68: 59.5 | G68: 1953-01-01 | H68: 3.168067227
A69: 1953-02-01 | B69: 2.6 | C69: 1953-02-01 | D69: 59.5 | G69: 1953-02-01 | H69: 2.840336134
A70: 1953-03-01 | B70: 2.6 | C70: 1953-03-01 | D70: 59.6 | G70: 1953-03-01 | H70: 2.83557047
A71: 1953-04-01 | B71: 2.7 | C71: 1953-04-01 | D71: 59.1 | G71: 1953-04-01 | H71: 2.969543147
A72: 1953-05-01 | B72: 2.5 | C72: 1953-05-01 | D72: 58.6 | G72: 1953-05-01 | H72: 2.773037543
A73: 1953-06-01 | B73: 2.5 | C73: 1953-06-01 | D73: 58.9 | G73: =A73 -> 1953-06-01 | H73: =B73*65/D73 -> 2.758913413
A74: 1953-07-01 | B74: 2.6 | C74: 1953-07-01 | D74: 58.9 | G74: 1953-07-01 | H74: 2.869269949
A75: 1953-08-01 | B75: 2.7 | C75: 1953-08-01 | D75: 58.6 | G75: 1953-08-01 | H75: 2.994880546
A76: 1953-09-01 | B76: 2.9 | C76: 1953-09-01 | D76: 58.5 | G76: 1953-09-01 | H76: 3.222222222
A77: 1953-10-01 | B77: 3.1 | C77: 1953-10-01 | D77: 58.5 | G77: 1953-10-01 | H77: 3.444444444
A78: 1953-11-01 | B78: 3.5 | C78: 1953-11-01 | D78: 58.6 | G78: 1953-11-01 | H78: 3.88225256
A79: 1953-12-01 | B79: 4.5 | C79: 1953-12-01 | D79: 58.3 | G79: 1953-12-01 | H79: 5.017152659
A80: 1954-01-01 | B80: 4.9 | C80: 1954-01-01 | D80: 58.6 | G80: 1954-01-01 | H80: 5.435153584
A81: 1954-02-01 | B81: 5.2 | C81: 1954-02-01 | D81: 59.3 | G81: 1954-02-01 | H81: 5.699831366
A82: 1954-03-01 | B82: 5.7 | C82: 1954-03-01 | D82: 59.1 | G82: 1954-03-01 | H82: 6.269035533
A83: 1954-04-01 | B83: 5.9 | C83: 1954-04-01 | D83: 59.2 | G83: 1954-04-01 | H83: 6.478040541
A84: 1954-05-01 | B84: 5.9 | C84: 1954-05-01 | D84: 58.9 | G84: 1954-05-01 | H84: 6.511035654
A85: 1954-06-01 | B85: 5.6 | C85: 1954-06-01 | D85: 58.5 | G85: 1954-06-01 | H85: 6.222222222
A86: 1954-07-01 | B86: 5.8 | C86: 1954-07-01 | D86: 58.4 | G86: 1954-07-01 | H86: 6.455479452
A87: 1954-08-01 | B87: 6 | C87: 1954-08-01 | D87: 58.7 | G87: 1954-08-01 | H87: 6.6439523
A88: 1954-09-01 | B88: 6.1 | C88: 1954-09-01 | D88: 59.2 | G88: 1954-09-01 | H88: 6.697635135
A89: 1954-10-01 | B89: 5.7 | C89: 1954-10-01 | D89: 58.8 | G89: 1954-10-01 | H89: 6.301020408
A90: 1954-11-01 | B90: 5.3 | C90: 1954-11-01 | D90: 58.6 | G90: 1954-11-01 | H90: 5.87883959
A91: 1954-12-01 | B91: 5 | C91: 1954-12-01 | D91: 58.1 | G91: 1954-12-01 | H91: 5.593803787
A92: 1955-01-01 | B92: 4.9 | C92: 1955-01-01 | D92: 58.6 | G92: 1955-01-01 | H92: 5.435153584
A93: 1955-02-01 | B93: 4.7 | C93: 1955-02-01 | D93: 58.4 | G93: 1955-02-01 | H93: 5.231164384
A94: 1955-03-01 | B94: 4.6 | C94: 1955-03-01 | D94: 58.5 | G94: 1955-03-01 | H94: 5.111111111
A95: 1955-04-01 | B95: 4.7 | C95: 1955-04-01 | D95: 59 | G95: 1955-04-01 | H95: 5.177966102
A96: 1955-05-01 | B96: 4.3 | C96: 1955-05-01 | D96: 58.8 | G96: 1955-05-01 | H96: 4.753401361
A97: 1955-06-01 | B97: 4.2 | C97: 1955-06-01 | D97: 58.8 | G97: 1955-06-01 | H97: 4.642857143
A98: 1955-07-01 | B98: 4 | C98: 1955-07-01 | D98: 59.3 | G98: 1955-07-01 | H98: 4.384485666
A99: 1955-08-01 | B99: 4.2 | C99: 1955-08-01 | D99: 59.7 | G99: 1955-08-01 | H99: 4.572864322
A100: 1955-09-01 | B100: 4.1 | C100: 1955-09-01 | D100: 59.7 | G100: 1955-09-01 | H100: 4.4639866
A101: 1955-10-01 | B101: 4.3 | C101: 1955-10-01 | D101: 59.8 | G101: 1955-10-01 | H101: 4.673913043
A102: 1955-11-01 | B102: 4.2 | C102: 1955-11-01 | D102: 59.9 | G102: 1955-11-01 | H102: 4.557595993
A103: 1955-12-01 | B103: 4.2 | C103: 1955-12-01 | D103: 60.2 | G103: 1955-12-01 | H103: 4.534883721
A104: 1956-01-01 | B104: 4 | C104: 1956-01-01 | D104: 60.2 | G104: 1956-01-01 | H104: 4.318936877
A105: 1956-02-01 | B105: 3.9 | C105: 1956-02-01 | D105: 59.9 | G105: 1956-02-01 | H105: 4.232053422
A106: 1956-03-01 | B106: 4.2 | C106: 1956-03-01 | D106: 59.8 | G106: 1956-03-01 | H106: 4.565217391
A107: 1956-04-01 | B107: 4 | C107: 1956-04-01 | D107: 59.9 | G107: 1956-04-01 | H107: 4.340567613
A108: 1956-05-01 | B108: 4.3 | C108: 1956-05-01 | D108: 60.2 | G108: 1956-05-01 | H108: 4.642857143
A109: 1956-06-01 | B109: 4.3 | C109: 1956-06-01 | D109: 60.1 | G109: 1956-06-01 | H109: 4.650582363
A110: 1956-07-01 | B110: 4.4 | C110: 1956-07-01 | D110: 60.1 | G110: 1956-07-01 | H110: 4.758735441
A111: 1956-08-01 | B111: 4.1 | C111: 1956-08-01 | D111: 60 | G111: 1956-08-01 | H111: 4.441666667
A112: 1956-09-01 | B112: 3.9 | C112: 1956-09-01 | D112: 60 | G112: 1956-09-01 | H112: 4.225
A113: 1956-10-01 | B113: 3.9 | C113: 1956-10-01 | D113: 59.8 | G113: 1956-10-01 | H113: 4.239130435
A114: 1956-11-01 | B114: 4.3 | C114: 1956-11-01 | D114: 59.8 | G114: 1956-11-01 | H114: 4.673913043
A115: 1956-12-01 | B115: 4.2 | C115: 1956-12-01 | D115: 59.8 | G115: 1956-12-01 | H115: 4.565217391
A116: 1957-01-01 | B116: 4.2 | C116: 1957-01-01 | D116: 59.5 | G116: 1957-01-01 | H116: 4.588235294
A117: 1957-02-01 | B117: 3.9 | C117: 1957-02-01 | D117: 59.9 | G117: 1957-02-01 | H117: 4.232053422
A118: 1957-03-01 | B118: 3.7 | C118: 1957-03-01 | D118: 59.8 | G118: 1957-03-01 | H118: 4.02173913
A119: 1957-04-01 | B119: 3.9 | C119: 1957-04-01 | D119: 59.5 | G119: 1957-04-01 | H119: 4.260504202
A120: 1957-05-01 | B120: 4.1 | C120: 1957-05-01 | D120: 59.5 | G120: 1957-05-01 | H120: 4.478991597
A121: 1957-06-01 | B121: 4.3 | C121: 1957-06-01 | D121: 59.8 | G121: 1957-06-01 | H121: 4.673913043
A122: 1957-07-01 | B122: 4.2 | C122: 1957-07-01 | D122: 60 | G122: 1957-07-01 | H122: 4.55
A123: 1957-08-01 | B123: 4.1 | C123: 1957-08-01 | D123: 59.3 | G123: 1957-08-01 | H123: 4.494097808
A124: 1957-09-01 | B124: 4.4 | C124: 1957-09-01 | D124: 59.6 | G124: 1957-09-01 | H124: 4.798657718
A125: 1957-10-01 | B125: 4.5 | C125: 1957-10-01 | D125: 59.5 | G125: 1957-10-01 | H125: 4.915966387
A126: 1957-11-01 | B126: 5.1 | C126: 1957-11-01 | D126: 59.5 | G126: 1957-11-01 | H126: 5.571428571
A127: 1957-12-01 | B127: 5.2 | C127: 1957-12-01 | D127: 59.6 | G127: 1957-12-01 | H127: 5.67114094
A128: 1958-01-01 | B128: 5.8 | C128: 1958-01-01 | D128: 59.3 | G128: 1958-01-01 | H128: 6.357504216
A129: 1958-02-01 | B129: 6.4 | C129: 1958-02-01 | D129: 59.3 | G129: 1958-02-01 | H129: 7.015177066
A130: 1958-03-01 | B130: 6.7 | C130: 1958-03-01 | D130: 59.3 | G130: 1958-03-01 | H130: 7.344013491
A131: 1958-04-01 | B131: 7.4 | C131: 1958-04-01 | D131: 59.6 | G131: 1958-04-01 | H131: 8.070469799
A132: 1958-05-01 | B132: 7.4 | C132: 1958-05-01 | D132: 59.8 | G132: 1958-05-01 | H132: 8.043478261
A133: 1958-06-01 | B133: 7.3 | C133: 1958-06-01 | D133: 59.5 | G133: 1958-06-01 | H133: 7.974789916
A134: 1958-07-01 | B134: 7.5 | C134: 1958-07-01 | D134: 59.6 | G134: 1958-07-01 | H134: 8.179530201
A135: 1958-08-01 | B135: 7.4 | C135: 1958-08-01 | D135: 59.8 | G135: 1958-08-01 | H135: 8.043478261
A136: 1958-09-01 | B136: 7.1 | C136: 1958-09-01 | D136: 59.7 | G136: 1958-09-01 | H136: 7.730318258
A137: 1958-10-01 | B137: 6.7 | C137: 1958-10-01 | D137: 59.6 | G137: =A137 -> 1958-10-01 | H137: =B137*65/D137 -> 7.30704698
A138: 1958-11-01 | B138: 6.2 | C138: 1958-11-01 | D138: 59.2 | G138: 1958-11-01 | H138: 6.807432432
A139: 1958-12-01 | B139: 6.2 | C139: 1958-12-01 | D139: 59.2 | G139: 1958-12-01 | H139: 6.807432432
A140: 1959-01-01 | B140: 6 | C140: 1959-01-01 | D140: 59.3 | G140: 1959-01-01 | H140: 6.576728499
A141: 1959-02-01 | B141: 5.9 | C141: 1959-02-01 | D141: 59 | G141: 1959-02-01 | H141: 6.5
A142: 1959-03-01 | B142: 5.6 | C142: 1959-03-01 | D142: 59.3 | G142: 1959-03-01 | H142: 6.138279933
A143: 1959-04-01 | B143: 5.2 | C143: 1959-04-01 | D143: 59.4 | G143: 1959-04-01 | H143: 5.69023569
A144: 1959-05-01 | B144: 5.1 | C144: 1959-05-01 | D144: 59.2 | G144: 1959-05-01 | H144: 5.599662162
A145: 1959-06-01 | B145: 5 | C145: 1959-06-01 | D145: 59.2 | G145: 1959-06-01 | H145: 5.489864865
A146: 1959-07-01 | B146: 5.1 | C146: 1959-07-01 | D146: 59.4 | G146: 1959-07-01 | H146: 5.580808081
A147: 1959-08-01 | B147: 5.2 | C147: 1959-08-01 | D147: 59.2 | G147: 1959-08-01 | H147: 5.709459459
A148: 1959-09-01 | B148: 5.5 | C148: 1959-09-01 | D148: 59.3 | G148: 1959-09-01 | H148: 6.028667791
A149: 1959-10-01 | B149: 5.7 | C149: 1959-10-01 | D149: 59.4 | G149: 1959-10-01 | H149: 6.237373737
A150: 1959-11-01 | B150: 5.8 | C150: 1959-11-01 | D150: 59.1 | G150: 1959-11-01 | H150: 6.379018613
A151: 1959-12-01 | B151: 5.3 | C151: 1959-12-01 | D151: 59.5 | G151: 1959-12-01 | H151: 5.789915966
A152: 1960-01-01 | B152: 5.2 | C152: 1960-01-01 | D152: 59.1 | G152: 1960-01-01 | H152: 5.719120135
A153: 1960-02-01 | B153: 4.8 | C153: 1960-02-01 | D153: 59.1 | G153: 1960-02-01 | H153: 5.279187817
A154: 1960-03-01 | B154: 5.4 | C154: 1960-03-01 | D154: 58.5 | G154: 1960-03-01 | H154: 6
A155: 1960-04-01 | B155: 5.2 | C155: 1960-04-01 | D155: 59.5 | G155: 1960-04-01 | H155: 5.680672269
A156: 1960-05-01 | B156: 5.1 | C156: 1960-05-01 | D156: 59.5 | G156: 1960-05-01 | H156: 5.571428571
A157: 1960-06-01 | B157: 5.4 | C157: 1960-06-01 | D157: 59.7 | G157: 1960-06-01 | H157: 5.879396985
A158: 1960-07-01 | B158: 5.5 | C158: 1960-07-01 | D158: 59.5 | G158: 1960-07-01 | H158: 6.008403361
A159: 1960-08-01 | B159: 5.6 | C159: 1960-08-01 | D159: 59.5 | G159: 1960-08-01 | H159: 6.117647059
A160: 1960-09-01 | B160: 5.5 | C160: 1960-09-01 | D160: 59.7 | G160: 1960-09-01 | H160: 5.988274707
A161: 1960-10-01 | B161: 6.1 | C161: 1960-10-01 | D161: 59.4 | G161: 1960-10-01 | H161: 6.675084175
A162: 1960-11-01 | B162: 6.1 | C162: 1960-11-01 | D162: 59.8 | G162: 1960-11-01 | H162: 6.630434783
A163: 1960-12-01 | B163: 6.6 | C163: 1960-12-01 | D163: 59.7 | G163: 1960-12-01 | H163: 7.185929648
A164: 1961-01-01 | B164: 6.6 | C164: 1961-01-01 | D164: 59.6 | G164: 1961-01-01 | H164: 7.197986577
A165: 1961-02-01 | B165: 6.9 | C165: 1961-02-01 | D165: 59.6 | G165: 1961-02-01 | H165: 7.525167785
A166: 1961-03-01 | B166: 6.9 | C166: 1961-03-01 | D166: 59.7 | G166: 1961-03-01 | H166: 7.512562814
A167: 1961-04-01 | B167: 7 | C167: 1961-04-01 | D167: 59.3 | G167: 1961-04-01 | H167: 7.672849916
A168: 1961-05-01 | B168: 7.1 | C168: 1961-05-01 | D168: 59.4 | G168: 1961-05-01 | H168: 7.769360269
A169: 1961-06-01 | B169: 6.9 | C169: 1961-06-01 | D169: 59.7 | G169: 1961-06-01 | H169: 7.512562814
A170: 1961-07-01 | B170: 7 | C170: 1961-07-01 | D170: 59.3 | G170: 1961-07-01 | H170: 7.672849916
A171: 1961-08-01 | B171: 6.6 | C171: 1961-08-01 | D171: 59.3 | G171: 1961-08-01 | H171: 7.234401349
A172: 1961-09-01 | B172: 6.7 | C172: 1961-09-01 | D172: 59 | G172: 1961-09-01 | H172: 7.381355932
A173: 1961-10-01 | B173: 6.5 | C173: 1961-10-01 | D173: 59.1 | G173: 1961-10-01 | H173: 7.148900169
A174: 1961-11-01 | B174: 6.1 | C174: 1961-11-01 | D174: 59.1 | G174: 1961-11-01 | H174: 6.708967851
A175: 1961-12-01 | B175: 6 | C175: 1961-12-01 | D175: 58.8 | G175: 1961-12-01 | H175: 6.632653061
A176: 1962-01-01 | B176: 5.8 | C176: 1962-01-01 | D176: 58.8 | G176: 1962-01-01 | H176: 6.411564626
A177: 1962-02-01 | B177: 5.5 | C177: 1962-02-01 | D177: 59 | G177: 1962-02-01 | H177: 6.059322034
A178: 1962-03-01 | B178: 5.6 | C178: 1962-03-01 | D178: 58.9 | G178: 1962-03-01 | H178: 6.179966044
A179: 1962-04-01 | B179: 5.6 | C179: 1962-04-01 | D179: 58.7 | G179: 1962-04-01 | H179: 6.201022147
A180: 1962-05-01 | B180: 5.5 | C180: 1962-05-01 | D180: 58.9 | G180: 1962-05-01 | H180: 6.069609508
A181: 1962-06-01 | B181: 5.5 | C181: 1962-06-01 | D181: 58.8 | G181: 1962-06-01 | H181: 6.079931973
A182: 1962-07-01 | B182: 5.4 | C182: 1962-07-01 | D182: 58.5 | G182: 1962-07-01 | H182: 6
A183: 1962-08-01 | B183: 5.7 | C183: 1962-08-01 | D183: 59 | G183: 1962-08-01 | H183: 6.279661017
A184: 1962-09-01 | B184: 5.6 | C184: 1962-09-01 | D184: 59 | G184: 1962-09-01 | H184: 6.169491525
A185: 1962-10-01 | B185: 5.4 | C185: 1962-10-01 | D185: 58.7 | G185: 1962-10-01 | H185: 5.97955707
A186: 1962-11-01 | B186: 5.7 | C186: 1962-11-01 | D186: 58.5 | G186: 1962-11-01 | H186: 6.333333333
A187: 1962-12-01 | B187: 5.5 | C187: 1962-12-01 | D187: 58.4 | G187: 1962-12-01 | H187: 6.121575342
A188: 1963-01-01 | B188: 5.7 | C188: 1963-01-01 | D188: 58.6 | G188: 1963-01-01 | H188: 6.322525597
A189: 1963-02-01 | B189: 5.9 | C189: 1963-02-01 | D189: 58.6 | G189: 1963-02-01 | H189: 6.544368601
A190: 1963-03-01 | B190: 5.7 | C190: 1963-03-01 | D190: 58.6 | G190: 1963-03-01 | H190: 6.322525597
A191: 1963-04-01 | B191: 5.7 | C191: 1963-04-01 | D191: 58.8 | G191: 1963-04-01 | H191: 6.301020408
A192: 1963-05-01 | B192: 5.9 | C192: 1963-05-01 | D192: 58.8 | G192: 1963-05-01 | H192: 6.522108844
A193: 1963-06-01 | B193: 5.6 | C193: 1963-06-01 | D193: 58.5 | G193: 1963-06-01 | H193: 6.222222222
A194: 1963-07-01 | B194: 5.6 | C194: 1963-07-01 | D194: 58.7 | G194: 1963-07-01 | H194: 6.201022147
A195: 1963-08-01 | B195: 5.4 | C195: 1963-08-01 | D195: 58.5 | G195: 1963-08-01 | H195: 6
A196: 1963-09-01 | B196: 5.5 | C196: 1963-09-01 | D196: 58.7 | G196: 1963-09-01 | H196: 6.090289608
A197: 1963-10-01 | B197: 5.5 | C197: 1963-10-01 | D197: 58.8 | G197: 1963-10-01 | H197: 6.079931973
A198: 1963-11-01 | B198: 5.7 | C198: 1963-11-01 | D198: 58.8 | G198: 1963-11-01 | H198: 6.301020408
A199: 1963-12-01 | B199: 5.5 | C199: 1963-12-01 | D199: 58.5 | G199: 1963-12-01 | H199: 6.111111111
A200: 1964-01-01 | B200: 5.6 | C200: 1964-01-01 | D200: 58.6 | G200: 1964-01-01 | H200: 6.211604096
... 629 more rows

Sheet data
A1: =IF(CELL("COL",A1:A1)>26,CHAR(64+INT(CELL("COL",A1:A1)/26.1)),"")&CHAR(MOD(CELL("COL",A1:A1)-1,26)+65) -> A | B1: B | C1: C | D1: D | E1: E | F1: F | G1: G | H1: H | I1: I | J1: J | K1: K | L1: L | M1: M | N1: N | O1: O | P1: P | Q1: Q | R1: R | S1: S | T1: T | U1: U | V1: V | W1: W | X1: X | Y1: (lags are negative numbers) | AF1: UER shortEMA is below UER longEMA,
B2: 20 yr yield | C2: FFR wkly | F2: CPIyoy | G2: unemploymnt | K2: A.S. | L2: recessions | M2: UER | N2: UER | O2: slope of | P2: slope of | Q2: delta EMA | R2: UER | S2: UER rate | U2: recession | V2: recession | W2: recession | X2: recession | Y2: lead to | Z2: recession | AB2: recession | AD2: zero | AF2: =VLOOKUP(MAX(A3418:A5000),A3418:AF5000,32) -> -0.2894695703 | AG2: no recession is signaled.
F3: real-time | G3: real-time | K3: real-time | M3: shortEMA | N3: longEMA | O3: longEMA | P3: longEMA> | Q3: > | R3: shortEMA | S3: of change | U3: start signal | V3: start signal | W3: start signal | X3: end signal | Y3: recession | Z3: indicator | AB3: dates | AF3: =TEXT(AF2/100,"0.00%") -> -0.29% | AG3: =AF1&AG2&AG5 -> UER shortEMA is below UER longEMA, no recession is signaled. Spread= -0.29%
M4: N= | N4: N= | O4: 10 | P4: 0.025 | Q4: 0.07 | R4: N= | S4: 19 | T4: 0.08 | U4: rate of | V4: other | W4: used | X4: 1948 | Y4: =SUM(Z31:Z52) -> 11 | AA4: 5
A5: 1948-01-02 | M5: 12 | N5: 60 | O5: days | P5: and | R5: 3 | T5: 0.015 | U5: change | X5: 1953 | Y5: =-SUM(Y297:Y312) -> 0 | AC5: =IF(ISNUMBER(AB5),2000,-2000) -> -2000 | AD5: 0 | AF5: Spread= | AG5: =AF5&AF3 -> Spread= -0.29%
A6: 1948-01-09 | M6: =2/(1+M5) -> 0.1538461538 | N6: =2/(1+N5) -> 0.03278688525 | P6: UERg>0 | R6: =2/(1+R5) -> 0.5 | U6: 10 | X6: 1957 | Y6: =SUM(Z502:Z509) -> 5 | AC6: -2000 | AD6: 0
A7: 1948-01-16 | U7: 40 | X7: 1960 | Y7: =SUM(Z628:Z648) -> 21 | AC7: -2000 | AD7: 0 | AF7: =MAX(A3418:A5000) -> 2016-07-01 | AG7: =TEXT(AF7,"m-d-yyyy") -> 7-1-2016 | AH7: updated to 3-28-2014 with February UER= 6.7%
A8: 1948-01-23 | X8: 1970 | Y8: =SUM(Z1141:Z1152) -> 8 | AC8: -2000 | AD8: 0 | AF8: =TEXT(VLOOKUP(AF7,$A$3448:$G$5000,7),"0.0") -> 4.9 | AG8: %
A9: 1948-01-30 | X9: 1973 | Y9: =-SUM(Y1358:Y1373) -> -13 | AC9: -2000 | AD9: 0 | AF9: updated to
A10: 1948-02-06 | G10: =VLOOKUP(A10-35,Fred!G:H,2) -> 3.771331058 | X10: 1980 | Y10: =-SUM(Y1679:Y1680) -> -1 | AC10: -2000 | AD10: 0 | AF10: =TEXT(TODAY()-20,"mmmmmmmmmmmmm") -> May | AG10: UER=
A11: 1948-02-13 | G11: =VLOOKUP(A11-35,Fred!G:H,2) -> 3.771331058 | X11: 1981 | Y11: =-SUM(Y1758:Y1766) -> -9 | AC11: -2000 | AD11: 0 | AF11: with
A12: 1948-02-20 | G12: =VLOOKUP(A12-35,Fred!G:H,2) -> 3.771331058 | M12: =G12 -> 3.771331058 | N12: =M12 -> 3.771331058 | R12: =G12 -> 3.771331058 | X12: 1990 | Y12: =-SUM(Y2227:Y2231) -> -5 | AA12: =Z12*$AA$4 -> 0 | AC12: -2000 | AD12: 0 | AF12: =AF9&AG7&AF11&AF10&AG10&AF8&AG8 -> updated to 7-1-2016 with May UER= 4.9%
A13: 1948-02-27 | G13: =VLOOKUP(A13-35,Fred!G:H,2) -> 3.771331058 | M13: =M12+M$6*($G13-M12) -> 3.771331058 | N13: =N12+N$6*(G13-N12) -> 3.771331058 | R13: =R12+R$6*($G13-R12) -> 3.771331058 | X13: 2001 | Y13: =SUM(Z2780:Z2783) -> 4 | AA13: 0 | AC13: -2000 | AD13: 0
A14: 1948-03-05 | G14: =VLOOKUP(A14-35,Fred!G:H,2) -> 3.771331058 | M14: =M13+M$6*(G14-M13) -> 3.771331058 | N14: 3.771331058 | R14: =R13+R$6*($G14-R13) -> 3.771331058 | X14: 2008 | Y14: =SUM(Z3128:Z3135) -> 8 | AA14: 0 | AC14: -2000 | AD14: 0 | AF14: UERg= | AG14: =growth!K11 -> -9.606332183 | AH14: =TEXT(AG14,"0.00") -> -9.61
A15: 1948-03-12 | G15: =VLOOKUP(A15-35,Fred!G:H,2) -> 4.193548387 | M15: 3.83628757 | N15: 3.785174249 | R15: 3.982439723 | AA15: 0 | AC15: -2000 | AD15: 0 | AF15: =AF14&AH14&AG8 -> UERg= -9.61%
A16: 1948-03-19 | G16: =VLOOKUP(A16-35,Fred!G:H,2) -> 4.193548387 | M16: 3.891250773 | N16: 3.798563565 | R16: 4.087994055 | AA16: 0 | AC16: -2000 | AD16: 0
A17: 1948-03-26 | G17: =VLOOKUP(A17-35,Fred!G:H,2) -> 4.193548387 | M17: 3.937758098 | N17: 3.811513887 | R17: 4.140771221 | Z17: =IF(AND(SUM(Q11:Q17)>0,Y17="-"),1,0) -> 0 | AA17: 0 | AC17: -2000 | AD17: 0
A18: 1948-04-02 | G18: =VLOOKUP(A18-35,Fred!G:H,2) -> 4.193548387 | M18: 3.97711045 | N18: 3.824039608 | R18: 4.167159804 | Z18: 0 | AA18: 0 | AC18: -2000 | AD18: 0
A19: 1948-04-09 | G19: =VLOOKUP(A19-35,Fred!G:H,2) -> 4.444444444 | M19: 4.049007988 | N19: 3.844380751 | R19: 4.305802124 | Z19: 0 | AA19: 0 | AC19: -2000 | AD19: 0
A20: 1948-04-16 | G20: =VLOOKUP(A20-35,Fred!G:H,2) -> 4.444444444 | M20: 4.109844366 | N20: 3.86405497 | R20: 4.375123284 | Z20: 0 | AA20: 0 | AC20: -2000 | AD20: 0
A21: 1948-04-23 | G21: =VLOOKUP(A21-35,Fred!G:H,2) -> 4.444444444 | M21: 4.161321301 | N21: 3.883084133 | R21: 4.409783864 | Z21: 0 | AA21: 0 | AC21: -2000 | AD21: 0
A22: 1948-04-30 | G22: =VLOOKUP(A22-35,Fred!G:H,2) -> 4.444444444 | M22: 4.204878708 | N22: 3.901489389 | O22: =N22-INDIRECT($N$1&ROW()-$O$4) -> 0.1301583313 | P22: =IF(AND(P23=1,G22=G23),1,IF(AND(growth!K22>0,O22>$P$4),1,"-")) -> - | R22: 4.427114154 | Z22: 0 | AA22: 0 | AC22: -2000 | AD22: 0
A23: 1948-05-07 | G23: =VLOOKUP(A23-35,Fred!G:H,2) -> 4.296610169 | M23: 4.21899124 | N23: 3.914444169 | O23: 0.143113111 | P23: =IF(AND(P24=1,G23=G24),1,IF(AND(growth!K23>0,O23>$P$4),1,"-")) -> - | R23: 4.361862162 | Z23: 0 | AA23: 0 | AC23: -2000 | AD23: 0
A24: 1948-05-14 | G24: =VLOOKUP(A24-35,Fred!G:H,2) -> 4.296610169 | M24: 4.230932614 | N24: 3.926974202 | O24: 0.1556431438 | P24: =IF(AND(P25=1,G24=G25),1,IF(AND(growth!K24>0,O24>$P$4),1,"-")) -> - | R24: 4.329236166 | Z24: 0 | AA24: 0 | AC24: -2000 | AD24: 0
A25: 1948-05-21 | G25: =VLOOKUP(A25-35,Fred!G:H,2) -> 4.296610169 | M25: 4.241036853 | N25: 3.939093414 | O25: 0.1539191647 | P25: =IF(AND(P26=1,G25=G26),1,IF(AND(growth!K25>0,O25>$P$4),1,"-")) -> - | R25: 4.312923168 | Z25: 0 | AA25: 0 | AC25: -2000 | AD25: 0
A26: 1948-05-28 | G26: =VLOOKUP(A26-35,Fred!G:H,2) -> 4.296610169 | M26: 4.249586594 | N26: 3.950815275 | O26: 0.1522517096 | P26: =IF(AND(P27=1,G26=G27),1,IF(AND(growth!K26>0,O26>$P$4),1,"-")) -> - | R26: 4.304766669 | Z26: 0 | AA26: 0 | AC26: -2000 | AD26: 0
A27: 1948-06-04 | G27: =VLOOKUP(A27-35,Fred!G:H,2) -> 4.296610169 | M27: 4.25682099 | N27: 3.962152812 | O27: 0.1506389251 | P27: =IF(AND(P28=1,G27=G28),1,IF(AND(growth!K27>0,O27>$P$4),1,"-")) -> - | R27: 4.300688419 | Z27: 0 | AA27: 0 | AC27: -2000 | AD27: 0
A28: 1948-06-11 | G28: =VLOOKUP(A28-35,Fred!G:H,2) -> 3.902229846 | M28: 4.202268507 | N28: 3.960188125 | O28: 0.1361485163 | P28: =IF(AND(P29=1,G28=G29),1,IF(AND(growth!K28>0,O28>$P$4),1,"-")) -> - | R28: 4.101459132 | Z28: 0 | AA28: 0 | AC28: -2000 | AD28: 0
A29: 1948-06-18 | G29: =VLOOKUP(A29-35,Fred!G:H,2) -> 3.902229846 | M29: 4.156108713 | N29: 3.958287853 | O29: 0.1139071027 | P29: =IF(AND(P30=1,G29=G30),1,IF(AND(growth!K29>0,O29>$P$4),1,"-")) -> - | R29: 4.001844489 | Z29: 0 | AA29: 0 | AC29: -2000 | AD29: 0
A30: 1948-06-25 | G30: =VLOOKUP(A30-35,Fred!G:H,2) -> 3.902229846 | M30: 4.117050425 | N30: 3.956449886 | O30: 0.09239491577 | P30: =IF(AND(P31=1,G30=G31),1,IF(AND(growth!K30>0,O30>$P$4),1,"-")) -> - | R30: 3.952037167 | Z30: 0 | AA30: 0 | AC30: -2000 | AD30: 0
A31: 1948-07-02 | G31: =VLOOKUP(A31-35,Fred!G:H,2) -> 3.902229846 | M31: 4.084001105 | N31: 3.95467218 | O31: 0.07158804644 | P31: =IF(AND(P32=1,G31=G32),1,IF(AND(growth!K31>0,O31>$P$4),1,"-")) -> - | Q31: =IF(AND(Q32=1,G31=G32),1,IF(OR(M31-N31>$Q$4,P31=1),1,"-")) -> 1 | R31: 3.927133506 | S31: =(R31-INDIRECT($R$1&ROW()-$S$4))/INDIRECT($R$1&ROW()-$S$4) -> 0.04131232343 | T31: =IF(AND(T32=1,G31=G32),1,IF(AND(S31>$T$4,O31>$T$5),1,"-")) -> - | V31: =IF(AND(Q31=1,Q30="-"),1,0) -> 0 | W31: =IF(OR(U31=1,V31=1),1,0) -> 0 | Z31: 0 | AA31: 0 | AC31: -2000 | AD31: 0
A32: 1948-07-09 | G32: =VLOOKUP(A32-35,Fred!G:H,2) -> 3.952702703 | M32: 4.063801351 | N32: 3.954607607 | O32: 0.05311821732 | P32: =IF(AND(P33=1,G32=G33),1,IF(AND(growth!K32>0,O32>$P$4),1,"-")) -> - | Q32: 1 | R32: 3.939918105 | S32: =(R32-INDIRECT($R$1&ROW()-$S$4))/INDIRECT($R$1&ROW()-$S$4) -> 0.04470226665 | T32: - | V32: 0 | W32: 0 | Z32: 0 | AA32: 0 | AC32: -2000 | AD32: 0
A33: 1948-07-16 | G33: =VLOOKUP(A33-35,Fred!G:H,2) -> 3.952702703 | M33: 4.046709251 | N33: 3.954545151 | O33: 0.04010098177 | P33: =IF(AND(P34=1,G33=G34),1,IF(AND(growth!K33>0,O33>$P$4),1,"-")) -> - | Q33: 1 | R33: 3.946310404 | S33: 0.04639723825 | T33: - | V33: 0 | W33: 0 | Z33: 0 | AA33: 0 | AC33: -2000 | AD33: 0
A34: 1948-07-23 | G34: =VLOOKUP(A34-35,Fred!G:H,2) -> 3.952702703 | M34: 4.032246705 | N34: 3.954484743 | O34: 0.02751054084 | P34: =IF(AND(P35=1,G34=G35),1,IF(AND(growth!K34>0,O34>$P$4),1,"-")) -> - | Q34: 1 | R34: 3.949506553 | S34: -0.008269596448 | T34: - | V34: 0 | W34: 0 | Z34: 0 | AA34: 0 | AC34: -2000 | AD34: 0
A35: 1948-07-30 | G35: =VLOOKUP(A35-35,Fred!G:H,2) -> 3.952702703 | M35: 4.020009167 | N35: 3.954426315 | O35: 0.01533290124 | P35: =IF(AND(P36=1,G35=G36),1,IF(AND(growth!K35>0,O35>$P$4),1,"-")) -> - | Q35: - | R35: 3.951104628 | S35: -0.03348572064 | T35: - | V35: 0 | W35: 0 | Z35: 0 | AA35: 0 | AC35: -2000 | AD35: 0
A36: 1948-08-06 | G36: =VLOOKUP(A36-35,Fred!G:H,2) -> 3.946037099 | M36: 4.008628849 | N36: 3.954151259 | O36: 0.003335984152 | P36: =IF(AND(P37=1,G36=G37),1,IF(AND(growth!K36>0,O36>$P$4),1,"-")) -> - | Q36: - | R36: 3.948570864 | S36: -0.04641656034 | T36: - | V36: 0 | W36: 0 | Z36: 0 | AA36: 0 | AC36: -2000 | AD36: 0
A37: 1948-08-13 | G37: =VLOOKUP(A37-35,Fred!G:H,2) -> 3.946037099 | M37: 3.998999349 | N37: 3.953885221 | O37: -0.008267591394 | P37: =IF(AND(P38=1,G37=G38),1,IF(AND(growth!K37>0,O37>$P$4),1,"-")) -> - | Q37: - | R37: 3.947303982 | S37: -0.05275915318 | T37: - | V37: 0 | W37: 0 | Z37: =IF(AND(OR(SUM(Q31:Q37)>0,SUM(T1:T37)>0),Y37="-"),1,0) -> 0 | AA37: 0 | AC37: -2000 | AD37: 0
A38: 1948-08-20 | G38: =VLOOKUP(A38-35,Fred!G:H,2) -> 3.946037099 | M38: 3.99085131 | N38: 3.953627905 | O38: -0.006560219418 | P38: =IF(AND(P39=1,G38=G39),1,IF(AND(growth!K38>0,O38>$P$4),1,"-")) -> - | Q38: - | R38: 3.946670541 | S38: -0.08340643005 | T38: - | V38: 0 | W38: 0 | Z38: 0 | AA38: 0 | AC38: -2000 | AD38: 0
A39: 1948-08-27 | G39: =VLOOKUP(A39-35,Fred!G:H,2) -> 3.946037099 | M39: 3.983956816 | N39: 3.953379026 | O39: -0.004908826851 | P39: =IF(AND(P40=1,G39=G40),1,IF(AND(growth!K39>0,O39>$P$4),1,"-")) -> - | Q39: - | R39: 3.94635382 | S39: -0.09800168737 | T39: - | V39: 0 | W39: 0 | Z39: 0 | AA39: 0 | AC39: -2000 | AD39: 0
A40: 1948-09-03 | G40: =VLOOKUP(A40-35,Fred!G:H,2) -> 3.946037099 | M40: 3.978123014 | N40: 3.953138308 | O40: -0.003311578303 | P40: =IF(AND(P41=1,G40=G41),1,IF(AND(growth!K40>0,O40>$P$4),1,"-")) -> - | Q40: - | R40: 3.94619546 | S40: -0.1051272395 | T40: - | V40: 0 | W40: 0 | Z40: 0 | AA40: 0 | AC40: -2000 | AD40: 0
A41: 1948-09-10 | G41: =VLOOKUP(A41-35,Fred!G:H,2) -> 4.303904924 | M41: 4.028243308 | N41: 3.964638852 | O41: 0.009966672722 | P41: =IF(AND(P42=1,G41=G42),1,IF(AND(growth!K41>0,O41>$P$4),1,"-")) -> - | Q41: 1 | R41: 4.125050192 | S41: -0.06823044363 | T41: - | U41: =IF(SUM(INDIRECT($X$1&ROW()-$U$7):X41)=1,0,IF(SUM(INDIRECT($U$1&ROW()-$U$6):U40)>0,0,IF(AND(T41=1,T40="-"),1,0))) -> 0 | V41: 1 | W41: 1 | Z41: 0 | AA41: 0 | AC41: -2000 | AD41: 0
A42: 1948-09-17 | G42: =VLOOKUP(A42-35,Fred!G:H,2) -> 4.303904924 | M42: 4.070652787 | N42: 3.97576233 | O42: 0.02115472348 | P42: =IF(AND(P43=1,G42=G43),1,IF(AND(growth!K42>0,O42>$P$4),1,"-")) -> - | Q42: 1 | R42: 4.214477558 | S42: -0.03378937684 | T42: - | U42: =IF(SUM(INDIRECT($X$1&ROW()-$U$7):X42)=1,0,IF(SUM(INDIRECT($U$1&ROW()-$U$6):U41)>0,0,IF(AND(T42=1,T41="-"),1,0))) -> 0 | V42: 0 | W42: 0 | Y42: =IF(X42=1,1,IF(AND(Y41=1,W42=0),Y41,"-")) -> - | Z42: 1 | AA42: 5 | AC42: -2000 | AD42: 0
A43: 1948-09-24 | G43: =VLOOKUP(A43-35,Fred!G:H,2) -> 4.303904924 | M43: 4.106537731 | N43: 3.986521104 | O43: 0.03197595291 | P43: =IF(AND(P44=1,G43=G44),1,IF(AND(growth!K43>0,O43>$P$4),1,"-")) -> - | Q43: 1 | R43: 4.259191241 | S43: -0.01617951122 | T43: - | U43: =IF(SUM(INDIRECT($X$1&ROW()-$U$7):X43)=1,0,IF(SUM(INDIRECT($U$1&ROW()-$U$6):U42)>0,0,IF(AND(T43=1,T42="-"),1,0))) -> 0 | V43: 0 | W43: 0 | Y43: - | Z43: 1 | AA43: 5 | AC43: -2000 | AD43: 0
A44: 1948-10-01 | G44: =VLOOKUP(A44-35,Fred!G:H,2) -> 4.303904924 | M44: 4.136901915 | N44: 3.996927131 | O44: 0.04244238792 | P44: =IF(AND(P45=1,G44=G45),1,IF(AND(growth!K44>0,O44>$P$4),1,"-")) -> - | Q44: 1 | R44: 4.281548082 | S44: -0.007274668312 | T44: - | U44: =IF(SUM(INDIRECT($X$1&ROW()-$U$7):X44)=1,0,IF(SUM(INDIRECT($U$1&ROW()-$U$6):U43)>0,0,IF(AND(T44=1,T43="-"),1,0))) -> 0 | V44: 0 | W44: 0 | Y44: - | Z44: 1 | AA44: 5 | AC44: -2000 | AD44: 0
A45: 1948-10-08 | G45: =VLOOKUP(A45-35,Fred!G:H,2) -> 4.193548387 | M45: 4.145616756 | N45: 4.003373729 | O45: 0.04894741404 | P45: =IF(AND(P46=1,G45=G46),1,IF(AND(growth!K45>0,O45>$P$4),1,"-")) -> - | Q45: 1 | R45: 4.237548235 | S45: -0.01561488441 | T45: - | U45: =IF(SUM(INDIRECT($X$1&ROW()-$U$7):X45)=1,0,IF(SUM(INDIRECT($U$1&ROW()-$U$6):U44)>0,0,IF(AND(T45=1,T44="-"),1,0))) -> 0 | V45: 0 | W45: 0 | Y45: - | Z45: 1 | AA45: 5 | AC45: -2000 | AD45: 0
A46: 1948-10-15 | G46: =VLOOKUP(A46-35,Fred!G:H,2) -> 4.193548387 | M46: 4.152990853 | N46: 4.009608964 | O46: 0.05545770497 | P46: =IF(AND(P47=1,G46=G47),1,IF(AND(growth!K46>0,O46>$P$4),1,"-")) -> - | Q46: 1 | R46: 4.215548311 | S46: -0.01979685573 | T46: - | U46: =IF(SUM(INDIRECT($X$1&ROW()-$U$7):X46)=1,0,IF(SUM(INDIRECT($U$1&ROW()-$U$6):U45)>0,0,IF(AND(T46=1,T45="-"),1,0))) -> 0 | V46: 0 | W46: 0 | Y46: - | Z46: 1 | AA46: 5 | AC46: -2000 | AD46: 0
A47: 1948-10-22 | G47: =VLOOKUP(A47-35,Fred!G:H,2) -> 4.193548387 | M47: 4.159230474 | N47: 4.015639765 | O47: 0.06175454375 | P47: =IF(AND(P48=1,G47=G48),1,IF(AND(growth!K47>0,O47>$P$4),1,"-")) -> - | Q47: 1 | R47: 4.204548349 | S47: 0.02513476627 | T47: - | U47: =IF(SUM(INDIRECT($X$1&ROW()-$U$7):X47)=1,0,IF(SUM(INDIRECT($U$1&ROW()-$U$6):U46)>0,0,IF(AND(T47=1,T46="-"),1,0))) -> 0 | V47: 0 | W47: 0 | Y47: - | Z47: 1 | AA47: 5 | AC47: -2000 | AD47: 0
A48: 1948-10-29 | G48: =VLOOKUP(A48-35,Fred!G:H,2) -> 4.193548387 | M48: 4.164510153 | N48: 4.021472834 | O48: 0.06784492879 | P48: =IF(AND(P49=1,G48=G49),1,IF(AND(growth!K48>0,O48>$P$4),1,"-")) -> - | Q48: 1 | R48: 4.199048368 | S48: 0.04927824647 | T48: - | U48: =IF(SUM(INDIRECT($X$1&ROW()-$U$7):X48)=1,0,IF(SUM(INDIRECT($U$1&ROW()-$U$6):U47)>0,0,IF(AND(T48=1,T47="-"),1,0))) -> 0 | V48: 0 | W48: 0 | Y48: - | Z48: 1 | AA48: 5 | AC48: -2000 | AD48: 0
A49: 1948-11-05 | G49: =VLOOKUP(A49-35,Fred!G:H,2) -> 4.097103918 | M49: 4.154139963 | N49: 4.023952542 | O49: 0.07057351535 | P49: =IF(AND(P50=1,G49=G50),1,IF(AND(growth!K49>0,O49>$P$4),1,"-")) -> - | Q49: 1 | R49: 4.148076143 | S49: 0.04960453749 | T49: - | U49: =IF(SUM(INDIRECT($X$1&ROW()-$U$7):X49)=1,0,IF(SUM(INDIRECT($U$1&ROW()-$U$6):U48)>0,0,IF(AND(T49=1,T48="-"),1,0))) -> 0 | V49: 0 | W49: 0 | Y49: - | Z49: 1 | AA49: 5 | AC49: -2000 | AD49: 0
A50: 1948-11-12 | G50: =VLOOKUP(A50-35,Fred!G:H,2) -> 4.097103918 | M50: 4.145365187 | N50: 4.026350948 | O50: 0.07321264005 | P50: =IF(AND(P51=1,G50=G51),1,IF(AND(growth!K50>0,O50>$P$4),1,"-")) -> - | Q50: 1 | R50: 4.122590031 | S50: 0.04977078673 | T50: - | U50: =IF(SUM(INDIRECT($X$1&ROW()-$U$7):X50)=1,0,IF(SUM(INDIRECT($U$1&ROW()-$U$6):U49)>0,0,IF(AND(T50=1,T49="-"),1,0))) -> 0 | V50: 0 | W50: 0 | Y50: - | Z50: 1 | AA50: 5 | AC50: -2000 | AD50: 0
A51: 1948-11-19 | G51: =VLOOKUP(A51-35,Fred!G:H,2) -> 4.097103918 | M51: 4.137940376 | N51: 4.028670717 | O51: 0.06403186479 | P51: =IF(AND(P52=1,G51=G52),1,IF(AND(growth!K51>0,O51>$P$4),1,"-")) -> - | Q51: 1 | R51: 4.109846974 | S51: 0.04313005128 | T51: - | U51: =IF(SUM(INDIRECT($X$1&ROW()-$U$7):X51)=1,0,IF(SUM(INDIRECT($U$1&ROW()-$U$6):U50)>0,0,IF(AND(T51=1,T50="-"),1,0))) -> 0 | V51: 0 | W51: 0 | Y51: - | Z51: 1 | AA51: 5 | AC51: -2000 | AD51: 0
A52: 1948-11-26 | G52: =VLOOKUP(A52-35,Fred!G:H,2) -> 4.097103918 | M52: 4.131657844 | N52: 4.030914429 | O52: 0.05515209855 | P52: =IF(AND(P53=1,G52=G53),1,IF(AND(growth!K52>0,O52>$P$4),1,"-")) -> - | Q52: 1 | R52: 4.103475446 | S52: 0.03982581871 | T52: - | U52: =IF(SUM(INDIRECT($X$1&ROW()-$U$7):X52)=1,0,IF(SUM(INDIRECT($U$1&ROW()-$U$6):U51)>0,0,IF(AND(T52=1,T51="-"),1,0))) -> 0 | V52: 0 | W52: 0 | Y52: - | Z52: 1 | AA52: 5 | AC52: -2000 | AD52: 0
A53: 1948-12-03 | G53: =VLOOKUP(A53-35,Fred!G:H,2) -> 4.097103918 | M53: 4.126341856 | N53: 4.033084576 | O53: 0.0465634722 | P53: =IF(AND(P54=1,G53=G54),1,IF(AND(growth!K53>0,O53>$P$4),1,"-")) -> - | Q53: 1 | R53: 4.100289682 | S53: 0.03817771336 | T53: - | U53: =IF(SUM(INDIRECT($X$1&ROW()-$U$7):X53)=1,0,IF(SUM(INDIRECT($U$1&ROW()-$U$6):U52)>0,0,IF(AND(T53=1,T52="-"),1,0))) -> 0 | V53: 0 | W53: 0 | Y53: - | Z53: 1 | AA53: 5 | AB53: 1948-12-03 | AC53: 2000 | AD53: 0
A54: 1948-12-10 | G54: =VLOOKUP(A54-35,Fred!G:H,2) -> 4.207836457 | M54: 4.138879487 | N54: 4.038814146 | O54: 0.04188701517 | P54: =IF(AND(P55=1,G54=G55),1,IF(AND(growth!K54>0,O54>$P$4),1,"-")) -> - | Q54: 1 | R54: 4.154063069 | S54: 0.05136751886 | T54: - | U54: =IF(SUM(INDIRECT($X$1&ROW()-$U$7):X54)=1,0,IF(SUM(INDIRECT($U$1&ROW()-$U$6):U53)>0,0,IF(AND(T54=1,T53="-"),1,0))) -> 0 | V54: 0 | W54: 0 | Y54: - | Z54: 1 | AA54: 5 | AB54: 1948-12-10 | AC54: 2000 | AD54: 0
A55: 1948-12-17 | G55: =VLOOKUP(A55-35,Fred!G:H,2) -> 4.207836457 | M55: 4.149488251 | N55: 4.044355861 | O55: 0.04098213171 | P55: =IF(AND(P56=1,G55=G56),1,IF(AND(growth!K55>0,O55>$P$4),1,"-")) -> - | Q55: 1 | R55: 4.180949763 | S55: 0.05885139391 | T55: - | U55: =IF(SUM(INDIRECT($X$1&ROW()-$U$7):X55)=1,0,IF(SUM(INDIRECT($U$1&ROW()-$U$6):U54)>0,0,IF(AND(T55=1,T54="-"),1,0))) -> 0 | V55: 0 | W55: 0 | Y55: - | Z55: 1 | AA55: 5 | AB55: 1948-12-17 | AC55: 2000 | AD55: 0
A56: 1948-12-24 | G56: =VLOOKUP(A56-35,Fred!G:H,2) -> 4.207836457 | M56: 4.158464898 | N56: 4.04971588 | O56: 0.04010691655 | P56: =IF(AND(P57=1,G56=G57),1,IF(AND(growth!K56>0,O56>$P$4),1,"-")) -> - | Q56: 1 | R56: 4.19439311 | S56: 0.06259693434 | T56: - | U56: =IF(SUM(INDIRECT($X$1&ROW()-$U$7):X56)=1,0,IF(SUM(INDIRECT($U$1&ROW()-$U$6):U55)>0,0,IF(AND(T56=1,T55="-"),1,0))) -> 0 | V56: 0 | W56: 0 | Y56: - | Z56: 1 | AA56: 5 | AB56: 1948-12-24 | AC56: 2000 | AD56: 0
A57: 1948-12-31 | G57: =VLOOKUP(A57-35,Fred!G:H,2) -> 4.207836457 | M57: 4.166060523 | N57: 4.054900162 | O57: 0.03926039697 | P57: =IF(AND(P58=1,G57=G58),1,IF(AND(growth!K57>0,O57>$P$4),1,"-")) -> - | Q57: 1 | R57: 4.201114783 | S57: 0.0644706063 | T57: - | U57: =IF(SUM(INDIRECT($X$1&ROW()-$U$7):X57)=1,0,IF(SUM(INDIRECT($U$1&ROW()-$U$6):U56)>0,0,IF(AND(T57=1,T56="-"),1,0))) -> 0 | V57: 0 | W57: 0 | Y57: - | Z57: 1 | AA57: 5 | AB57: 1948-12-31 | AC57: 2000 | AD57: 0
A58: 1949-01-07 | G58: =VLOOKUP(A58-35,Fred!G:H,2) -> 4.399323181 | M58: 4.201947085 | N58: 4.06619272 | O58: 0.0447198854 | P58: =IF(AND(P59=1,G58=G59),1,IF(AND(growth!K58>0,O58>$P$4),1,"-")) -> - | Q58: 1 | R58: 4.300218982 | S58: 0.08966888886 | T58: 1 | U58: =IF(SUM(INDIRECT($X$1&ROW()-$U$7):X58)=1,0,IF(SUM(INDIRECT($U$1&ROW()-$U$6):U57)>0,0,IF(AND(T58=1,T57="-"),1,0))) -> 1 | V58: 0 | W58: 1 | Y58: - | Z58: 1 | AA58: 5 | AB58: 1949-01-07 | AC58: 2000 | AD58: 0
A59: 1949-01-14 | G59: =VLOOKUP(A59-35,Fred!G:H,2) -> 4.399323181 | M59: 4.232312639 | N59: 4.07711503 | O59: 0.05316248794 | P59: =IF(AND(P60=1,G59=G60),1,IF(AND(growth!K59>0,O59>$P$4),1,"-")) -> - | Q59: 1 | R59: 4.349771082 | S59: 0.1022695469 | T59: 1 | U59: =IF(SUM(INDIRECT($X$1&ROW()-$U$7):X59)=1,0,IF(SUM(INDIRECT($U$1&ROW()-$U$6):U58)>0,0,IF(AND(T59=1,T58="-"),1,0))) -> 0 | V59: 0 | W59: 0 | Y59: - | Z59: 1 | AA59: 5 | AB59: 1949-01-14 | AC59: 2000 | AD59: 0
A60: 1949-01-21 | G60: =VLOOKUP(A60-35,Fred!G:H,2) -> 4.399323181 | M60: 4.258006568 | N60: 4.087679231 | O60: 0.06132828384 | P60: =IF(AND(P61=1,G60=G61),1,IF(AND(growth!K60>0,O60>$P$4),1,"-")) -> - | Q60: 1 | R60: 4.374547131 | S60: 0.06048337064 | T60: - | U60: =IF(SUM(INDIRECT($X$1&ROW()-$U$7):X60)=1,0,IF(SUM(INDIRECT($U$1&ROW()-$U$6):U59)>0,0,IF(AND(T60=1,T59="-"),1,0))) -> 0 | V60: 0 | W60: 0 | Y60: - | Z60: 1 | AA60: 5 | AB60: 1949-01-21 | AC60: 2000 | AD60: 0
A61: 1949-01-28 | G61: =VLOOKUP(A61-35,Fred!G:H,2) -> 4.399323181 | M61: 4.279747586 | N61: 4.097897066 | O61: 0.06922634872 | P61: =IF(AND(P62=1,G61=G62),1,IF(AND(growth!K61>0,O61>$P$4),1,"-")) -> - | Q61: 1 | R61: 4.386935156 | S61: 0.04092027925 | T61: - | U61: =IF(SUM(INDIRECT($X$1&ROW()-$U$7):X61)=1,0,IF(SUM(INDIRECT($U$1&ROW()-$U$6):U60)>0,0,IF(AND(T61=1,T60="-"),1,0))) -> 0 | V61: 0 | W61: 0 | Y61: - | Z61: 1 | AA61: 5 | AB61: 1949-01-28 | AC61: 2000 | AD61: 0
A62: 1949-02-04 | G62: =VLOOKUP(A62-35,Fred!G:H,2) -> 4.399323181 | M62: 4.298143831 | N62: 4.107779889 | O62: 0.07686546066 | P62: =IF(AND(P63=1,G62=G63),1,IF(AND(growth!K62>0,O62>$P$4),1,"-")) -> - | Q62: 1 | R62: 4.393129169 | S62: 0.03144679833 | T62: - | U62: =IF(SUM(INDIRECT($X$1&ROW()-$U$7):X62)=1,0,IF(SUM(INDIRECT($U$1&ROW()-$U$6):U61)>0,0,IF(AND(T62=1,T61="-"),1,0))) -> 0 | V62: 0 | W62: 0 | Y62: - | Z62: 1 | AA62: 5 | AB62: 1949-02-04 | AC62: 2000 | AD62: 0
A63: 1949-02-11 | G63: =VLOOKUP(A63-35,Fred!G:H,2) -> 4.761499148 | M63: 4.369429264 | N63: 4.129213308 | O63: 0.09612873178 | P63: =IF(AND(P64=1,G63=G64),1,IF(AND(growth!K63>0,O63>$P$4),1,"-")) -> - | Q63: 1 | R63: 4.577314158 | S63: 0.06907923738 | T63: 1 | U63: =IF(SUM(INDIRECT($X$1&ROW()-$U$7):X63)=1,0,IF(SUM(INDIRECT($U$1&ROW()-$U$6):U62)>0,0,IF(AND(T63=1,T62="-"),1,0))) -> 0 | V63: 0 | W63: 0 | Y63: - | Z63: 1 | AA63: 5 | AB63: 1949-02-11 | AC63: 2000 | AD63: 0
A64: 1949-02-18 | G64: =VLOOKUP(A64-35,Fred!G:H,2) -> 4.761499148 | M64: 4.429747708 | N64: 4.149943991 | O64: 0.1111298452 | P64: =IF(AND(P65=1,G64=G65),1,IF(AND(growth!K64>0,O64>$P$4),1,"-")) -> - | Q64: 1 | R64: 4.669406653 | S64: 0.1019123311 | T64: 1 | U64: =IF(SUM(INDIRECT($X$1&ROW()-$U$7):X64)=1,0,IF(SUM(INDIRECT($U$1&ROW()-$U$6):U63)>0,0,IF(AND(T64=1,T63="-"),1,0))) -> 0 | V64: 0 | W64: 0 | Y64: - | Z64: 1 | AA64: 5 | AB64: 1949-02-18 | AC64: 2000 | AD64: 0
A65: 1949-02-25 | G65: =VLOOKUP(A65-35,Fred!G:H,2) -> 4.761499148 | M65: 4.480786391 | N65: 4.16999498 | O65: 0.1256391189 | P65: =IF(AND(P66=1,G65=G66),1,IF(AND(growth!K65>0,O65>$P$4),1,"-")) -> - | Q65: 1 | R65: 4.715452901 | S65: 0.1185858999 | T65: 1 | U65: =IF(SUM(INDIRECT($X$1&ROW()-$U$7):X65)=1,0,IF(SUM(INDIRECT($U$1&ROW()-$U$6):U64)>0,0,IF(AND(T65=1,T64="-"),1,0))) -> 0 | V65: 0 | W65: 0 | Y65: - | Z65: 1 | AA65: 5 | AB65: 1949-02-25 | AC65: 2000 | AD65: 0
A66: 1949-03-04 | G66: =VLOOKUP(A66-35,Fred!G:H,2) -> 4.761499148 | M66: 4.523972969 | N66: 4.189388559 | O66: 0.1396726786 | P66: =IF(AND(P67=1,G66=G67),1,IF(AND(growth!K66>0,O66>$P$4),1,"-")) -> - | Q66: 1 | R66: 4.738476024 | S66: 0.1269881165 | T66: 1 | U66: =IF(SUM(INDIRECT($X$1&ROW()-$U$7):X66)=1,0,IF(SUM(INDIRECT($U$1&ROW()-$U$6):U65)>0,0,IF(AND(T66=1,T65="-"),1,0))) -> 0 | V66: 0 | W66: 0 | Y66: - | Z66: 1 | AA66: 5 | AB66: 1949-03-04 | AC66: 2000 | AD66: 0
A67: 1949-03-11 | G67: =VLOOKUP(A67-35,Fred!G:H,2) -> 5.177966102 | M67: 4.624587297 | N67: 4.221800937 | O67: 0.1669007759 | P67: =IF(AND(P68=1,G67=G68),1,IF(AND(growth!K67>0,O67>$P$4),1,"-")) -> - | Q67: 1 | R67: 4.958221063 | S67: 0.1807963683 | T67: 1 | U67: =IF(SUM(INDIRECT($X$1&ROW()-$U$7):X67)=1,0,IF(SUM(INDIRECT($U$1&ROW()-$U$6):U66)>0,0,IF(AND(T67=1,T66="-"),1,0))) -> 0 | V67: 0 | W67: 0 | Y67: - | Z67: 1 | AA67: 5 | AB67: 1949-03-11 | AC67: 2000 | AD67: 0
A68: 1949-03-18 | G68: =VLOOKUP(A68-35,Fred!G:H,2) -> 5.177966102 | M68: 4.709722498 | N68: 4.253150615 | O68: 0.1869578954 | P68: =IF(AND(P69=1,G68=G69),1,IF(AND(growth!K68>0,O68>$P$4),1,"-")) -> - | Q68: 1 | R68: 5.068093582 | S68: 0.2217937684 | T68: 1 | U68: =IF(SUM(INDIRECT($X$1&ROW()-$U$7):X68)=1,0,IF(SUM(INDIRECT($U$1&ROW()-$U$6):U67)>0,0,IF(AND(T68=1,T67="-"),1,0))) -> 0 | V68: 0 | W68: 0 | Y68: - | Z68: 1 | AA68: 5 | AB68: 1949-03-18 | AC68: 2000 | AD68: 0
A69: 1949-03-25 | G69: =VLOOKUP(A69-35,Fred!G:H,2) -> 5.177966102 | M69: 4.781759975 | N69: 4.283472434 | O69: 0.2063574044 | P69: =IF(AND(P70=1,G69=G70),1,IF(AND(growth!K69>0,O69>$P$4),1,"-")) -> - | Q69: 1 | R69: 5.123029842 | S69: 0.2426726412 | T69: 1 | U69: =IF(SUM(INDIRECT($X$1&ROW()-$U$7):X69)=1,0,IF(SUM(INDIRECT($U$1&ROW()-$U$6):U68)>0,0,IF(AND(T69=1,T68="-"),1,0))) -> 0 | V69: 0 | W69: 0 | Y69: - | Z69: 1 | AA69: 5 | AB69: 1949-03-25 | AC69: =IF(ISNUMBER(AB69),2000,-2000) -> 2000 | AD69: 0
A70: 1949-04-01 | G70: =VLOOKUP(A70-35,Fred!G:H,2) -> 5.177966102 | M70: 4.842714764 | N70: 4.312800095 | O70: 0.225120864 | P70: =IF(AND(P71=1,G70=G71),1,IF(AND(growth!K70>0,O70>$P$4),1,"-")) -> - | Q70: 1 | R70: 5.150497972 | S70: 0.2532091837 | T70: 1 | U70: =IF(SUM(INDIRECT($X$1&ROW()-$U$7):X70)=1,0,IF(SUM(INDIRECT($U$1&ROW()-$U$6):U69)>0,0,IF(AND(T70=1,T69="-"),1,0))) -> 0 | V70: 0 | W70: 0 | Y70: - | Z70: 1 | AA70: 5 | AB70: 1949-04-01 | AC70: 2000 | AD70: 0
A71: 1949-04-08 | G71: =VLOOKUP(A71-35,Fred!G:H,2) -> 5.517826825 | M71: 4.946578158 | N71: 4.352309169 | O71: 0.2544121027 | P71: =IF(AND(P72=1,G71=G72),1,IF(AND(growth!K71>0,O71>$P$4),1,"-")) -> - | Q71: 1 | R71: 5.334162398 | S71: 0.2999133218 | T71: 1 | U71: =IF(SUM(INDIRECT($X$1&ROW()-$U$7):X71)=1,0,IF(SUM(INDIRECT($U$1&ROW()-$U$6):U70)>0,0,IF(AND(T71=1,T70="-"),1,0))) -> 0 | V71: 0 | W71: 0 | Y71: - | Z71: 1 | AA71: 5 | AB71: 1949-04-08 | AC71: 2000 | AD71: 0
A72: 1949-04-15 | G72: =VLOOKUP(A72-35,Fred!G:H,2) -> 5.517826825 | M72: 5.034462568 | N72: 4.390522862 | O72: 0.2827429729 | P72: =IF(AND(P73=1,G72=G73),1,IF(AND(growth!K72>0,O72>$P$4),1,"-")) -> - | Q72: 1 | R72: 5.425994612 | S72: 0.3233198218 | T72: 1 | U72: =IF(SUM(INDIRECT($X$1&ROW()-$U$7):X72)=1,0,IF(SUM(INDIRECT($U$1&ROW()-$U$6):U71)>0,0,IF(AND(T72=1,T71="-"),1,0))) -> 0 | V72: 0 | W72: 0 | Y72: - | Z72: 1 | AA72: 5 | AB72: 1949-04-15 | AC72: 2000 | AD72: 0
A73: 1949-04-22 | G73: =VLOOKUP(A73-35,Fred!G:H,2) -> 5.517826825 | M73: 5.1088263 | N73: 4.427483648 | O73: 0.2982703402 | P73: =IF(AND(P74=1,G73=G74),1,IF(AND(growth!K73>0,O73>$P$4),1,"-")) -> - | Q73: 1 | R73: 5.471910718 | S73: 0.3172430527 | T73: 1 | U73: =IF(SUM(INDIRECT($X$1&ROW()-$U$7):X73)=1,0,IF(SUM(INDIRECT($U$1&ROW()-$U$6):U72)>0,0,IF(AND(T73=1,T72="-"),1,0))) -> 0 | V73: 0 | W73: 0 | Y73: - | Z73: 1 | AA73: 5 | AB73: 1949-04-22 | AC73: 2000 | AD73: 0
A74: 1949-04-29 | G74: =VLOOKUP(A74-35,Fred!G:H,2) -> 5.517826825 | M74: 5.171749458 | N74: 4.463232604 | O74: 0.3132886136 | P74: =IF(AND(P75=1,G74=G75),1,IF(AND(growth!K74>0,O74>$P$4),1,"-")) -> - | Q74: 1 | R74: 5.494868772 | S74: 0.3142632854 | T74: 1 | U74: =IF(SUM(INDIRECT($X$1&ROW()-$U$7):X74)=1,0,IF(SUM(INDIRECT($U$1&ROW()-$U$6):U73)>0,0,IF(AND(T74=1,T73="-"),1,0))) -> 0 | V74: 0 | W74: 0 | Y74: - | Z74: 1 | AA74: 5 | AB74: 1949-04-29 | AC74: 2000 | AD74: 0
A75: 1949-05-06 | G75: =VLOOKUP(A75-35,Fred!G:H,2) -> 5.858843537 | M75: 5.277456239 | N75: 4.50899034 | O75: 0.3389953603 | P75: =IF(AND(P76=1,G75=G76),1,IF(AND(growth!K75>0,O75>$P$4),1,"-")) -> - | Q75: 1 | R75: 5.676856155 | S75: 0.3534392238 | T75: 1 | U75: =IF(SUM(INDIRECT($X$1&ROW()-$U$7):X75)=1,0,IF(SUM(INDIRECT($U$1&ROW()-$U$6):U74)>0,0,IF(AND(T75=1,T74="-"),1,0))) -> 0 | V75: 0 | W75: 0 | Y75: - | Z75: 1 | AA75: 5 | AB75: 1949-05-06 | AC75: 2000 | AD75: 0
A76: 1949-05-13 | G76: =VLOOKUP(A76-35,Fred!G:H,2) -> 5.858843537 | M76: 5.366900439 | N76: 4.553247822 | O76: 0.3638592629 | P76: =IF(AND(P77=1,G76=G77),1,IF(AND(growth!K76>0,O76>$P$4),1,"-")) -> - | Q76: 1 | R76: 5.767849846 | S76: 0.3729331722 | T76: 1 | U76: =IF(SUM(INDIRECT($X$1&ROW()-$U$7):X76)=1,0,IF(SUM(INDIRECT($U$1&ROW()-$U$6):U75)>0,0,IF(AND(T76=1,T75="-"),1,0))) -> 0 | V76: =IF(AND(Q76=1,Q75="-"),1,0) -> 0 | W76: 0 | Y76: - | Z76: 1 | AA76: =Z76*$AA$4 -> 5 | AB76: 1949-05-13 | AC76: 2000 | AD76: 0
A77: 1949-05-20 | G77: =VLOOKUP(A77-35,Fred!G:H,2) -> 5.858843537 | M77: =M76+M$6*(G77-M76) -> 5.442583993 | N77: =N76+N$6*(G77-N76) -> 4.596054239 | O77: 0.3742533013 | P77: =IF(AND(P78=1,G77=G78),1,IF(AND(growth!K77>0,O77>$P$4),1,"-")) -> - | Q77: 1 | R77: 5.813346692 | S77: 0.3518722456 | T77: 1 | U77: =IF(SUM(INDIRECT($X$1&ROW()-$U$7):X77)=1,0,IF(SUM(INDIRECT($U$1&ROW()-$U$6):U76)>0,0,IF(AND(T77=1,T76="-"),1,0))) -> 0 | V77: 0 | W77: 0 | Y77: - | Z77: 1 | AA77: 5 | AB77: 1949-05-20 | AC77: 2000 | AD77: 0
A78: 1949-05-27 | G78: =VLOOKUP(A78-35,Fred!G:H,2) -> 5.858843537 | M78: 5.506623923 | N78: 4.637457167 | O78: 0.3843065516 | P78: =IF(AND(P79=1,G78=G79),1,IF(AND(growth!K78>0,O78>$P$4),1,"-")) -> - | Q78: 1 | R78: =R77+R$6*($G78-R77) -> 5.836095115 | S78: 0.3417016678 | T78: 1 | U78: =IF(SUM(INDIRECT($X$1&ROW()-$U$7):X78)=1,0,IF(SUM(INDIRECT($U$1&ROW()-$U$6):U77)>0,0,IF(AND(T78=1,T77="-"),1,0))) -> 0 | V78: 0 | W78: 0 | Y78: - | Z78: 1 | AA78: 5 | AB78: 1949-05-27 | AC78: 2000 | AD78: 0
A79: 1949-06-03 | G79: =VLOOKUP(A79-35,Fred!G:H,2) -> 5.858843537 | M79: 5.560811556 | N79: 4.677502621 | O79: 0.3940301872 | P79: =IF(AND(P80=1,G79=G80),1,IF(AND(growth!K79>0,O79>$P$4),1,"-")) -> - | Q79: 1 | R79: 5.847469326 | S79: 0.3367027833 | T79: 1 | U79: =IF(SUM(INDIRECT($X$1&ROW()-$U$7):X79)=1,0,IF(SUM(INDIRECT($U$1&ROW()-$U$6):U78)>0,0,IF(AND(T79=1,T78="-"),1,0))) -> 0 | V79: 0 | W79: 0 | Y79: - | Z79: 1 | AA79: 5 | AB79: 1949-06-03 | AC79: 2000 | AD79: 0
A80: 1949-06-10 | G80: =VLOOKUP(A80-35,Fred!G:H,2) -> 6.720338983 | M80: 5.739200391 | N80: 4.744480863 | O80: 0.4316807673 | P80: =IF(AND(P81=1,G80=G81),1,IF(AND(growth!K80>0,O80>$P$4),1,"-")) -> - | Q80: 1 | R80: 6.283904155 | S80: 0.4324132751 | T80: 1 | U80: =IF(SUM(INDIRECT($X$1&ROW()-$U$7):X80)=1,0,IF(SUM(INDIRECT($U$1&ROW()-$U$6):U79)>0,0,IF(AND(T80=1,T79="-"),1,0))) -> 0 | V80: 0 | W80: 0 | Y80: - | Z80: 1 | AA80: 5 | AB80: 1949-06-10 | AC80: 2000 | AD80: 0
A81: 1949-06-17 | G81: =VLOOKUP(A81-35,Fred!G:H,2) -> 6.720338983 | M81: 5.890144789 | N81: 4.809263096 | O81: 0.4569539277 | P81: =IF(AND(P82=1,G81=G82),1,IF(AND(growth!K81>0,O81>$P$4),1,"-")) -> - | Q81: 1 | R81: 6.502121569 | S81: 0.480066103 | T81: 1 | U81: =IF(SUM(INDIRECT($X$1&ROW()-$U$7):X81)=1,0,IF(SUM(INDIRECT($U$1&ROW()-$U$6):U80)>0,0,IF(AND(T81=1,T80="-"),1,0))) -> 0 | V81: 0 | W81: 0 | Y81: - | Z81: 1 | AA81: 5 | AB81: 1949-06-17 | AC81: 2000 | AD81: 0
A82: 1949-06-24 | G82: =VLOOKUP(A82-35,Fred!G:H,2) -> 6.720338983 | M82: 6.017866973 | N82: 4.871921322 | O82: 0.4813984598 | P82: =IF(AND(P83=1,G82=G83),1,IF(AND(growth!K82>0,O82>$P$4),1,"-")) -> - | Q82: 1 | R82: 6.611230276 | S82: 0.4443470662 | T82: 1 | U82: =IF(SUM(INDIRECT($X$1&ROW()-$U$7):X82)=1,0,IF(SUM(INDIRECT($U$1&ROW()-$U$6):U81)>0,0,IF(AND(T82=1,T81="-"),1,0))) -> 0 | V82: 0 | W82: 0 | Y82: - | Z82: 1 | AA82: 5 | AB82: 1949-06-24 | AC82: 2000 | AD82: 0
A83: 1949-07-01 | G83: =VLOOKUP(A83-35,Fred!G:H,2) -> 6.720338983 | M83: 6.12593959 | N83: 4.93252518 | O83: 0.5050415319 | P83: =IF(AND(P84=1,G83=G84),1,IF(AND(growth!K83>0,O83>$P$4),1,"-")) -> - | Q83: 1 | R83: 6.665784629 | S83: 0.4275442523 | T83: 1 | U83: =IF(SUM(INDIRECT($X$1&ROW()-$U$7):X83)=1,0,IF(SUM(INDIRECT($U$1&ROW()-$U$6):U82)>0,0,IF(AND(T83=1,T82="-"),1,0))) -> 0 | V83: 0 | W83: 0 | Y83: - | Z83: 1 | AA83: 5 | AB83: 1949-07-01 | AC83: 2000 | AD83: 0
A84: 1949-07-08 | G84: =VLOOKUP(A84-35,Fred!G:H,2) -> 6.877133106 | M84: 6.241507823 | N84: 4.996282817 | O84: 0.5330502122 | P84: =IF(AND(P85=1,G84=G85),1,IF(AND(growth!K84>0,O84>$P$4),1,"-")) -> 1 | Q84: 1 | R84: 6.771458868 | S84: 0.4360145272 | T84: 1 | U84: =IF(SUM(INDIRECT($X$1&ROW()-$U$7):X84)=1,0,IF(SUM(INDIRECT($U$1&ROW()-$U$6):U83)>0,0,IF(AND(T84=1,T83="-"),1,0))) -> 0 | V84: 0 | W84: 0 | Y84: - | Z84: 1 | AA84: 5 | AB84: 1949-07-08 | AC84: 2000 | AD84: 0
A85: 1949-07-15 | G85: =VLOOKUP(A85-35,Fred!G:H,2) -> 6.877133106 | M85: 6.339296328 | N85: 5.057950039 | O85: 0.5489596993 | P85: =IF(AND(P86=1,G85=G86),1,IF(AND(growth!K85>0,O85>$P$4),1,"-")) -> 1 | Q85: 1 | R85: 6.824295987 | S85: 0.440187932 | T85: 1 | U85: =IF(SUM(INDIRECT($X$1&ROW()-$U$7):X85)=1,0,IF(SUM(INDIRECT($U$1&ROW()-$U$6):U84)>0,0,IF(AND(T85=1,T84="-"),1,0))) -> 0 | V85: 0 | W85: 0 | Y85: - | Z85: 1 | AA85: 5 | AB85: 1949-07-15 | AC85: 2000 | AD85: 0
A86: 1949-07-22 | G86: =VLOOKUP(A86-35,Fred!G:H,2) -> 6.877133106 | M86: 6.422040448 | N86: 5.117595386 | O86: =N86-INDIRECT($N$1&ROW()-$O$4) -> 0.5643475638 | P86: =IF(AND(P87=1,G86=G87),1,IF(AND(growth!K86>0,O86>$P$4),1,"-")) -> 1 | Q86: 1 | R86: 6.850714546 | S86: 0.3816880004 | T86: 1 | U86: =IF(SUM(INDIRECT($X$1&ROW()-$U$7):X86)=1,0,IF(SUM(INDIRECT($U$1&ROW()-$U$6):U85)>0,0,IF(AND(T86=1,T85="-"),1,0))) -> 0 | V86: 0 | W86: 0 | Y86: - | Z86: 1 | AA86: 5 | AB86: 1949-07-22 | AC86: 2000 | AD86: 0
A87: 1949-07-29 | G87: =VLOOKUP(A87-35,Fred!G:H,2) -> 6.877133106 | M87: 6.492054703 | N87: 5.175285147 | O87: 0.5792309082 | P87: =IF(AND(P88=1,G87=G88),1,IF(AND(growth!K87>0,O87>$P$4),1,"-")) -> 1 | Q87: 1 | R87: 6.863923826 | S87: 0.3543403875 | T87: 1 | U87: =IF(SUM(INDIRECT($X$1&ROW()-$U$7):X87)=1,0,IF(SUM(INDIRECT($U$1&ROW()-$U$6):U86)>0,0,IF(AND(T87=1,T86="-"),1,0))) -> 0 | V87: 0 | W87: 0 | Y87: - | Z87: 1 | AA87: 5 | AB87: 1949-07-29 | AC87: 2000 | AD87: 0
A88: 1949-08-05 | G88: =VLOOKUP(A88-35,Fred!G:H,2) -> 7.393887946 | M88: 6.630798279 | N88: 5.248026222 | O88: 0.6105690558 | P88: =IF(AND(P89=1,G88=G89),1,IF(AND(growth!K88>0,O88>$P$4),1,"-")) -> 1 | Q88: 1 | R88: 7.128905886 | S88: 0.3915409642 | T88: 1 | U88: =IF(SUM(INDIRECT($X$1&ROW()-$U$7):X88)=1,0,IF(SUM(INDIRECT($U$1&ROW()-$U$6):U87)>0,0,IF(AND(T88=1,T87="-"),1,0))) -> 0 | V88: 0 | W88: 0 | Y88: - | Z88: 1 | AA88: 5 | AB88: 1949-08-05 | AC88: 2000 | AD88: 0
A89: 1949-08-12 | G89: =VLOOKUP(A89-35,Fred!G:H,2) -> 7.393887946 | M89: 6.748196689 | N89: 5.318382344 | O89: 0.6408797231 | P89: =IF(AND(P90=1,G89=G90),1,IF(AND(growth!K89>0,O89>$P$4),1,"-")) -> 1 | Q89: 1 | R89: 7.261396916 | S89: 0.4098436608 | T89: 1 | U89: =IF(SUM(INDIRECT($X$1&ROW()-$U$7):X89)=1,0,IF(SUM(INDIRECT($U$1&ROW()-$U$6):U88)>0,0,IF(AND(T89=1,T88="-"),1,0))) -> 0 | V89: 0 | W89: 0 | X89: =growth!O89 -> - | Y89: - | Z89: 1 | AA89: 5 | AB89: 1949-08-12 | AC89: 2000 | AD89: 0
A90: 1949-08-19 | G90: =VLOOKUP(A90-35,Fred!G:H,2) -> 7.393887946 | M90: 6.847533805 | N90: 5.386431708 | O90: 0.6419508457 | P90: =IF(AND(P91=1,G90=G91),1,IF(AND(growth!K90>0,O90>$P$4),1,"-")) -> 1 | Q90: 1 | R90: 7.327642431 | S90: 0.3737194115 | T90: 1 | U90: =IF(SUM(INDIRECT($X$1&ROW()-$U$7):X90)=1,0,IF(SUM(INDIRECT($U$1&ROW()-$U$6):U89)>0,0,IF(AND(T90=1,T89="-"),1,0))) -> 0 | V90: 0 | W90: 0 | X90: =growth!O90 -> - | Y90: - | Z90: 1 | AA90: 5 | AB90: 1949-08-19 | AC90: 2000 | AD90: 0
A91: 1949-08-26 | G91: =VLOOKUP(A91-35,Fred!G:H,2) -> 7.393887946 | M91: 6.931588289 | N91: 5.452249946 | O91: 0.6429868495 | P91: =IF(AND(P92=1,G91=G92),1,IF(AND(growth!K91>0,O91>$P$4),1,"-")) -> 1 | Q91: 1 | R91: 7.360765188 | S91: 0.3565743637 | T91: 1 | U91: =IF(SUM(INDIRECT($X$1&ROW()-$U$7):X91)=1,0,IF(SUM(INDIRECT($U$1&ROW()-$U$6):U90)>0,0,IF(AND(T91=1,T90="-"),1,0))) -> 0 | V91: 0 | W91: 0 | X91: =growth!O91 -> - | Y91: - | Z91: 1 | AA91: 5 | AB91: 1949-08-26 | AC91: 2000 | AD91: 0
A92: 1949-09-02 | G92: =VLOOKUP(A92-35,Fred!G:H,2) -> 7.393887946 | M92: 7.002711313 | N92: 5.515910208 | O92: 0.643988886 | P92: =IF(AND(P93=1,G92=G93),1,IF(AND(growth!K92>0,O92>$P$4),1,"-")) -> 1 | Q92: 1 | R92: 7.377326567 | S92: 0.3482176422 | T92: 1 | U92: =IF(SUM(INDIRECT($X$1&ROW()-$U$7):X92)=1,0,IF(SUM(INDIRECT($U$1&ROW()-$U$6):U91)>0,0,IF(AND(T92=1,T91="-"),1,0))) -> 0 | V92: 0 | W92: 0 | X92: =growth!O92 -> - | Y92: - | Z92: 1 | AA92: 5 | AB92: 1949-09-02 | AC92: 2000 | AD92: 0
A93: 1949-09-09 | G93: =VLOOKUP(A93-35,Fred!G:H,2) -> 7.466216216 | M93: 7.074019759 | N93: 5.579854667 | O93: 0.6473294876 | P93: =IF(AND(P94=1,G93=G94),1,IF(AND(growth!K93>0,O93>$P$4),1,"-")) -> 1 | Q93: 1 | R93: 7.421771392 | S93: 0.3506730915 | T93: 1 | U93: =IF(SUM(INDIRECT($X$1&ROW()-$U$7):X93)=1,0,IF(SUM(INDIRECT($U$1&ROW()-$U$6):U92)>0,0,IF(AND(T93=1,T92="-"),1,0))) -> 0 | V93: 0 | W93: 0 | X93: =growth!O93 -> - | Y93: - | Z93: 1 | AA93: 5 | AB93: 1949-09-09 | AC93: 2000 | AD93: 0
A94: 1949-09-16 | G94: =VLOOKUP(A94-35,Fred!G:H,2) -> 7.466216216 | M94: 7.134357676 | N94: 5.641702587 | O94: 0.6454197703 | P94: =IF(AND(P95=1,G94=G95),1,IF(AND(growth!K94>0,O94>$P$4),1,"-")) -> 1 | Q94: 1 | R94: 7.443993804 | S94: 0.3112880794 | T94: 1 | U94: =IF(SUM(INDIRECT($X$1&ROW()-$U$7):X94)=1,0,IF(SUM(INDIRECT($U$1&ROW()-$U$6):U93)>0,0,IF(AND(T94=1,T93="-"),1,0))) -> 0 | V94: 0 | W94: 0 | X94: =growth!O94 -> - | Y94: - | Z94: 1 | AA94: 5 | AB94: 1949-09-16 | AC94: 2000 | AD94: 0
A95: 1949-09-23 | G95: =VLOOKUP(A95-35,Fred!G:H,2) -> 7.466216216 | M95: 7.185412836 | N95: 5.701522706 | O95: 0.6435726667 | P95: =IF(AND(P96=1,G95=G96),1,IF(AND(growth!K95>0,O95>$P$4),1,"-")) -> 1 | Q95: =IF(AND(Q96=1,G95=G96),1,IF(OR(M95-N95>$Q$4,P95=1),1,"-")) -> 1 | R95: 7.45510501 | S95: 0.2925275812 | T95: =IF(AND(T96=1,G95=G96),1,IF(AND(S95>$T$4,O95>$T$5),1,"-")) -> 1 | U95: =IF(SUM(INDIRECT($X$1&ROW()-$U$7):X95)=1,0,IF(SUM(INDIRECT($U$1&ROW()-$U$6):U94)>0,0,IF(AND(T95=1,T94="-"),1,0))) -> 0 | V95: 0 | W95: =IF(OR(U95=1,V95=1),1,0) -> 0 | X95: =growth!O95 -> 1 | Y95: 1 | Z95: 0 | AA95: 0 | AB95: 1949-09-23 | AC95: 2000 | AD95: 0
A96: 1949-09-30 | G96: =VLOOKUP(A96-35,Fred!G:H,2) -> 7.466216216 | M96: 7.228613356 | N96: 5.75938151 | O96: 0.6417861238 | P96: =IF(AND(P97=1,G96=G97),1,IF(AND(growth!K96>0,O96>$P$4),1,"-")) -> 1 | Q96: 1 | R96: 7.460660613 | S96: =(R96-INDIRECT($R$1&ROW()-$S$4))/INDIRECT($R$1&ROW()-$S$4) -> 0.2833675693 | T96: 1 | U96: =IF(SUM(INDIRECT($X$1&ROW()-$U$7):X96)=1,0,IF(SUM(INDIRECT($U$1&ROW()-$U$6):U95)>0,0,IF(AND(T96=1,T95="-"),1,0))) -> 0 | V96: 0 | W96: 0 | X96: =growth!O96 -> - | Y96: 1 | Z96: 0 | AA96: 0 | AB96: 1949-09-30 | AC96: 2000 | AD96: 0
A97: 1949-10-07 | G97: =VLOOKUP(A97-35,Fred!G:H,2) -> 7.258883249 | M97: 7.233270263 | N97: 5.808545501 | O97: 0.633260354 | P97: =IF(AND(P98=1,G97=G98),1,IF(AND(growth!K97>0,O97>$P$4),1,"-")) -> 1 | Q97: 1 | R97: 7.359771931 | S97: 0.261078133 | T97: 1 | U97: =IF(SUM(INDIRECT($X$1&ROW()-$U$7):X97)=1,0,IF(SUM(INDIRECT($U$1&ROW()-$U$6):U96)>0,0,IF(AND(T97=1,T96="-"),1,0))) -> 0 | V97: 0 | W97: 0 | X97: =growth!O97 -> - | Y97: 1 | Z97: 0 | AA97: 0 | AB97: 1949-10-07 | AC97: 2000 | AD97: 0
A98: 1949-10-14 | G98: =VLOOKUP(A98-35,Fred!G:H,2) -> 7.258883249 | M98: 7.237210722 | N98: 5.856097558 | O98: 0.6080713359 | P98: =IF(AND(P99=1,G98=G99),1,IF(AND(growth!K98>0,O98>$P$4),1,"-")) -> 1 | Q98: 1 | R98: 7.30932759 | S98: 0.2499984493 | T98: 1 | U98: =IF(SUM(INDIRECT($X$1&ROW()-$U$7):X98)=1,0,IF(SUM(INDIRECT($U$1&ROW()-$U$6):U97)>0,0,IF(AND(T98=1,T97="-"),1,0))) -> 0 | V98: 0 | W98: 0 | X98: =growth!O98 -> - | Y98: 1 | Z98: 0 | AA98: 0 | AB98: 1949-10-14 | AC98: 2000 | AD98: 0
A99: 1949-10-21 | G99: =VLOOKUP(A99-35,Fred!G:H,2) -> 7.258883249 | M99: 7.240544957 | N99: 5.902090532 | O99: 0.5837081873 | P99: =IF(AND(P100=1,G99=G100),1,IF(AND(growth!K99>0,O99>$P$4),1,"-")) -> 1 | Q99: 1 | R99: 7.284105419 | S99: 0.1591687652 | T99: 1 | U99: =IF(SUM(INDIRECT($X$1&ROW()-$U$7):X99)=1,0,IF(SUM(INDIRECT($U$1&ROW()-$U$6):U98)>0,0,IF(AND(T99=1,T98="-"),1,0))) -> 0 | V99: 0 | W99: 0 | X99: =growth!O99 -> - | Y99: 1 | Z99: 0 | AA99: 0 | AB99: 1949-10-21 | AC99: 2000 | AD99: 0
A100: 1949-10-28 | G100: =VLOOKUP(A100-35,Fred!G:H,2) -> 7.258883249 | M100: 7.243366233 | N100: 5.946575539 | O100: 0.5601438304 | P100: =IF(AND(P101=1,G100=G101),1,IF(AND(growth!K100>0,O100>$P$4),1,"-")) -> 1 | Q100: 1 | R100: 7.271494334 | S100: 0.1183264196 | T100: 1 | U100: =IF(SUM(INDIRECT($X$1&ROW()-$U$7):X100)=1,0,IF(SUM(INDIRECT($U$1&ROW()-$U$6):U99)>0,0,IF(AND(T100=1,T99="-"),1,0))) -> 0 | V100: 0 | W100: 0 | X100: =growth!O100 -> - | Y100: 1 | Z100: 0 | AA100: 0 | AB100: 1949-10-28 | AC100: 2000 | AD100: 0
A101: 1949-11-04 | G101: =VLOOKUP(A101-35,Fred!G:H,2) -> 7.258883249 | M101: 7.245753466 | N101: 5.989602021 | O101: 0.5373520754 | P101: =IF(AND(P102=1,G101=G102),1,IF(AND(growth!K101>0,O101>$P$4),1,"-")) -> 1 | Q101: 1 | R101: 7.265188791 | S101: 0.09891631181 | T101: 1 | U101: =IF(SUM(INDIRECT($X$1&ROW()-$U$7):X101)=1,0,IF(SUM(INDIRECT($U$1&ROW()-$U$6):U100)>0,0,IF(AND(T101=1,T100="-"),1,0))) -> 0 | V101: 0 | W101: 0 | X101: =growth!O101 -> - | Y101: 1 | Z101: =IF(AND(OR(SUM(Q95:Q101)>0,SUM(T65:T101)>0),Y101="-"),1,0) -> 0 | AA101: 0 | AC101: -2000 | AD101: 0
A102: 1949-11-11 | G102: =VLOOKUP(A102-35,Fred!G:H,2) -> 8.615771812 | M102: 7.456525519 | N102: 6.075705949 | O102: 0.5597957407 | P102: =IF(AND(P103=1,G102=G103),1,IF(AND(growth!K102>0,O102>$P$4),1,"-")) -> 1 | Q102: 1 | R102: 7.940480302 | S102: 0.1912296516 | T102: 1 | U102: =IF(SUM(INDIRECT($X$1&ROW()-$U$7):X102)=1,0,IF(SUM(INDIRECT($U$1&ROW()-$U$6):U101)>0,0,IF(AND(T102=1,T101="-"),1,0))) -> 0 | V102: 0 | W102: 0 | X102: =growth!O102 -> - | Y102: 1 | Z102: 0 | AA102: 0 | AC102: -2000 | AD102: 0
A103: 1949-11-18 | G103: =VLOOKUP(A103-35,Fred!G:H,2) -> 8.615771812 | M103: 7.634871103 | N103: 6.158986797 | O103: 0.5791321294 | P103: =IF(AND(P104=1,G103=G104),1,IF(AND(growth!K103>0,O103>$P$4),1,"-")) -> 1 | Q103: 1 | R103: 8.278126057 | S103: 0.2225025978 | T103: 1 | U103: =IF(SUM(INDIRECT($X$1&ROW()-$U$7):X103)=1,0,IF(SUM(INDIRECT($U$1&ROW()-$U$6):U102)>0,0,IF(AND(T103=1,T102="-"),1,0))) -> 0 | V103: 0 | W103: 0 | X103: =growth!O103 -> - | Y103: 1 | Z103: 0 | AA103: 0 | AC103: -2000 | AD103: 0
A104: 1949-11-25 | G104: =VLOOKUP(A104-35,Fred!G:H,2) -> 8.615771812 | M104: 7.785778904 | N104: 6.239537125 | O104: 0.5978345381 | P104: =IF(AND(P105=1,G104=G105),1,IF(AND(growth!K104>0,O104>$P$4),1,"-")) -> 1 | Q104: 1 | R104: 8.446948934 | S104: 0.2377758747 | T104: 1 | U104: =IF(SUM(INDIRECT($X$1&ROW()-$U$7):X104)=1,0,IF(SUM(INDIRECT($U$1&ROW()-$U$6):U103)>0,0,IF(AND(T104=1,T103="-"),1,0))) -> 0 | V104: 0 | W104: 0 | X104: =growth!O104 -> - | Y104: 1 | Z104: 0 | AA104: 0 | AC104: -2000 | AD104: 0
A105: 1949-12-02 | G105: =VLOOKUP(A105-35,Fred!G:H,2) -> 8.615771812 | M105: 7.913470121 | N105: 6.317446459 | O105: 0.6159237532 | P105: =IF(AND(P106=1,G105=G106),1,IF(AND(growth!K105>0,O105>$P$4),1,"-")) -> 1 | Q105: 1 | R105: 8.531360373 | S105: 0.2453241652 | T105: 1 | U105: =IF(SUM(INDIRECT($X$1&ROW()-$U$7):X105)=1,0,IF(SUM(INDIRECT($U$1&ROW()-$U$6):U104)>0,0,IF(AND(T105=1,T104="-"),1,0))) -> 0 | V105: 0 | W105: 0 | X105: =growth!O105 -> - | Y105: 1 | Z105: 0 | AA105: 0 | AC105: -2000 | AD105: 0
A106: 1949-12-09 | G106: =VLOOKUP(A106-35,Fred!G:H,2) -> 7.003367003 | M106: 7.773454256 | N106: 6.339935657 | O106: 0.5805541477 | P106: =IF(AND(P107=1,G106=G107),1,IF(AND(growth!K106>0,O106>$P$4),1,"-")) -> 1 | Q106: 1 | R106: 7.767363688 | S106: 0.1316214872 | T106: 1 | U106: =IF(SUM(INDIRECT($X$1&ROW()-$U$7):X106)=1,0,IF(SUM(INDIRECT($U$1&ROW()-$U$6):U105)>0,0,IF(AND(T106=1,T105="-"),1,0))) -> 0 | V106: 0 | W106: 0 | X106: =growth!O106 -> - | Y106: =IF(X106=1,1,IF(AND(Y105=1,W106=0),Y105,"-")) -> 1 | Z106: 0 | AA106: 0 | AC106: -2000 | AD106: 0
A107: 1949-12-16 | G107: =VLOOKUP(A107-35,Fred!G:H,2) -> 7.003367003 | M107: 7.654979294 | N107: 6.361687505 | O107: 0.5531420037 | P107: =IF(AND(P108=1,G107=G108),1,IF(AND(growth!K107>0,O107>$P$4),1,"-")) -> 1 | Q107: 1 | R107: 7.385365346 | S107: 0.0359745891 | T107: - | U107: =IF(SUM(INDIRECT($X$1&ROW()-$U$7):X107)=1,0,IF(SUM(INDIRECT($U$1&ROW()-$U$6):U106)>0,0,IF(AND(T107=1,T106="-"),1,0))) -> 0 | V107: 0 | W107: 0 | X107: =growth!O107 -> - | Y107: 1 | Z107: 0 | AA107: 0 | AC107: -2000 | AD107: 0
A108: 1949-12-23 | G108: =VLOOKUP(A108-35,Fred!G:H,2) -> 7.003367003 | M108: 7.55473125 | N108: 6.382726177 | O108: 0.5266286185 | P108: =IF(AND(P109=1,G108=G109),1,IF(AND(growth!K108>0,O108>$P$4),1,"-")) -> 1 | Q108: 1 | R108: 7.194366175 | S108: -0.009231108275 | T108: - | U108: =IF(SUM(INDIRECT($X$1&ROW()-$U$7):X108)=1,0,IF(SUM(INDIRECT($U$1&ROW()-$U$6):U107)>0,0,IF(AND(T108=1,T107="-"),1,0))) -> 0 | V108: 0 | W108: 0 | X108: =growth!O108 -> - | Y108: 1 | Z108: 0 | AA108: 0 | AC108: -2000 | AD108: 0
A109: 1949-12-30 | G109: =VLOOKUP(A109-35,Fred!G:H,2) -> 7.003367003 | M109: 7.469905981 | N109: 6.403075056 | O109: 0.5009845246 | P109: =IF(AND(P110=1,G109=G110),1,IF(AND(growth!K109>0,O109>$P$4),1,"-")) -> 1 | Q109: 1 | R109: 7.098866589 | S109: -0.03122093414 | T109: - | U109: =IF(SUM(INDIRECT($X$1&ROW()-$U$7):X109)=1,0,IF(SUM(INDIRECT($U$1&ROW()-$U$6):U108)>0,0,IF(AND(T109=1,T108="-"),1,0))) -> 0 | V109: 0 | W109: 0 | X109: =growth!O109 -> - | Y109: 1 | Z109: 0 | AA109: 0 | AC109: -2000 | AD109: 0
A110: 1950-01-06 | G110: =VLOOKUP(A110-35,Fred!G:H,2) -> 7.246621622 | M110: 7.435554541 | N110: 6.430732321 | O110: 0.4841567819 | P110: =IF(AND(P111=1,G110=G111),1,IF(AND(growth!K110>0,O110>$P$4),1,"-")) -> 1 | Q110: 1 | R110: 7.172744105 | S110: -0.02554368711 | T110: - | U110: =IF(SUM(INDIRECT($X$1&ROW()-$U$7):X110)=1,0,IF(SUM(INDIRECT($U$1&ROW()-$U$6):U109)>0,0,IF(AND(T110=1,T109="-"),1,0))) -> 0 | V110: 0 | W110: 0 | X110: =growth!O110 -> - | Y110: 1 | Z110: 0 | AA110: 0 | AC110: -2000 | AD110: 0
A111: 1950-01-13 | G111: =VLOOKUP(A111-35,Fred!G:H,2) -> 7.246621622 | M111: 7.406487938 | N111: 6.45748279 | O111: 0.4678807685 | P111: =IF(AND(P112=1,G111=G112),1,IF(AND(growth!K111>0,O111>$P$4),1,"-")) -> 1 | Q111: 1 | R111: 7.209682863 | S111: -0.0227241809 | T111: - | U111: =IF(SUM(INDIRECT($X$1&ROW()-$U$7):X111)=1,0,IF(SUM(INDIRECT($U$1&ROW()-$U$6):U110)>0,0,IF(AND(T111=1,T110="-"),1,0))) -> 0 | V111: 0 | W111: 0 | X111: =growth!O111 -> - | Y111: 1 | Z111: 0 | AA111: 0 | AC111: -2000 | AD111: 0
A112: 1950-01-20 | G112: =VLOOKUP(A112-35,Fred!G:H,2) -> 7.246621622 | M112: 7.38189312 | N112: 6.483356194 | O112: 0.4076502452 | P112: =IF(AND(P113=1,G112=G113),1,IF(AND(growth!K112>0,O112>$P$4),1,"-")) -> 1 | Q112: 1 | R112: 7.228152243 | S112: -0.0260879969 | T112: - | U112: =IF(SUM(INDIRECT($X$1&ROW()-$U$7):X112)=1,0,IF(SUM(INDIRECT($U$1&ROW()-$U$6):U111)>0,0,IF(AND(T112=1,T111="-"),1,0))) -> 0 | V112: 0 | W112: 0 | X112: =growth!O112 -> - | Y112: 1 | Z112: 0 | AA112: 0 | AC112: -2000 | AD112: 0
A113: 1950-01-27 | G113: =VLOOKUP(A113-35,Fred!G:H,2) -> 7.246621622 | M113: 7.36108212 | N113: 6.50838129 | O113: 0.3493944932 | P113: =IF(AND(P114=1,G113=G114),1,IF(AND(growth!K113>0,O113>$P$4),1,"-")) -> 1 | Q113: 1 | R113: 7.237386932 | S113: -0.02775484199 | T113: - | U113: =IF(SUM(INDIRECT($X$1&ROW()-$U$7):X113)=1,0,IF(SUM(INDIRECT($U$1&ROW()-$U$6):U112)>0,0,IF(AND(T113=1,T112="-"),1,0))) -> 0 | V113: 0 | W113: 0 | X113: =growth!O113 -> - | Y113: 1 | Z113: 0 | AA113: 0 | AC113: -2000 | AD113: 0
A114: 1950-02-03 | G114: =VLOOKUP(A114-35,Fred!G:H,2) -> 7.246621622 | M114: 7.343472813 | N114: 6.532585891 | O114: 0.2930487659 | P114: =IF(AND(P115=1,G114=G115),1,IF(AND(growth!K114>0,O114>$P$4),1,"-")) -> 1 | Q114: 1 | R114: 7.242004277 | S114: -0.0285845381 | T114: - | U114: =IF(SUM(INDIRECT($X$1&ROW()-$U$7):X114)=1,0,IF(SUM(INDIRECT($U$1&ROW()-$U$6):U113)>0,0,IF(AND(T114=1,T113="-"),1,0))) -> 0 | V114: 0 | W114: 0 | X114: =growth!O114 -> - | Y114: 1 | Z114: 0 | AA114: 0 | AC114: -2000 | AD114: 0
A115: 1950-02-10 | G115: =VLOOKUP(A115-35,Fred!G:H,2) -> 7.173174873 | M115: 7.31727313 | N115: 6.553588808 | O115: 0.2361423493 | P115: =IF(AND(P116=1,G115=G116),1,IF(AND(growth!K115>0,O115>$P$4),1,"-")) -> 1 | Q115: 1 | R115: 7.207589575 | S115: -0.03392072787 | T115: - | U115: =IF(SUM(INDIRECT($X$1&ROW()-$U$7):X115)=1,0,IF(SUM(INDIRECT($U$1&ROW()-$U$6):U114)>0,0,IF(AND(T115=1,T114="-"),1,0))) -> 0 | V115: 0 | W115: 0 | X115: =growth!O115 -> - | Y115: 1 | Z115: 0 | AA115: 0 | AC115: -2000 | AD115: 0
A116: 1950-02-17 | G116: =VLOOKUP(A116-35,Fred!G:H,2) -> 7.173174873 | M116: 7.295104167 | N116: 6.573903106 | O116: 0.2339674484 | P116: =IF(AND(P117=1,G116=G117),1,IF(AND(growth!K116>0,O116>$P$4),1,"-")) -> 1 | Q116: 1 | R116: 7.190382224 | S116: -0.02301561907 | T116: - | U116: =IF(SUM(INDIRECT($X$1&ROW()-$U$7):X116)=1,0,IF(SUM(INDIRECT($U$1&ROW()-$U$6):U115)>0,0,IF(AND(T116=1,T115="-"),1,0))) -> 0 | V116: 0 | W116: 0 | X116: =growth!O116 -> - | Y116: 1 | Z116: 0 | AA116: 0 | AC116: -2000 | AD116: 0
A117: 1950-02-24 | G117: =VLOOKUP(A117-35,Fred!G:H,2) -> 7.173174873 | M117: 7.276345814 | N117: 6.59355136 | O117: 0.2318638556 | P117: =IF(AND(P118=1,G117=G118),1,IF(AND(growth!K117>0,O117>$P$4),1,"-")) -> 1 | Q117: 1 | R117: 7.181778548 | S117: -0.01745017446 | T117: - | U117: =IF(SUM(INDIRECT($X$1&ROW()-$U$7):X117)=1,0,IF(SUM(INDIRECT($U$1&ROW()-$U$6):U116)>0,0,IF(AND(T117=1,T116="-"),1,0))) -> 0 | V117: 0 | W117: 0 | X117: =growth!O117 -> - | Y117: 1 | Z117: 0 | AA117: 0 | AC117: -2000 | AD117: 0
A118: 1950-03-03 | G118: =VLOOKUP(A118-35,Fred!G:H,2) -> 7.173174873 | M118: 7.260473362 | N118: 6.61255541 | O118: 0.2298292331 | P118: =IF(AND(P119=1,G118=G119),1,IF(AND(growth!K118>0,O118>$P$4),1,"-")) -> 1 | Q118: 1 | R118: 7.17747671 | S118: -0.01463854553 | T118: - | U118: =IF(SUM(INDIRECT($X$1&ROW()-$U$7):X118)=1,0,IF(SUM(INDIRECT($U$1&ROW()-$U$6):U117)>0,0,IF(AND(T118=1,T117="-"),1,0))) -> 0 | V118: 0 | W118: 0 | X118: =growth!O118 -> - | Y118: 1 | Z118: 0 | AA118: 0 | AC118: -2000 | AD118: 0
A119: 1950-03-10 | G119: =VLOOKUP(A119-35,Fred!G:H,2) -> 7.062818336 | M119: 7.230064896 | N119: 6.627318129 | O119: 0.2242430724 | P119: =IF(AND(P120=1,G119=G120),1,IF(AND(growth!K119>0,O119>$P$4),1,"-")) -> 1 | Q119: 1 | R119: 7.120147523 | S119: -0.020813715 | T119: - | U119: =IF(SUM(INDIRECT($X$1&ROW()-$U$7):X119)=1,0,IF(SUM(INDIRECT($U$1&ROW()-$U$6):U118)>0,0,IF(AND(T119=1,T118="-"),1,0))) -> 0 | V119: 0 | W119: 0 | X119: =growth!O119 -> - | Y119: 1 | Z119: 0 | AA119: 0 | AC119: -2000 | AD119: 0
A120: 1950-03-17 | G120: =VLOOKUP(A120-35,Fred!G:H,2) -> 7.062818336 | M120: 7.204334656 | N120: 6.641596824 | O120: 0.2108645033 | P120: =IF(AND(P121=1,G120=G121),1,IF(AND(growth!K120>0,O120>$P$4),1,"-")) -> 1 | Q120: 1 | R120: 7.09148293 | S120: -0.02390933899 | T120: - | U120: =IF(SUM(INDIRECT($X$1&ROW()-$U$7):X120)=1,0,IF(SUM(INDIRECT($U$1&ROW()-$U$6):U119)>0,0,IF(AND(T120=1,T119="-"),1,0))) -> 0 | V120: 0 | W120: 0 | X120: =growth!O120 -> - | Y120: 1 | Z120: 0 | AA120: 0 | AC120: -2000 | AD120: 0
A121: 1950-03-24 | G121: =VLOOKUP(A121-35,Fred!G:H,2) -> 7.062818336 | M121: 7.182562915 | N121: 6.655407365 | O121: 0.1979245758 | P121: =IF(AND(P122=1,G121=G122),1,IF(AND(growth!K121>0,O121>$P$4),1,"-")) -> 1 | Q121: 1 | R121: 7.077150633 | S121: -0.1087251194 | T121: - | U121: =IF(SUM(INDIRECT($X$1&ROW()-$U$7):X121)=1,0,IF(SUM(INDIRECT($U$1&ROW()-$U$6):U120)>0,0,IF(AND(T121=1,T120="-"),1,0))) -> 0 | V121: 0 | W121: 0 | X121: =growth!O121 -> - | Y121: 1 | Z121: 0 | AA121: 0 | AC121: -2000 | AD121: 0
A122: 1950-03-31 | G122: =VLOOKUP(A122-35,Fred!G:H,2) -> 7.062818336 | M122: 7.164140672 | N122: 6.668765102 | O122: 0.1854089082 | P122: =IF(AND(P123=1,G122=G123),1,IF(AND(growth!K122>0,O122>$P$4),1,"-")) -> 1 | Q122: 1 | R122: 7.069984485 | S122: -0.1459438482 | T122: - | U122: =IF(SUM(INDIRECT($X$1&ROW()-$U$7):X122)=1,0,IF(SUM(INDIRECT($U$1&ROW()-$U$6):U121)>0,0,IF(AND(T122=1,T121="-"),1,0))) -> 0 | V122: 0 | W122: 0 | X122: =growth!O122 -> - | Y122: 1 | Z122: 0 | AA122: 0 | AC122: -2000 | AD122: 0
A123: 1950-04-07 | G123: =VLOOKUP(A123-35,Fred!G:H,2) -> 6.964285714 | M123: 7.133393755 | N123: 6.678454303 | O123: 0.1700730126 | P123: =IF(AND(P124=1,G123=G124),1,IF(AND(growth!K123>0,O123>$P$4),1,"-")) -> 1 | Q123: 1 | R123: 7.017135099 | S123: -0.1692698566 | T123: - | U123: =IF(SUM(INDIRECT($X$1&ROW()-$U$7):X123)=1,0,IF(SUM(INDIRECT($U$1&ROW()-$U$6):U122)>0,0,IF(AND(T123=1,T122="-"),1,0))) -> 0 | V123: 0 | W123: 0 | X123: =growth!O123 -> - | Y123: 1 | Z123: 0 | AA123: 0 | AC123: -2000 | AD123: 0
A124: 1950-04-14 | G124: =VLOOKUP(A124-35,Fred!G:H,2) -> 6.964285714 | M124: 7.107377134 | N124: 6.687825824 | O124: 0.1552399333 | P124: =IF(AND(P125=1,G124=G125),1,IF(AND(growth!K124>0,O124>$P$4),1,"-")) -> 1 | Q124: 1 | R124: 6.990710407 | S124: -0.1805866707 | T124: - | U124: =IF(SUM(INDIRECT($X$1&ROW()-$U$7):X124)=1,0,IF(SUM(INDIRECT($U$1&ROW()-$U$6):U123)>0,0,IF(AND(T124=1,T123="-"),1,0))) -> 0 | V124: 0 | W124: 0 | X124: =growth!O124 -> - | Y124: 1 | Z124: 0 | AA124: 0 | AC124: -2000 | AD124: 0
A125: 1950-04-21 | G125: =VLOOKUP(A125-35,Fred!G:H,2) -> 6.964285714 | M125: 7.085363069 | N125: 6.696890083 | O125: 0.1433012746 | P125: =IF(AND(P126=1,G125=G126),1,IF(AND(growth!K125>0,O125>$P$4),1,"-")) -> 1 | Q125: 1 | R125: 6.977498061 | S125: -0.1016903108 | T125: - | U125: =IF(SUM(INDIRECT($X$1&ROW()-$U$7):X125)=1,0,IF(SUM(INDIRECT($U$1&ROW()-$U$6):U124)>0,0,IF(AND(T125=1,T124="-"),1,0))) -> 0 | V125: 0 | W125: 0 | X125: =growth!O125 -> - | Y125: 1 | Z125: 0 | AA125: 0 | AC125: -2000 | AD125: 0
A126: 1950-04-28 | G126: =VLOOKUP(A126-35,Fred!G:H,2) -> 6.964285714 | M126: 7.066735784 | N126: 6.705657153 | O126: 0.1317540472 | P126: =IF(AND(P127=1,G126=G127),1,IF(AND(growth!K126>0,O126>$P$4),1,"-")) -> 1 | Q126: 1 | R126: 6.970891887 | S126: -0.05612091468 | T126: - | U126: =IF(SUM(INDIRECT($X$1&ROW()-$U$7):X126)=1,0,IF(SUM(INDIRECT($U$1&ROW()-$U$6):U125)>0,0,IF(AND(T126=1,T125="-"),1,0))) -> 0 | V126: 0 | W126: 0 | X126: =growth!O126 -> - | Y126: 1 | Z126: 0 | AA126: 0 | AC126: -2000 | AD126: 0
A127: 1950-05-05 | G127: =VLOOKUP(A127-35,Fred!G:H,2) -> 6.964285714 | M127: 7.050974235 | N127: 6.714136778 | O127: 0.1205854176 | P127: =IF(AND(P128=1,G127=G128),1,IF(AND(growth!K127>0,O127>$P$4),1,"-")) -> 1 | Q127: 1 | R127: 6.967588801 | S127: -0.03152152229 | T127: - | U127: =IF(SUM(INDIRECT($X$1&ROW()-$U$7):X127)=1,0,IF(SUM(INDIRECT($U$1&ROW()-$U$6):U126)>0,0,IF(AND(T127=1,T126="-"),1,0))) -> 0 | V127: 0 | W127: 0 | X127: =growth!O127 -> - | Y127: 1 | Z127: 0 | AA127: 0 | AC127: -2000 | AD127: 0
A128: 1950-05-12 | G128: =VLOOKUP(A128-35,Fred!G:H,2) -> 6.368243243 | M128: 6.945938697 | N128: 6.702796006 | O128: 0.09024059634 | P128: =IF(AND(P129=1,G128=G129),1,IF(AND(growth!K128>0,O128>$P$4),1,"-")) -> 1 | Q128: 1 | R128: 6.667916022 | S128: -0.06070695392 | T128: - | U128: =IF(SUM(INDIRECT($X$1&ROW()-$U$7):X128)=1,0,IF(SUM(INDIRECT($U$1&ROW()-$U$6):U127)>0,0,IF(AND(T128=1,T127="-"),1,0))) -> 0 | V128: 0 | W128: 0 | X128: =growth!O128 -> - | Y128: 1 | Z128: 0 | AA128: 0 | AC128: -2000 | AD128: 0
A129: 1950-05-19 | G129: =VLOOKUP(A129-35,Fred!G:H,2) -> 6.368243243 | M129: 6.857062474 | N129: 6.691827063 | O129: 0.0645089344 | P129: =IF(AND(P130=1,G129=G130),1,IF(AND(growth!K129>0,O129>$P$4),1,"-")) -> 1 | Q129: 1 | R129: 6.518079633 | S129: -0.09127113181 | T129: - | U129: =IF(SUM(INDIRECT($X$1&ROW()-$U$7):X129)=1,0,IF(SUM(INDIRECT($U$1&ROW()-$U$6):U128)>0,0,IF(AND(T129=1,T128="-"),1,0))) -> 0 | V129: 0 | W129: 0 | X129: =growth!O129 -> - | Y129: 1 | Z129: 0 | AA129: 0 | AC129: -2000 | AD129: 0
A130: 1950-05-26 | G130: =VLOOKUP(A130-35,Fred!G:H,2) -> 6.368243243 | M130: 6.781859515 | N130: 6.681217758 | O130: 0.0396209335 | P130: =IF(AND(P131=1,G130=G131),1,IF(AND(growth!K130>0,O130>$P$4),1,"-")) -> 1 | Q130: 1 | R130: 6.443161438 | S130: -0.1063183277 | T130: - | U130: =IF(SUM(INDIRECT($X$1&ROW()-$U$7):X130)=1,0,IF(SUM(INDIRECT($U$1&ROW()-$U$6):U129)>0,0,IF(AND(T130=1,T129="-"),1,0))) -> 0 | V130: 0 | W130: 0 | X130: =growth!O130 -> - | Y130: 1 | Z130: 0 | AA130: 0 | AC130: -2000 | AD130: 0
A131: 1950-06-02 | G131: =VLOOKUP(A131-35,Fred!G:H,2) -> 6.368243243 | M131: 6.718226243 | N131: 6.670956298 | O131: 0.01554893264 | P131: =IF(AND(P132=1,G131=G132),1,IF(AND(growth!K131>0,O131>$P$4),1,"-")) -> - | Q131: - | R131: 6.405702341 | S131: -0.1137842528 | T131: - | U131: =IF(SUM(INDIRECT($X$1&ROW()-$U$7):X131)=1,0,IF(SUM(INDIRECT($U$1&ROW()-$U$6):U130)>0,0,IF(AND(T131=1,T130="-"),1,0))) -> 0 | V131: 0 | W131: 0 | X131: =growth!O131 -> - | Y131: 1 | Z131: 0 | AA131: 0 | AC131: -2000 | AD131: 0
A132: 1950-06-09 | G132: =VLOOKUP(A132-35,Fred!G:H,2) -> 6.049069374 | M132: 6.615279032 | N132: 6.650566563 | O132: -0.01819853932 | P132: =IF(AND(P133=1,G132=G133),1,IF(AND(growth!K132>0,O132>$P$4),1,"-")) -> - | Q132: - | R132: 6.227385857 | S132: -0.1395532786 | T132: - | U132: =IF(SUM(INDIRECT($X$1&ROW()-$U$7):X132)=1,0,IF(SUM(INDIRECT($U$1&ROW()-$U$6):U131)>0,0,IF(AND(T132=1,T131="-"),1,0))) -> 0 | V132: 0 | W132: 0 | X132: =growth!O132 -> - | Y132: 1 | Z132: 0 | AA132: 0 | AC132: -2000 | AD132: 0
A133: 1950-06-16 | G133: =VLOOKUP(A133-35,Fred!G:H,2) -> 6.049069374 | M133: 6.528169854 | N133: 6.630845344 | O133: -0.04760895903 | P133: =IF(AND(P134=1,G133=G134),1,IF(AND(growth!K133>0,O133>$P$4),1,"-")) -> - | Q133: - | R133: 6.138227616 | S133: -0.1524131468 | T133: - | U133: =IF(SUM(INDIRECT($X$1&ROW()-$U$7):X133)=1,0,IF(SUM(INDIRECT($U$1&ROW()-$U$6):U132)>0,0,IF(AND(T133=1,T132="-"),1,0))) -> 0 | V133: 0 | W133: 0 | X133: =growth!O133 -> - | Y133: 1 | Z133: 0 | AA133: 0 | AC133: =IF(ISNUMBER(AB133),2000,-2000) -> -2000 | AD133: 0
A134: 1950-06-23 | G134: =VLOOKUP(A134-35,Fred!G:H,2) -> 6.049069374 | M134: 6.454462088 | N134: 6.611770722 | O134: -0.07605510268 | P134: =IF(AND(P135=1,G134=G135),1,IF(AND(growth!K134>0,O134>$P$4),1,"-")) -> - | Q134: - | R134: 6.093648495 | S134: -0.1545511254 | T134: - | U134: =IF(SUM(INDIRECT($X$1&ROW()-$U$7):X134)=1,0,IF(SUM(INDIRECT($U$1&ROW()-$U$6):U133)>0,0,IF(AND(T134=1,T133="-"),1,0))) -> 0 | V134: 0 | W134: 0 | X134: =growth!O134 -> - | Y134: 1 | Z134: 0 | AA134: 0 | AC134: -2000 | AD134: 0
A135: 1950-06-30 | G135: =VLOOKUP(A135-35,Fred!G:H,2) -> 6.049069374 | M135: 6.392093978 | N135: 6.593321497 | O135: -0.1035685859 | P135: =IF(AND(P136=1,G135=G136),1,IF(AND(growth!K135>0,O135>$P$4),1,"-")) -> - | Q135: - | R135: 6.071358934 | S135: -0.1556277893 | T135: - | U135: =IF(SUM(INDIRECT($X$1&ROW()-$U$7):X135)=1,0,IF(SUM(INDIRECT($U$1&ROW()-$U$6):U134)>0,0,IF(AND(T135=1,T134="-"),1,0))) -> 0 | V135: 0 | W135: 0 | X135: =growth!O135 -> - | Y135: 1 | Z135: 0 | AA135: 0 | AC135: -2000 | AD135: 0
A136: 1950-07-07 | G136: =VLOOKUP(A136-35,Fred!G:H,2) -> 5.909090909 | M136: 6.317785813 | N136: 6.570887707 | O136: -0.1347694455 | P136: =IF(AND(P137=1,G136=G137),1,IF(AND(growth!K136>0,O136>$P$4),1,"-")) -> - | Q136: - | R136: 5.990224922 | S136: -0.1659134459 | T136: - | U136: =IF(SUM(INDIRECT($X$1&ROW()-$U$7):X136)=1,0,IF(SUM(INDIRECT($U$1&ROW()-$U$6):U135)>0,0,IF(AND(T136=1,T135="-"),1,0))) -> 0 | V136: 0 | W136: 0 | X136: =growth!O136 -> - | Y136: 1 | Z136: 0 | AA136: 0 | AC136: -2000 | AD136: 0
A137: 1950-07-14 | G137: =VLOOKUP(A137-35,Fred!G:H,2) -> 5.909090909 | M137: 6.254909674 | N137: 6.549189452 | O137: -0.1649473262 | P137: =IF(AND(P138=1,G137=G138),1,IF(AND(growth!K137>0,O137>$P$4),1,"-")) -> - | Q137: - | R137: 5.949657915 | S137: -0.1710655213 | T137: - | U137: =IF(SUM(INDIRECT($X$1&ROW()-$U$7):X137)=1,0,IF(SUM(INDIRECT($U$1&ROW()-$U$6):U136)>0,0,IF(AND(T137=1,T136="-"),1,0))) -> 0 | V137: 0 | W137: 0 | X137: =growth!O137 -> - | Y137: 1 | Z137: 0 | AA137: 0 | AC137: -2000 | AD137: 0
A138: 1950-07-21 | G138: =VLOOKUP(A138-35,Fred!G:H,2) -> 5.909090909 | M138: 6.201706787 | N138: 6.528202614 | O138: -0.174593392 | P138: =IF(AND(P139=1,G138=G139),1,IF(AND(growth!K138>0,O138>$P$4),1,"-")) -> - | Q138: - | R138: 5.929374412 | S138: -0.1672399493 | T138: - | U138: =IF(SUM(INDIRECT($X$1&ROW()-$U$7):X138)=1,0,IF(SUM(INDIRECT($U$1&ROW()-$U$6):U137)>0,0,IF(AND(T138=1,T137="-"),1,0))) -> 0 | V138: 0 | W138: 0 | X138: =growth!O138 -> - | Y138: 1 | Z138: 0 | AA138: 0 | AC138: -2000 | AD138: 0
A139: 1950-07-28 | G139: =VLOOKUP(A139-35,Fred!G:H,2) -> 5.909090909 | M139: 6.15668896 | N139: 6.50790387 | O139: -0.1839231934 | P139: =IF(AND(P140=1,G139=G140),1,IF(AND(growth!K139>0,O139>$P$4),1,"-")) -> - | Q139: - | R139: 5.919232661 | S139: -0.1653039682 | T139: - | U139: =IF(SUM(INDIRECT($X$1&ROW()-$U$7):X139)=1,0,IF(SUM(INDIRECT($U$1&ROW()-$U$6):U138)>0,0,IF(AND(T139=1,T138="-"),1,0))) -> 0 | V139: 0 | W139: 0 | X139: =growth!O139 -> - | Y139: 1 | Z139: 0 | AA139: 0 | AC139: -2000 | AD139: 0
A140: 1950-08-04 | G140: =VLOOKUP(A140-35,Fred!G:H,2) -> 5.909090909 | M140: 6.118596952 | N140: 6.488270658 | O140: -0.1929470996 | P140: =IF(AND(P141=1,G140=G141),1,IF(AND(growth!K140>0,O140>$P$4),1,"-")) -> - | Q140: - | R140: 5.914161785 | S140: -0.1643300967 | T140: - | U140: =IF(SUM(INDIRECT($X$1&ROW()-$U$7):X140)=1,0,IF(SUM(INDIRECT($U$1&ROW()-$U$6):U139)>0,0,IF(AND(T140=1,T139="-"),1,0))) -> 0 | V140: =IF(AND(Q140=1,Q139="-"),1,0) -> 0 | W140: 0 | X140: =growth!O140 -> - | Y140: 1 | Z140: 0 | AA140: =Z140*$AA$4 -> 0 | AC140: -2000 | AD140: 0
A141: 1950-08-11 | G141: =VLOOKUP(A141-35,Fred!G:H,2) -> 5.499153976 | M141: =M140+M$6*(G141-M140) -> 6.023298033 | N141: =N140+N$6*(G141-N140) -> 6.455840603 | O141: -0.2151156953 | P141: =IF(AND(P142=1,G141=G142),1,IF(AND(growth!K141>0,O141>$P$4),1,"-")) -> - | Q141: - | R141: 5.706657881 | S141: -0.1928330404 | T141: - | U141: =IF(SUM(INDIRECT($X$1&ROW()-$U$7):X141)=1,0,IF(SUM(INDIRECT($U$1&ROW()-$U$6):U140)>0,0,IF(AND(T141=1,T140="-"),1,0))) -> 0 | V141: 0 | W141: 0 | X141: =growth!O141 -> - | Y141: 1 | Z141: 0 | AA141: 0 | AC141: -2000 | AD141: 0
A142: 1950-08-18 | G142: =VLOOKUP(A142-35,Fred!G:H,2) -> 5.499153976 | M142: 5.942660486 | N142: 6.424473828 | O142: -0.2260927347 | P142: =IF(AND(P143=1,G142=G143),1,IF(AND(growth!K142>0,O142>$P$4),1,"-")) -> - | Q142: - | R142: =R141+R$6*($G142-R141) -> 5.602905928 | S142: -0.2015393962 | T142: - | U142: =IF(SUM(INDIRECT($X$1&ROW()-$U$7):X142)=1,0,IF(SUM(INDIRECT($U$1&ROW()-$U$6):U141)>0,0,IF(AND(T142=1,T141="-"),1,0))) -> 0 | V142: 0 | W142: 0 | X142: =growth!O142 -> - | Y142: 1 | Z142: 0 | AA142: 0 | AC142: -2000 | AD142: 0
A143: 1950-08-25 | G143: =VLOOKUP(A143-35,Fred!G:H,2) -> 5.499153976 | M143: 5.874428715 | N143: 6.394135472 | O143: -0.2367098712 | P143: =IF(AND(P144=1,G143=G144),1,IF(AND(growth!K143>0,O143>$P$4),1,"-")) -> - | Q143: - | R143: 5.551029952 | S143: -0.2059419388 | T143: - | U143: =IF(SUM(INDIRECT($X$1&ROW()-$U$7):X143)=1,0,IF(SUM(INDIRECT($U$1&ROW()-$U$6):U142)>0,0,IF(AND(T143=1,T142="-"),1,0))) -> 0 | V143: 0 | W143: 0 | X143: =growth!O143 -> - | Y143: 1 | Z143: 0 | AA143: 0 | AC143: -2000 | AD143: 0
A144: 1950-09-01 | G144: =VLOOKUP(A144-35,Fred!G:H,2) -> 5.499153976 | M144: 5.81669414 | N144: 6.364791817 | O144: -0.2469789049 | P144: =IF(AND(P145=1,G144=G145),1,IF(AND(growth!K144>0,O144>$P$4),1,"-")) -> - | Q144: - | R144: 5.525091964 | S144: -0.2081557148 | T144: - | U144: =IF(SUM(INDIRECT($X$1&ROW()-$U$7):X144)=1,0,IF(SUM(INDIRECT($U$1&ROW()-$U$6):U143)>0,0,IF(AND(T144=1,T143="-"),1,0))) -> 0 | V144: 0 | W144: 0 | X144: =growth!O144 -> - | Y144: 1 | Z144: 0 | AA144: 0 | AC144: -2000 | AD144: 0
A145: 1950-09-08 | G145: =VLOOKUP(A145-35,Fred!G:H,2) -> 4.915966387 | M145: 5.678120639 | N145: 6.317289344 | O145: -0.2760321535 | P145: =IF(AND(P146=1,G145=G146),1,IF(AND(growth!K145>0,O145>$P$4),1,"-")) -> - | Q145: - | R145: 5.220529175 | S145: -0.2510959487 | T145: - | U145: =IF(SUM(INDIRECT($X$1&ROW()-$U$7):X145)=1,0,IF(SUM(INDIRECT($U$1&ROW()-$U$6):U144)>0,0,IF(AND(T145=1,T144="-"),1,0))) -> 0 | V145: 0 | W145: 0 | X145: =growth!O145 -> - | Y145: 1 | Z145: 0 | AA145: 0 | AC145: -2000 | AD145: 0
A146: 1950-09-15 | G146: =VLOOKUP(A146-35,Fred!G:H,2) -> 4.915966387 | M146: 5.560866139 | N146: 6.271344329 | O146: -0.2995433787 | P146: =IF(AND(P147=1,G146=G147),1,IF(AND(growth!K146>0,O146>$P$4),1,"-")) -> - | Q146: - | R146: 5.068247781 | S146: -0.2725966004 | T146: - | U146: =IF(SUM(INDIRECT($X$1&ROW()-$U$7):X146)=1,0,IF(SUM(INDIRECT($U$1&ROW()-$U$6):U145)>0,0,IF(AND(T146=1,T145="-"),1,0))) -> 0 | V146: 0 | W146: 0 | X146: =growth!O146 -> - | Y146: 1 | Z146: 0 | AA146: 0 | AC146: -2000 | AD146: 0
A147: 1950-09-22 | G147: =VLOOKUP(A147-35,Fred!G:H,2) -> 4.915966387 | M147: 5.461650792 | N147: 6.226905708 | O147: -0.3222837441 | P147: =IF(AND(P148=1,G147=G148),1,IF(AND(growth!K147>0,O147>$P$4),1,"-")) -> - | Q147: - | R147: 4.992107084 | S147: -0.2513242417 | T147: - | U147: =IF(SUM(INDIRECT($X$1&ROW()-$U$7):X147)=1,0,IF(SUM(INDIRECT($U$1&ROW()-$U$6):U146)>0,0,IF(AND(T147=1,T146="-"),1,0))) -> 0 | V147: 0 | W147: 0 | X147: =growth!O147 -> - | Y147: 1 | Z147: 0 | AA147: 0 | AC147: -2000 | AD147: 0
A148: 1950-09-29 | G148: =VLOOKUP(A148-35,Fred!G:H,2) -> 4.915966387 | M148: 5.377699345 | N148: 6.183924091 | O148: -0.3442785237 | P148: =IF(AND(P149=1,G148=G149),1,IF(AND(growth!K148>0,O148>$P$4),1,"-")) -> - | Q148: - | R148: 4.954036735 | S148: -0.239954555 | T148: - | U148: =IF(SUM(INDIRECT($X$1&ROW()-$U$7):X148)=1,0,IF(SUM(INDIRECT($U$1&ROW()-$U$6):U147)>0,0,IF(AND(T148=1,T147="-"),1,0))) -> 0 | V148: 0 | W148: 0 | X148: =growth!O148 -> - | Y148: 1 | Z148: 0 | AA148: 0 | AC148: -2000 | AD148: 0
A149: 1950-10-06 | G149: =VLOOKUP(A149-35,Fred!G:H,2) -> 4.831081081 | M149: 5.293604228 | N149: 6.139568582 | O149: -0.3683352878 | P149: =IF(AND(P150=1,G149=G150),1,IF(AND(growth!K149>0,O149>$P$4),1,"-")) -> - | Q149: - | R149: 4.892558908 | S149: -0.2406586494 | T149: - | U149: =IF(SUM(INDIRECT($X$1&ROW()-$U$7):X149)=1,0,IF(SUM(INDIRECT($U$1&ROW()-$U$6):U148)>0,0,IF(AND(T149=1,T148="-"),1,0))) -> 0 | V149: 0 | W149: 0 | X149: =growth!O149 -> - | Y149: 1 | Z149: 0 | AA149: 0 | AC149: -2000 | AD149: 0
A150: 1950-10-13 | G150: =VLOOKUP(A150-35,Fred!G:H,2) -> 4.831081081 | M150: 5.222446821 | N150: 6.096667352 | O150: =N150-INDIRECT($N$1&ROW()-$O$4) -> -0.3916033055 | P150: =IF(AND(P151=1,G150=G151),1,IF(AND(growth!K150>0,O150>$P$4),1,"-")) -> - | Q150: - | R150: 4.861819995 | S150: -0.2410168728 | T150: - | U150: =IF(SUM(INDIRECT($X$1&ROW()-$U$7):X150)=1,0,IF(SUM(INDIRECT($U$1&ROW()-$U$6):U149)>0,0,IF(AND(T150=1,T149="-"),1,0))) -> 0 | V150: 0 | W150: 0 | X150: =growth!O150 -> - | Y150: 1 | Z150: 0 | AA150: 0 | AC150: -2000 | AD150: 0
A151: 1950-10-20 | G151: =VLOOKUP(A151-35,Fred!G:H,2) -> 4.831081081 | M151: 5.162236707 | N151: 6.055172721 | O151: -0.4006678822 | P151: =IF(AND(P152=1,G151=G152),1,IF(AND(growth!K151>0,O151>$P$4),1,"-")) -> - | Q151: - | R151: 4.846450538 | S151: -0.2217520082 | T151: - | U151: =IF(SUM(INDIRECT($X$1&ROW()-$U$7):X151)=1,0,IF(SUM(INDIRECT($U$1&ROW()-$U$6):U150)>0,0,IF(AND(T151=1,T150="-"),1,0))) -> 0 | V151: 0 | W151: 0 | X151: =growth!O151 -> - | Y151: 1 | Z151: 0 | AA151: 0 | AC151: -2000 | AD151: 0
A152: 1950-10-27 | G152: =VLOOKUP(A152-35,Fred!G:H,2) -> 4.831081081 | M152: 5.111289687 | N152: 6.015038568 | O152: -0.4094352597 | P152: =IF(AND(P153=1,G152=G153),1,IF(AND(growth!K152>0,O152>$P$4),1,"-")) -> - | Q152: - | R152: 4.838765809 | S152: -0.2116998403 | T152: - | U152: =IF(SUM(INDIRECT($X$1&ROW()-$U$7):X152)=1,0,IF(SUM(INDIRECT($U$1&ROW()-$U$6):U151)>0,0,IF(AND(T152=1,T151="-"),1,0))) -> 0 | V152: 0 | W152: 0 | X152: =growth!O152 -> - | Y152: 1 | Z152: 0 | AA152: 0 | AC152: -2000 | AD152: 0
A153: 1950-11-03 | G153: =VLOOKUP(A153-35,Fred!G:H,2) -> 4.831081081 | M153: 5.068180671 | N153: 5.97622029 | O153: -0.4179151821 | P153: =IF(AND(P154=1,G153=G154),1,IF(AND(growth!K153>0,O153>$P$4),1,"-")) -> - | Q153: - | R153: 4.834923445 | S153: -0.2065634489 | T153: - | U153: =IF(SUM(INDIRECT($X$1&ROW()-$U$7):X153)=1,0,IF(SUM(INDIRECT($U$1&ROW()-$U$6):U152)>0,0,IF(AND(T153=1,T152="-"),1,0))) -> 0 | V153: 0 | W153: 0 | X153: =growth!O153 -> - | Y153: 1 | Z153: 0 | AA153: 0 | AC153: -2000 | AD153: 0
A154: 1950-11-10 | G154: =VLOOKUP(A154-35,Fred!G:H,2) -> 4.595959596 | M154: 4.995531275 | N154: 5.930965841 | O154: -0.4338259755 | P154: =IF(AND(P155=1,G154=G155),1,IF(AND(growth!K154>0,O154>$P$4),1,"-")) -> - | Q154: - | R154: 4.715441521 | S154: -0.2233301355 | T154: - | U154: =IF(SUM(INDIRECT($X$1&ROW()-$U$7):X154)=1,0,IF(SUM(INDIRECT($U$1&ROW()-$U$6):U153)>0,0,IF(AND(T154=1,T153="-"),1,0))) -> 0 | V154: 0 | W154: 0 | X154: =growth!O154 -> - | Y154: 1 | Z154: 0 | AA154: 0 | AC154: -2000 | AD154: 0
A155: 1950-11-17 | G155: =VLOOKUP(A155-35,Fred!G:H,2) -> 4.595959596 | M155: 4.934058709 | N155: 5.887195145 | O155: -0.430094199 | P155: =IF(AND(P156=1,G155=G156),1,IF(AND(growth!K155>0,O155>$P$4),1,"-")) -> - | Q155: - | R155: 4.655700558 | S155: -0.2227836819 | T155: - | U155: =IF(SUM(INDIRECT($X$1&ROW()-$U$7):X155)=1,0,IF(SUM(INDIRECT($U$1&ROW()-$U$6):U154)>0,0,IF(AND(T155=1,T154="-"),1,0))) -> 0 | V155: 0 | W155: 0 | X155: =growth!O155 -> - | Y155: 1 | Z155: 0 | AA155: 0 | AC155: -2000 | AD155: 0
A156: 1950-11-24 | G156: =VLOOKUP(A156-35,Fred!G:H,2) -> 4.595959596 | M156: 4.882043461 | N156: 5.844859553 | O156: -0.4264847757 | P156: =IF(AND(P157=1,G156=G157),1,IF(AND(growth!K156>0,O156>$P$4),1,"-")) -> - | Q156: - | R156: 4.625830077 | S156: -0.2225048662 | T156: - | U156: =IF(SUM(INDIRECT($X$1&ROW()-$U$7):X156)=1,0,IF(SUM(INDIRECT($U$1&ROW()-$U$6):U155)>0,0,IF(AND(T156=1,T155="-"),1,0))) -> 0 | V156: 0 | W156: 0 | X156: =growth!O156 -> - | Y156: 1 | Z156: 0 | AA156: 0 | AC156: -2000 | AD156: 0
A157: 1950-12-01 | G157: =VLOOKUP(A157-35,Fred!G:H,2) -> 4.595959596 | M157: 4.838030558 | N157: 5.803912013 | O157: -0.4229936943 | P157: =IF(AND(P158=1,G157=G158),1,IF(AND(growth!K157>0,O157>$P$4),1,"-")) -> - | Q157: - | R157: 4.610894837 | S157: -0.2223640276 | T157: - | U157: =IF(SUM(INDIRECT($X$1&ROW()-$U$7):X157)=1,0,IF(SUM(INDIRECT($U$1&ROW()-$U$6):U156)>0,0,IF(AND(T157=1,T156="-"),1,0))) -> 0 | V157: 0 | W157: 0 | X157: =growth!O157 -> - | Y157: 1 | Z157: 0 | AA157: 0 | AC157: -2000 | AD157: 0
A158: 1950-12-08 | G158: =VLOOKUP(A158-35,Fred!G:H,2) -> 4.603709949 | M158: 4.801981234 | N158: 5.764561126 | O158: -0.4193629645 | P158: =IF(AND(P159=1,G158=G159),1,IF(AND(growth!K158>0,O158>$P$4),1,"-")) -> - | Q158: - | R158: 4.607302393 | S158: -0.2216385709 | T158: - | U158: =IF(SUM(INDIRECT($X$1&ROW()-$U$7):X158)=1,0,IF(SUM(INDIRECT($U$1&ROW()-$U$6):U157)>0,0,IF(AND(T158=1,T157="-"),1,0))) -> 0 | V158: 0 | W158: 0 | X158: =growth!O158 -> - | Y158: 1 | Z158: 0 | AA158: 0 | AC158: -2000 | AD158: 0
A159: 1950-12-15 | G159: =VLOOKUP(A159-35,Fred!G:H,2) -> 4.603709949 | M159: 4.771477959 | N159: 5.726500432 | O159: -0.4130681503 | P159: =IF(AND(P160=1,G159=G160),1,IF(AND(growth!K159>0,O159>$P$4),1,"-")) -> - | Q159: =IF(AND(Q160=1,G159=G160),1,IF(OR(M159-N159>$Q$4,P159=1),1,"-")) -> - | R159: 4.605506171 | S159: -0.2212749095 | T159: =IF(AND(T160=1,G159=G160),1,IF(AND(S159>$T$4,O159>$T$5),1,"-")) -> - | U159: =IF(SUM(INDIRECT($X$1&ROW()-$U$7):X159)=1,0,IF(SUM(INDIRECT($U$1&ROW()-$U$6):U158)>0,0,IF(AND(T159=1,T158="-"),1,0))) -> 0 | V159: 0 | W159: =IF(OR(U159=1,V159=1),1,0) -> 0 | X159: =growth!O159 -> - | Y159: 1 | Z159: 0 | AA159: 0 | AC159: -2000 | AD159: 0
A160: 1950-12-22 | G160: =VLOOKUP(A160-35,Fred!G:H,2) -> 4.603709949 | M160: 4.745667496 | N160: 5.689687629 | O160: -0.4069797235 | P160: =IF(AND(P161=1,G160=G161),1,IF(AND(growth!K160>0,O160>$P$4),1,"-")) -> - | Q160: - | R160: 4.60460806 | S160: =(R160-INDIRECT($R$1&ROW()-$S$4))/INDIRECT($R$1&ROW()-$S$4) -> -0.1931165042 | T160: - | U160: =IF(SUM(INDIRECT($X$1&ROW()-$U$7):X160)=1,0,IF(SUM(INDIRECT($U$1&ROW()-$U$6):U159)>0,0,IF(AND(T160=1,T159="-"),1,0))) -> 0 | V160: 0 | W160: 0 | X160: =growth!O160 -> - | Y160: 1 | Z160: 0 | AA160: 0 | AC160: -2000 | AD160: 0
A161: 1950-12-29 | G161: =VLOOKUP(A161-35,Fred!G:H,2) -> 4.603709949 | M161: 4.723827874 | N161: 5.654081803 | O161: -0.4010909172 | P161: =IF(AND(P162=1,G161=G162),1,IF(AND(growth!K161>0,O161>$P$4),1,"-")) -> - | Q161: - | R161: 4.604159005 | S161: -0.1782551655 | T161: - | U161: =IF(SUM(INDIRECT($X$1&ROW()-$U$7):X161)=1,0,IF(SUM(INDIRECT($U$1&ROW()-$U$6):U160)>0,0,IF(AND(T161=1,T160="-"),1,0))) -> 0 | V161: 0 | W161: 0 | X161: =growth!O161 -> - | Y161: 1 | Z161: 0 | AA161: 0 | AC161: -2000 | AD161: 0
A162: 1951-01-05 | G162: =VLOOKUP(A162-35,Fred!G:H,2) -> 4.721283784 | M162: 4.723436475 | N162: 5.623498262 | O162: -0.3915403067 | P162: =IF(AND(P163=1,G162=G163),1,IF(AND(growth!K162>0,O162>$P$4),1,"-")) -> - | Q162: - | R162: 4.662721394 | S162: -0.1600258989 | T162: - | U162: =IF(SUM(INDIRECT($X$1&ROW()-$U$7):X162)=1,0,IF(SUM(INDIRECT($U$1&ROW()-$U$6):U161)>0,0,IF(AND(T162=1,T161="-"),1,0))) -> 0 | V162: 0 | W162: 0 | X162: =growth!O162 -> - | Y162: 1 | Z162: 0 | AA162: 0 | AC162: -2000 | AD162: 0
A163: 1951-01-12 | G163: =VLOOKUP(A163-35,Fred!G:H,2) -> 4.721283784 | M163: 4.723105292 | N163: 5.593917459 | O163: -0.382302831 | P163: =IF(AND(P164=1,G163=G164),1,IF(AND(growth!K163>0,O163>$P$4),1,"-")) -> - | Q163: - | R163: 4.692002589 | S163: -0.1507828975 | T163: - | U163: =IF(SUM(INDIRECT($X$1&ROW()-$U$7):X163)=1,0,IF(SUM(INDIRECT($U$1&ROW()-$U$6):U162)>0,0,IF(AND(T163=1,T162="-"),1,0))) -> 0 | V163: 0 | W163: 0 | X163: =growth!O163 -> - | Y163: 1 | Z163: 0 | AA163: 0 | AC163: -2000 | AD163: 0
A164: 1951-01-19 | G164: =VLOOKUP(A164-35,Fred!G:H,2) -> 4.721283784 | M164: 4.72282506 | N164: 5.565306519 | O164: -0.3656593222 | P164: =IF(AND(P165=1,G164=G165),1,IF(AND(growth!K164>0,O164>$P$4),1,"-")) -> - | Q164: - | R164: 4.706643186 | S164: -0.0984356129 | T164: - | U164: =IF(SUM(INDIRECT($X$1&ROW()-$U$7):X164)=1,0,IF(SUM(INDIRECT($U$1&ROW()-$U$6):U163)>0,0,IF(AND(T164=1,T163="-"),1,0))) -> 0 | V164: 0 | W164: 0 | X164: =growth!O164 -> - | Y164: 1 | Z164: 0 | AA164: 0 | AC164: -2000 | AD164: 0
A165: 1951-01-26 | G165: =VLOOKUP(A165-35,Fred!G:H,2) -> 4.721283784 | M165: 4.722587941 | N165: 5.537633642 | O165: -0.3495615022 | P165: =IF(AND(P166=1,G165=G166),1,IF(AND(growth!K165>0,O165>$P$4),1,"-")) -> - | Q165: - | R165: 4.713963485 | S165: -0.0699027181 | T165: - | U165: =IF(SUM(INDIRECT($X$1&ROW()-$U$7):X165)=1,0,IF(SUM(INDIRECT($U$1&ROW()-$U$6):U164)>0,0,IF(AND(T165=1,T164="-"),1,0))) -> 0 | V165: 0 | W165: 0 | X165: =growth!O165 -> - | Y165: 1 | Z165: =IF(AND(OR(SUM(Q159:Q165)>0,SUM(T129:T165)>0),Y165="-"),1,0) -> 0 | AA165: 0 | AC165: -2000 | AD165: 0
A166: 1951-02-02 | G166: =VLOOKUP(A166-35,Fred!G:H,2) -> 4.721283784 | M166: 4.722387301 | N166: 5.510868073 | O166: -0.3339914796 | P166: =IF(AND(P167=1,G166=G167),1,IF(AND(growth!K166>0,O166>$P$4),1,"-")) -> - | Q166: - | R166: 4.717623634 | S166: -0.05498348588 | T166: - | U166: =IF(SUM(INDIRECT($X$1&ROW()-$U$7):X166)=1,0,IF(SUM(INDIRECT($U$1&ROW()-$U$6):U165)>0,0,IF(AND(T166=1,T165="-"),1,0))) -> 0 | V166: 0 | W166: 0 | X166: =growth!O166 -> - | Y166: 1 | Z166: 0 | AA166: 0 | AC166: -2000 | AD166: 0
A167: 1951-02-09 | G167: =VLOOKUP(A167-35,Fred!G:H,2) -> 4.069373942 | M167: 4.621923707 | N167: 5.463605971 | O167: -0.3403060426 | P167: =IF(AND(P168=1,G167=G168),1,IF(AND(growth!K167>0,O167>$P$4),1,"-")) -> - | Q167: - | R167: 4.393498788 | S167: -0.113147717 | T167: - | U167: =IF(SUM(INDIRECT($X$1&ROW()-$U$7):X167)=1,0,IF(SUM(INDIRECT($U$1&ROW()-$U$6):U166)>0,0,IF(AND(T167=1,T166="-"),1,0))) -> 0 | V167: 0 | W167: 0 | X167: =growth!O167 -> - | Y167: 1 | Z167: 0 | AA167: 0 | AC167: -2000 | AD167: 0
A168: 1951-02-16 | G168: =VLOOKUP(A168-35,Fred!G:H,2) -> 4.069373942 | M168: 4.536916051 | N168: 5.417893445 | O168: -0.3466676808 | P168: =IF(AND(P169=1,G168=G169),1,IF(AND(growth!K168>0,O168>$P$4),1,"-")) -> - | Q168: - | R168: 4.231436365 | S168: -0.1351281722 | T168: - | U168: =IF(SUM(INDIRECT($X$1&ROW()-$U$7):X168)=1,0,IF(SUM(INDIRECT($U$1&ROW()-$U$6):U167)>0,0,IF(AND(T168=1,T167="-"),1,0))) -> 0 | V168: 0 | W168: 0 | X168: =growth!O168 -> - | Y168: 1 | Z168: 0 | AA168: 0 | AC168: -2000 | AD168: 0
A169: 1951-02-23 | G169: =VLOOKUP(A169-35,Fred!G:H,2) -> 4.069373942 | M169: 4.464986496 | N169: 5.373679691 | O169: -0.3528207407 | P169: =IF(AND(P170=1,G169=G170),1,IF(AND(growth!K169>0,O169>$P$4),1,"-")) -> - | Q169: - | R169: 4.150405154 | S169: -0.1463268573 | T169: - | U169: =IF(SUM(INDIRECT($X$1&ROW()-$U$7):X169)=1,0,IF(SUM(INDIRECT($U$1&ROW()-$U$6):U168)>0,0,IF(AND(T169=1,T168="-"),1,0))) -> 0 | V169: 0 | W169: 0 | X169: =growth!O169 -> - | Y169: 1 | Z169: 0 | AA169: 0 | AC169: -2000 | AD169: 0
A170: 1951-03-02 | G170: =VLOOKUP(A170-35,Fred!G:H,2) -> 4.069373942 | M170: 4.404123026 | N170: 5.330915568 | O170: -0.3587720609 | P170: =IF(AND(P171=1,G170=G171),1,IF(AND(growth!K170>0,O170>$P$4),1,"-")) -> - | Q170: - | R170: 4.109889548 | S170: -0.1519794711 | T170: - | U170: =IF(SUM(INDIRECT($X$1&ROW()-$U$7):X170)=1,0,IF(SUM(INDIRECT($U$1&ROW()-$U$6):U169)>0,0,IF(AND(T170=1,T169="-"),1,0))) -> 0 | V170: 0 | W170: 0 | X170: =growth!O170 -> - | Y170: =IF(X170=1,1,IF(AND(Y169=1,W170=0),Y169,"-")) -> 1 | Z170: 0 | AA170: 0 | AC170: -2000 | AD170: 0
A171: 1951-03-09 | G171: =VLOOKUP(A171-35,Fred!G:H,2) -> 3.739424704 | M171: 4.301861746 | N171: 5.27873554 | O171: -0.3753462637 | P171: =IF(AND(P172=1,G171=G172),1,IF(AND(growth!K171>0,O171>$P$4),1,"-")) -> - | Q171: - | R171: 3.924657126 | S171: -0.1889136031 | T171: - | U171: =IF(SUM(INDIRECT($X$1&ROW()-$U$7):X171)=1,0,IF(SUM(INDIRECT($U$1&ROW()-$U$6):U170)>0,0,IF(AND(T171=1,T170="-"),1,0))) -> 0 | V171: 0 | W171: 0 | X171: =growth!O171 -> - | Y171: 1 | Z171: 0 | AA171: 0 | AC171: -2000 | AD171: 0
A172: 1951-03-16 | G172: =VLOOKUP(A172-35,Fred!G:H,2) -> 3.739424704 | M172: 4.21533297 | N172: 5.228266332 | O172: -0.3952319298 | P172: =IF(AND(P173=1,G172=G173),1,IF(AND(growth!K172>0,O172>$P$4),1,"-")) -> - | Q172: - | R172: 3.832040915 | S172: -0.2074246969 | T172: - | U172: =IF(SUM(INDIRECT($X$1&ROW()-$U$7):X172)=1,0,IF(SUM(INDIRECT($U$1&ROW()-$U$6):U171)>0,0,IF(AND(T172=1,T171="-"),1,0))) -> 0 | V172: 0 | W172: 0 | X172: =growth!O172 -> - | Y172: 1 | Z172: 0 | AA172: 0 | AC172: -2000 | AD172: 0
A173: 1951-03-23 | G173: =VLOOKUP(A173-35,Fred!G:H,2) -> 3.739424704 | M173: 4.142116314 | N173: 5.179451852 | O173: -0.4144656068 | P173: =IF(AND(P174=1,G173=G174),1,IF(AND(growth!K173>0,O173>$P$4),1,"-")) -> - | Q173: - | R173: 3.785732809 | S173: -0.1971626002 | T173: - | U173: =IF(SUM(INDIRECT($X$1&ROW()-$U$7):X173)=1,0,IF(SUM(INDIRECT($U$1&ROW()-$U$6):U172)>0,0,IF(AND(T173=1,T172="-"),1,0))) -> 0 | V173: 0 | W173: 0 | X173: =growth!O173 -> - | Y173: 1 | Z173: 0 | AA173: 0 | AC173: -2000 | AD173: 0
A174: 1951-03-30 | G174: =VLOOKUP(A174-35,Fred!G:H,2) -> 3.739424704 | M174: 4.080163758 | N174: 5.132237848 | O174: -0.4330686715 | P174: =IF(AND(P175=1,G174=G175),1,IF(AND(growth!K174>0,O174>$P$4),1,"-")) -> - | Q174: - | R174: 3.762578757 | S174: -0.1918340302 | T174: - | U174: =IF(SUM(INDIRECT($X$1&ROW()-$U$7):X174)=1,0,IF(SUM(INDIRECT($U$1&ROW()-$U$6):U173)>0,0,IF(AND(T174=1,T173="-"),1,0))) -> 0 | V174: 0 | W174: 0 | X174: =growth!O174 -> - | Y174: 1 | Z174: 0 | AA174: 0 | AC174: -2000 | AD174: 0
A175: 1951-04-06 | G175: =VLOOKUP(A175-35,Fred!G:H,2) -> 3.695652174 | M175: 4.02100813 | N175: 5.085136678 | O175: -0.4524969646 | P175: =IF(AND(P176=1,G175=G176),1,IF(AND(growth!K175>0,O175>$P$4),1,"-")) -> - | Q175: - | R175: 3.729115465 | S175: -0.193849449 | T175: - | U175: =IF(SUM(INDIRECT($X$1&ROW()-$U$7):X175)=1,0,IF(SUM(INDIRECT($U$1&ROW()-$U$6):U174)>0,0,IF(AND(T175=1,T174="-"),1,0))) -> 0 | V175: 0 | W175: 0 | X175: =growth!O175 -> - | Y175: 1 | Z175: 0 | AA175: 0 | AC175: -2000 | AD175: 0
A176: 1951-04-13 | G176: =VLOOKUP(A176-35,Fred!G:H,2) -> 3.695652174 | M176: 3.970953368 | N176: 5.039579809 | O176: -0.4712882644 | P176: =IF(AND(P177=1,G176=G177),1,IF(AND(growth!K176>0,O176>$P$4),1,"-")) -> - | Q176: - | R176: 3.71238382 | S176: -0.1948669507 | T176: - | U176: =IF(SUM(INDIRECT($X$1&ROW()-$U$7):X176)=1,0,IF(SUM(INDIRECT($U$1&ROW()-$U$6):U175)>0,0,IF(AND(T176=1,T175="-"),1,0))) -> 0 | V176: 0 | W176: 0 | X176: =growth!O176 -> - | Y176: 1 | Z176: 0 | AA176: 0 | AC176: -2000 | AD176: 0
A177: 1951-04-20 | G177: =VLOOKUP(A177-35,Fred!G:H,2) -> 3.695652174 | M177: 3.928599338 | N177: 4.995516608 | O177: -0.4680893629 | P177: =IF(AND(P178=1,G177=G178),1,IF(AND(growth!K177>0,O177>$P$4),1,"-")) -> - | Q177: - | R177: 3.704017997 | S177: -0.1960549404 | T177: - | U177: =IF(SUM(INDIRECT($X$1&ROW()-$U$7):X177)=1,0,IF(SUM(INDIRECT($U$1&ROW()-$U$6):U176)>0,0,IF(AND(T177=1,T176="-"),1,0))) -> 0 | V177: 0 | W177: 0 | X177: =growth!O177 -> - | Y177: 1 | Z177: 0 | AA177: 0 | AC177: -2000 | AD177: 0
A178: 1951-04-27 | G178: =VLOOKUP(A178-35,Fred!G:H,2) -> 3.695652174 | M178: 3.892761313 | N178: 4.952898102 | O178: -0.4649953434 | P178: =IF(AND(P179=1,G178=G179),1,IF(AND(growth!K178>0,O178>$P$4),1,"-")) -> - | Q178: - | R178: 3.699835085 | S178: -0.1966496303 | T178: - | U178: =IF(SUM(INDIRECT($X$1&ROW()-$U$7):X178)=1,0,IF(SUM(INDIRECT($U$1&ROW()-$U$6):U177)>0,0,IF(AND(T178=1,T177="-"),1,0))) -> 0 | V178: 0 | W178: 0 | X178: =growth!O178 -> - | Y178: 1 | Z178: 0 | AA178: 0 | AC178: -2000 | AD178: 0
A179: 1951-05-04 | G179: =VLOOKUP(A179-35,Fred!G:H,2) -> 3.695652174 | M179: 3.86243683 | N179: 4.911676924 | O179: -0.4620027672 | P179: =IF(AND(P180=1,G179=G180),1,IF(AND(growth!K179>0,O179>$P$4),1,"-")) -> - | Q179: - | R179: 3.69774363 | S179: -0.1969471492 | T179: - | U179: =IF(SUM(INDIRECT($X$1&ROW()-$U$7):X179)=1,0,IF(SUM(INDIRECT($U$1&ROW()-$U$6):U178)>0,0,IF(AND(T179=1,T178="-"),1,0))) -> 0 | V179: 0 | W179: 0 | X179: =growth!O179 -> - | Y179: 1 | Z179: 0 | AA179: 0 | AC179: -2000 | AD179: 0
A180: 1951-05-11 | G180: =VLOOKUP(A180-35,Fred!G:H,2) -> 3.409475465 | M180: 3.792750466 | N180: 4.862424417 | O180: -0.4684911511 | P180: =IF(AND(P181=1,G180=G181),1,IF(AND(growth!K180>0,O180>$P$4),1,"-")) -> - | Q180: - | R180: 3.553609547 | S180: -0.2281740175 | T180: - | U180: =IF(SUM(INDIRECT($X$1&ROW()-$U$7):X180)=1,0,IF(SUM(INDIRECT($U$1&ROW()-$U$6):U179)>0,0,IF(AND(T180=1,T179="-"),1,0))) -> 0 | V180: 0 | W180: 0 | X180: =growth!O180 -> - | Y180: 1 | Z180: 0 | AA180: 0 | AC180: -2000 | AD180: 0
A181: 1951-05-18 | G181: =VLOOKUP(A181-35,Fred!G:H,2) -> 3.409475465 | M181: 3.733785081 | N181: 4.814786746 | O181: -0.4639487933 | P181: =IF(AND(P182=1,G181=G182),1,IF(AND(growth!K181>0,O181>$P$4),1,"-")) -> - | Q181: - | R181: 3.481542506 | S181: -0.2533239257 | T181: - | U181: =IF(SUM(INDIRECT($X$1&ROW()-$U$7):X181)=1,0,IF(SUM(INDIRECT($U$1&ROW()-$U$6):U180)>0,0,IF(AND(T181=1,T180="-"),1,0))) -> 0 | V181: 0 | W181: 0 | X181: =growth!O181 -> - | Y181: 1 | Z181: 0 | AA181: 0 | AC181: -2000 | AD181: 0
A182: 1951-05-25 | G182: =VLOOKUP(A182-35,Fred!G:H,2) -> 3.409475465 | M182: 3.683891294 | N182: 4.768710967 | O182: -0.4595553653 | P182: =IF(AND(P183=1,G182=G183),1,IF(AND(growth!K182>0,O182>$P$4),1,"-")) -> - | Q182: - | R182: 3.445508986 | S182: -0.2656634517 | T182: - | U182: =IF(SUM(INDIRECT($X$1&ROW()-$U$7):X182)=1,0,IF(SUM(INDIRECT($U$1&ROW()-$U$6):U181)>0,0,IF(AND(T182=1,T181="-"),1,0))) -> 0 | V182: 0 | W182: 0 | X182: =growth!O182 -> - | Y182: 1 | Z182: 0 | AA182: 0 | AC182: -2000 | AD182: 0
A183: 1951-06-01 | G183: =VLOOKUP(A183-35,Fred!G:H,2) -> 3.409475465 | M183: 3.641673474 | N183: 4.724145868 | O183: -0.4553059841 | P183: =IF(AND(P184=1,G183=G184),1,IF(AND(growth!K183>0,O183>$P$4),1,"-")) -> - | Q183: - | R183: 3.427492226 | S183: -0.2717756393 | T183: - | U183: =IF(SUM(INDIRECT($X$1&ROW()-$U$7):X183)=1,0,IF(SUM(INDIRECT($U$1&ROW()-$U$6):U182)>0,0,IF(AND(T183=1,T182="-"),1,0))) -> 0 | V183: 0 | W183: 0 | X183: =growth!O183 -> - | Y183: 1 | Z183: 0 | AA183: 0 | AC183: -2000 | AD183: 0
A184: 1951-06-08 | G184: =VLOOKUP(A184-35,Fred!G:H,2) -> 3.282828283 | M184: 3.586466522 | N184: 4.676889554 | O184: -0.4553482935 | P184: =IF(AND(P185=1,G184=G185),1,IF(AND(growth!K184>0,O184>$P$4),1,"-")) -> - | Q184: - | R184: 3.355160254 | S184: -0.2882506908 | T184: - | U184: =IF(SUM(INDIRECT($X$1&ROW()-$U$7):X184)=1,0,IF(SUM(INDIRECT($U$1&ROW()-$U$6):U183)>0,0,IF(AND(T184=1,T183="-"),1,0))) -> 0 | V184: 0 | W184: 0 | X184: =growth!O184 -> - | Y184: 1 | Z184: 0 | AA184: 0 | AC184: -2000 | AD184: 0
A185: 1951-06-15 | G185: =VLOOKUP(A185-35,Fred!G:H,2) -> 3.282828283 | M185: 3.539752947 | N185: 4.631182627 | O185: -0.4539540508 | P185: =IF(AND(P186=1,G185=G186),1,IF(AND(growth!K185>0,O185>$P$4),1,"-")) -> - | Q185: - | R185: 3.318994269 | S185: -0.2964690434 | T185: - | U185: =IF(SUM(INDIRECT($X$1&ROW()-$U$7):X185)=1,0,IF(SUM(INDIRECT($U$1&ROW()-$U$6):U184)>0,0,IF(AND(T185=1,T184="-"),1,0))) -> 0 | V185: 0 | W185: 0 | X185: =growth!O185 -> - | Y185: 1 | Z185: 0 | AA185: 0 | AC185: -2000 | AD185: 0
A186: 1951-06-22 | G186: =VLOOKUP(A186-35,Fred!G:H,2) -> 3.282828283 | M186: 3.500226075 | N186: 4.586974288 | O186: -0.452605521 | P186: =IF(AND(P187=1,G186=G187),1,IF(AND(growth!K186>0,O186>$P$4),1,"-")) -> - | Q186: - | R186: 3.300911276 | S186: -0.2486827846 | T186: - | U186: =IF(SUM(INDIRECT($X$1&ROW()-$U$7):X186)=1,0,IF(SUM(INDIRECT($U$1&ROW()-$U$6):U185)>0,0,IF(AND(T186=1,T185="-"),1,0))) -> 0 | V186: 0 | W186: 0 | X186: =growth!O186 -> - | Y186: 1 | Z186: 0 | AA186: 0 | AC186: -2000 | AD186: 0
A187: 1951-06-29 | G187: =VLOOKUP(A187-35,Fred!G:H,2) -> 3.282828283 | M187: 3.466780261 | N187: 4.544215403 | O187: -0.4513012053 | P187: =IF(AND(P188=1,G187=G188),1,IF(AND(growth!K187>0,O187>$P$4),1,"-")) -> - | Q187: - | R187: 3.291869779 | S187: -0.2220443616 | T187: - | U187: =IF(SUM(INDIRECT($X$1&ROW()-$U$7):X187)=1,0,IF(SUM(INDIRECT($U$1&ROW()-$U$6):U186)>0,0,IF(AND(T187=1,T186="-"),1,0))) -> 0 | V187: 0 | W187: 0 | X187: =growth!O187 -> - | Y187: 1 | Z187: 0 | AA187: 0 | AC187: -2000 | AD187: 0
A188: 1951-07-06 | G188: =VLOOKUP(A188-35,Fred!G:H,2) -> 3.525423729 | M188: 3.475802333 | N188: 4.510812397 | O188: -0.4420857049 | P188: =IF(AND(P189=1,G188=G189),1,IF(AND(growth!K188>0,O188>$P$4),1,"-")) -> - | Q188: - | R188: 3.408646754 | S188: -0.1787195159 | T188: - | U188: =IF(SUM(INDIRECT($X$1&ROW()-$U$7):X188)=1,0,IF(SUM(INDIRECT($U$1&ROW()-$U$6):U187)>0,0,IF(AND(T188=1,T187="-"),1,0))) -> 0 | V188: 0 | W188: 0 | X188: =growth!O188 -> - | Y188: 1 | Z188: 0 | AA188: 0 | AC188: -2000 | AD188: 0
A189: 1951-07-13 | G189: =VLOOKUP(A189-35,Fred!G:H,2) -> 3.525423729 | M189: 3.483436394 | N189: 4.478504572 | O189: -0.4331723521 | P189: =IF(AND(P190=1,G189=G190),1,IF(AND(growth!K189>0,O189>$P$4),1,"-")) -> - | Q189: - | R189: 3.467035241 | S189: -0.1564164436 | T189: - | U189: =IF(SUM(INDIRECT($X$1&ROW()-$U$7):X189)=1,0,IF(SUM(INDIRECT($U$1&ROW()-$U$6):U188)>0,0,IF(AND(T189=1,T188="-"),1,0))) -> 0 | V189: 0 | W189: 0 | X189: =growth!O189 -> - | Y189: 1 | Z189: 0 | AA189: 0 | AC189: -2000 | AD189: 0
A190: 1951-07-20 | G190: =VLOOKUP(A190-35,Fred!G:H,2) -> 3.525423729 | M190: 3.489895984 | N190: 4.447256019 | O190: -0.4151683975 | P190: =IF(AND(P191=1,G190=G191),1,IF(AND(growth!K190>0,O190>$P$4),1,"-")) -> - | Q190: - | R190: 3.496229485 | S190: -0.1091630752 | T190: - | U190: =IF(SUM(INDIRECT($X$1&ROW()-$U$7):X190)=1,0,IF(SUM(INDIRECT($U$1&ROW()-$U$6):U189)>0,0,IF(AND(T190=1,T189="-"),1,0))) -> 0 | V190: 0 | W190: 0 | X190: =growth!O190 -> - | Y190: 1 | Z190: 0 | AA190: 0 | AC190: -2000 | AD190: 0
A191: 1951-07-27 | G191: =VLOOKUP(A191-35,Fred!G:H,2) -> 3.525423729 | M191: 3.495361791 | N191: 4.41703201 | O191: -0.3977547365 | P191: =IF(AND(P192=1,G191=G192),1,IF(AND(growth!K191>0,O191>$P$4),1,"-")) -> - | Q191: - | R191: 3.510826607 | S191: -0.08382329812 | T191: - | U191: =IF(SUM(INDIRECT($X$1&ROW()-$U$7):X191)=1,0,IF(SUM(INDIRECT($U$1&ROW()-$U$6):U190)>0,0,IF(AND(T191=1,T190="-"),1,0))) -> 0 | V191: 0 | W191: 0 | X191: =growth!O191 -> - | Y191: 1 | Z191: 0 | AA191: 0 | AC191: -2000 | AD191: 0
A192: 1951-08-03 | G192: =VLOOKUP(A192-35,Fred!G:H,2) -> 3.525423729 | M192: 3.499986704 | N192: 4.387798952 | O192: -0.3809120152 | P192: =IF(AND(P193=1,G192=G193),1,IF(AND(growth!K192>0,O192>$P$4),1,"-")) -> - | Q192: - | R192: 3.518125168 | S192: -0.07068846509 | T192: - | U192: =IF(SUM(INDIRECT($X$1&ROW()-$U$7):X192)=1,0,IF(SUM(INDIRECT($U$1&ROW()-$U$6):U191)>0,0,IF(AND(T192=1,T191="-"),1,0))) -> 0 | V192: 0 | W192: 0 | X192: =growth!O192 -> - | Y192: 1 | Z192: 0 | AA192: 0 | AC192: -2000 | AD192: 0
A193: 1951-08-10 | G193: =VLOOKUP(A193-35,Fred!G:H,2) -> 3.392255892 | M193: 3.483412733 | N193: 4.355158195 | O193: -0.3689876728 | P193: =IF(AND(P194=1,G193=G194),1,IF(AND(growth!K193>0,O193>$P$4),1,"-")) -> - | Q193: - | R193: 3.45519053 | S193: -0.08169615747 | T193: - | U193: =IF(SUM(INDIRECT($X$1&ROW()-$U$7):X193)=1,0,IF(SUM(INDIRECT($U$1&ROW()-$U$6):U192)>0,0,IF(AND(T193=1,T192="-"),1,0))) -> 0 | V193: 0 | W193: 0 | X193: =growth!O193 -> - | Y193: 1 | Z193: 0 | AA193: 0 | AC193: -2000 | AD193: 0
A194: 1951-08-17 | G194: =VLOOKUP(A194-35,Fred!G:H,2) -> 3.392255892 | M194: 3.469388604 | N194: 4.323587628 | O194: -0.3533019259 | P194: =IF(AND(P195=1,G194=G195),1,IF(AND(growth!K194>0,O194>$P$4),1,"-")) -> - | Q194: - | R194: 3.423723211 | S194: -0.08189401936 | T194: - | U194: =IF(SUM(INDIRECT($X$1&ROW()-$U$7):X194)=1,0,IF(SUM(INDIRECT($U$1&ROW()-$U$6):U193)>0,0,IF(AND(T194=1,T193="-"),1,0))) -> 0 | V194: 0 | W194: 0 | X194: =growth!O194 -> - | Y194: 1 | Z194: 0 | AA194: 0 | AC194: -2000 | AD194: 0
A195: 1951-08-24 | G195: =VLOOKUP(A195-35,Fred!G:H,2) -> 3.392255892 | M195: 3.457522033 | N195: 4.293052161 | O195: -0.3381304657 | P195: =IF(AND(P196=1,G195=G196),1,IF(AND(growth!K195>0,O195>$P$4),1,"-")) -> - | Q195: - | R195: 3.407989552 | S195: -0.08199428795 | T195: - | U195: =IF(SUM(INDIRECT($X$1&ROW()-$U$7):X195)=1,0,IF(SUM(INDIRECT($U$1&ROW()-$U$6):U194)>0,0,IF(AND(T195=1,T194="-"),1,0))) -> 0 | V195: 0 | W195: 0 | X195: =growth!O195 -> - | Y195: 1 | Z195: 0 | AA195: 0 | AC195: -2000 | AD195: 0
A196: 1951-08-31 | G196: =VLOOKUP(A196-35,Fred!G:H,2) -> 3.392255892 | M196: 3.447481088 | N196: 4.263517857 | O196: -0.3234564305 | P196: =IF(AND(P197=1,G196=G197),1,IF(AND(growth!K196>0,O196>$P$4),1,"-")) -> - | Q196: - | R196: 3.400122722 | S196: -0.08204476194 | T196: - | U196: =IF(SUM(INDIRECT($X$1&ROW()-$U$7):X196)=1,0,IF(SUM(INDIRECT($U$1&ROW()-$U$6):U195)>0,0,IF(AND(T196=1,T195="-"),1,0))) -> 0 | V196: 0 | W196: 0 | X196: =growth!O196 -> - | Y196: 1 | Z196: 0 | AA196: 0 | AC196: -2000 | AD196: 0
A197: 1951-09-07 | G197: =VLOOKUP(A197-35,Fred!G:H,2) -> 3.403716216 | M197: 3.440748031 | N197: 4.23532764 | O197: -0.3088877628 | P197: =IF(AND(P198=1,G197=G198),1,IF(AND(growth!K197>0,O197>$P$4),1,"-")) -> - | Q197: - | R197: 3.401919469 | S197: -0.08052132308 | T197: - | U197: =IF(SUM(INDIRECT($X$1&ROW()-$U$7):X197)=1,0,IF(SUM(INDIRECT($U$1&ROW()-$U$6):U196)>0,0,IF(AND(T197=1,T196="-"),1,0))) -> 0 | V197: 0 | W197: 0 | X197: =growth!O197 -> - | Y197: 1 | Z197: 0 | AA197: 0 | AC197: =IF(ISNUMBER(AB197),2000,-2000) -> -2000 | AD197: 0
A198: 1951-09-14 | G198: =VLOOKUP(A198-35,Fred!G:H,2) -> 3.403716216 | M198: 3.435050829 | N198: 4.208061691 | O198: -0.3027507054 | P198: =IF(AND(P199=1,G198=G199),1,IF(AND(growth!K198>0,O198>$P$4),1,"-")) -> - | Q198: - | R198: 3.402817843 | S198: -0.07975831115 | T198: - | U198: =IF(SUM(INDIRECT($X$1&ROW()-$U$7):X198)=1,0,IF(SUM(INDIRECT($U$1&ROW()-$U$6):U197)>0,0,IF(AND(T198=1,T197="-"),1,0))) -> 0 | V198: 0 | W198: 0 | X198: =growth!O198 -> - | Y198: 1 | Z198: 0 | AA198: 0 | AC198: -2000 | AD198: 0
A199: 1951-09-21 | G199: =VLOOKUP(A199-35,Fred!G:H,2) -> 3.403716216 | M199: 3.430230119 | N199: 4.181689709 | O199: -0.296814863 | P199: =IF(AND(P200=1,G199=G200),1,IF(AND(growth!K199>0,O199>$P$4),1,"-")) -> - | Q199: - | R199: 3.403267029 | S199: -0.04230698844 | T199: - | U199: =IF(SUM(INDIRECT($X$1&ROW()-$U$7):X199)=1,0,IF(SUM(INDIRECT($U$1&ROW()-$U$6):U198)>0,0,IF(AND(T199=1,T198="-"),1,0))) -> 0 | V199: 0 | W199: 0 | X199: =growth!O199 -> - | Y199: 1 | Z199: 0 | AA199: 0 | AC199: -2000 | AD199: 0
A200: 1951-09-28 | G200: =VLOOKUP(A200-35,Fred!G:H,2) -> 3.403716216 | M200: 3.426151057 | N200: 4.156182381 | O200: -0.2910736384 | P200: =IF(AND(P201=1,G200=G201),1,IF(AND(growth!K200>0,O200>$P$4),1,"-")) -> - | Q200: - | R200: 3.403491623 | S200: -0.02241847785 | T200: - | U200: =IF(SUM(INDIRECT($X$1&ROW()-$U$7):X200)=1,0,IF(SUM(INDIRECT($U$1&ROW()-$U$6):U199)>0,0,IF(AND(T200=1,T199="-"),1,0))) -> 0 | V200: 0 | W200: 0 | X200: =growth!O200 -> - | Y200: 1 | Z200: 0 | AA200: 0 | AC200: -2000 | AD200: 0
... 2050 more rows

Sheet growth
D1: =IF(CELL("COL",D1:D1)>26,CHAR(64+INT(CELL("COL",D1:D1)/26.1)),"")&CHAR(MOD(CELL("COL",D1:D1)-1,26)+65) -> D | E1: E | F1: F | G1: G | H1: H | I1: I | K1: =IF(CELL("COL",K1:K1)>26,CHAR(64+INT(CELL("COL",K1:K1)/26.1)),"")&CHAR(MOD(CELL("COL",K1:K1)-1,26)+65) -> K | L1: =IF(CELL("COL",L1:L1)>26,CHAR(64+INT(CELL("COL",L1:L1)/26.1)),"")&CHAR(MOD(CELL("COL",L1:L1)-1,26)+65) -> L | M1: =IF(CELL("COL",M1:M1)>26,CHAR(64+INT(CELL("COL",M1:M1)/26.1)),"")&CHAR(MOD(CELL("COL",M1:M1)-1,26)+65) -> M | N1: =IF(CELL("COL",N1:N1)>26,CHAR(64+INT(CELL("COL",N1:N1)/26.1)),"")&CHAR(MOD(CELL("COL",N1:N1)-1,26)+65) -> N | P1: =IF(CELL("COL",P1:P1)>26,CHAR(64+INT(CELL("COL",P1:P1)/26.1)),"")&CHAR(MOD(CELL("COL",P1:P1)-1,26)+65) -> P | Q1: leads to recession end - weeks | U1: Leads are +ve | V1: when
E2: real-time | F2: UER | G2: MA1 | I2: MA1/MA2 | K2: UERg | L2: recession | M2: trigger | N2: recession | O2: rec. end | P2: end signal | Q2: 15 | R2: (lags are negative numbers) | U2: Lagss are -ve | V2: observed
G3: MA1 short MA of UER= | H3: =G4+1 -> 16 | K3: as calculated | M3: line | O3: row | P3: row | Q3: min | R3: max | S3: SI-med | T3: my COMP | Y3: average of UERg
A4: UERg short | B4: 20 | G4: 15 | K4: incr. values by | N4: 1948 | O4: =C100 -> 100 | P4: =O4+Q4 -> 95 | Q4: =MIN(INDIRECT($N$1&O4-$Q$2):INDIRECT($N$1&O4+$Q$2)) -> -5 | R4: =MAX(INDIRECT($N$1&O4-$Q$2):INDIRECT($N$1&O4+$Q$2)) -> 7 | U4: =-Q4 -> 5 | V4: 7 | Y4: when below zero btw recessions
A5: > | G5: 15 | I5: MA2 long MA of MA1= | J5: =I6-1 -> 70 | K5: 0 | M5: 0 | N5: 1953 | O5: =C339 -> 339 | P5: =O5+Q5 -> 341 | Q5: =MIN(INDIRECT($N$1&O5-$Q$2):INDIRECT($N$1&O5+$Q$2)) -> 2 | R5: =MAX(INDIRECT($N$1&O5-$Q$2):INDIRECT($N$1&O5+$Q$2)) -> 2 | U5: =-Q5 -> -2 | V5: -2 | Y5: 1962 | Z5: 1969 | AA5: =P737 -> -8.1568392
A6: UERg long | F6: 0.015 | I6: 71 | N6: 1957 | O6: =C543 -> 543 | P6: 553 | Q6: =MIN(INDIRECT($N$1&O6-$Q$2):INDIRECT($N$1&O6+$Q$2)) -> 10 | R6: =MAX(INDIRECT($N$1&O6-$Q$2):INDIRECT($N$1&O6+$Q$2)) -> 10 | U6: -10 | V6: =U6 -> -10 | Y6: 1972 | Z6: 1974 | AA6: =P1271 -> -9.781827915
I7: must be odd nr. | K7: min= | N7: 1960 | O7: =C691 -> 691 | P7: 691 | Q7: =MIN(INDIRECT($N$1&O7-$Q$2):INDIRECT($N$1&O7+$Q$2)) -> 0 | R7: =MAX(INDIRECT($N$1&O7-$Q$2):INDIRECT($N$1&O7+$Q$2)) -> 0 | U7: 0 | V7: =U7 -> 0 | Y7: 1976 | Z7: 1979 | AA7: =P1480 -> -10.24923504
I8: UERg: 1yr= 1*52+1 | K8: =MIN(K14:K6000) -> -47.95070209 | M8: =$M$5+$K$5 -> 0 | N8: 1970 | O8: =C1200 -> 1200 | P8: 1188 | Q8: =MIN(INDIRECT($N$1&O8-$Q$2):INDIRECT($N$1&O8+$Q$2)) -> -12 | R8: =MAX(INDIRECT($N$1&O8-$Q$2):INDIRECT($N$1&O8+$Q$2)) -> 11 | S8: -5 | T8: -3 | U8: 12 | V8: 16 | Y8: 1983 | Z8: 1990 | AA8: =P1866 -> -10.3766208
M9: 0 | N9: 1973 | O9: =C1426 -> 1426 | P9: 1433 | Q9: =MIN(INDIRECT($N$1&O9-$Q$2):INDIRECT($N$1&O9+$Q$2)) -> 7 | R9: =MAX(INDIRECT($N$1&O9-$Q$2):INDIRECT($N$1&O9+$Q$2)) -> 7 | S9: -15 | T9: -15 | U9: -7 | V9: -6 | Y9: 1993 | Z9: 2001 | AA9: =P2363 -> -7.629484366
K10: last= | M10: 0 | N10: 1980 | O10: =C1704 -> 1704 | P10: 1711 | Q10: =MIN(INDIRECT($N$1&O10-$Q$2):INDIRECT($N$1&O10+$Q$2)) -> 7 | R10: =MAX(INDIRECT($N$1&O10-$Q$2):INDIRECT($N$1&O10+$Q$2)) -> 7 | S10: -14 | T10: -11 | U10: -7 | V10: =U10 -> -7 | Y10: 2004 | Z10: 2007 | AA10: =P2930 -> -7.600345597
E11: =data!A11 -> 1948-02-13 | F11: =data!G11 -> 3.771331058 | G11: =AVERAGE(INDIRECT($F$1&ROW()-$G$4):F11) ->  | K11: =VLOOKUP(MAX(E3455:E6000),$E$3455:$K$6000,7) -> -9.606332183 | M11: 0 | N11: 1981 | O11: =C1826 -> 1826 | P11: 1815 | Q11: =MIN(INDIRECT($N$1&O11-$Q$2):INDIRECT($N$1&O11+$Q$2)) -> -11 | R11: =MAX(INDIRECT($N$1&O11-$Q$2):INDIRECT($N$1&O11+$Q$2)) -> 8 | S11: 4 | T11: 0 | U11: 11 | V11: =U11 -> 11 | Y11: avg 1962 | Z11: to 2007 | AA11: =AVERAGE(AA5:AA10) -> -8.965725486
E12: =data!A12 -> 1948-02-20 | F12: =data!G12 -> 3.771331058 | G12: =AVERAGE(INDIRECT($F$1&ROW()-$G$4):F12) ->  | M12: 0 | N12: 1990 | O12: =C2261 -> 2261 | P12: 2269 | Q12: =MIN(INDIRECT($N$1&O12-$Q$2):INDIRECT($N$1&O12+$Q$2)) -> 8 | R12: =MAX(INDIRECT($N$1&O12-$Q$2):INDIRECT($N$1&O12+$Q$2)) -> 14 | S12: -13 | T12: -17 | U12: -8 | V12: -6
E13: =data!A13 -> 1948-02-27 | F13: =data!G13 -> 3.771331058 | G13: =AVERAGE(INDIRECT($F$1&ROW()-$G$4):F13) ->  | M13: 0 | N13: 2001 | O13: =C2818 -> 2818 | P13: 2831 | Q13: =MIN(INDIRECT($N$1&O13-$Q$2):INDIRECT($N$1&O13+$Q$2)) -> 13 | R13: =MAX(INDIRECT($N$1&O13-$Q$2):INDIRECT($N$1&O13+$Q$2)) -> 13 | S13: -9 | T13: -13 | U13: -13 | V13: -10
E14: =data!A14 -> 1948-03-05 | F14: =data!G14 -> 3.771331058 | G14: =AVERAGE(INDIRECT($F$1&ROW()-$G$4):F14) ->  | M14: 0 | N14: 2008 | O14: =C3213 -> 3213 | P14: 3214 | Q14: =MIN(INDIRECT($N$1&O14-$Q$2):INDIRECT($N$1&O14+$Q$2)) -> 1 | R14: =MAX(INDIRECT($N$1&O14-$Q$2):INDIRECT($N$1&O14+$Q$2)) -> 1 | S14: -11 | T14: -10 | U14: -1 | V14: =U14 -> -1
E15: =data!A15 -> 1948-03-12 | F15: =data!G15 -> 4.193548387 | G15: =AVERAGE(INDIRECT($F$1&ROW()-$G$4):F15) ->  | M15: 0
E16: =data!A16 -> 1948-03-19 | F16: =data!G16 -> 4.193548387 | G16: =AVERAGE(INDIRECT($F$1&ROW()-$G$4):F16) -> 3.355345858 | M16: 0
E17: =data!A17 -> 1948-03-26 | F17: =data!G17 -> 4.193548387 | G17: =AVERAGE(INDIRECT($F$1&ROW()-$G$4):F17) -> 3.460121174 | M17: 0 | P17: averages of
E18: =data!A18 -> 1948-04-02 | F18: =data!G18 -> 4.193548387 | G18: =AVERAGE(INDIRECT($F$1&ROW()-$G$4):F18) -> 3.541613087 | M18: 0 | P18: UERg
E19: =data!A19 -> 1948-04-09 | F19: =data!G19 -> 4.444444444 | G19: =AVERAGE(INDIRECT($F$1&ROW()-$G$4):F19) -> 3.631896222 | M19: 0 | P19: when below
E20: =data!A20 -> 1948-04-16 | F20: =data!G20 -> 4.444444444 | G20: =AVERAGE(INDIRECT($F$1&ROW()-$G$4):F20) -> 3.705764243 | M20: 0 | P20: zero
E21: =data!A21 -> 1948-04-23 | F21: =data!G21 -> 4.444444444 | G21: =AVERAGE(INDIRECT($F$1&ROW()-$G$4):F21) -> 3.767320926 | M21: 0 | O21: 62-69 | P21: =P737 -> -8.1568392
E22: =data!A22 -> 1948-04-30 | F22: =data!G22 -> 4.444444444 | G22: =AVERAGE(INDIRECT($F$1&ROW()-$G$4):F22) -> 4.136441297 | M22: 0 | O22: 72-74 | P22: =P1271 -> -9.781827915
E23: =data!A23 -> 1948-05-07 | F23: =data!G23 -> 4.296610169 | G23: =AVERAGE(INDIRECT($F$1&ROW()-$G$4):F23) -> 4.148761979 | M23: 0 | O23: 76-79 | P23: =P1480 -> -10.24923504
E24: =data!A24 -> 1948-05-14 | F24: =data!G24 -> 4.296610169 | G24: =AVERAGE(INDIRECT($F$1&ROW()-$G$4):F24) -> 4.159322564 | M24: 0 | O24: 83-90 | P24: =P1866 -> -10.3766208
E25: =data!A25 -> 1948-05-21 | F25: =data!G25 -> 4.296610169 | G25: =AVERAGE(INDIRECT($F$1&ROW()-$G$4):F25) -> 4.168475071 | M25: 0 | O25: 93-01 | P25: =P2363 -> -7.629484366
E26: =data!A26 -> 1948-05-28 | F26: =data!G26 -> 4.296610169 | G26: =AVERAGE(INDIRECT($F$1&ROW()-$G$4):F26) -> 4.176483515 | M26: 0 | O26: 04-07 | P26: =P2930 -> -7.600345597
E27: =data!A27 -> 1948-06-04 | F27: =data!G27 -> 4.296610169 | G27: =AVERAGE(INDIRECT($F$1&ROW()-$G$4):F27) -> 4.209313459 | M27: 0 | O27: avg | P27: =AVERAGE(P21:P26) -> -8.965725486
E28: =data!A28 -> 1948-06-11 | F28: =data!G28 -> 3.902229846 | G28: =AVERAGE(INDIRECT($F$1&ROW()-$G$4):F28) -> 4.217494633 | M28: 0
E29: =data!A29 -> 1948-06-18 | F29: =data!G29 -> 3.902229846 | G29: =AVERAGE(INDIRECT($F$1&ROW()-$G$4):F29) -> 4.225675808 | M29: 0 | O29: from
E30: =data!A30 -> 1948-06-25 | F30: =data!G30 -> 3.902229846 | G30: =AVERAGE(INDIRECT($F$1&ROW()-$G$4):F30) -> 4.233856982 | M30: 0 | O30: Sep-2010 to | P30: =P3278 -> -9.829522548
E31: =data!A31 -> 1948-07-02 | F31: =data!G31 -> 3.902229846 | G31: =AVERAGE(INDIRECT($F$1&ROW()-$G$4):F31) -> 4.215649573 | M31: 0
E32: =data!A32 -> 1948-07-09 | F32: =data!G32 -> 3.952702703 | G32: =AVERAGE(INDIRECT($F$1&ROW()-$G$4):F32) -> 4.200596718 | M32: 0
E33: =data!A33 -> 1948-07-16 | F33: =data!G33 -> 3.952702703 | G33: =AVERAGE(INDIRECT($F$1&ROW()-$G$4):F33) -> 4.185543863 | M33: 0
E34: =data!A34 -> 1948-07-23 | F34: =data!G34 -> 3.952702703 | G34: =AVERAGE(INDIRECT($F$1&ROW()-$G$4):F34) -> 4.170491007 | M34: 0
E35: =data!A35 -> 1948-07-30 | F35: =data!G35 -> 3.952702703 | G35: =AVERAGE(INDIRECT($F$1&ROW()-$G$4):F35) -> 4.139757148 | M35: 0
E36: =data!A36 -> 1948-08-06 | F36: =data!G36 -> 3.946037099 | G36: =AVERAGE(INDIRECT($F$1&ROW()-$G$4):F36) -> 4.108606689 | M36: 0
E37: =data!A37 -> 1948-08-13 | F37: =data!G37 -> 3.946037099 | G37: =AVERAGE(INDIRECT($F$1&ROW()-$G$4):F37) -> 4.07745623 | M37: 0
E38: =data!A38 -> 1948-08-20 | F38: =data!G38 -> 3.946037099 | G38: =AVERAGE(INDIRECT($F$1&ROW()-$G$4):F38) -> 4.046305771 | M38: 0
E39: =data!A39 -> 1948-08-27 | F39: =data!G39 -> 3.946037099 | G39: =AVERAGE(INDIRECT($F$1&ROW()-$G$4):F39) -> 4.024394954 | M39: 0
E40: =data!A40 -> 1948-09-03 | F40: =data!G40 -> 3.946037099 | G40: =AVERAGE(INDIRECT($F$1&ROW()-$G$4):F40) -> 4.002484137 | M40: 0
E41: =data!A41 -> 1948-09-10 | F41: =data!G41 -> 4.303904924 | G41: =AVERAGE(INDIRECT($F$1&ROW()-$G$4):F41) -> 4.00294006 | M41: 0
E42: =data!A42 -> 1948-09-17 | F42: =data!G42 -> 4.303904924 | G42: =AVERAGE(INDIRECT($F$1&ROW()-$G$4):F42) -> 4.003395982 | M42: 0
E43: =data!A43 -> 1948-09-24 | F43: =data!G43 -> 4.303904924 | G43: =AVERAGE(INDIRECT($F$1&ROW()-$G$4):F43) -> 4.003851904 | M43: 0
E44: =data!A44 -> 1948-10-01 | F44: =data!G44 -> 4.303904924 | G44: =AVERAGE(INDIRECT($F$1&ROW()-$G$4):F44) -> 4.028956596 | M44: 0
E45: =data!A45 -> 1948-10-08 | F45: =data!G45 -> 4.193548387 | G45: =AVERAGE(INDIRECT($F$1&ROW()-$G$4):F45) -> 4.047164005 | M45: 0
E46: =data!A46 -> 1948-10-15 | F46: =data!G46 -> 4.193548387 | G46: =AVERAGE(INDIRECT($F$1&ROW()-$G$4):F46) -> 4.065371414 | M46: 0
E47: =data!A47 -> 1948-10-22 | F47: =data!G47 -> 4.193548387 | G47: =AVERAGE(INDIRECT($F$1&ROW()-$G$4):F47) -> 4.083578823 | M47: 0
E48: =data!A48 -> 1948-10-29 | F48: =data!G48 -> 4.193548387 | G48: =AVERAGE(INDIRECT($F$1&ROW()-$G$4):F48) -> 4.098631678 | M48: 0
E49: =data!A49 -> 1948-11-05 | F49: =data!G49 -> 4.097103918 | G49: =AVERAGE(INDIRECT($F$1&ROW()-$G$4):F49) -> 4.107656754 | M49: 0
E50: =data!A50 -> 1948-11-12 | F50: =data!G50 -> 4.097103918 | G50: =AVERAGE(INDIRECT($F$1&ROW()-$G$4):F50) -> 4.11668183 | M50: 0
E51: =data!A51 -> 1948-11-19 | F51: =data!G51 -> 4.097103918 | G51: =AVERAGE(INDIRECT($F$1&ROW()-$G$4):F51) -> 4.125706906 | M51: 0
E52: =data!A52 -> 1948-11-26 | F52: =data!G52 -> 4.097103918 | G52: =AVERAGE(INDIRECT($F$1&ROW()-$G$4):F52) -> 4.135148582 | M52: 0
E53: =data!A53 -> 1948-12-03 | F53: =data!G53 -> 4.097103918 | G53: =AVERAGE(INDIRECT($F$1&ROW()-$G$4):F53) -> 4.144590258 | L53: 1948-12-03 | M53: 0
E54: =data!A54 -> 1948-12-10 | F54: =data!G54 -> 4.207836457 | G54: =AVERAGE(INDIRECT($F$1&ROW()-$G$4):F54) -> 4.160952718 | L54: 1948-12-10 | M54: 0
E55: =data!A55 -> 1948-12-17 | F55: =data!G55 -> 4.207836457 | G55: =AVERAGE(INDIRECT($F$1&ROW()-$G$4):F55) -> 4.177315178 | L55: 1948-12-17 | M55: 0
E56: =data!A56 -> 1948-12-24 | F56: =data!G56 -> 4.207836457 | G56: =AVERAGE(INDIRECT($F$1&ROW()-$G$4):F56) -> 4.193677638 | L56: 1948-12-24 | M56: 0
E57: =data!A57 -> 1948-12-31 | F57: =data!G57 -> 4.207836457 | G57: =AVERAGE(INDIRECT($F$1&ROW()-$G$4):F57) -> 4.187673359 | L57: 1948-12-31 | M57: 0
E58: =data!A58 -> 1949-01-07 | F58: =data!G58 -> 4.399323181 | G58: =AVERAGE(INDIRECT($F$1&ROW()-$G$4):F58) -> 4.193637 | L58: 1949-01-07 | M58: 0
E59: =data!A59 -> 1949-01-14 | F59: =data!G59 -> 4.399323181 | G59: =AVERAGE(INDIRECT($F$1&ROW()-$G$4):F59) -> 4.199600641 | L59: 1949-01-14 | M59: 0
E60: =data!A60 -> 1949-01-21 | F60: =data!G60 -> 4.399323181 | G60: =AVERAGE(INDIRECT($F$1&ROW()-$G$4):F60) -> 4.205564282 | L60: 1949-01-21 | M60: 0
E61: =data!A61 -> 1949-01-28 | F61: =data!G61 -> 4.399323181 | G61: =AVERAGE(INDIRECT($F$1&ROW()-$G$4):F61) -> 4.218425206 | L61: 1949-01-28 | M61: 0
E62: =data!A62 -> 1949-02-04 | F62: =data!G62 -> 4.399323181 | G62: =AVERAGE(INDIRECT($F$1&ROW()-$G$4):F62) -> 4.231286131 | L62: 1949-02-04 | M62: 0
E63: =data!A63 -> 1949-02-11 | F63: =data!G63 -> 4.761499148 | G63: =AVERAGE(INDIRECT($F$1&ROW()-$G$4):F63) -> 4.266783054 | L63: 1949-02-11 | M63: 0
E64: =data!A64 -> 1949-02-18 | F64: =data!G64 -> 4.761499148 | G64: =AVERAGE(INDIRECT($F$1&ROW()-$G$4):F64) -> 4.302279976 | L64: 1949-02-18 | M64: 0
E65: =data!A65 -> 1949-02-25 | F65: =data!G65 -> 4.761499148 | G65: =AVERAGE(INDIRECT($F$1&ROW()-$G$4):F65) -> 4.343804678 | L65: 1949-02-25 | M65: 0
D66: =INT(E66-($I$6/2*7)) -> 1948-06-28 | E66: =data!A66 -> 1949-03-04 | F66: =data!G66 -> 4.761499148 | G66: =AVERAGE(INDIRECT($F$1&ROW()-G$4):F66) -> 4.38532938 | H66: =-1 -> -1 | I66: =G66/AVERAGE(INDIRECT($G$1&(ROW()-$J$5)):INDIRECT($G$1&(ROW()-1))) ->  | L66: 1949-03-04 | M66: 0 | W66: =IF(K66<-11,1,"-") -> -
D67: 1948-07-05 | E67: =data!A67 -> 1949-03-11 | F67: =data!G67 -> 5.177966102 | G67: =AVERAGE(INDIRECT($F$1&ROW()-$G$4):F67) -> 4.452883266 | H67: -1 | I67: =G67/AVERAGE(INDIRECT($G$1&(ROW()-$J$5)):INDIRECT($G$1&(ROW()-1))) ->  | L67: 1949-03-11 | M67: 0 | W67: -
D68: 1948-07-12 | E68: =data!A68 -> 1949-03-18 | F68: =data!G68 -> 5.177966102 | G68: =AVERAGE(INDIRECT($F$1&ROW()-$G$4):F68) -> 4.520437153 | H68: -1 | I68: =G68/AVERAGE(INDIRECT($G$1&(ROW()-$J$5)):INDIRECT($G$1&(ROW()-1))) ->  | L68: 1949-03-18 | M68: 0 | W68: -
D69: 1948-07-19 | E69: =data!A69 -> 1949-03-25 | F69: =data!G69 -> 5.177966102 | G69: =AVERAGE(INDIRECT($F$1&ROW()-$G$4):F69) -> 4.587991039 | H69: -1 | I69: =G69/AVERAGE(INDIRECT($G$1&(ROW()-$J$5)):INDIRECT($G$1&(ROW()-1))) ->  | L69: 1949-03-25 | M69: 0 | W69: -
D70: 1948-07-26 | E70: =data!A70 -> 1949-04-01 | F70: =data!G70 -> 5.177966102 | G70: =AVERAGE(INDIRECT($F$1&ROW()-$G$4):F70) -> 4.648624142 | H70: -1 | I70: =G70/AVERAGE(INDIRECT($G$1&(ROW()-$J$5)):INDIRECT($G$1&(ROW()-1))) ->  | L70: 1949-04-01 | M70: 0 | W70: -
D71: 1948-08-02 | E71: =data!A71 -> 1949-04-08 | F71: =data!G71 -> 5.517826825 | G71: =AVERAGE(INDIRECT($F$1&ROW()-$G$4):F71) -> 4.73049854 | H71: -1 | I71: =G71/AVERAGE(INDIRECT($G$1&(ROW()-$J$5)):INDIRECT($G$1&(ROW()-1))) ->  | L71: 1949-04-08 | M71: 0 | W71: -
D72: 1948-08-09 | E72: =data!A72 -> 1949-04-15 | F72: =data!G72 -> 5.517826825 | G72: =AVERAGE(INDIRECT($F$1&ROW()-$G$4):F72) -> 4.812372938 | H72: -1 | I72: =G72/AVERAGE(INDIRECT($G$1&(ROW()-$J$5)):INDIRECT($G$1&(ROW()-1))) ->  | L72: 1949-04-15 | M72: =$M$5+$K$5 -> 0 | W72: -
D73: 1948-08-16 | E73: =data!A73 -> 1949-04-22 | F73: =data!G73 -> 5.517826825 | G73: =AVERAGE(INDIRECT($F$1&ROW()-$G$4):F73) -> 4.894247336 | H73: -1 | I73: =G73/AVERAGE(INDIRECT($G$1&(ROW()-$J$5)):INDIRECT($G$1&(ROW()-1))) ->  | L73: 1949-04-22 | M73: 0 | W73: -
D74: 1948-08-23 | E74: =data!A74 -> 1949-04-29 | F74: =data!G74 -> 5.517826825 | G74: =AVERAGE(INDIRECT($F$1&ROW()-$G$4):F74) -> 4.964153814 | H74: -1 | I74: =G74/AVERAGE(INDIRECT($G$1&(ROW()-$J$5)):INDIRECT($G$1&(ROW()-1))) ->  | L74: 1949-04-29 | M74: 0 | W74: -
D75: 1948-08-30 | E75: =data!A75 -> 1949-05-06 | F75: =data!G75 -> 5.858843537 | G75: =AVERAGE(INDIRECT($F$1&ROW()-$G$4):F75) -> 5.055373836 | H75: -1 | I75: =G75/AVERAGE(INDIRECT($G$1&(ROW()-$J$5)):INDIRECT($G$1&(ROW()-1))) ->  | L75: 1949-05-06 | M75: 0 | W75: -
D76: 1948-09-06 | E76: =data!A76 -> 1949-05-13 | F76: =data!G76 -> 5.858843537 | G76: =AVERAGE(INDIRECT($F$1&ROW()-$G$4):F76) -> 5.146593859 | H76: -1 | I76: =G76/AVERAGE(INDIRECT($G$1&(ROW()-$J$5)):INDIRECT($G$1&(ROW()-1))) ->  | L76: 1949-05-13 | M76: 0 | W76: -
D77: 1948-09-13 | E77: =data!A77 -> 1949-05-20 | F77: =data!G77 -> 5.858843537 | G77: =AVERAGE(INDIRECT($F$1&ROW()-$G$4):F77) -> 5.237813881 | H77: -1 | I77: =G77/AVERAGE(INDIRECT($G$1&(ROW()-$J$5)):INDIRECT($G$1&(ROW()-1))) ->  | L77: 1949-05-20 | M77: 0 | W77: -
D78: 1948-09-20 | E78: =data!A78 -> 1949-05-27 | F78: =data!G78 -> 5.858843537 | G78: =AVERAGE(INDIRECT($F$1&ROW()-$G$4):F78) -> 5.329033903 | H78: -1 | I78: =G78/AVERAGE(INDIRECT($G$1&(ROW()-$J$5)):INDIRECT($G$1&(ROW()-1))) ->  | L78: 1949-05-27 | M78: 0 | W78: -
D79: 1948-09-27 | E79: =data!A79 -> 1949-06-03 | F79: =data!G79 -> 5.858843537 | G79: =AVERAGE(INDIRECT($F$1&ROW()-$G$4):F79) -> 5.397617927 | H79: -1 | I79: =G79/AVERAGE(INDIRECT($G$1&(ROW()-$J$5)):INDIRECT($G$1&(ROW()-1))) ->  | L79: 1949-06-03 | M79: 0 | W79: -
D80: 1948-10-04 | E80: =data!A80 -> 1949-06-10 | F80: =data!G80 -> 6.720338983 | G80: =AVERAGE(INDIRECT($F$1&ROW()-$G$4):F80) -> 5.520045417 | H80: -1 | I80: =G80/AVERAGE(INDIRECT($G$1&(ROW()-$J$5)):INDIRECT($G$1&(ROW()-1))) ->  | L80: 1949-06-10 | M80: 0 | W80: -
D81: 1948-10-11 | E81: =data!A81 -> 1949-06-17 | F81: =data!G81 -> 6.720338983 | G81: =AVERAGE(INDIRECT($F$1&ROW()-$G$4):F81) -> 5.642472907 | H81: -1 | I81: =G81/AVERAGE(INDIRECT($G$1&(ROW()-$J$5)):INDIRECT($G$1&(ROW()-1))) ->  | L81: 1949-06-17 | M81: 0 | W81: -
D82: 1948-10-18 | E82: =data!A82 -> 1949-06-24 | F82: =data!G82 -> 6.720338983 | G82: =AVERAGE(INDIRECT($F$1&ROW()-$G$4):F82) -> 5.764900396 | H82: -1 | I82: =G82/AVERAGE(INDIRECT($G$1&(ROW()-$J$5)):INDIRECT($G$1&(ROW()-1))) ->  | L82: 1949-06-24 | M82: 0 | W82: -
D83: 1948-10-25 | E83: =data!A83 -> 1949-07-01 | F83: =data!G83 -> 6.720338983 | G83: =AVERAGE(INDIRECT($F$1&ROW()-$G$4):F83) -> 5.861298702 | H83: -1 | I83: =G83/AVERAGE(INDIRECT($G$1&(ROW()-$J$5)):INDIRECT($G$1&(ROW()-1))) ->  | L83: 1949-07-01 | M83: 0 | W83: -
D84: 1948-11-01 | E84: =data!A84 -> 1949-07-08 | F84: =data!G84 -> 6.877133106 | G84: =AVERAGE(INDIRECT($F$1&ROW()-$G$4):F84) -> 5.967496639 | H84: -1 | I84: =G84/AVERAGE(INDIRECT($G$1&(ROW()-$J$5)):INDIRECT($G$1&(ROW()-1))) ->  | L84: 1949-07-08 | M84: 0 | W84: -
D85: 1948-11-08 | E85: =data!A85 -> 1949-07-15 | F85: =data!G85 -> 6.877133106 | G85: =AVERAGE(INDIRECT($F$1&ROW()-$G$4):F85) -> 6.073694577 | H85: -1 | I85: =G85/AVERAGE(INDIRECT($G$1&(ROW()-$J$5)):INDIRECT($G$1&(ROW()-1))) ->  | L85: 1949-07-15 | M85: 0 | W85: -
A86: =grow2!I86-K86 -> 12.02429593 | B86: =IF(AND(A86<0,A85>0,K86>$B$4),1,"-") -> - | C86: =ROW() -> 86 | D86: 1948-11-15 | E86: =data!A86 -> 1949-07-22 | F86: =data!G86 -> 6.877133106 | G86: =AVERAGE(INDIRECT($F$1&ROW()-$G$4):F86) -> 6.179892515 | H86: -1 | I86: =G86/AVERAGE(INDIRECT($G$1&(ROW()-$J$5)):INDIRECT($G$1&(ROW()-1))) -> 1.409340572 | K86: =IF(ISNUMBER(I86),XIRR(H86:I86,D86:E86,0.1)*100+$K$5,"-") -> 65.36250412 | L86: 1949-07-22 | M86: 0 | W86: -
A87: =grow2!I87-K87 -> 10.13619959 | B87: - | C87: =ROW() -> 87 | D87: 1948-11-22 | E87: =data!A87 -> 1949-07-29 | F87: =data!G87 -> 6.877133106 | G87: =AVERAGE(INDIRECT($F$1&ROW()-$G$4):F87) -> 6.264849157 | H87: -1 | I87: =G87/AVERAGE(INDIRECT($G$1&(ROW()-$J$5)):INDIRECT($G$1&(ROW()-1))) -> 1.41568789 | K87: 66.4553529 | L87: 1949-07-29 | M87: 0 | W87: -
A88: =grow2!I88-K88 -> 10.43052018 | B88: - | C88: =ROW() -> 88 | D88: 1948-11-29 | E88: =data!A88 -> 1949-08-05 | F88: =data!G88 -> 7.393887946 | G88: =AVERAGE(INDIRECT($F$1&ROW()-$G$4):F88) -> 6.382102977 | H88: -1 | I88: =G88/AVERAGE(INDIRECT($G$1&(ROW()-$J$5)):INDIRECT($G$1&(ROW()-1))) -> 1.429243466 | K88: 68.79692614 | L88: 1949-08-05 | M88: 0 | W88: -
A89: =grow2!I89-K89 -> 10.73367596 | B89: - | C89: =ROW() -> 89 | D89: 1948-12-06 | E89: =data!A89 -> 1949-08-12 | F89: =data!G89 -> 7.393887946 | G89: =AVERAGE(INDIRECT($F$1&ROW()-$G$4):F89) -> 6.499356797 | H89: -1 | I89: =G89/AVERAGE(INDIRECT($G$1&(ROW()-$J$5)):INDIRECT($G$1&(ROW()-1))) -> 1.442394382 | K89: 71.07850909 | L89: 1949-08-12 | M89: 0 | N89: =IF(B89=1,C89-C$100,"-") -> - | O89: =IF(C89=$P$4,1,"-") -> - | W89: -
A90: =grow2!I90-K90 -> 11.00406885 | B90: - | C90: =ROW() -> 90 | D90: 1948-12-13 | E90: =data!A90 -> 1949-08-19 | F90: =data!G90 -> 7.393887946 | G90: =AVERAGE(INDIRECT($F$1&ROW()-$G$4):F90) -> 6.616610617 | H90: -1 | I90: =G90/AVERAGE(INDIRECT($G$1&(ROW()-$J$5)):INDIRECT($G$1&(ROW()-1))) -> 1.455187231 | K90: 73.3072865 | L90: 1949-08-19 | M90: 0 | N90: - | O90: =IF(C90=$P$4,1,"-") -> - | W90: -
A91: =grow2!I91-K91 -> 12.06775665 | B91: - | C91: =ROW() -> 91 | D91: 1948-12-20 | E91: =data!A91 -> 1949-08-26 | F91: =data!G91 -> 7.393887946 | G91: =AVERAGE(INDIRECT($F$1&ROW()-$G$4):F91) -> 6.712550893 | H91: -1 | I91: =G91/AVERAGE(INDIRECT($G$1&(ROW()-$J$5)):INDIRECT($G$1&(ROW()-1))) -> 1.46290838 | K91: 74.65690017 | L91: 1949-08-26 | M91: 0 | N91: - | O91: - | W91: -
A92: =grow2!I92-K92 -> 8.354020119 | B92: - | C92: =ROW() -> 92 | D92: 1948-12-27 | E92: =data!A92 -> 1949-09-02 | F92: =data!G92 -> 7.393887946 | G92: =AVERAGE(INDIRECT($F$1&ROW()-$G$4):F92) -> 6.808491169 | H92: -1 | I92: =G92/AVERAGE(INDIRECT($G$1&(ROW()-$J$5)):INDIRECT($G$1&(ROW()-1))) -> 1.470334854 | K92: 75.95814109 | L92: 1949-09-02 | M92: 0 | N92: - | O92: - | W92: -
A93: =grow2!I93-K93 -> 5.026607513 | B93: - | C93: =ROW() -> 93 | D93: 1949-01-03 | E93: =data!A93 -> 1949-09-09 | F93: =data!G93 -> 7.466216216 | G93: =AVERAGE(INDIRECT($F$1&ROW()-$G$4):F93) -> 6.908951961 | H93: -1 | I93: =G93/AVERAGE(INDIRECT($G$1&(ROW()-$J$5)):INDIRECT($G$1&(ROW()-1))) -> 1.479830976 | K93: 77.62648225 | L93: 1949-09-09 | M93: 0 | N93: - | O93: - | W93: -
A94: =grow2!I94-K94 -> 1.78242445 | B94: - | C94: =ROW() -> 94 | D94: 1949-01-10 | E94: =data!A94 -> 1949-09-16 | F94: =data!G94 -> 7.466216216 | G94: =AVERAGE(INDIRECT($F$1&ROW()-$G$4):F94) -> 7.009412753 | H94: -1 | I94: =G94/AVERAGE(INDIRECT($G$1&(ROW()-$J$5)):INDIRECT($G$1&(ROW()-1))) -> 1.488774814 | K94: 79.20236468 | L94: 1949-09-16 | M94: 0 | N94: - | O94: - | W94: -
A95: =grow2!I95-K95 -> -1.376178265 | B95: 1 | C95: =ROW() -> 95 | D95: 1949-01-17 | E95: =data!A95 -> 1949-09-23 | F95: =data!G95 -> 7.466216216 | G95: =AVERAGE(INDIRECT($F$1&ROW()-$G$4):F95) -> 7.109873546 | H95: -1 | I95: =G95/AVERAGE(INDIRECT($G$1&(ROW()-$J$5)):INDIRECT($G$1&(ROW()-1))) -> 1.497165083 | K95: 80.68472266 | L95: 1949-09-23 | M95: 0 | N95: -5 | O95: 1 | W95: -
A96: =grow2!I96-K96 -> -2.457795143 | B96: - | C96: =ROW() -> 96 | D96: 1949-01-24 | E96: =data!A96 -> 1949-09-30 | F96: =data!G96 -> 7.466216216 | G96: =AVERAGE(INDIRECT($F$1&ROW()-$G$4):F96) -> 7.156490873 | H96: -1 | I96: =G96/AVERAGE(INDIRECT($G$1&(ROW()-$J$5)):INDIRECT($G$1&(ROW()-1))) -> 1.49376416 | K96: 80.08339286 | L96: 1949-09-30 | M96: 0 | N96: =IF(B96=1,C96-C$100,"-") -> - | O96: =IF(C96=$P$4,1,"-") -> - | W96: -
A97: =grow2!I97-K97 -> -5.456855297 | B97: - | C97: =ROW() -> 97 | D97: 1949-01-31 | E97: =data!A97 -> 1949-10-07 | F97: =data!G97 -> 7.258883249 | G97: =AVERAGE(INDIRECT($F$1&ROW()-$G$4):F97) -> 7.190149889 | H97: -1 | I97: =G97/AVERAGE(INDIRECT($G$1&(ROW()-$J$5)):INDIRECT($G$1&(ROW()-1))) -> 1.487571355 | K97: 78.99006009 | L97: 1949-10-07 | M97: 0 | N97: =IF(B97=1,C97-C$100,"-") -> - | O97: - | W97: -
A98: =grow2!I98-K98 -> -8.338792324 | B98: - | C98: =ROW() -> 98 | D98: 1949-02-07 | E98: =data!A98 -> 1949-10-14 | F98: =data!G98 -> 7.258883249 | G98: =AVERAGE(INDIRECT($F$1&ROW()-$G$4):F98) -> 7.223808906 | H98: -1 | I98: =G98/AVERAGE(INDIRECT($G$1&(ROW()-$J$5)):INDIRECT($G$1&(ROW()-1))) -> 1.481483087 | K98: 77.91724801 | L98: 1949-10-14 | M98: 0 | N98: - | O98: - | W98: -
A99: =grow2!I99-K99 -> -11.15708292 | B99: - | C99: =ROW() -> 99 | D99: 1949-02-14 | E99: =data!A99 -> 1949-10-21 | F99: =data!G99 -> 7.258883249 | G99: =AVERAGE(INDIRECT($F$1&ROW()-$G$4):F99) -> 7.257467923 | H99: -1 | I99: =G99/AVERAGE(INDIRECT($G$1&(ROW()-$J$5)):INDIRECT($G$1&(ROW()-1))) -> 1.475391062 | K99: 76.84582591 | L99: 1949-10-21 | M99: 0 | N99: - | O99: - | W99: -
A100: =grow2!I100-K100 -> -13.56579244 | B100: - | C100: =ROW() -> 100 | D100: 1949-02-21 | E100: =data!A100 -> 1949-10-28 | F100: =data!G100 -> 7.258883249 | G100: =AVERAGE(INDIRECT($F$1&ROW()-$G$4):F100) -> 7.281327307 | H100: -1 | I100: =G100/AVERAGE(INDIRECT($G$1&(ROW()-$J$5)):INDIRECT($G$1&(ROW()-1))) -> 1.467321911 | K100: 75.4298532 | L100: 1949-10-28 | M100: 0 | N100: - | O100: - | W100: -
A101: =grow2!I101-K101 -> -14.25655305 | B101: - | C101: =ROW() -> 101 | D101: 1949-02-28 | E101: =data!A101 -> 1949-11-04 | F101: =data!G101 -> 7.258883249 | G101: =AVERAGE(INDIRECT($F$1&ROW()-$G$4):F101) -> 7.305186691 | H101: -1 | I101: =G101/AVERAGE(INDIRECT($G$1&(ROW()-$J$5)):INDIRECT($G$1&(ROW()-1))) -> 1.4593271 | K101: 74.03050065 | M101: 0 | N101: - | O101: - | W101: -
A102: =grow2!I102-K102 -> -6.979680657 | B102: - | C102: =ROW() -> 102 | D102: 1949-03-07 | E102: =data!A102 -> 1949-11-11 | F102: =data!G102 -> 8.615771812 | G102: =AVERAGE(INDIRECT($F$1&ROW()-$G$4):F102) -> 7.41385161 | H102: -1 | I102: =G102/AVERAGE(INDIRECT($G$1&(ROW()-$J$5)):INDIRECT($G$1&(ROW()-1))) -> 1.468090612 | K102: 75.56459069 | M102: 0 | N102: - | O102: - | W102: -
A103: =grow2!I103-K103 -> 0.1714158058 | B103: - | C103: =ROW() -> 103 | D103: 1949-03-14 | E103: =data!A103 -> 1949-11-18 | F103: =data!G103 -> 8.615771812 | G103: =AVERAGE(INDIRECT($F$1&ROW()-$G$4):F103) -> 7.522516529 | H103: -1 | I103: =G103/AVERAGE(INDIRECT($G$1&(ROW()-$J$5)):INDIRECT($G$1&(ROW()-1))) -> 1.476190107 | K103: 76.98624015 | M103: 0 | N103: - | O103: - | W103: -
A104: =grow2!I104-K104 -> 8.269231319 | B104: - | C104: =ROW() -> 104 | D104: 1949-03-21 | E104: =data!A104 -> 1949-11-25 | F104: =data!G104 -> 8.615771812 | G104: =AVERAGE(INDIRECT($F$1&ROW()-$G$4):F104) -> 7.59888427 | H104: -1 | I104: =G104/AVERAGE(INDIRECT($G$1&(ROW()-$J$5)):INDIRECT($G$1&(ROW()-1))) -> 1.477355879 | K104: 77.19115853 | M104: 0 | N104: - | O104: - | W104: -
A105: =grow2!I105-K105 -> 16.1377883 | B105: - | C105: =ROW() -> 105 | D105: 1949-03-28 | E105: =data!A105 -> 1949-12-02 | F105: =data!G105 -> 8.615771812 | G105: =AVERAGE(INDIRECT($F$1&ROW()-$G$4):F105) -> 7.675252012 | H105: -1 | I105: =G105/AVERAGE(INDIRECT($G$1&(ROW()-$J$5)):INDIRECT($G$1&(ROW()-1))) -> 1.478128373 | K105: 77.32699037 | M105: 0 | N105: - | O105: - | W105: -
A106: =grow2!I106-K106 -> 3.169150352 | B106: - | C106: =ROW() -> 106 | D106: 1949-04-04 | E106: =data!A106 -> 1949-12-09 | F106: =data!G106 -> 7.003367003 | G106: =AVERAGE(INDIRECT($F$1&ROW()-$G$4):F106) -> 7.650844453 | H106: -1 | I106: =G106/AVERAGE(INDIRECT($G$1&(ROW()-$J$5)):INDIRECT($G$1&(ROW()-1))) -> 1.459234141 | K106: 74.01425004 | M106: 0 | N106: - | O106: - | W106: -
A107: =grow2!I107-K107 -> -8.804031014 | B107: 1 | C107: =ROW() -> 107 | D107: 1949-04-11 | E107: =data!A107 -> 1949-12-16 | F107: =data!G107 -> 7.003367003 | G107: =AVERAGE(INDIRECT($F$1&ROW()-$G$4):F107) -> 7.626436894 | H107: -1 | I107: =G107/AVERAGE(INDIRECT($G$1&(ROW()-$J$5)):INDIRECT($G$1&(ROW()-1))) -> 1.440674242 | K107: 70.77952504 | M107: 0 | N107: 7 | O107: - | W107: -
A108: =grow2!I108-K108 -> -19.88152027 | B108: - | C108: =ROW() -> 108 | D108: 1949-04-18 | E108: =data!A108 -> 1949-12-23 | F108: =data!G108 -> 7.003367003 | G108: =AVERAGE(INDIRECT($F$1&ROW()-$G$4):F108) -> 7.602029335 | H108: -1 | I108: =G108/AVERAGE(INDIRECT($G$1&(ROW()-$J$5)):INDIRECT($G$1&(ROW()-1))) -> 1.422440181 | K108: 67.62043536 | M108: 0 | N108: - | O108: - | W108: -
A109: =grow2!I109-K109 -> -30.00623941 | B109: - | C109: =ROW() -> 109 | D109: 1949-04-25 | E109: =data!A109 -> 1949-12-30 | F109: =data!G109 -> 7.003367003 | G109: =AVERAGE(INDIRECT($F$1&ROW()-$G$4):F109) -> 7.57310126 | H109: -1 | I109: =G109/AVERAGE(INDIRECT($G$1&(ROW()-$J$5)):INDIRECT($G$1&(ROW()-1))) -> 1.403685865 | K109: 64.39083517 | M109: 0 | N109: - | O109: - | W109: -
A110: =grow2!I110-K110 -> -27.13117361 | B110: - | C110: =ROW() -> 110 | D110: 1949-05-02 | E110: =data!A110 -> 1950-01-06 | F110: =data!G110 -> 7.246621622 | G110: =AVERAGE(INDIRECT($F$1&ROW()-$G$4):F110) -> 7.559376597 | H110: -1 | I110: =G110/AVERAGE(INDIRECT($G$1&(ROW()-$J$5)):INDIRECT($G$1&(ROW()-1))) -> 1.388098647 | K110: 61.7218715 | M110: 0 | N110: - | O110: - | W110: -
A111: =grow2!I111-K111 -> -24.34644938 | B111: - | C111: =ROW() -> 111 | D111: 1949-05-09 | E111: =data!A111 -> 1950-01-13 | F111: =data!G111 -> 7.246621622 | G111: =AVERAGE(INDIRECT($F$1&ROW()-$G$4):F111) -> 7.545651935 | H111: -1 | I111: =G111/AVERAGE(INDIRECT($G$1&(ROW()-$J$5)):INDIRECT($G$1&(ROW()-1))) -> 1.372769751 | K111: 59.11071956 | M111: 0 | N111: - | O111: - | W111: -
A112: =grow2!I112-K112 -> -21.61986589 | B112: - | C112: =ROW() -> 112 | D112: 1949-05-16 | E112: =data!A112 -> 1950-01-20 | F112: =data!G112 -> 7.246621622 | G112: =AVERAGE(INDIRECT($F$1&ROW()-$G$4):F112) -> 7.531927273 | H112: -1 | I112: =G112/AVERAGE(INDIRECT($G$1&(ROW()-$J$5)):INDIRECT($G$1&(ROW()-1))) -> 1.35777125 | K112: 56.56896174 | M112: 0 | N112: - | O112: - | W112: -
A113: =grow2!I113-K113 -> -19.33853745 | B113: - | C113: =ROW() -> 113 | D113: 1949-05-23 | E113: =data!A113 -> 1950-01-27 | F113: =data!G113 -> 7.246621622 | G113: =AVERAGE(INDIRECT($F$1&ROW()-$G$4):F113) -> 7.531160921 | H113: -1 | I113: =G113/AVERAGE(INDIRECT($G$1&(ROW()-$J$5)):INDIRECT($G$1&(ROW()-1))) -> 1.345407498 | K113: 54.48351443 | M113: 0 | N113: - | O113: - | W113: -
A114: =grow2!I114-K114 -> -18.74089837 | B114: - | C114: =ROW() -> 114 | D114: 1949-05-30 | E114: =data!A114 -> 1950-02-03 | F114: =data!G114 -> 7.246621622 | G114: =AVERAGE(INDIRECT($F$1&ROW()-$G$4):F114) -> 7.53039457 | H114: -1 | I114: =G114/AVERAGE(INDIRECT($G$1&(ROW()-$J$5)):INDIRECT($G$1&(ROW()-1))) -> 1.333268554 | K114: 52.44465411 | M114: 0 | N114: - | O114: - | W114: -
A115: =grow2!I115-K115 -> -18.49171877 | B115: - | C115: =ROW() -> 115 | D115: 1949-06-06 | E115: =data!A115 -> 1950-02-10 | F115: =data!G115 -> 7.173174873 | G115: =AVERAGE(INDIRECT($F$1&ROW()-$G$4):F115) -> 7.525037796 | H115: -1 | I115: =G115/AVERAGE(INDIRECT($G$1&(ROW()-$J$5)):INDIRECT($G$1&(ROW()-1))) -> 1.320624391 | K115: 50.33011258 | M115: 0 | N115: - | O115: - | W115: -
A116: =grow2!I116-K116 -> -18.27121019 | B116: - | C116: =ROW() -> 116 | D116: 1949-06-13 | E116: =data!A116 -> 1950-02-17 | F116: =data!G116 -> 7.173174873 | G116: =AVERAGE(INDIRECT($F$1&ROW()-$G$4):F116) -> 7.519681023 | H116: -1 | I116: =G116/AVERAGE(INDIRECT($G$1&(ROW()-$J$5)):INDIRECT($G$1&(ROW()-1))) -> 1.308276907 | K116: 48.27426851 | M116: 0 | N116: - | O116: - | W116: -
A117: =grow2!I117-K117 -> -18.07773113 | B117: - | C117: =ROW() -> 117 | D117: 1949-06-20 | E117: =data!A117 -> 1950-02-24 | F117: =data!G117 -> 7.173174873 | G117: =AVERAGE(INDIRECT($F$1&ROW()-$G$4):F117) -> 7.514324249 | H117: -1 | I117: =G117/AVERAGE(INDIRECT($G$1&(ROW()-$J$5)):INDIRECT($G$1&(ROW()-1))) -> 1.296216323 | K117: 46.27489984 | M117: 0 | N117: - | O117: - | W117: -
A118: =grow2!I118-K118 -> -15.52660584 | B118: - | C118: =ROW() -> 118 | D118: 1949-06-27 | E118: =data!A118 -> 1950-03-03 | F118: =data!G118 -> 7.173174873 | G118: =AVERAGE(INDIRECT($F$1&ROW()-$G$4):F118) -> 7.424161941 | H118: -1 | I118: =G118/AVERAGE(INDIRECT($G$1&(ROW()-$J$5)):INDIRECT($G$1&(ROW()-1))) -> 1.269927027 | K118: 41.94676578 | M118: 0 | N118: - | O118: - | W118: -
A119: =grow2!I119-K119 -> -13.15683961 | B119: - | C119: =ROW() -> 119 | D119: 1949-07-04 | E119: =data!A119 -> 1950-03-10 | F119: =data!G119 -> 7.062818336 | G119: =AVERAGE(INDIRECT($F$1&ROW()-$G$4):F119) -> 7.327102348 | H119: -1 | I119: =G119/AVERAGE(INDIRECT($G$1&(ROW()-$J$5)):INDIRECT($G$1&(ROW()-1))) -> 1.243221843 | K119: 37.59269774 | M119: 0 | N119: - | O119: - | W119: -
A120: =grow2!I120-K120 -> -10.9104085 | B120: - | C120: =ROW() -> 120 | D120: 1949-07-11 | E120: =data!A120 -> 1950-03-17 | F120: =data!G120 -> 7.062818336 | G120: =AVERAGE(INDIRECT($F$1&ROW()-$G$4):F120) -> 7.230042756 | H120: -1 | I120: =G120/AVERAGE(INDIRECT($G$1&(ROW()-$J$5)):INDIRECT($G$1&(ROW()-1))) -> 1.217254251 | K120: 33.40045989 | M120: 0 | N120: - | O120: - | W120: -
A121: =grow2!I121-K121 -> -8.779422045 | B121: - | C121: =ROW() -> 121 | D121: 1949-07-18 | E121: =data!A121 -> 1950-03-24 | F121: =data!G121 -> 7.062818336 | G121: =AVERAGE(INDIRECT($F$1&ROW()-$G$4):F121) -> 7.132983164 | H121: -1 | I121: =G121/AVERAGE(INDIRECT($G$1&(ROW()-$J$5)):INDIRECT($G$1&(ROW()-1))) -> 1.191987515 | K121: 29.36116159 | M121: 0 | N121: - | O121: - | W121: -
A122: =grow2!I122-K122 -> -9.399555922 | B122: - | C122: =ROW() -> 122 | D122: 1949-07-25 | E122: =data!A122 -> 1950-03-31 | F122: =data!G122 -> 7.062818336 | G122: =AVERAGE(INDIRECT($F$1&ROW()-$G$4):F122) -> 7.136698872 | H122: -1 | I122: =G122/AVERAGE(INDIRECT($G$1&(ROW()-$J$5)):INDIRECT($G$1&(ROW()-1))) -> 1.184107504 | K122: 28.10951293 | M122: 0 | N122: - | O122: - | W122: -
A123: =grow2!I123-K123 -> -9.775742292 | B123: - | C123: =ROW() -> 123 | D123: 1949-08-01 | E123: =data!A123 -> 1950-04-07 | F123: =data!G123 -> 6.964285714 | G123: =AVERAGE(INDIRECT($F$1&ROW()-$G$4):F123) -> 7.134256292 | H123: -1 | I123: =G123/AVERAGE(INDIRECT($G$1&(ROW()-$J$5)):INDIRECT($G$1&(ROW()-1))) -> 1.175340336 | K123: 26.72150314 | M123: 0 | N123: - | O123: - | W123: -
A124: =grow2!I124-K124 -> -10.14015794 | B124: - | C124: =ROW() -> 124 | D124: 1949-08-08 | E124: =data!A124 -> 1950-04-14 | F124: =data!G124 -> 6.964285714 | G124: =AVERAGE(INDIRECT($F$1&ROW()-$G$4):F124) -> 7.131813711 | H124: -1 | I124: =G124/AVERAGE(INDIRECT($G$1&(ROW()-$J$5)):INDIRECT($G$1&(ROW()-1))) -> 1.166728568 | K124: 25.36278427 | M124: 0 | N124: - | O124: - | W124: -
A125: =grow2!I125-K125 -> -10.48594117 | B125: - | C125: =ROW() -> 125 | D125: 1949-08-15 | E125: =data!A125 -> 1950-04-21 | F125: =data!G125 -> 6.964285714 | G125: =AVERAGE(INDIRECT($F$1&ROW()-$G$4):F125) -> 7.12937113 | H125: -1 | I125: =G125/AVERAGE(INDIRECT($G$1&(ROW()-$J$5)):INDIRECT($G$1&(ROW()-1))) -> 1.15828686 | K125: 24.0354234 | M125: 0 | N125: - | O125: - | W125: -
A126: =grow2!I126-K126 -> -10.43042183 | B126: - | C126: =ROW() -> 126 | D126: 1949-08-22 | E126: =data!A126 -> 1950-04-28 | F126: =data!G126 -> 6.964285714 | G126: =AVERAGE(INDIRECT($F$1&ROW()-$G$4):F126) -> 7.111725136 | H126: -1 | I126: =G126/AVERAGE(INDIRECT($G$1&(ROW()-$J$5)):INDIRECT($G$1&(ROW()-1))) -> 1.147557376 | K126: 22.3548311 | M126: 0 | N126: - | O126: - | W126: -
A127: =grow2!I127-K127 -> -9.797679186 | B127: - | C127: =ROW() -> 127 | D127: 1949-08-29 | E127: =data!A127 -> 1950-05-05 | F127: =data!G127 -> 6.964285714 | G127: =AVERAGE(INDIRECT($F$1&ROW()-$G$4):F127) -> 7.094079142 | H127: -1 | I127: =G127/AVERAGE(INDIRECT($G$1&(ROW()-$J$5)):INDIRECT($G$1&(ROW()-1))) -> 1.137061469 | K127: 20.71789205 | M127: 0 | N127: - | O127: - | W127: -
A128: =grow2!I128-K128 -> -11.68625265 | B128: - | C128: =ROW() -> 128 | D128: 1949-09-05 | E128: =data!A128 -> 1950-05-12 | F128: =data!G128 -> 6.368243243 | G128: =AVERAGE(INDIRECT($F$1&ROW()-$G$4):F128) -> 7.039180493 | H128: -1 | I128: =G128/AVERAGE(INDIRECT($G$1&(ROW()-$J$5)):INDIRECT($G$1&(ROW()-1))) -> 1.120803228 | K128: 18.19614112 | M128: 0 | N128: - | O128: - | W128: -
A129: =grow2!I129-K129 -> -13.4745869 | B129: - | C129: =ROW() -> 129 | D129: 1949-09-12 | E129: =data!A129 -> 1950-05-19 | F129: =data!G129 -> 6.368243243 | G129: =AVERAGE(INDIRECT($F$1&ROW()-$G$4):F129) -> 6.984281845 | H129: -1 | I129: =G129/AVERAGE(INDIRECT($G$1&(ROW()-$J$5)):INDIRECT($G$1&(ROW()-1))) -> 1.104910498 | K129: 15.74749768 | M129: 0 | N129: - | O129: - | W129: -
A130: =grow2!I130-K130 -> -15.17055243 | B130: - | C130: =ROW() -> 130 | D130: =INT(E130-($I$6/2*7)) -> 1949-09-19 | E130: =data!A130 -> 1950-05-26 | F130: =data!G130 -> 6.368243243 | G130: =AVERAGE(INDIRECT($F$1&ROW()-$G$4):F130) -> 6.929383196 | H130: =-1 -> -1 | I130: =G130/AVERAGE(INDIRECT($G$1&(ROW()-$J$5)):INDIRECT($G$1&(ROW()-1))) -> 1.089369755 | K130: 13.36890042 | M130: 0 | N130: - | O130: - | W130: =IF(K130<-11,1,"-") -> -
A131: =grow2!I131-K131 -> -16.89008147 | B131: - | C131: =ROW() -> 131 | D131: 1949-09-26 | E131: =data!A131 -> 1950-06-02 | F131: =data!G131 -> 6.368243243 | G131: =AVERAGE(INDIRECT($F$1&ROW()-$G$4):F131) -> 6.879074969 | H131: -1 | I131: =G131/AVERAGE(INDIRECT($G$1&(ROW()-$J$5)):INDIRECT($G$1&(ROW()-1))) -> 1.074885375 | K131: 11.16616786 | M131: 0 | N131: - | O131: - | W131: -
A132: =grow2!I132-K132 -> -16.58247471 | B132: - | C132: =ROW() -> 132 | D132: 1949-10-03 | E132: =data!A132 -> 1950-06-09 | F132: =data!G132 -> 6.049069374 | G132: =AVERAGE(INDIRECT($F$1&ROW()-$G$4):F132) -> 6.808818376 | H132: -1 | I132: =G132/AVERAGE(INDIRECT($G$1&(ROW()-$J$5)):INDIRECT($G$1&(ROW()-1))) -> 1.057626113 | K132: 8.559449017 | M132: 0 | N132: - | O132: - | W132: -
A133: =grow2!I133-K133 -> -16.2936971 | B133: - | C133: =ROW() -> 133 | D133: 1949-10-10 | E133: =data!A133 -> 1950-06-16 | F133: =data!G133 -> 6.049069374 | G133: =AVERAGE(INDIRECT($F$1&ROW()-$G$4):F133) -> 6.738561782 | H133: -1 | I133: =G133/AVERAGE(INDIRECT($G$1&(ROW()-$J$5)):INDIRECT($G$1&(ROW()-1))) -> 1.040760285 | K133: 6.031223834 | M133: 0 | N133: - | O133: - | W133: -
A134: =grow2!I134-K134 -> -16.00547191 | B134: - | C134: =ROW() -> 134 | D134: 1949-10-17 | E134: =data!A134 -> 1950-06-23 | F134: =data!G134 -> 6.049069374 | G134: =AVERAGE(INDIRECT($F$1&ROW()-$G$4):F134) -> 6.668305188 | H134: -1 | I134: =G134/AVERAGE(INDIRECT($G$1&(ROW()-$J$5)):INDIRECT($G$1&(ROW()-1))) -> 1.024322866 | K134: 3.585513532 | M134: 0 | N134: - | O134: - | W134: -
A135: =grow2!I135-K135 -> -15.87334204 | B135: - | C135: =ROW() -> 135 | D135: 1949-10-24 | E135: =data!A135 -> 1950-06-30 | F135: =data!G135 -> 6.049069374 | G135: =AVERAGE(INDIRECT($F$1&ROW()-$G$4):F135) -> 6.604945878 | H135: -1 | I135: =G135/AVERAGE(INDIRECT($G$1&(ROW()-$J$5)):INDIRECT($G$1&(ROW()-1))) -> 1.009349559 | K135: 1.373497546 | M135: 0 | N135: - | O135: - | W135: -
A136: =grow2!I136-K136 -> -14.62394904 | B136: - | C136: =ROW() -> 136 | D136: 1949-10-31 | E136: =data!A136 -> 1950-07-07 | F136: =data!G136 -> 5.909090909 | G136: =AVERAGE(INDIRECT($F$1&ROW()-$G$4):F136) -> 6.532837914 | H136: -1 | I136: =G136/AVERAGE(INDIRECT($G$1&(ROW()-$J$5)):INDIRECT($G$1&(ROW()-1))) -> 0.9934263643 | K136: -0.9621277452 | M136: =$M$5+$K$5 -> 0 | N136: - | O136: - | W136: -
A137: =grow2!I137-K137 -> -13.40628471 | B137: - | C137: =ROW() -> 137 | D137: 1949-11-07 | E137: =data!A137 -> 1950-07-14 | F137: =data!G137 -> 5.909090909 | G137: =AVERAGE(INDIRECT($F$1&ROW()-$G$4):F137) -> 6.46072995 | H137: -1 | I137: =G137/AVERAGE(INDIRECT($G$1&(ROW()-$J$5)):INDIRECT($G$1&(ROW()-1))) -> 0.9778990536 | K137: -3.222952783 | M137: 0 | N137: - | O137: - | P137: =AVERAGE(K137:K253) -> -27.07254339 | W137: -
A138: =grow2!I138-K138 -> -12.22267635 | B138: - | C138: =ROW() -> 138 | D138: 1949-11-14 | E138: =data!A138 -> 1950-07-21 | F138: =data!G138 -> 5.909090909 | G138: =AVERAGE(INDIRECT($F$1&ROW()-$G$4):F138) -> 6.388621985 | H138: -1 | I138: =G138/AVERAGE(INDIRECT($G$1&(ROW()-$J$5)):INDIRECT($G$1&(ROW()-1))) -> 0.9628046929 | K138: -5.404767692 | M138: 0 | N138: - | O138: - | W138: -
A139: =grow2!I139-K139 -> -11.20297186 | B139: - | C139: =ROW() -> 139 | D139: 1949-11-21 | E139: =data!A139 -> 1950-07-28 | F139: =data!G139 -> 5.909090909 | G139: =AVERAGE(INDIRECT($F$1&ROW()-$G$4):F139) -> 6.32267231 | H139: -1 | I139: =G139/AVERAGE(INDIRECT($G$1&(ROW()-$J$5)):INDIRECT($G$1&(ROW()-1))) -> 0.9490485031 | K139: -7.379331887 | M139: 0 | N139: - | O139: - | W139: -
A140: =grow2!I140-K140 -> -9.504213706 | B140: - | C140: =ROW() -> 140 | D140: 1949-11-28 | E140: =data!A140 -> 1950-08-04 | F140: =data!G140 -> 5.909090909 | G140: =AVERAGE(INDIRECT($F$1&ROW()-$G$4):F140) -> 6.256722635 | H140: -1 | I140: =G140/AVERAGE(INDIRECT($G$1&(ROW()-$J$5)):INDIRECT($G$1&(ROW()-1))) -> 0.935668877 | K140: -9.287097156 | M140: 0 | N140: - | O140: - | W140: -
A141: =grow2!I141-K141 -> -9.353374802 | B141: - | C141: =ROW() -> 141 | D141: 1949-12-05 | E141: =data!A141 -> 1950-08-11 | F141: =data!G141 -> 5.499153976 | G141: =AVERAGE(INDIRECT($F$1&ROW()-$G$4):F141) -> 6.165151901 | H141: -1 | I141: =G141/AVERAGE(INDIRECT($G$1&(ROW()-$J$5)):INDIRECT($G$1&(ROW()-1))) -> 0.9188182254 | K141: -11.67175215 | M141: 0 | N141: - | O141: - | W141: 1
A142: =grow2!I142-K142 -> -9.214520194 | B142: - | C142: =ROW() -> 142 | D142: 1949-12-12 | E142: =data!A142 -> 1950-08-18 | F142: =data!G142 -> 5.499153976 | G142: =AVERAGE(INDIRECT($F$1&ROW()-$G$4):F142) -> 6.073581168 | H142: -1 | I142: =G142/AVERAGE(INDIRECT($G$1&(ROW()-$J$5)):INDIRECT($G$1&(ROW()-1))) -> 0.9024146666 | K142: -13.97365008 | M142: 0 | N142: - | O142: - | W142: 1
A143: =grow2!I143-K143 -> -9.087028094 | B143: - | C143: =ROW() -> 143 | D143: 1949-12-19 | E143: =data!A143 -> 1950-08-25 | F143: =data!G143 -> 5.499153976 | G143: =AVERAGE(INDIRECT($F$1&ROW()-$G$4):F143) -> 5.982010434 | H143: -1 | I143: =G143/AVERAGE(INDIRECT($G$1&(ROW()-$J$5)):INDIRECT($G$1&(ROW()-1))) -> 0.8864360587 | K143: -16.19725231 | M143: 0 | N143: - | O143: - | W143: 1
A144: =grow2!I144-K144 -> -9.728413671 | B144: - | C144: =ROW() -> 144 | D144: 1949-12-26 | E144: =data!A144 -> 1950-09-01 | F144: =data!G144 -> 5.499153976 | G144: =AVERAGE(INDIRECT($F$1&ROW()-$G$4):F144) -> 5.927692355 | H144: -1 | I144: =G144/AVERAGE(INDIRECT($G$1&(ROW()-$J$5)):INDIRECT($G$1&(ROW()-1))) -> 0.8763689972 | K144: -17.58866064 | M144: 0 | N144: - | O144: - | W144: 1
A145: =grow2!I145-K145 -> -10.44870615 | B145: - | C145: =ROW() -> 145 | D145: 1950-01-02 | E145: =data!A145 -> 1950-09-08 | F145: =data!G145 -> 4.915966387 | G145: =AVERAGE(INDIRECT($F$1&ROW()-$G$4):F145) -> 5.836925051 | H145: -1 | I145: =G145/AVERAGE(INDIRECT($G$1&(ROW()-$J$5)):INDIRECT($G$1&(ROW()-1))) -> 0.8611971004 | K145: -19.67158236 | M145: 0 | N145: - | O145: - | W145: 1
A146: =grow2!I146-K146 -> -11.15569621 | B146: - | C146: =ROW() -> 146 | D146: 1950-01-09 | E146: =data!A146 -> 1950-09-15 | F146: =data!G146 -> 4.915966387 | G146: =AVERAGE(INDIRECT($F$1&ROW()-$G$4):F146) -> 5.746157748 | H146: -1 | I146: =G146/AVERAGE(INDIRECT($G$1&(ROW()-$J$5)):INDIRECT($G$1&(ROW()-1))) -> 0.8464107164 | K146: -21.68519713 | M146: 0 | N146: - | O146: - | W146: 1
A147: =grow2!I147-K147 -> -11.85083225 | B147: - | C147: =ROW() -> 147 | D147: 1950-01-16 | E147: =data!A147 -> 1950-09-22 | F147: =data!G147 -> 4.915966387 | G147: =AVERAGE(INDIRECT($F$1&ROW()-$G$4):F147) -> 5.655390444 | H147: -1 | I147: =G147/AVERAGE(INDIRECT($G$1&(ROW()-$J$5)):INDIRECT($G$1&(ROW()-1))) -> 0.8319909794 | K147: -23.6331635 | M147: 0 | N147: - | O147: - | W147: 1
A148: =grow2!I148-K148 -> -12.92719334 | B148: - | C148: =ROW() -> 148 | D148: 1950-01-23 | E148: =data!A148 -> 1950-09-29 | F148: =data!G148 -> 4.915966387 | G148: =AVERAGE(INDIRECT($F$1&ROW()-$G$4):F148) -> 5.584571507 | H148: -1 | I148: =G148/AVERAGE(INDIRECT($G$1&(ROW()-$J$5)):INDIRECT($G$1&(ROW()-1))) -> 0.8208520983 | K148: -25.12720086 | M148: 0 | N148: - | O148: - | W148: 1
A149: =grow2!I149-K149 -> -11.59103751 | B149: - | C149: =ROW() -> 149 | D149: 1950-01-30 | E149: =data!A149 -> 1950-10-06 | F149: =data!G149 -> 4.831081081 | G149: =AVERAGE(INDIRECT($F$1&ROW()-$G$4):F149) -> 5.508447239 | H149: -1 | I149: =G149/AVERAGE(INDIRECT($G$1&(ROW()-$J$5)):INDIRECT($G$1&(ROW()-1))) -> 0.8092287069 | K149: -26.67618595 | M149: 0 | N149: - | O149: - | W149: 1
A150: =grow2!I150-K150 -> -10.29539242 | B150: =IF(AND(A150<0,A149>0,K150>$B$4),1,"-") -> - | C150: =ROW() -> 150 | D150: 1950-02-06 | E150: =data!A150 -> 1950-10-13 | F150: =data!G150 -> 4.831081081 | G150: =AVERAGE(INDIRECT($F$1&ROW()-$G$4):F150) -> 5.432322971 | H150: -1 | I150: =G150/AVERAGE(INDIRECT($G$1&(ROW()-$J$5)):INDIRECT($G$1&(ROW()-1))) -> 0.7978599518 | K150: =IF(ISNUMBER(I150),XIRR(H150:I150,D150:E150,0.1)*100+$K$5,"-") -> -28.18124317 | M150: 0 | N150: - | O150: - | W150: 1
A151: =grow2!I151-K151 -> -9.009110928 | B151: - | C151: =ROW() -> 151 | D151: 1950-02-13 | E151: =data!A151 -> 1950-10-20 | F151: =data!G151 -> 4.831081081 | G151: =AVERAGE(INDIRECT($F$1&ROW()-$G$4):F151) -> 5.356198703 | H151: -1 | I151: =G151/AVERAGE(INDIRECT($G$1&(ROW()-$J$5)):INDIRECT($G$1&(ROW()-1))) -> 0.7868241959 | K151: -29.63269241 | M151: 0 | N151: - | O151: - | W151: 1
A152: =grow2!I152-K152 -> -7.897233367 | B152: - | C152: =ROW() -> 152 | D152: 1950-02-20 | E152: =data!A152 -> 1950-10-27 | F152: =data!G152 -> 4.831081081 | G152: =AVERAGE(INDIRECT($F$1&ROW()-$G$4):F152) -> 5.288823088 | H152: -1 | I152: =G152/AVERAGE(INDIRECT($G$1&(ROW()-$J$5)):INDIRECT($G$1&(ROW()-1))) -> 0.7773937673 | K152: -30.86551748 | M152: 0 | N152: - | O152: - | W152: 1
A153: =grow2!I153-K153 -> -6.390230209 | B153: - | C153: =ROW() -> 153 | D153: 1950-02-27 | E153: =data!A153 -> 1950-11-03 | F153: =data!G153 -> 4.831081081 | G153: =AVERAGE(INDIRECT($F$1&ROW()-$G$4):F153) -> 5.221447474 | H153: -1 | I153: =G153/AVERAGE(INDIRECT($G$1&(ROW()-$J$5)):INDIRECT($G$1&(ROW()-1))) -> 0.7682583707 | K153: -32.05314867 | M153: 0 | N153: - | O153: - | W153: 1
A154: =grow2!I154-K154 -> -5.698941797 | B154: - | C154: =ROW() -> 154 | D154: 1950-03-06 | E154: =data!A154 -> 1950-11-10 | F154: =data!G154 -> 4.595959596 | G154: =AVERAGE(INDIRECT($F$1&ROW()-$G$4):F154) -> 5.139376767 | H154: -1 | I154: =G154/AVERAGE(INDIRECT($G$1&(ROW()-$J$5)):INDIRECT($G$1&(ROW()-1))) -> 0.7572012636 | K154: -33.48182864 | M154: 0 | N154: - | O154: =IF(C154=$P$4,1,"-") -> - | W154: 1
A155: =grow2!I155-K155 -> -5.036029816 | B155: - | C155: =ROW() -> 155 | D155: 1950-03-13 | E155: =data!A155 -> 1950-11-17 | F155: =data!G155 -> 4.595959596 | G155: =AVERAGE(INDIRECT($F$1&ROW()-$G$4):F155) -> 5.05730606 | H155: -1 | I155: =G155/AVERAGE(INDIRECT($G$1&(ROW()-$J$5)):INDIRECT($G$1&(ROW()-1))) -> 0.7464105061 | K155: -34.86675508 | M155: 0 | N155: - | O155: - | W155: 1
A156: =grow2!I156-K156 -> -4.399844706 | B156: - | C156: =ROW() -> 156 | D156: 1950-03-20 | E156: =data!A156 -> 1950-11-24 | F156: =data!G156 -> 4.595959596 | G156: =AVERAGE(INDIRECT($F$1&ROW()-$G$4):F156) -> 4.975235353 | H156: -1 | I156: =G156/AVERAGE(INDIRECT($G$1&(ROW()-$J$5)):INDIRECT($G$1&(ROW()-1))) -> 0.7358746188 | K156: -36.21000133 | M156: 0 | N156: - | O156: - | W156: 1
A157: =grow2!I157-K157 -> -4.269025326 | B157: - | C157: =ROW() -> 157 | D157: 1950-03-27 | E157: =data!A157 -> 1950-12-01 | F157: =data!G157 -> 4.595959596 | G157: =AVERAGE(INDIRECT($F$1&ROW()-$G$4):F157) -> 4.918785704 | H157: -1 | I157: =G157/AVERAGE(INDIRECT($G$1&(ROW()-$J$5)):INDIRECT($G$1&(ROW()-1))) -> 0.7293818592 | K157: -37.03333624 | M157: 0 | N157: - | O157: - | W157: 1
A158: =grow2!I158-K158 -> -3.018039018 | B158: - | C158: =ROW() -> 158 | D158: 1950-04-03 | E158: =data!A158 -> 1950-12-08 | F158: =data!G158 -> 4.603709949 | G158: =AVERAGE(INDIRECT($F$1&ROW()-$G$4):F158) -> 4.862820452 | H158: -1 | I158: =G158/AVERAGE(INDIRECT($G$1&(ROW()-$J$5)):INDIRECT($G$1&(ROW()-1))) -> 0.7231450613 | K158: -37.82100581 | M158: 0 | N158: - | O158: - | W158: 1
A159: =grow2!I159-K159 -> -1.768872589 | B159: - | C159: =ROW() -> 159 | D159: 1950-04-10 | E159: =data!A159 -> 1950-12-15 | F159: =data!G159 -> 4.603709949 | G159: =AVERAGE(INDIRECT($F$1&ROW()-$G$4):F159) -> 4.806855201 | H159: -1 | I159: =G159/AVERAGE(INDIRECT($G$1&(ROW()-$J$5)):INDIRECT($G$1&(ROW()-1))) -> 0.717137147 | K159: -38.57678123 | M159: 0 | N159: - | O159: - | W159: 1
A160: =grow2!I160-K160 -> -0.5195479095 | B160: - | C160: =ROW() -> 160 | D160: 1950-04-17 | E160: =data!A160 -> 1950-12-22 | F160: =data!G160 -> 4.603709949 | G160: =AVERAGE(INDIRECT($F$1&ROW()-$G$4):F160) -> 4.750889949 | H160: -1 | I160: =G160/AVERAGE(INDIRECT($G$1&(ROW()-$J$5)):INDIRECT($G$1&(ROW()-1))) -> 0.7113536697 | K160: -39.30154227 | M160: 0 | N160: - | O160: - | W160: 1
A161: =grow2!I161-K161 -> 0.04783853889 | B161: - | C161: =ROW() -> 161 | D161: 1950-04-24 | E161: =data!A161 -> 1950-12-29 | F161: =data!G161 -> 4.603709949 | G161: =AVERAGE(INDIRECT($F$1&ROW()-$G$4):F161) -> 4.731373922 | H161: -1 | I161: =G161/AVERAGE(INDIRECT($G$1&(ROW()-$J$5)):INDIRECT($G$1&(ROW()-1))) -> 0.7112700544 | K161: -39.31200154 | M161: 0 | N161: =IF(B161=1,C161-C$100,"-") -> - | O161: - | W161: 1
A162: =grow2!I162-K162 -> 1.024645418 | B162: - | C162: =ROW() -> 162 | D162: 1950-05-01 | E162: =data!A162 -> 1951-01-05 | F162: =data!G162 -> 4.721283784 | G162: =AVERAGE(INDIRECT($F$1&ROW()-$G$4):F162) -> 4.719206259 | H162: -1 | I162: =G162/AVERAGE(INDIRECT($G$1&(ROW()-$J$5)):INDIRECT($G$1&(ROW()-1))) -> 0.7124722634 | K162: -39.16157924 | M162: 0 | N162: - | O162: - | W162: 1
A163: =grow2!I163-K163 -> 1.993783861 | B163: - | C163: =ROW() -> 163 | D163: 1950-05-08 | E163: =data!A163 -> 1951-01-12 | F163: =data!G163 -> 4.721283784 | G163: =AVERAGE(INDIRECT($F$1&ROW()-$G$4):F163) -> 4.707038596 | H163: -1 | I163: =G163/AVERAGE(INDIRECT($G$1&(ROW()-$J$5)):INDIRECT($G$1&(ROW()-1))) -> 0.7138519481 | K163: -38.98880474 | M163: 0 | N163: - | O163: - | W163: 1
A164: =grow2!I164-K164 -> 2.95773223 | B164: - | C164: =ROW() -> 164 | D164: 1950-05-15 | E164: =data!A164 -> 1951-01-19 | F164: =data!G164 -> 4.721283784 | G164: =AVERAGE(INDIRECT($F$1&ROW()-$G$4):F164) -> 4.694870934 | H164: -1 | I164: =G164/AVERAGE(INDIRECT($G$1&(ROW()-$J$5)):INDIRECT($G$1&(ROW()-1))) -> 0.7154195442 | K164: -38.79231013 | M164: 0 | N164: - | O164: - | W164: 1
A165: =grow2!I165-K165 -> 3.814180344 | B165: - | C165: =ROW() -> 165 | D165: 1950-05-22 | E165: =data!A165 -> 1951-01-26 | F165: =data!G165 -> 4.721283784 | G165: =AVERAGE(INDIRECT($F$1&ROW()-$G$4):F165) -> 4.688008603 | H165: -1 | I165: =G165/AVERAGE(INDIRECT($G$1&(ROW()-$J$5)):INDIRECT($G$1&(ROW()-1))) -> 0.717991464 | K165: -38.46949019 | M165: 0 | N165: - | O165: - | W165: 1
A166: =grow2!I166-K166 -> 4.061866254 | B166: - | C166: =ROW() -> 166 | D166: 1950-05-29 | E166: =data!A166 -> 1951-02-02 | F166: =data!G166 -> 4.721283784 | G166: =AVERAGE(INDIRECT($F$1&ROW()-$G$4):F166) -> 4.681146271 | H166: -1 | I166: =G166/AVERAGE(INDIRECT($G$1&(ROW()-$J$5)):INDIRECT($G$1&(ROW()-1))) -> 0.7207596718 | K166: -38.12143065 | M166: 0 | N166: - | O166: - | W166: 1
A167: =grow2!I167-K167 -> 1.761080772 | B167: - | C167: =ROW() -> 167 | D167: 1950-06-05 | E167: =data!A167 -> 1951-02-09 | F167: =data!G167 -> 4.069373942 | G167: =AVERAGE(INDIRECT($F$1&ROW()-$G$4):F167) -> 4.633539575 | H167: -1 | I167: =G167/AVERAGE(INDIRECT($G$1&(ROW()-$J$5)):INDIRECT($G$1&(ROW()-1))) -> 0.7173353255 | K167: -38.55189838 | M167: 0 | N167: - | O167: - | W167: 1
A168: =grow2!I168-K168 -> -0.5262427032 | B168: - | C168: =ROW() -> 168 | D168: 1950-06-12 | E168: =data!A168 -> 1951-02-16 | F168: =data!G168 -> 4.069373942 | G168: =AVERAGE(INDIRECT($F$1&ROW()-$G$4):F168) -> 4.585932879 | H168: -1 | I168: =G168/AVERAGE(INDIRECT($G$1&(ROW()-$J$5)):INDIRECT($G$1&(ROW()-1))) -> 0.7140023128 | K168: -38.96996491 | M168: 0 | N168: - | O168: - | W168: 1
A169: =grow2!I169-K169 -> -2.801197171 | B169: - | C169: =ROW() -> 169 | D169: 1950-06-19 | E169: =data!A169 -> 1951-02-23 | F169: =data!G169 -> 4.069373942 | G169: =AVERAGE(INDIRECT($F$1&ROW()-$G$4):F169) -> 4.538326183 | H169: -1 | I169: =G169/AVERAGE(INDIRECT($G$1&(ROW()-$J$5)):INDIRECT($G$1&(ROW()-1))) -> 0.7107603831 | K169: -39.37573619 | M169: 0 | N169: - | O169: - | W169: 1
A170: =grow2!I170-K170 -> -5.353931934 | B170: - | C170: =ROW() -> 170 | D170: 1950-06-26 | E170: =data!A170 -> 1951-03-02 | F170: =data!G170 -> 4.069373942 | G170: =AVERAGE(INDIRECT($F$1&ROW()-$G$4):F170) -> 4.50541458 | H170: -1 | I170: =G170/AVERAGE(INDIRECT($G$1&(ROW()-$J$5)):INDIRECT($G$1&(ROW()-1))) -> 0.7099249075 | K170: -39.480168 | M170: 0 | N170: - | O170: - | W170: 1
A171: =grow2!I171-K171 -> -5.892070234 | B171: - | C171: =ROW() -> 171 | D171: 1950-07-03 | E171: =data!A171 -> 1951-03-09 | F171: =data!G171 -> 3.739424704 | G171: =AVERAGE(INDIRECT($F$1&ROW()-$G$4):F171) -> 4.451881149 | H171: -1 | I171: =G171/AVERAGE(INDIRECT($G$1&(ROW()-$J$5)):INDIRECT($G$1&(ROW()-1))) -> 0.705900482 | K171: -39.98240493 | M171: 0 | N171: - | O171: - | W171: 1
A172: =grow2!I172-K172 -> -6.434656978 | B172: - | C172: =ROW() -> 172 | D172: 1950-07-10 | E172: =data!A172 -> 1951-03-16 | F172: =data!G172 -> 3.739424704 | G172: =AVERAGE(INDIRECT($F$1&ROW()-$G$4):F172) -> 4.398347718 | H172: -1 | I172: =G172/AVERAGE(INDIRECT($G$1&(ROW()-$J$5)):INDIRECT($G$1&(ROW()-1))) -> 0.7019489618 | K172: -40.47424696 | M172: 0 | N172: - | O172: - | W172: 1
A173: =grow2!I173-K173 -> -6.93690598 | B173: - | C173: =ROW() -> 173 | D173: 1950-07-17 | E173: =data!A173 -> 1951-03-23 | F173: =data!G173 -> 3.739424704 | G173: =AVERAGE(INDIRECT($F$1&ROW()-$G$4):F173) -> 4.344814287 | H173: -1 | I173: =G173/AVERAGE(INDIRECT($G$1&(ROW()-$J$5)):INDIRECT($G$1&(ROW()-1))) -> 0.6982055789 | K173: -40.93899332 | M173: 0 | N173: - | O173: - | W173: 1
A174: =grow2!I174-K174 -> -7.391282916 | B174: - | C174: =ROW() -> 174 | D174: 1950-07-24 | E174: =data!A174 -> 1951-03-30 | F174: =data!G174 -> 3.739424704 | G174: =AVERAGE(INDIRECT($F$1&ROW()-$G$4):F174) -> 4.29079646 | H174: -1 | I174: =G174/AVERAGE(INDIRECT($G$1&(ROW()-$J$5)):INDIRECT($G$1&(ROW()-1))) -> 0.6945920615 | K174: -41.38651855 | M174: 0 | N174: - | O174: - | W174: 1
A175: =grow2!I175-K175 -> -6.296370327 | B175: - | C175: =ROW() -> 175 | D175: 1950-07-31 | E175: =data!A175 -> 1951-04-06 | F175: =data!G175 -> 3.695652174 | G175: =AVERAGE(INDIRECT($F$1&ROW()-$G$4):F175) -> 4.234042849 | H175: -1 | I175: =G175/AVERAGE(INDIRECT($G$1&(ROW()-$J$5)):INDIRECT($G$1&(ROW()-1))) -> 0.6906886979 | K175: -41.86872207 | M175: 0 | N175: - | O175: - | W175: 1
A176: =grow2!I176-K176 -> -5.138825476 | B176: - | C176: =ROW() -> 176 | D176: 1950-08-07 | E176: =data!A176 -> 1951-04-13 | F176: =data!G176 -> 3.695652174 | G176: =AVERAGE(INDIRECT($F$1&ROW()-$G$4):F176) -> 4.177289238 | H176: -1 | I176: =G176/AVERAGE(INDIRECT($G$1&(ROW()-$J$5)):INDIRECT($G$1&(ROW()-1))) -> 0.686939445 | K176: -42.33069368 | M176: 0 | N176: - | O176: - | W176: 1
A177: =grow2!I177-K177 -> -4.037932903 | B177: - | C177: =ROW() -> 177 | D177: 1950-08-14 | E177: =data!A177 -> 1951-04-20 | F177: =data!G177 -> 3.695652174 | G177: =AVERAGE(INDIRECT($F$1&ROW()-$G$4):F177) -> 4.120535627 | H177: -1 | I177: =G177/AVERAGE(INDIRECT($G$1&(ROW()-$J$5)):INDIRECT($G$1&(ROW()-1))) -> 0.6831814156 | K177: -42.79257007 | M177: 0 | N177: - | O177: - | W177: 1
A178: =grow2!I178-K178 -> -2.847866267 | B178: - | C178: =ROW() -> 178 | D178: 1950-08-21 | E178: =data!A178 -> 1951-04-27 | F178: =data!G178 -> 3.695652174 | G178: =AVERAGE(INDIRECT($F$1&ROW()-$G$4):F178) -> 4.056433651 | H178: -1 | I178: =G178/AVERAGE(INDIRECT($G$1&(ROW()-$J$5)):INDIRECT($G$1&(ROW()-1))) -> 0.6781849656 | K178: -43.40482183 | M178: 0 | N178: - | O178: - | W178: 1
A179: =grow2!I179-K179 -> -1.486694813 | B179: - | C179: =ROW() -> 179 | D179: 1950-08-28 | E179: =data!A179 -> 1951-05-04 | F179: =data!G179 -> 3.695652174 | G179: =AVERAGE(INDIRECT($F$1&ROW()-$G$4):F179) -> 3.992331675 | H179: -1 | I179: =G179/AVERAGE(INDIRECT($G$1&(ROW()-$J$5)):INDIRECT($G$1&(ROW()-1))) -> 0.673168493 | K179: -44.01741691 | M179: 0 | N179: - | O179: - | W179: 1
A180: =grow2!I180-K180 -> -1.38007164 | B180: - | C180: =ROW() -> 180 | D180: 1950-09-04 | E180: =data!A180 -> 1951-05-11 | F180: =data!G180 -> 3.409475465 | G180: =AVERAGE(INDIRECT($F$1&ROW()-$G$4):F180) -> 3.910343655 | H180: -1 | I180: =G180/AVERAGE(INDIRECT($G$1&(ROW()-$J$5)):INDIRECT($G$1&(ROW()-1))) -> 0.6650805891 | K180: -45.00061013 | M180: 0 | N180: - | O180: - | W180: 1
A181: =grow2!I181-K181 -> -1.258963197 | B181: - | C181: =ROW() -> 181 | D181: 1950-09-11 | E181: =data!A181 -> 1951-05-18 | F181: =data!G181 -> 3.409475465 | G181: =AVERAGE(INDIRECT($F$1&ROW()-$G$4):F181) -> 3.828355636 | H181: -1 | I181: =G181/AVERAGE(INDIRECT($G$1&(ROW()-$J$5)):INDIRECT($G$1&(ROW()-1))) -> 0.6569606363 | K181: -45.98211221 | M181: 0 | N181: - | O181: - | W181: 1
A182: =grow2!I182-K182 -> -1.12360552 | B182: - | C182: =ROW() -> 182 | D182: 1950-09-18 | E182: =data!A182 -> 1951-05-25 | F182: =data!G182 -> 3.409475465 | G182: =AVERAGE(INDIRECT($F$1&ROW()-$G$4):F182) -> 3.746367616 | H182: -1 | I182: =G182/AVERAGE(INDIRECT($G$1&(ROW()-$J$5)):INDIRECT($G$1&(ROW()-1))) -> 0.6488036524 | K182: -46.96241535 | M182: 0 | N182: - | O182: - | W182: 1
A183: =grow2!I183-K183 -> -1.824893206 | B183: - | C183: =ROW() -> 183 | D183: 1950-09-25 | E183: =data!A183 -> 1951-06-01 | F183: =data!G183 -> 3.409475465 | G183: =AVERAGE(INDIRECT($F$1&ROW()-$G$4):F183) -> 3.705123961 | H183: -1 | I183: =G183/AVERAGE(INDIRECT($G$1&(ROW()-$J$5)):INDIRECT($G$1&(ROW()-1))) -> 0.6477273374 | K183: -47.09134109 | M183: 0 | N183: - | O183: - | W183: 1
A184: =grow2!I184-K184 -> -1.467757076 | B184: - | C184: =ROW() -> 184 | D184: 1950-10-02 | E184: =data!A184 -> 1951-06-08 | F184: =data!G184 -> 3.282828283 | G184: =AVERAGE(INDIRECT($F$1&ROW()-$G$4):F184) -> 3.655964857 | H184: -1 | I184: =G184/AVERAGE(INDIRECT($G$1&(ROW()-$J$5)):INDIRECT($G$1&(ROW()-1))) -> 0.6452993512 | K184: -47.38180555 | M184: 0 | N184: - | O184: - | W184: 1
A185: =grow2!I185-K185 -> -1.1070925 | B185: - | C185: =ROW() -> 185 | D185: 1950-10-09 | E185: =data!A185 -> 1951-06-15 | F185: =data!G185 -> 3.282828283 | G185: =AVERAGE(INDIRECT($F$1&ROW()-$G$4):F185) -> 3.606805753 | H185: -1 | I185: =G185/AVERAGE(INDIRECT($G$1&(ROW()-$J$5)):INDIRECT($G$1&(ROW()-1))) -> 0.6429032743 | K185: -47.66795568 | M185: 0 | N185: - | O185: - | W185: 1
A186: =grow2!I186-K186 -> -0.745485127 | B186: - | C186: =ROW() -> 186 | D186: 1950-10-16 | E186: =data!A186 -> 1951-06-22 | F186: =data!G186 -> 3.282828283 | G186: =AVERAGE(INDIRECT($F$1&ROW()-$G$4):F186) -> 3.55764665 | H186: -1 | I186: =G186/AVERAGE(INDIRECT($G$1&(ROW()-$J$5)):INDIRECT($G$1&(ROW()-1))) -> 0.6405316032 | K186: -47.95070209 | M186: 0 | N186: - | O186: - | W186: 1
A187: =grow2!I187-K187 -> -0.8294168115 | B187: - | C187: =ROW() -> 187 | D187: 1950-10-23 | E187: =data!A187 -> 1951-06-29 | F187: =data!G187 -> 3.282828283 | G187: =AVERAGE(INDIRECT($F$1&ROW()-$G$4):F187) -> 3.529109373 | H187: -1 | I187: =G187/AVERAGE(INDIRECT($G$1&(ROW()-$J$5)):INDIRECT($G$1&(ROW()-1))) -> 0.6419353275 | K187: -47.78341137 | M187: 0 | N187: - | O187: - | W187: 1
A188: =grow2!I188-K188 -> 0.9065182507 | B188: - | C188: =ROW() -> 188 | D188: 1950-10-30 | E188: =data!A188 -> 1951-07-06 | F188: =data!G188 -> 3.525423729 | G188: =AVERAGE(INDIRECT($F$1&ROW()-$G$4):F188) -> 3.515734312 | H188: -1 | I188: =G188/AVERAGE(INDIRECT($G$1&(ROW()-$J$5)):INDIRECT($G$1&(ROW()-1))) -> 0.6461942404 | K188: -47.27480821 | M188: 0 | N188: - | O188: - | W188: 1
A189: =grow2!I189-K189 -> 2.70850271 | B189: - | C189: =ROW() -> 189 | D189: 1950-11-06 | E189: =data!A189 -> 1951-07-13 | F189: =data!G189 -> 3.525423729 | G189: =AVERAGE(INDIRECT($F$1&ROW()-$G$4):F189) -> 3.502359251 | H189: -1 | I189: =G189/AVERAGE(INDIRECT($G$1&(ROW()-$J$5)):INDIRECT($G$1&(ROW()-1))) -> 0.6504107031 | K189: -46.76973216 | M189: 0 | N189: - | O189: - | W189: 1
A190: =grow2!I190-K190 -> 4.576564729 | B190: - | C190: =ROW() -> 190 | D190: 1950-11-13 | E190: =data!A190 -> 1951-07-20 | F190: =data!G190 -> 3.525423729 | G190: =AVERAGE(INDIRECT($F$1&ROW()-$G$4):F190) -> 3.488984191 | H190: -1 | I190: =G190/AVERAGE(INDIRECT($G$1&(ROW()-$J$5)):INDIRECT($G$1&(ROW()-1))) -> 0.6545686779 | K190: -46.27016805 | M190: 0 | N190: - | O190: - | W190: 1
A191: =grow2!I191-K191 -> 6.448595077 | B191: - | C191: =ROW() -> 191 | D191: 1950-11-20 | E191: =data!A191 -> 1951-07-27 | F191: =data!G191 -> 3.525423729 | G191: =AVERAGE(INDIRECT($F$1&ROW()-$G$4):F191) -> 3.478344913 | H191: -1 | I191: =G191/AVERAGE(INDIRECT($G$1&(ROW()-$J$5)):INDIRECT($G$1&(ROW()-1))) -> 0.6591819806 | K191: -45.7141649 | M191: 0 | N191: - | O191: - | W191: 1
A192: =grow2!I192-K192 -> 6.825328767 | B192: - | C192: =ROW() -> 192 | D192: 1950-11-27 | E192: =data!A192 -> 1951-08-03 | F192: =data!G192 -> 3.525423729 | G192: =AVERAGE(INDIRECT($F$1&ROW()-$G$4):F192) -> 3.467705635 | H192: -1 | I192: =G192/AVERAGE(INDIRECT($G$1&(ROW()-$J$5)):INDIRECT($G$1&(ROW()-1))) -> 0.6637328088 | K192: -45.1639124 | M192: 0 | N192: - | O192: - | W192: 1
A193: =grow2!I193-K193 -> 6.533213407 | B193: - | C193: =ROW() -> 193 | D193: 1950-12-04 | E193: =data!A193 -> 1951-08-10 | F193: =data!G193 -> 3.392255892 | G193: =AVERAGE(INDIRECT($F$1&ROW()-$G$4):F193) -> 3.448743367 | H193: -1 | I193: =G193/AVERAGE(INDIRECT($G$1&(ROW()-$J$5)):INDIRECT($G$1&(ROW()-1))) -> 0.6667928111 | K193: -44.79292937 | M193: 0 | N193: - | O193: - | W193: 1
A194: =grow2!I194-K194 -> 6.232956201 | B194: - | C194: =ROW() -> 194 | D194: =INT(E194-($I$6/2*7)) -> 1950-12-11 | E194: =data!A194 -> 1951-08-17 | F194: =data!G194 -> 3.392255892 | G194: =AVERAGE(INDIRECT($F$1&ROW()-$G$4):F194) -> 3.4297811 | H194: =-1 -> -1 | I194: =G194/AVERAGE(INDIRECT($G$1&(ROW()-$J$5)):INDIRECT($G$1&(ROW()-1))) -> 0.6699463496 | K194: -44.40977581 | M194: 0 | N194: - | O194: - | W194: =IF(K194<-11,1,"-") -> 1
A195: =grow2!I195-K195 -> 5.924211144 | B195: - | C195: =ROW() -> 195 | D195: 1950-12-18 | E195: =data!A195 -> 1951-08-24 | F195: =data!G195 -> 3.392255892 | G195: =AVERAGE(INDIRECT($F$1&ROW()-$G$4):F195) -> 3.410818832 | H195: -1 | I195: =G195/AVERAGE(INDIRECT($G$1&(ROW()-$J$5)):INDIRECT($G$1&(ROW()-1))) -> 0.673196781 | K195: -44.01396893 | M195: 0 | N195: - | O195: - | W195: 1
A196: =grow2!I196-K196 -> 5.170160383 | B196: - | C196: =ROW() -> 196 | D196: 1950-12-25 | E196: =data!A196 -> 1951-08-31 | F196: =data!G196 -> 3.392255892 | G196: =AVERAGE(INDIRECT($F$1&ROW()-$G$4):F196) -> 3.409742609 | H196: -1 | I196: =G196/AVERAGE(INDIRECT($G$1&(ROW()-$J$5)):INDIRECT($G$1&(ROW()-1))) -> 0.6801152227 | K196: -43.16854201 | M196: 0 | N196: - | O196: - | W196: 1
A197: =grow2!I197-K197 -> 5.366877615 | B197: - | C197: =ROW() -> 197 | D197: 1951-01-01 | E197: =data!A197 -> 1951-09-07 | F197: =data!G197 -> 3.403716216 | G197: =AVERAGE(INDIRECT($F$1&ROW()-$G$4):F197) -> 3.409382656 | H197: -1 | I197: =G197/AVERAGE(INDIRECT($G$1&(ROW()-$J$5)):INDIRECT($G$1&(ROW()-1))) -> 0.6872934494 | K197: -42.28712521 | M197: 0 | N197: - | O197: - | W197: 1
A198: =grow2!I198-K198 -> 5.573661178 | B198: - | C198: =ROW() -> 198 | D198: 1951-01-08 | E198: =data!A198 -> 1951-09-14 | F198: =data!G198 -> 3.403716216 | G198: =AVERAGE(INDIRECT($F$1&ROW()-$G$4):F198) -> 3.409022703 | H198: -1 | I198: =G198/AVERAGE(INDIRECT($G$1&(ROW()-$J$5)):INDIRECT($G$1&(ROW()-1))) -> 0.6945914311 | K198: -41.38659634 | M198: 0 | N198: - | O198: - | W198: 1
A199: =grow2!I199-K199 -> 5.755838156 | B199: - | C199: =ROW() -> 199 | D199: 1951-01-15 | E199: =data!A199 -> 1951-09-21 | F199: =data!G199 -> 3.403716216 | G199: =AVERAGE(INDIRECT($F$1&ROW()-$G$4):F199) -> 3.40866275 | H199: -1 | I199: =G199/AVERAGE(INDIRECT($G$1&(ROW()-$J$5)):INDIRECT($G$1&(ROW()-1))) -> 0.7019350156 | K199: -40.47597967 | M199: 0 | N199: - | O199: - | W199: 1
A200: =grow2!I200-K200 -> 5.705094784 | B200: - | C200: =ROW() -> 200 | D200: 1951-01-22 | E200: =data!A200 -> 1951-09-28 | F200: =data!G200 -> 3.403716216 | G200: =AVERAGE(INDIRECT($F$1&ROW()-$G$4):F200) -> 3.416218245 | H200: -1 | I200: =G200/AVERAGE(INDIRECT($G$1&(ROW()-$J$5)):INDIRECT($G$1&(ROW()-1))) -> 0.710969438 | K200: -39.34959672 | M200: =$M$5+$K$5 -> 0 | N200: - | O200: - | W200: 1
... 3379 more rows

Sheet grow2
B1: =IF(CELL("COL",B1:B1)>26,CHAR(64+INT(CELL("COL",B1:B1)/26.1)),"")&CHAR(MOD(CELL("COL",B1:B1)-1,26)+65) -> B | C1: C | D1: D | E1: E | F1: F | G1: G | I1: =IF(CELL("COL",I1:I1)>26,CHAR(64+INT(CELL("COL",I1:I1)/26.1)),"")&CHAR(MOD(CELL("COL",I1:I1)-1,26)+65) -> I
C2: real-time | D2: UER | E2: MA1 | G2: MA1/MA2 | I2: UERg | P2: ECRI Recession Calls
E3: MA1 short MA of UER= | F3: =E4+1 -> 4 | I3: as calculated
E4: 3 | I4: incr. values by
E5: 3 | G5: MA2 long MA of MA1= | H5: =G6-1 -> 70 | I5: 0 | K5: 0
G6: 71
G7: must be odd nr.
G8: UERg: 1yr= 1*52+1
C11: =data!A11 -> 1948-02-13 | D11: =data!G11 -> 3.771331058 | E11: =AVERAGE(INDIRECT($D$1&ROW()-$E$4):D11) -> 3.771331058 | K11: =$K$5+$I$5 -> 0
C12: =data!A12 -> 1948-02-20 | D12: =data!G12 -> 3.771331058 | E12: =AVERAGE(INDIRECT($D$1&ROW()-$E$4):D12) -> 3.771331058 | K12: 0
C13: =data!A13 -> 1948-02-27 | D13: =data!G13 -> 3.771331058 | E13: =AVERAGE(INDIRECT($D$1&ROW()-$E$4):D13) -> 3.771331058 | K13: 0
C14: =data!A14 -> 1948-03-05 | D14: =data!G14 -> 3.771331058 | E14: =AVERAGE(INDIRECT($D$1&ROW()-$E$4):D14) -> 3.771331058 | K14: 0
C15: =data!A15 -> 1948-03-12 | D15: =data!G15 -> 4.193548387 | E15: =AVERAGE(INDIRECT($D$1&ROW()-$E$4):D15) -> 3.87688539 | K15: 0
C16: =data!A16 -> 1948-03-19 | D16: =data!G16 -> 4.193548387 | E16: =AVERAGE(INDIRECT($D$1&ROW()-$E$4):D16) -> 3.982439723 | K16: 0
C17: =data!A17 -> 1948-03-26 | D17: =data!G17 -> 4.193548387 | E17: =AVERAGE(INDIRECT($D$1&ROW()-$E$4):D17) -> 4.087994055 | K17: 0
C18: =data!A18 -> 1948-04-02 | D18: =data!G18 -> 4.193548387 | E18: =AVERAGE(INDIRECT($D$1&ROW()-$E$4):D18) -> 4.193548387 | K18: 0
C19: =data!A19 -> 1948-04-09 | D19: =data!G19 -> 4.444444444 | E19: =AVERAGE(INDIRECT($D$1&ROW()-$E$4):D19) -> 4.256272401 | K19: 0
C20: =data!A20 -> 1948-04-16 | D20: =data!G20 -> 4.444444444 | E20: =AVERAGE(INDIRECT($D$1&ROW()-$E$4):D20) -> 4.318996416 | K20: 0
C21: =data!A21 -> 1948-04-23 | D21: =data!G21 -> 4.444444444 | E21: =AVERAGE(INDIRECT($D$1&ROW()-$E$4):D21) -> 4.38172043 | K21: 0
C22: =data!A22 -> 1948-04-30 | D22: =data!G22 -> 4.444444444 | E22: =AVERAGE(INDIRECT($D$1&ROW()-$E$4):D22) -> 4.444444444 | K22: 0
C23: =data!A23 -> 1948-05-07 | D23: =data!G23 -> 4.296610169 | E23: =AVERAGE(INDIRECT($D$1&ROW()-$E$4):D23) -> 4.407485876 | K23: 0
C24: =data!A24 -> 1948-05-14 | D24: =data!G24 -> 4.296610169 | E24: =AVERAGE(INDIRECT($D$1&ROW()-$E$4):D24) -> 4.370527307 | K24: 0
C25: =data!A25 -> 1948-05-21 | D25: =data!G25 -> 4.296610169 | E25: =AVERAGE(INDIRECT($D$1&ROW()-$E$4):D25) -> 4.333568738 | K25: 0
C26: =data!A26 -> 1948-05-28 | D26: =data!G26 -> 4.296610169 | E26: =AVERAGE(INDIRECT($D$1&ROW()-$E$4):D26) -> 4.296610169 | K26: 0
C27: =data!A27 -> 1948-06-04 | D27: =data!G27 -> 4.296610169 | E27: =AVERAGE(INDIRECT($D$1&ROW()-$E$4):D27) -> 4.296610169 | K27: 0
C28: =data!A28 -> 1948-06-11 | D28: =data!G28 -> 3.902229846 | E28: =AVERAGE(INDIRECT($D$1&ROW()-$E$4):D28) -> 4.198015089 | K28: 0
C29: =data!A29 -> 1948-06-18 | D29: =data!G29 -> 3.902229846 | E29: =AVERAGE(INDIRECT($D$1&ROW()-$E$4):D29) -> 4.099420008 | K29: 0
C30: =data!A30 -> 1948-06-25 | D30: =data!G30 -> 3.902229846 | E30: =AVERAGE(INDIRECT($D$1&ROW()-$E$4):D30) -> 4.000824927 | K30: 0
C31: =data!A31 -> 1948-07-02 | D31: =data!G31 -> 3.902229846 | E31: =AVERAGE(INDIRECT($D$1&ROW()-$E$4):D31) -> 3.902229846 | K31: 0
C32: =data!A32 -> 1948-07-09 | D32: =data!G32 -> 3.952702703 | E32: =AVERAGE(INDIRECT($D$1&ROW()-$E$4):D32) -> 3.91484806 | K32: 0
C33: =data!A33 -> 1948-07-16 | D33: =data!G33 -> 3.952702703 | E33: =AVERAGE(INDIRECT($D$1&ROW()-$E$4):D33) -> 3.927466274 | K33: 0
C34: =data!A34 -> 1948-07-23 | D34: =data!G34 -> 3.952702703 | E34: =AVERAGE(INDIRECT($D$1&ROW()-$E$4):D34) -> 3.940084488 | K34: 0
C35: =data!A35 -> 1948-07-30 | D35: =data!G35 -> 3.952702703 | E35: =AVERAGE(INDIRECT($D$1&ROW()-$E$4):D35) -> 3.952702703 | K35: 0
C36: =data!A36 -> 1948-08-06 | D36: =data!G36 -> 3.946037099 | E36: =AVERAGE(INDIRECT($D$1&ROW()-$E$4):D36) -> 3.951036302 | K36: 0
C37: =data!A37 -> 1948-08-13 | D37: =data!G37 -> 3.946037099 | E37: =AVERAGE(INDIRECT($D$1&ROW()-$E$4):D37) -> 3.949369901 | K37: 0
C38: =data!A38 -> 1948-08-20 | D38: =data!G38 -> 3.946037099 | E38: =AVERAGE(INDIRECT($D$1&ROW()-$E$4):D38) -> 3.9477035 | K38: 0
C39: =data!A39 -> 1948-08-27 | D39: =data!G39 -> 3.946037099 | E39: =AVERAGE(INDIRECT($D$1&ROW()-$E$4):D39) -> 3.946037099 | K39: 0
C40: =data!A40 -> 1948-09-03 | D40: =data!G40 -> 3.946037099 | E40: =AVERAGE(INDIRECT($D$1&ROW()-$E$4):D40) -> 3.946037099 | K40: 0
C41: =data!A41 -> 1948-09-10 | D41: =data!G41 -> 4.303904924 | E41: =AVERAGE(INDIRECT($D$1&ROW()-$E$4):D41) -> 4.035504056 | K41: 0
C42: =data!A42 -> 1948-09-17 | D42: =data!G42 -> 4.303904924 | E42: =AVERAGE(INDIRECT($D$1&ROW()-$E$4):D42) -> 4.124971012 | K42: 0
C43: =data!A43 -> 1948-09-24 | D43: =data!G43 -> 4.303904924 | E43: =AVERAGE(INDIRECT($D$1&ROW()-$E$4):D43) -> 4.214437968 | K43: 0
C44: =data!A44 -> 1948-10-01 | D44: =data!G44 -> 4.303904924 | E44: =AVERAGE(INDIRECT($D$1&ROW()-$E$4):D44) -> 4.303904924 | K44: 0
C45: =data!A45 -> 1948-10-08 | D45: =data!G45 -> 4.193548387 | E45: =AVERAGE(INDIRECT($D$1&ROW()-$E$4):D45) -> 4.276315789 | K45: 0
C46: =data!A46 -> 1948-10-15 | D46: =data!G46 -> 4.193548387 | E46: =AVERAGE(INDIRECT($D$1&ROW()-$E$4):D46) -> 4.248726655 | K46: 0
C47: =data!A47 -> 1948-10-22 | D47: =data!G47 -> 4.193548387 | E47: =AVERAGE(INDIRECT($D$1&ROW()-$E$4):D47) -> 4.221137521 | K47: 0
C48: =data!A48 -> 1948-10-29 | D48: =data!G48 -> 4.193548387 | E48: =AVERAGE(INDIRECT($D$1&ROW()-$E$4):D48) -> 4.193548387 | K48: 0
C49: =data!A49 -> 1948-11-05 | D49: =data!G49 -> 4.097103918 | E49: =AVERAGE(INDIRECT($D$1&ROW()-$E$4):D49) -> 4.16943727 | K49: 0
C50: =data!A50 -> 1948-11-12 | D50: =data!G50 -> 4.097103918 | E50: =AVERAGE(INDIRECT($D$1&ROW()-$E$4):D50) -> 4.145326153 | K50: 0
C51: =data!A51 -> 1948-11-19 | D51: =data!G51 -> 4.097103918 | E51: =AVERAGE(INDIRECT($D$1&ROW()-$E$4):D51) -> 4.121215035 | K51: 0
C52: =data!A52 -> 1948-11-26 | D52: =data!G52 -> 4.097103918 | E52: =AVERAGE(INDIRECT($D$1&ROW()-$E$4):D52) -> 4.097103918 | K52: 0
C53: =data!A53 -> 1948-12-03 | D53: =data!G53 -> 4.097103918 | E53: =AVERAGE(INDIRECT($D$1&ROW()-$E$4):D53) -> 4.097103918 | J53: 1948-12-03 | K53: 0
C54: =data!A54 -> 1948-12-10 | D54: =data!G54 -> 4.207836457 | E54: =AVERAGE(INDIRECT($D$1&ROW()-$E$4):D54) -> 4.124787053 | J54: 1948-12-10 | K54: 0
C55: =data!A55 -> 1948-12-17 | D55: =data!G55 -> 4.207836457 | E55: =AVERAGE(INDIRECT($D$1&ROW()-$E$4):D55) -> 4.152470187 | J55: 1948-12-17 | K55: 0
C56: =data!A56 -> 1948-12-24 | D56: =data!G56 -> 4.207836457 | E56: =AVERAGE(INDIRECT($D$1&ROW()-$E$4):D56) -> 4.180153322 | J56: 1948-12-24 | K56: 0
C57: =data!A57 -> 1948-12-31 | D57: =data!G57 -> 4.207836457 | E57: =AVERAGE(INDIRECT($D$1&ROW()-$E$4):D57) -> 4.207836457 | J57: 1948-12-31 | K57: 0
C58: =data!A58 -> 1949-01-07 | D58: =data!G58 -> 4.399323181 | E58: =AVERAGE(INDIRECT($D$1&ROW()-$E$4):D58) -> 4.255708138 | J58: 1949-01-07 | K58: 0
C59: =data!A59 -> 1949-01-14 | D59: =data!G59 -> 4.399323181 | E59: =AVERAGE(INDIRECT($D$1&ROW()-$E$4):D59) -> 4.303579819 | J59: 1949-01-14 | K59: 0
C60: =data!A60 -> 1949-01-21 | D60: =data!G60 -> 4.399323181 | E60: =AVERAGE(INDIRECT($D$1&ROW()-$E$4):D60) -> 4.3514515 | J60: 1949-01-21 | K60: 0
C61: =data!A61 -> 1949-01-28 | D61: =data!G61 -> 4.399323181 | E61: =AVERAGE(INDIRECT($D$1&ROW()-$E$4):D61) -> 4.399323181 | J61: 1949-01-28 | K61: 0
C62: =data!A62 -> 1949-02-04 | D62: =data!G62 -> 4.399323181 | E62: =AVERAGE(INDIRECT($D$1&ROW()-$E$4):D62) -> 4.399323181 | J62: 1949-02-04 | K62: 0
C63: =data!A63 -> 1949-02-11 | D63: =data!G63 -> 4.761499148 | E63: =AVERAGE(INDIRECT($D$1&ROW()-$E$4):D63) -> 4.489867173 | J63: 1949-02-11 | K63: 0
C64: =data!A64 -> 1949-02-18 | D64: =data!G64 -> 4.761499148 | E64: =AVERAGE(INDIRECT($D$1&ROW()-$E$4):D64) -> 4.580411165 | J64: 1949-02-18 | K64: 0
C65: =data!A65 -> 1949-02-25 | D65: =data!G65 -> 4.761499148 | E65: =AVERAGE(INDIRECT($D$1&ROW()-$E$4):D65) -> 4.670955156 | J65: 1949-02-25 | K65: 0
B66: =INT(C66-($G$6/2*7)) -> 1948-06-28 | C66: =data!A66 -> 1949-03-04 | D66: =data!G66 -> 4.761499148 | E66: =AVERAGE(INDIRECT($D$1&ROW()-E$4):D66) -> 4.761499148 | F66: =-1 -> -1 | G66: =E66/AVERAGE(INDIRECT($E$1&(ROW()-$H$5)):INDIRECT($E$1&(ROW()-1))) ->  | J66: 1949-03-04 | K66: 0
B67: 1948-07-05 | C67: =data!A67 -> 1949-03-11 | D67: =data!G67 -> 5.177966102 | E67: =AVERAGE(INDIRECT($D$1&ROW()-$E$4):D67) -> 4.865615887 | F67: -1 | G67: =E67/AVERAGE(INDIRECT($E$1&(ROW()-$H$5)):INDIRECT($E$1&(ROW()-1))) ->  | J67: 1949-03-11 | K67: 0
B68: 1948-07-12 | C68: =data!A68 -> 1949-03-18 | D68: =data!G68 -> 5.177966102 | E68: =AVERAGE(INDIRECT($D$1&ROW()-$E$4):D68) -> 4.969732625 | F68: -1 | G68: =E68/AVERAGE(INDIRECT($E$1&(ROW()-$H$5)):INDIRECT($E$1&(ROW()-1))) ->  | J68: 1949-03-18 | K68: 0
B69: 1948-07-19 | C69: =data!A69 -> 1949-03-25 | D69: =data!G69 -> 5.177966102 | E69: =AVERAGE(INDIRECT($D$1&ROW()-$E$4):D69) -> 5.073849363 | F69: -1 | G69: =E69/AVERAGE(INDIRECT($E$1&(ROW()-$H$5)):INDIRECT($E$1&(ROW()-1))) ->  | J69: 1949-03-25 | K69: 0
B70: 1948-07-26 | C70: =data!A70 -> 1949-04-01 | D70: =data!G70 -> 5.177966102 | E70: =AVERAGE(INDIRECT($D$1&ROW()-$E$4):D70) -> 5.177966102 | F70: -1 | G70: =E70/AVERAGE(INDIRECT($E$1&(ROW()-$H$5)):INDIRECT($E$1&(ROW()-1))) ->  | J70: 1949-04-01 | K70: 0
B71: 1948-08-02 | C71: =data!A71 -> 1949-04-08 | D71: =data!G71 -> 5.517826825 | E71: =AVERAGE(INDIRECT($D$1&ROW()-$E$4):D71) -> 5.262931283 | F71: -1 | G71: =E71/AVERAGE(INDIRECT($E$1&(ROW()-$H$5)):INDIRECT($E$1&(ROW()-1))) -> 1.258775925 | J71: 1949-04-08 | K71: 0
B72: 1948-08-09 | C72: =data!A72 -> 1949-04-15 | D72: =data!G72 -> 5.517826825 | E72: =AVERAGE(INDIRECT($D$1&ROW()-$E$4):D72) -> 5.347896463 | F72: -1 | G72: =E72/AVERAGE(INDIRECT($E$1&(ROW()-$H$5)):INDIRECT($E$1&(ROW()-1))) -> 1.273865233 | J72: 1949-04-15 | K72: =$K$5+$I$5 -> 0
B73: 1948-08-16 | C73: =data!A73 -> 1949-04-22 | D73: =data!G73 -> 5.517826825 | E73: =AVERAGE(INDIRECT($D$1&ROW()-$E$4):D73) -> 5.432861644 | F73: -1 | G73: =E73/AVERAGE(INDIRECT($E$1&(ROW()-$H$5)):INDIRECT($E$1&(ROW()-1))) -> 1.288589818 | J73: 1949-04-22 | K73: 0
B74: 1948-08-23 | C74: =data!A74 -> 1949-04-29 | D74: =data!G74 -> 5.517826825 | E74: =AVERAGE(INDIRECT($D$1&ROW()-$E$4):D74) -> 5.517826825 | F74: -1 | G74: =E74/AVERAGE(INDIRECT($E$1&(ROW()-$H$5)):INDIRECT($E$1&(ROW()-1))) -> 1.302957304 | J74: 1949-04-29 | K74: 0
B75: 1948-08-30 | C75: =data!A75 -> 1949-05-06 | D75: =data!G75 -> 5.858843537 | E75: =AVERAGE(INDIRECT($D$1&ROW()-$E$4):D75) -> 5.603081003 | F75: -1 | G75: =E75/AVERAGE(INDIRECT($E$1&(ROW()-$H$5)):INDIRECT($E$1&(ROW()-1))) -> 1.311096394 | J75: 1949-05-06 | K75: 0
B76: 1948-09-06 | C76: =data!A76 -> 1949-05-13 | D76: =data!G76 -> 5.858843537 | E76: =AVERAGE(INDIRECT($D$1&ROW()-$E$4):D76) -> 5.688335181 | F76: -1 | G76: =E76/AVERAGE(INDIRECT($E$1&(ROW()-$H$5)):INDIRECT($E$1&(ROW()-1))) -> 1.318688182 | J76: 1949-05-13 | K76: 0
B77: 1948-09-13 | C77: =data!A77 -> 1949-05-20 | D77: =data!G77 -> 5.858843537 | E77: =AVERAGE(INDIRECT($D$1&ROW()-$E$4):D77) -> 5.773589359 | F77: -1 | G77: =E77/AVERAGE(INDIRECT($E$1&(ROW()-$H$5)):INDIRECT($E$1&(ROW()-1))) -> 1.332020275 | J77: 1949-05-20 | K77: 0
B78: 1948-09-20 | C78: =data!A78 -> 1949-05-27 | D78: =data!G78 -> 5.858843537 | E78: =AVERAGE(INDIRECT($D$1&ROW()-$E$4):D78) -> 5.858843537 | F78: -1 | G78: =E78/AVERAGE(INDIRECT($E$1&(ROW()-$H$5)):INDIRECT($E$1&(ROW()-1))) -> 1.345023898 | J78: 1949-05-27 | K78: 0
B79: 1948-09-27 | C79: =data!A79 -> 1949-06-03 | D79: =data!G79 -> 5.858843537 | E79: =AVERAGE(INDIRECT($D$1&ROW()-$E$4):D79) -> 5.858843537 | F79: -1 | G79: =E79/AVERAGE(INDIRECT($E$1&(ROW()-$H$5)):INDIRECT($E$1&(ROW()-1))) -> 1.338233859 | J79: 1949-06-03 | K79: 0
B80: 1948-10-04 | C80: =data!A80 -> 1949-06-10 | D80: =data!G80 -> 6.720338983 | E80: =AVERAGE(INDIRECT($D$1&ROW()-$E$4):D80) -> 6.074217399 | F80: -1 | G80: =E80/AVERAGE(INDIRECT($E$1&(ROW()-$H$5)):INDIRECT($E$1&(ROW()-1))) -> 1.380660056 | J80: 1949-06-10 | K80: 0
B81: 1948-10-11 | C81: =data!A81 -> 1949-06-17 | D81: =data!G81 -> 6.720338983 | E81: =AVERAGE(INDIRECT($D$1&ROW()-$E$4):D81) -> 6.28959126 | F81: -1 | G81: =E81/AVERAGE(INDIRECT($E$1&(ROW()-$H$5)):INDIRECT($E$1&(ROW()-1))) -> 1.421882001 | J81: 1949-06-17 | K81: 0
B82: 1948-10-18 | C82: =data!A82 -> 1949-06-24 | D82: =data!G82 -> 6.720338983 | E82: =AVERAGE(INDIRECT($D$1&ROW()-$E$4):D82) -> 6.504965122 | F82: -1 | G82: =E82/AVERAGE(INDIRECT($E$1&(ROW()-$H$5)):INDIRECT($E$1&(ROW()-1))) -> 1.45870789 | J82: 1949-06-24 | K82: 0
B83: 1948-10-25 | C83: =data!A83 -> 1949-07-01 | D83: =data!G83 -> 6.720338983 | E83: =AVERAGE(INDIRECT($D$1&ROW()-$E$4):D83) -> 6.720338983 | F83: -1 | G83: =E83/AVERAGE(INDIRECT($E$1&(ROW()-$H$5)):INDIRECT($E$1&(ROW()-1))) -> 1.493921882 | I83: =IF(ISNUMBER(G83),XIRR(F83:G83,B83:C83,0.1)*100+$I$5,"-") -> 80.11126637 | J83: 1949-07-01 | K83: 0
B84: 1948-11-01 | C84: =data!A84 -> 1949-07-08 | D84: =data!G84 -> 6.877133106 | E84: =AVERAGE(INDIRECT($D$1&ROW()-$E$4):D84) -> 6.759537514 | F84: -1 | G84: =E84/AVERAGE(INDIRECT($E$1&(ROW()-$H$5)):INDIRECT($E$1&(ROW()-1))) -> 1.488693823 | I84: 79.18807387 | J84: 1949-07-08 | K84: 0
B85: 1948-11-08 | C85: =data!A85 -> 1949-07-15 | D85: =data!G85 -> 6.877133106 | E85: =AVERAGE(INDIRECT($D$1&ROW()-$E$4):D85) -> 6.798736044 | F85: -1 | G85: =E85/AVERAGE(INDIRECT($E$1&(ROW()-$H$5)):INDIRECT($E$1&(ROW()-1))) -> 1.483380627 | I85: 78.25139165 | J85: 1949-07-15 | K85: 0
B86: 1948-11-15 | C86: =data!A86 -> 1949-07-22 | D86: =data!G86 -> 6.877133106 | E86: =AVERAGE(INDIRECT($D$1&ROW()-$E$4):D86) -> 6.837934575 | F86: -1 | G86: =E86/AVERAGE(INDIRECT($E$1&(ROW()-$H$5)):INDIRECT($E$1&(ROW()-1))) -> 1.478468456 | I86: 77.38680005 | J86: 1949-07-22 | K86: 0
B87: 1948-11-22 | C87: =data!A87 -> 1949-07-29 | D87: =data!G87 -> 6.877133106 | E87: =AVERAGE(INDIRECT($D$1&ROW()-$E$4):D87) -> 6.877133106 | F87: -1 | G87: =E87/AVERAGE(INDIRECT($E$1&(ROW()-$H$5)):INDIRECT($E$1&(ROW()-1))) -> 1.473943553 | I87: 76.5915525 | J87: 1949-07-29 | K87: 0
B88: 1948-11-29 | C88: =data!A88 -> 1949-08-05 | D88: =data!G88 -> 7.393887946 | E88: =AVERAGE(INDIRECT($D$1&ROW()-$E$4):D88) -> 7.006321816 | F88: -1 | G88: =E88/AVERAGE(INDIRECT($E$1&(ROW()-$H$5)):INDIRECT($E$1&(ROW()-1))) -> 1.488916971 | I88: 79.22744632 | J88: 1949-08-05 | K88: 0
B89: 1948-12-06 | C89: =data!A89 -> 1949-08-12 | D89: =data!G89 -> 7.393887946 | E89: =AVERAGE(INDIRECT($D$1&ROW()-$E$4):D89) -> 7.135510526 | F89: -1 | G89: =E89/AVERAGE(INDIRECT($E$1&(ROW()-$H$5)):INDIRECT($E$1&(ROW()-1))) -> 1.503531971 | I89: 81.81218505 | J89: 1949-08-12 | K89: 0
B90: 1948-12-13 | C90: =data!A90 -> 1949-08-19 | D90: =data!G90 -> 7.393887946 | E90: =AVERAGE(INDIRECT($D$1&ROW()-$E$4):D90) -> 7.264699236 | F90: -1 | G90: =E90/AVERAGE(INDIRECT($E$1&(ROW()-$H$5)):INDIRECT($E$1&(ROW()-1))) -> 1.517600485 | I90: 84.31135535 | J90: 1949-08-19 | K90: 0
B91: 1948-12-20 | C91: =data!A91 -> 1949-08-26 | D91: =data!G91 -> 7.393887946 | E91: =AVERAGE(INDIRECT($D$1&ROW()-$E$4):D91) -> 7.393887946 | F91: -1 | G91: =E91/AVERAGE(INDIRECT($E$1&(ROW()-$H$5)):INDIRECT($E$1&(ROW()-1))) -> 1.531128179 | I91: 86.72465682 | J91: 1949-08-26 | K91: 0
B92: 1948-12-27 | C92: =data!A92 -> 1949-09-02 | D92: =data!G92 -> 7.393887946 | E92: =AVERAGE(INDIRECT($D$1&ROW()-$E$4):D92) -> 7.393887946 | F92: -1 | G92: =E92/AVERAGE(INDIRECT($E$1&(ROW()-$H$5)):INDIRECT($E$1&(ROW()-1))) -> 1.517605008 | I92: 84.31216121 | J92: 1949-09-02 | K92: 0
B93: 1949-01-03 | C93: =data!A93 -> 1949-09-09 | D93: =data!G93 -> 7.466216216 | E93: =AVERAGE(INDIRECT($D$1&ROW()-$E$4):D93) -> 7.411970013 | F93: -1 | G93: =E93/AVERAGE(INDIRECT($E$1&(ROW()-$H$5)):INDIRECT($E$1&(ROW()-1))) -> 1.508272468 | I93: 82.65308976 | J93: 1949-09-09 | K93: 0
B94: 1949-01-10 | C94: =data!A94 -> 1949-09-16 | D94: =data!G94 -> 7.466216216 | E94: =AVERAGE(INDIRECT($D$1&ROW()-$E$4):D94) -> 7.430052081 | F94: -1 | G94: =E94/AVERAGE(INDIRECT($E$1&(ROW()-$H$5)):INDIRECT($E$1&(ROW()-1))) -> 1.498860818 | I94: 80.98478913 | J94: 1949-09-16 | K94: 0
B95: 1949-01-17 | C95: =data!A95 -> 1949-09-23 | D95: =data!G95 -> 7.466216216 | E95: =AVERAGE(INDIRECT($D$1&ROW()-$E$4):D95) -> 7.448134149 | F95: -1 | G95: =E95/AVERAGE(INDIRECT($E$1&(ROW()-$H$5)):INDIRECT($E$1&(ROW()-1))) -> 1.489376534 | I95: 79.3085444 | J95: 1949-09-23 | K95: 0
B96: 1949-01-24 | C96: =data!A96 -> 1949-09-30 | D96: =data!G96 -> 7.466216216 | E96: =AVERAGE(INDIRECT($D$1&ROW()-$E$4):D96) -> 7.466216216 | F96: -1 | G96: =E96/AVERAGE(INDIRECT($E$1&(ROW()-$H$5)):INDIRECT($E$1&(ROW()-1))) -> 1.479825939 | I96: 77.62559772 | J96: 1949-09-30 | K96: 0
B97: 1949-01-31 | C97: =data!A97 -> 1949-10-07 | D97: =data!G97 -> 7.258883249 | E97: =AVERAGE(INDIRECT($D$1&ROW()-$E$4):D97) -> 7.414382974 | F97: -1 | G97: =E97/AVERAGE(INDIRECT($E$1&(ROW()-$H$5)):INDIRECT($E$1&(ROW()-1))) -> 1.456481037 | I97: 73.53320479 | J97: 1949-10-07 | K97: 0
B98: 1949-02-07 | C98: =data!A98 -> 1949-10-14 | D98: =data!G98 -> 7.258883249 | E98: =AVERAGE(INDIRECT($D$1&ROW()-$E$4):D98) -> 7.362549732 | F98: -1 | G98: =E98/AVERAGE(INDIRECT($E$1&(ROW()-$H$5)):INDIRECT($E$1&(ROW()-1))) -> 1.433754485 | I98: 69.57845569 | J98: 1949-10-14 | K98: 0
B99: 1949-02-14 | C99: =data!A99 -> 1949-10-21 | D99: =data!G99 -> 7.258883249 | E99: =AVERAGE(INDIRECT($D$1&ROW()-$E$4):D99) -> 7.310716491 | F99: -1 | G99: =E99/AVERAGE(INDIRECT($E$1&(ROW()-$H$5)):INDIRECT($E$1&(ROW()-1))) -> 1.411236771 | I99: 65.688743 | J99: 1949-10-21 | K99: 0
B100: 1949-02-21 | C100: =data!A100 -> 1949-10-28 | D100: =data!G100 -> 7.258883249 | E100: =AVERAGE(INDIRECT($D$1&ROW()-$E$4):D100) -> 7.258883249 | F100: -1 | G100: =E100/AVERAGE(INDIRECT($E$1&(ROW()-$H$5)):INDIRECT($E$1&(ROW()-1))) -> 1.388931111 | I100: 61.86406076 | J100: 1949-10-28 | K100: 0
B101: 1949-02-28 | C101: =data!A101 -> 1949-11-04 | D101: =data!G101 -> 7.258883249 | E101: =AVERAGE(INDIRECT($D$1&ROW()-$E$4):D101) -> 7.258883249 | F101: -1 | G101: =E101/AVERAGE(INDIRECT($E$1&(ROW()-$H$5)):INDIRECT($E$1&(ROW()-1))) -> 1.376670791 | I101: 59.7739476 | K101: 0
B102: 1949-03-07 | C102: =data!A102 -> 1949-11-11 | D102: =data!G102 -> 8.615771812 | E102: =AVERAGE(INDIRECT($D$1&ROW()-$E$4):D102) -> 7.59810539 | F102: -1 | G102: =E102/AVERAGE(INDIRECT($E$1&(ROW()-$H$5)):INDIRECT($E$1&(ROW()-1))) -> 1.428018559 | I102: 68.58491004 | K102: 0
B103: 1949-03-14 | C103: =data!A103 -> 1949-11-18 | D103: =data!G103 -> 8.615771812 | E103: =AVERAGE(INDIRECT($D$1&ROW()-$E$4):D103) -> 7.93732753 | F103: -1 | G103: =E103/AVERAGE(INDIRECT($E$1&(ROW()-$H$5)):INDIRECT($E$1&(ROW()-1))) -> 1.477165306 | I103: 77.15765595 | K103: 0
B104: 1949-03-21 | C104: =data!A104 -> 1949-11-25 | D104: =data!G104 -> 8.615771812 | E104: =AVERAGE(INDIRECT($D$1&ROW()-$E$4):D104) -> 8.276549671 | F104: -1 | G104: =E104/AVERAGE(INDIRECT($E$1&(ROW()-$H$5)):INDIRECT($E$1&(ROW()-1))) -> 1.524048334 | I104: 85.46038985 | K104: 0
B105: 1949-03-28 | C105: =data!A105 -> 1949-12-02 | D105: =data!G105 -> 8.615771812 | E105: =AVERAGE(INDIRECT($D$1&ROW()-$E$4):D105) -> 8.615771812 | F105: -1 | G105: =E105/AVERAGE(INDIRECT($E$1&(ROW()-$H$5)):INDIRECT($E$1&(ROW()-1))) -> 1.568618995 | I105: 93.46477866 | K105: 0
B106: 1949-04-04 | C106: =data!A106 -> 1949-12-09 | D106: =data!G106 -> 7.003367003 | E106: =AVERAGE(INDIRECT($D$1&ROW()-$E$4):D106) -> 8.21267061 | F106: -1 | G106: =E106/AVERAGE(INDIRECT($E$1&(ROW()-$H$5)):INDIRECT($E$1&(ROW()-1))) -> 1.47731175 | I106: 77.18340039 | K106: 0
B107: 1949-04-11 | C107: =data!A107 -> 1949-12-16 | D107: =data!G107 -> 7.003367003 | E107: =AVERAGE(INDIRECT($D$1&ROW()-$E$4):D107) -> 7.809569408 | F107: -1 | G107: =E107/AVERAGE(INDIRECT($E$1&(ROW()-$H$5)):INDIRECT($E$1&(ROW()-1))) -> 1.389583341 | I107: 61.97549403 | K107: 0
B108: 1949-04-18 | C108: =data!A108 -> 1949-12-23 | D108: =data!G108 -> 7.003367003 | E108: =AVERAGE(INDIRECT($D$1&ROW()-$E$4):D108) -> 7.406468206 | F108: -1 | G108: =E108/AVERAGE(INDIRECT($E$1&(ROW()-$H$5)):INDIRECT($E$1&(ROW()-1))) -> 1.305052647 | I108: 47.73891509 | K108: 0
B109: 1949-04-25 | C109: =data!A109 -> 1949-12-30 | D109: =data!G109 -> 7.003367003 | E109: =AVERAGE(INDIRECT($D$1&ROW()-$E$4):D109) -> 7.003367003 | F109: -1 | G109: =E109/AVERAGE(INDIRECT($E$1&(ROW()-$H$5)):INDIRECT($E$1&(ROW()-1))) -> 1.223373215 | I109: 34.38459575 | K109: 0
B110: 1949-05-02 | C110: =data!A110 -> 1950-01-06 | D110: =data!G110 -> 7.246621622 | E110: =AVERAGE(INDIRECT($D$1&ROW()-$E$4):D110) -> 7.064180658 | F110: -1 | G110: =E110/AVERAGE(INDIRECT($E$1&(ROW()-$H$5)):INDIRECT($E$1&(ROW()-1))) -> 1.224652867 | I110: 34.59069788 | K110: 0
B111: 1949-05-09 | C111: =data!A111 -> 1950-01-13 | D111: =data!G111 -> 7.246621622 | E111: =AVERAGE(INDIRECT($D$1&ROW()-$E$4):D111) -> 7.124994312 | F111: -1 | G111: =E111/AVERAGE(INDIRECT($E$1&(ROW()-$H$5)):INDIRECT($E$1&(ROW()-1))) -> 1.225730067 | I111: 34.76427019 | K111: 0
B112: 1949-05-16 | C112: =data!A112 -> 1950-01-20 | D112: =data!G112 -> 7.246621622 | E112: =AVERAGE(INDIRECT($D$1&ROW()-$E$4):D112) -> 7.185807967 | F112: -1 | G112: =E112/AVERAGE(INDIRECT($E$1&(ROW()-$H$5)):INDIRECT($E$1&(ROW()-1))) -> 1.22687662 | I112: 34.94909585 | K112: 0
B113: 1949-05-23 | C113: =data!A113 -> 1950-01-27 | D113: =data!G113 -> 7.246621622 | E113: =AVERAGE(INDIRECT($D$1&ROW()-$E$4):D113) -> 7.246621622 | F113: -1 | G113: =E113/AVERAGE(INDIRECT($E$1&(ROW()-$H$5)):INDIRECT($E$1&(ROW()-1))) -> 1.228091209 | I113: 35.14497697 | K113: 0
B114: 1949-05-30 | C114: =data!A114 -> 1950-02-03 | D114: =data!G114 -> 7.246621622 | E114: =AVERAGE(INDIRECT($D$1&ROW()-$E$4):D114) -> 7.246621622 | F114: -1 | G114: =E114/AVERAGE(INDIRECT($E$1&(ROW()-$H$5)):INDIRECT($E$1&(ROW()-1))) -> 1.219141547 | I114: 33.70375574 | K114: 0
B115: 1949-06-06 | C115: =data!A115 -> 1950-02-10 | D115: =data!G115 -> 7.173174873 | E115: =AVERAGE(INDIRECT($D$1&ROW()-$E$4):D115) -> 7.228259934 | F115: -1 | G115: =E115/AVERAGE(INDIRECT($E$1&(ROW()-$H$5)):INDIRECT($E$1&(ROW()-1))) -> 1.2075124 | I115: 31.83839381 | K115: 0
B116: 1949-06-13 | C116: =data!A116 -> 1950-02-17 | D116: =data!G116 -> 7.173174873 | E116: =AVERAGE(INDIRECT($D$1&ROW()-$E$4):D116) -> 7.209898247 | F116: -1 | G116: =E116/AVERAGE(INDIRECT($E$1&(ROW()-$H$5)):INDIRECT($E$1&(ROW()-1))) -> 1.196019297 | I116: 30.00305831 | K116: 0
B117: 1949-06-20 | C117: =data!A117 -> 1950-02-24 | D117: =data!G117 -> 7.173174873 | E117: =AVERAGE(INDIRECT($D$1&ROW()-$E$4):D117) -> 7.19153656 | F117: -1 | G117: =E117/AVERAGE(INDIRECT($E$1&(ROW()-$H$5)):INDIRECT($E$1&(ROW()-1))) -> 1.184660153 | I117: 28.19716871 | K117: 0
B118: 1949-06-27 | C118: =data!A118 -> 1950-03-03 | D118: =data!G118 -> 7.173174873 | E118: =AVERAGE(INDIRECT($D$1&ROW()-$E$4):D118) -> 7.173174873 | F118: -1 | G118: =E118/AVERAGE(INDIRECT($E$1&(ROW()-$H$5)):INDIRECT($E$1&(ROW()-1))) -> 1.17343292 | I118: 26.42015994 | K118: 0
B119: 1949-07-04 | C119: =data!A119 -> 1950-03-10 | D119: =data!G119 -> 7.062818336 | E119: =AVERAGE(INDIRECT($D$1&ROW()-$E$4):D119) -> 7.145585739 | F119: -1 | G119: =E119/AVERAGE(INDIRECT($E$1&(ROW()-$H$5)):INDIRECT($E$1&(ROW()-1))) -> 1.160836546 | I119: 24.43585813 | K119: 0
B120: 1949-07-11 | C120: =data!A120 -> 1950-03-17 | D120: =data!G120 -> 7.062818336 | E120: =AVERAGE(INDIRECT($D$1&ROW()-$E$4):D120) -> 7.117996604 | F120: -1 | G120: =E120/AVERAGE(INDIRECT($E$1&(ROW()-$H$5)):INDIRECT($E$1&(ROW()-1))) -> 1.148422392 | I120: 22.49005139 | K120: 0
B121: 1949-07-18 | C121: =data!A121 -> 1950-03-24 | D121: =data!G121 -> 7.062818336 | E121: =AVERAGE(INDIRECT($D$1&ROW()-$E$4):D121) -> 7.09040747 | F121: -1 | G121: =E121/AVERAGE(INDIRECT($E$1&(ROW()-$H$5)):INDIRECT($E$1&(ROW()-1))) -> 1.136186437 | I121: 20.58173954 | K121: 0
B122: 1949-07-25 | C122: =data!A122 -> 1950-03-31 | D122: =data!G122 -> 7.062818336 | E122: =AVERAGE(INDIRECT($D$1&ROW()-$E$4):D122) -> 7.062818336 | F122: -1 | G122: =E122/AVERAGE(INDIRECT($E$1&(ROW()-$H$5)):INDIRECT($E$1&(ROW()-1))) -> 1.124124777 | I122: 18.709957 | K122: 0
B123: 1949-08-01 | C123: =data!A123 -> 1950-04-07 | D123: =data!G123 -> 6.964285714 | E123: =AVERAGE(INDIRECT($D$1&ROW()-$E$4):D123) -> 7.038185181 | F123: -1 | G123: =E123/AVERAGE(INDIRECT($E$1&(ROW()-$H$5)):INDIRECT($E$1&(ROW()-1))) -> 1.112700946 | I123: 16.94576085 | K123: 0
B124: 1949-08-08 | C124: =data!A124 -> 1950-04-14 | D124: =data!G124 -> 6.964285714 | E124: =AVERAGE(INDIRECT($D$1&ROW()-$E$4):D124) -> 7.013552025 | F124: -1 | G124: =E124/AVERAGE(INDIRECT($E$1&(ROW()-$H$5)):INDIRECT($E$1&(ROW()-1))) -> 1.101490004 | I124: 15.22262633 | K124: 0
B125: 1949-08-15 | C125: =data!A125 -> 1950-04-21 | D125: =data!G125 -> 6.964285714 | E125: =AVERAGE(INDIRECT($D$1&ROW()-$E$4):D125) -> 6.98891887 | F125: -1 | G125: =E125/AVERAGE(INDIRECT($E$1&(ROW()-$H$5)):INDIRECT($E$1&(ROW()-1))) -> 1.090553212 | I125: 13.54948223 | K125: 0
B126: 1949-08-22 | C126: =data!A126 -> 1950-04-28 | D126: =data!G126 -> 6.964285714 | E126: =AVERAGE(INDIRECT($D$1&ROW()-$E$4):D126) -> 6.964285714 | F126: -1 | G126: =E126/AVERAGE(INDIRECT($E$1&(ROW()-$H$5)):INDIRECT($E$1&(ROW()-1))) -> 1.079881503 | I126: 11.92440927 | K126: 0
B127: 1949-08-29 | C127: =data!A127 -> 1950-05-05 | D127: =data!G127 -> 6.964285714 | E127: =AVERAGE(INDIRECT($D$1&ROW()-$E$4):D127) -> 6.964285714 | F127: -1 | G127: =E127/AVERAGE(INDIRECT($E$1&(ROW()-$H$5)):INDIRECT($E$1&(ROW()-1))) -> 1.073262428 | I127: 10.92021286 | K127: 0
B128: 1949-09-05 | C128: =data!A128 -> 1950-05-12 | D128: =data!G128 -> 6.368243243 | E128: =AVERAGE(INDIRECT($D$1&ROW()-$E$4):D128) -> 6.815275097 | F128: -1 | G128: =E128/AVERAGE(INDIRECT($E$1&(ROW()-$H$5)):INDIRECT($E$1&(ROW()-1))) -> 1.04396319 | I128: 6.50988847 | K128: 0
B129: 1949-09-12 | C129: =data!A129 -> 1950-05-19 | D129: =data!G129 -> 6.368243243 | E129: =AVERAGE(INDIRECT($D$1&ROW()-$E$4):D129) -> 6.666264479 | F129: -1 | G129: =E129/AVERAGE(INDIRECT($E$1&(ROW()-$H$5)):INDIRECT($E$1&(ROW()-1))) -> 1.01545016 | I129: 2.272910774 | K129: 0
B130: =INT(C130-($G$6/2*7)) -> 1949-09-19 | C130: =data!A130 -> 1950-05-26 | D130: =data!G130 -> 6.368243243 | E130: =AVERAGE(INDIRECT($D$1&ROW()-$E$4):D130) -> 6.517253861 | F130: =-1 -> -1 | G130: =E130/AVERAGE(INDIRECT($E$1&(ROW()-$H$5)):INDIRECT($E$1&(ROW()-1))) -> 0.9876738085 | I130: -1.801652014 | K130: 0
B131: 1949-09-26 | C131: =data!A131 -> 1950-06-02 | D131: =data!G131 -> 6.368243243 | E131: =AVERAGE(INDIRECT($D$1&ROW()-$E$4):D131) -> 6.368243243 | F131: -1 | G131: =E131/AVERAGE(INDIRECT($E$1&(ROW()-$H$5)):INDIRECT($E$1&(ROW()-1))) -> 0.96058753 | I131: -5.72391361 | K131: 0
B132: 1949-10-03 | C132: =data!A132 -> 1950-06-09 | D132: =data!G132 -> 6.049069374 | E132: =AVERAGE(INDIRECT($D$1&ROW()-$E$4):D132) -> 6.288449776 | F132: -1 | G132: =E132/AVERAGE(INDIRECT($E$1&(ROW()-$H$5)):INDIRECT($E$1&(ROW()-1))) -> 0.9445439987 | I132: -8.023025692 | K132: 0
B133: 1949-10-10 | C133: =data!A133 -> 1950-06-16 | D133: =data!G133 -> 6.049069374 | E133: =AVERAGE(INDIRECT($D$1&ROW()-$E$4):D133) -> 6.208656309 | F133: -1 | G133: =E133/AVERAGE(INDIRECT($E$1&(ROW()-$H$5)):INDIRECT($E$1&(ROW()-1))) -> 0.9287938159 | I133: -10.26247326 | K133: 0
B134: 1949-10-17 | C134: =data!A134 -> 1950-06-23 | D134: =data!G134 -> 6.049069374 | E134: =AVERAGE(INDIRECT($D$1&ROW()-$E$4):D134) -> 6.128862841 | F134: -1 | G134: =E134/AVERAGE(INDIRECT($E$1&(ROW()-$H$5)):INDIRECT($E$1&(ROW()-1))) -> 0.9135014985 | I134: -12.41995838 | K134: 0
B135: 1949-10-24 | C135: =data!A135 -> 1950-06-30 | D135: =data!G135 -> 6.049069374 | E135: =AVERAGE(INDIRECT($D$1&ROW()-$E$4):D135) -> 6.049069374 | F135: -1 | G135: =E135/AVERAGE(INDIRECT($E$1&(ROW()-$H$5)):INDIRECT($E$1&(ROW()-1))) -> 0.8986454514 | I135: -14.4998445 | K135: 0
B136: 1949-10-31 | C136: =data!A136 -> 1950-07-07 | D136: =data!G136 -> 5.909090909 | E136: =AVERAGE(INDIRECT($D$1&ROW()-$E$4):D136) -> 6.014074758 | F136: -1 | G136: =E136/AVERAGE(INDIRECT($E$1&(ROW()-$H$5)):INDIRECT($E$1&(ROW()-1))) -> 0.8908411989 | I136: -15.58607679 | K136: =$K$5+$I$5 -> 0
B137: 1949-11-07 | C137: =data!A137 -> 1950-07-14 | D137: =data!G137 -> 5.909090909 | E137: =AVERAGE(INDIRECT($D$1&ROW()-$E$4):D137) -> 5.979080142 | F137: -1 | G137: =E137/AVERAGE(INDIRECT($E$1&(ROW()-$H$5)):INDIRECT($E$1&(ROW()-1))) -> 0.8833163028 | I137: -16.6292375 | K137: 0
B138: 1949-11-14 | C138: =data!A138 -> 1950-07-21 | D138: =data!G138 -> 5.909090909 | E138: =AVERAGE(INDIRECT($D$1&ROW()-$E$4):D138) -> 5.944085525 | F138: -1 | G138: =E138/AVERAGE(INDIRECT($E$1&(ROW()-$H$5)):INDIRECT($E$1&(ROW()-1))) -> 0.8760876221 | I138: -17.62744404 | K138: 0
B139: 1949-11-21 | C139: =data!A139 -> 1950-07-28 | D139: =data!G139 -> 5.909090909 | E139: =AVERAGE(INDIRECT($D$1&ROW()-$E$4):D139) -> 5.909090909 | F139: -1 | G139: =E139/AVERAGE(INDIRECT($E$1&(ROW()-$H$5)):INDIRECT($E$1&(ROW()-1))) -> 0.8691467389 | I139: -18.58230375 | K139: 0
B140: 1949-11-28 | C140: =data!A140 -> 1950-08-04 | D140: =data!G140 -> 5.909090909 | E140: =AVERAGE(INDIRECT($D$1&ROW()-$E$4):D140) -> 5.909090909 | F140: -1 | G140: =E140/AVERAGE(INDIRECT($E$1&(ROW()-$H$5)):INDIRECT($E$1&(ROW()-1))) -> 0.8676240259 | I140: -18.79131086 | K140: 0
B141: 1949-12-05 | C141: =data!A141 -> 1950-08-11 | D141: =data!G141 -> 5.499153976 | E141: =AVERAGE(INDIRECT($D$1&ROW()-$E$4):D141) -> 5.806606676 | F141: -1 | G141: =E141/AVERAGE(INDIRECT($E$1&(ROW()-$H$5)):INDIRECT($E$1&(ROW()-1))) -> 0.8512709152 | I141: -21.02512695 | K141: 0
B142: 1949-12-12 | C142: =data!A142 -> 1950-08-18 | D142: =data!G142 -> 5.499153976 | E142: =AVERAGE(INDIRECT($D$1&ROW()-$E$4):D142) -> 5.704122443 | F142: -1 | G142: =E142/AVERAGE(INDIRECT($E$1&(ROW()-$H$5)):INDIRECT($E$1&(ROW()-1))) -> 0.8352952299 | I142: -23.18817027 | K142: 0
B143: 1949-12-19 | C143: =data!A143 -> 1950-08-25 | D143: =data!G143 -> 5.499153976 | E143: =AVERAGE(INDIRECT($D$1&ROW()-$E$4):D143) -> 5.60163821 | F143: -1 | G143: =E143/AVERAGE(INDIRECT($E$1&(ROW()-$H$5)):INDIRECT($E$1&(ROW()-1))) -> 0.819676903 | I143: -25.2842804 | K143: 0
B144: 1949-12-26 | C144: =data!A144 -> 1950-09-01 | D144: =data!G144 -> 5.499153976 | E144: =AVERAGE(INDIRECT($D$1&ROW()-$E$4):D144) -> 5.499153976 | F144: -1 | G144: =E144/AVERAGE(INDIRECT($E$1&(ROW()-$H$5)):INDIRECT($E$1&(ROW()-1))) -> 0.8043967833 | I144: -27.31707431 | K144: 0
B145: 1950-01-02 | C145: =data!A145 -> 1950-09-08 | D145: =data!G145 -> 4.915966387 | E145: =AVERAGE(INDIRECT($D$1&ROW()-$E$4):D145) -> 5.353357079 | F145: -1 | G145: =E145/AVERAGE(INDIRECT($E$1&(ROW()-$H$5)):INDIRECT($E$1&(ROW()-1))) -> 0.7831006856 | I145: -30.12028851 | K145: 0
B146: 1950-01-09 | C146: =data!A146 -> 1950-09-15 | D146: =data!G146 -> 4.915966387 | E146: =AVERAGE(INDIRECT($D$1&ROW()-$E$4):D146) -> 5.207560181 | F146: -1 | G146: =E146/AVERAGE(INDIRECT($E$1&(ROW()-$H$5)):INDIRECT($E$1&(ROW()-1))) -> 0.7621709453 | I146: -32.84089334 | K146: 0
B147: 1950-01-16 | C147: =data!A147 -> 1950-09-22 | D147: =data!G147 -> 4.915966387 | E147: =AVERAGE(INDIRECT($D$1&ROW()-$E$4):D147) -> 5.061763284 | F147: -1 | G147: =E147/AVERAGE(INDIRECT($E$1&(ROW()-$H$5)):INDIRECT($E$1&(ROW()-1))) -> 0.7415777733 | I147: =IF(ISNUMBER(G147),XIRR(F147:G147,B147:C147,0.1)*100+$I$5,"-") -> -35.48399575 | K147: 0
B148: 1950-01-23 | C148: =data!A148 -> 1950-09-29 | D148: =data!G148 -> 4.915966387 | E148: =AVERAGE(INDIRECT($D$1&ROW()-$E$4):D148) -> 4.915966387 | F148: -1 | G148: =E148/AVERAGE(INDIRECT($E$1&(ROW()-$H$5)):INDIRECT($E$1&(ROW()-1))) -> 0.7212922675 | I148: -38.0543942 | K148: 0
B149: 1950-01-30 | C149: =data!A149 -> 1950-10-06 | D149: =data!G149 -> 4.831081081 | E149: =AVERAGE(INDIRECT($D$1&ROW()-$E$4):D149) -> 4.89474506 | F149: -1 | G149: =E149/AVERAGE(INDIRECT($E$1&(ROW()-$H$5)):INDIRECT($E$1&(ROW()-1))) -> 0.7196007494 | I149: -38.26722346 | K149: 0
B150: 1950-02-06 | C150: =data!A150 -> 1950-10-13 | D150: =data!G150 -> 4.831081081 | E150: =AVERAGE(INDIRECT($D$1&ROW()-$E$4):D150) -> 4.873523734 | F150: -1 | G150: =E150/AVERAGE(INDIRECT($E$1&(ROW()-$H$5)):INDIRECT($E$1&(ROW()-1))) -> 0.7179345801 | I150: -38.47663559 | K150: 0
B151: 1950-02-13 | C151: =data!A151 -> 1950-10-20 | D151: =data!G151 -> 4.831081081 | E151: =AVERAGE(INDIRECT($D$1&ROW()-$E$4):D151) -> 4.852302407 | F151: -1 | G151: =E151/AVERAGE(INDIRECT($E$1&(ROW()-$H$5)):INDIRECT($E$1&(ROW()-1))) -> 0.7166191723 | I151: -38.64180334 | K151: 0
B152: 1950-02-20 | C152: =data!A152 -> 1950-10-27 | D152: =data!G152 -> 4.831081081 | E152: =AVERAGE(INDIRECT($D$1&ROW()-$E$4):D152) -> 4.831081081 | F152: -1 | G152: =E152/AVERAGE(INDIRECT($E$1&(ROW()-$H$5)):INDIRECT($E$1&(ROW()-1))) -> 0.715655224 | I152: -38.76275085 | K152: 0
B153: 1950-02-27 | C153: =data!A153 -> 1950-11-03 | D153: =data!G153 -> 4.831081081 | E153: =AVERAGE(INDIRECT($D$1&ROW()-$E$4):D153) -> 4.831081081 | F153: -1 | G153: =E153/AVERAGE(INDIRECT($E$1&(ROW()-$H$5)):INDIRECT($E$1&(ROW()-1))) -> 0.7181993102 | I153: -38.44337888 | K153: 0
B154: 1950-03-06 | C154: =data!A154 -> 1950-11-10 | D154: =data!G154 -> 4.595959596 | E154: =AVERAGE(INDIRECT($D$1&ROW()-$E$4):D154) -> 4.77230071 | F154: -1 | G154: =E154/AVERAGE(INDIRECT($E$1&(ROW()-$H$5)):INDIRECT($E$1&(ROW()-1))) -> 0.7123189292 | I154: -39.18077044 | K154: 0
B155: 1950-03-13 | C155: =data!A155 -> 1950-11-17 | D155: =data!G155 -> 4.595959596 | E155: =AVERAGE(INDIRECT($D$1&ROW()-$E$4):D155) -> 4.713520339 | F155: -1 | G155: =E155/AVERAGE(INDIRECT($E$1&(ROW()-$H$5)):INDIRECT($E$1&(ROW()-1))) -> 0.7065391863 | I155: -39.9027849 | K155: 0
B156: 1950-03-20 | C156: =data!A156 -> 1950-11-24 | D156: =data!G156 -> 4.595959596 | E156: =AVERAGE(INDIRECT($D$1&ROW()-$E$4):D156) -> 4.654739967 | F156: -1 | G156: =E156/AVERAGE(INDIRECT($E$1&(ROW()-$H$5)):INDIRECT($E$1&(ROW()-1))) -> 0.7008577178 | I156: -40.60984604 | K156: 0
B157: 1950-03-27 | C157: =data!A157 -> 1950-12-01 | D157: =data!G157 -> 4.595959596 | E157: =AVERAGE(INDIRECT($D$1&ROW()-$E$4):D157) -> 4.595959596 | F157: -1 | G157: =E157/AVERAGE(INDIRECT($E$1&(ROW()-$H$5)):INDIRECT($E$1&(ROW()-1))) -> 0.6952722433 | I157: -41.30236156 | K157: 0
B158: 1950-04-03 | C158: =data!A158 -> 1950-12-08 | D158: =data!G158 -> 4.603709949 | E158: =AVERAGE(INDIRECT($D$1&ROW()-$E$4):D158) -> 4.597897184 | F158: -1 | G158: =E158/AVERAGE(INDIRECT($E$1&(ROW()-$H$5)):INDIRECT($E$1&(ROW()-1))) -> 0.699011423 | I158: -40.83904482 | K158: 0
B159: 1950-04-10 | C159: =data!A159 -> 1950-12-15 | D159: =data!G159 -> 4.603709949 | E159: =AVERAGE(INDIRECT($D$1&ROW()-$E$4):D159) -> 4.599834773 | F159: -1 | G159: =E159/AVERAGE(INDIRECT($E$1&(ROW()-$H$5)):INDIRECT($E$1&(ROW()-1))) -> 0.7029830872 | I159: -40.34565382 | K159: 0
B160: 1950-04-17 | C160: =data!A160 -> 1950-12-22 | D160: =data!G160 -> 4.603709949 | E160: =AVERAGE(INDIRECT($D$1&ROW()-$E$4):D160) -> 4.601772361 | F160: -1 | G160: =E160/AVERAGE(INDIRECT($E$1&(ROW()-$H$5)):INDIRECT($E$1&(ROW()-1))) -> 0.7071942523 | I160: -39.82109018 | K160: 0
B161: 1950-04-24 | C161: =data!A161 -> 1950-12-29 | D161: =data!G161 -> 4.603709949 | E161: =AVERAGE(INDIRECT($D$1&ROW()-$E$4):D161) -> 4.603709949 | F161: -1 | G161: =E161/AVERAGE(INDIRECT($E$1&(ROW()-$H$5)):INDIRECT($E$1&(ROW()-1))) -> 0.7116524919 | I161: -39.264163 | K161: 0
B162: 1950-05-01 | C162: =data!A162 -> 1951-01-05 | D162: =data!G162 -> 4.721283784 | E162: =AVERAGE(INDIRECT($D$1&ROW()-$E$4):D162) -> 4.633103408 | F162: -1 | G162: =E162/AVERAGE(INDIRECT($E$1&(ROW()-$H$5)):INDIRECT($E$1&(ROW()-1))) -> 0.7206364807 | I162: -38.13693382 | K162: 0
B163: 1950-05-08 | C163: =data!A163 -> 1951-01-12 | D163: =data!G163 -> 4.721283784 | E163: =AVERAGE(INDIRECT($D$1&ROW()-$E$4):D163) -> 4.662496867 | F163: -1 | G163: =E163/AVERAGE(INDIRECT($E$1&(ROW()-$H$5)):INDIRECT($E$1&(ROW()-1))) -> 0.7296846075 | I163: -36.99502088 | K163: 0
B164: 1950-05-15 | C164: =data!A164 -> 1951-01-19 | D164: =data!G164 -> 4.721283784 | E164: =AVERAGE(INDIRECT($D$1&ROW()-$E$4):D164) -> 4.691890325 | F164: -1 | G164: =E164/AVERAGE(INDIRECT($E$1&(ROW()-$H$5)):INDIRECT($E$1&(ROW()-1))) -> 0.7388263243 | I164: -35.8345779 | K164: 0
B165: 1950-05-22 | C165: =data!A165 -> 1951-01-26 | D165: =data!G165 -> 4.721283784 | E165: =AVERAGE(INDIRECT($D$1&ROW()-$E$4):D165) -> 4.721283784 | F165: -1 | G165: =E165/AVERAGE(INDIRECT($E$1&(ROW()-$H$5)):INDIRECT($E$1&(ROW()-1))) -> 0.7480626762 | I165: -34.65530984 | K165: 0
B166: 1950-05-29 | C166: =data!A166 -> 1951-02-02 | D166: =data!G166 -> 4.721283784 | E166: =AVERAGE(INDIRECT($D$1&ROW()-$E$4):D166) -> 4.721283784 | F166: -1 | G166: =E166/AVERAGE(INDIRECT($E$1&(ROW()-$H$5)):INDIRECT($E$1&(ROW()-1))) -> 0.7527085563 | I166: -34.0595644 | K166: 0
B167: 1950-06-05 | C167: =data!A167 -> 1951-02-09 | D167: =data!G167 -> 4.069373942 | E167: =AVERAGE(INDIRECT($D$1&ROW()-$E$4):D167) -> 4.558306323 | F167: -1 | G167: =E167/AVERAGE(INDIRECT($E$1&(ROW()-$H$5)):INDIRECT($E$1&(ROW()-1))) -> 0.731297131 | I167: -36.7908176 | K167: 0
B168: 1950-06-12 | C168: =data!A168 -> 1951-02-16 | D168: =data!G168 -> 4.069373942 | E168: =AVERAGE(INDIRECT($D$1&ROW()-$E$4):D168) -> 4.395328863 | F168: -1 | G168: =E168/AVERAGE(INDIRECT($E$1&(ROW()-$H$5)):INDIRECT($E$1&(ROW()-1))) -> 0.7097965497 | I168: -39.49620761 | K168: 0
B169: 1950-06-19 | C169: =data!A169 -> 1951-02-23 | D169: =data!G169 -> 4.069373942 | E169: =AVERAGE(INDIRECT($D$1&ROW()-$E$4):D169) -> 4.232351403 | F169: -1 | G169: =E169/AVERAGE(INDIRECT($E$1&(ROW()-$H$5)):INDIRECT($E$1&(ROW()-1))) -> 0.6881883851 | I169: -42.17693336 | K169: 0
B170: 1950-06-26 | C170: =data!A170 -> 1951-03-02 | D170: =data!G170 -> 4.069373942 | E170: =AVERAGE(INDIRECT($D$1&ROW()-$E$4):D170) -> 4.069373942 | F170: -1 | G170: =E170/AVERAGE(INDIRECT($E$1&(ROW()-$H$5)):INDIRECT($E$1&(ROW()-1))) -> 0.6664535402 | I170: -44.83409993 | K170: 0
B171: 1950-07-03 | C171: =data!A171 -> 1951-03-09 | D171: =data!G171 -> 3.739424704 | E171: =AVERAGE(INDIRECT($D$1&ROW()-$E$4):D171) -> 3.986886633 | F171: -1 | G171: =E171/AVERAGE(INDIRECT($E$1&(ROW()-$H$5)):INDIRECT($E$1&(ROW()-1))) -> 0.6578533943 | I171: -45.87447517 | K171: 0
B172: 1950-07-10 | C172: =data!A172 -> 1951-03-16 | D172: =data!G172 -> 3.739424704 | E172: =AVERAGE(INDIRECT($D$1&ROW()-$E$4):D172) -> 3.904399323 | F172: -1 | G172: =E172/AVERAGE(INDIRECT($E$1&(ROW()-$H$5)):INDIRECT($E$1&(ROW()-1))) -> 0.6492501475 | I172: -46.90890394 | K172: 0
B173: 1950-07-17 | C173: =data!A173 -> 1951-03-23 | D173: =data!G173 -> 3.739424704 | E173: =AVERAGE(INDIRECT($D$1&ROW()-$E$4):D173) -> 3.821912014 | F173: -1 | G173: =E173/AVERAGE(INDIRECT($E$1&(ROW()-$H$5)):INDIRECT($E$1&(ROW()-1))) -> 0.6411594453 | I173: -47.8758993 | K173: 0
B174: 1950-07-24 | C174: =data!A174 -> 1951-03-30 | D174: =data!G174 -> 3.739424704 | E174: =AVERAGE(INDIRECT($D$1&ROW()-$E$4):D174) -> 3.739424704 | F174: -1 | G174: =E174/AVERAGE(INDIRECT($E$1&(ROW()-$H$5)):INDIRECT($E$1&(ROW()-1))) -> 0.6335702597 | I174: -48.77780147 | K174: 0
B175: 1950-07-31 | C175: =data!A175 -> 1951-04-06 | D175: =data!G175 -> 3.695652174 | E175: =AVERAGE(INDIRECT($D$1&ROW()-$E$4):D175) -> 3.728481571 | F175: -1 | G175: =E175/AVERAGE(INDIRECT($E$1&(ROW()-$H$5)):INDIRECT($E$1&(ROW()-1))) -> 0.6387305639 | I175: -48.16509239 | K175: 0
B176: 1950-08-07 | C176: =data!A176 -> 1951-04-13 | D176: =data!G176 -> 3.695652174 | E176: =AVERAGE(INDIRECT($D$1&ROW()-$E$4):D176) -> 3.717538439 | F176: -1 | G176: =E176/AVERAGE(INDIRECT($E$1&(ROW()-$H$5)):INDIRECT($E$1&(ROW()-1))) -> 0.6445653211 | I176: -47.46951915 | K176: 0
B177: 1950-08-14 | C177: =data!A177 -> 1951-04-20 | D177: =data!G177 -> 3.695652174 | E177: =AVERAGE(INDIRECT($D$1&ROW()-$E$4):D177) -> 3.706595306 | F177: -1 | G177: =E177/AVERAGE(INDIRECT($E$1&(ROW()-$H$5)):INDIRECT($E$1&(ROW()-1))) -> 0.649904056 | I177: -46.83050297 | K177: 0
B178: 1950-08-21 | C178: =data!A178 -> 1951-04-27 | D178: =data!G178 -> 3.695652174 | E178: =AVERAGE(INDIRECT($D$1&ROW()-$E$4):D178) -> 3.695652174 | F178: -1 | G178: =E178/AVERAGE(INDIRECT($E$1&(ROW()-$H$5)):INDIRECT($E$1&(ROW()-1))) -> 0.6547139439 | I178: -46.25268809 | K178: 0
B179: 1950-08-28 | C179: =data!A179 -> 1951-05-04 | D179: =data!G179 -> 3.695652174 | E179: =AVERAGE(INDIRECT($D$1&ROW()-$E$4):D179) -> 3.695652174 | F179: -1 | G179: =E179/AVERAGE(INDIRECT($E$1&(ROW()-$H$5)):INDIRECT($E$1&(ROW()-1))) -> 0.6609209389 | I179: -45.50411172 | K179: 0
B180: 1950-09-04 | C180: =data!A180 -> 1951-05-11 | D180: =data!G180 -> 3.409475465 | E180: =AVERAGE(INDIRECT($D$1&ROW()-$E$4):D180) -> 3.624107997 | F180: -1 | G180: =E180/AVERAGE(INDIRECT($E$1&(ROW()-$H$5)):INDIRECT($E$1&(ROW()-1))) -> 0.6536499074 | I180: -46.38068177 | K180: 0
B181: 1950-09-11 | C181: =data!A181 -> 1951-05-18 | D181: =data!G181 -> 3.409475465 | E181: =AVERAGE(INDIRECT($D$1&ROW()-$E$4):D181) -> 3.55256382 | F181: -1 | G181: =E181/AVERAGE(INDIRECT($E$1&(ROW()-$H$5)):INDIRECT($E$1&(ROW()-1))) -> 0.6464762383 | I181: -47.24107541 | K181: 0
B182: 1950-09-18 | C182: =data!A182 -> 1951-05-25 | D182: =data!G182 -> 3.409475465 | E182: =AVERAGE(INDIRECT($D$1&ROW()-$E$4):D182) -> 3.481019642 | F182: -1 | G182: =E182/AVERAGE(INDIRECT($E$1&(ROW()-$H$5)):INDIRECT($E$1&(ROW()-1))) -> 0.6393950938 | I182: -48.08602087 | K182: 0
B183: 1950-09-25 | C183: =data!A183 -> 1951-06-01 | D183: =data!G183 -> 3.409475465 | E183: =AVERAGE(INDIRECT($D$1&ROW()-$E$4):D183) -> 3.409475465 | F183: -1 | G183: =E183/AVERAGE(INDIRECT($E$1&(ROW()-$H$5)):INDIRECT($E$1&(ROW()-1))) -> 0.632401651 | I183: -48.9162343 | K183: 0
B184: 1950-10-02 | C184: =data!A184 -> 1951-06-08 | D184: =data!G184 -> 3.282828283 | E184: =AVERAGE(INDIRECT($D$1&ROW()-$E$4):D184) -> 3.37781367 | F184: -1 | G184: =E184/AVERAGE(INDIRECT($E$1&(ROW()-$H$5)):INDIRECT($E$1&(ROW()-1))) -> 0.6329645988 | I184: -48.84956263 | K184: 0
B185: 1950-10-09 | C185: =data!A185 -> 1951-06-15 | D185: =data!G185 -> 3.282828283 | E185: =AVERAGE(INDIRECT($D$1&ROW()-$E$4):D185) -> 3.346151874 | F185: -1 | G185: =E185/AVERAGE(INDIRECT($E$1&(ROW()-$H$5)):INDIRECT($E$1&(ROW()-1))) -> 0.6335934914 | I185: -48.77504818 | K185: 0
B186: 1950-10-16 | C186: =data!A186 -> 1951-06-22 | D186: =data!G186 -> 3.282828283 | E186: =AVERAGE(INDIRECT($D$1&ROW()-$E$4):D186) -> 3.314490078 | F186: -1 | G186: =E186/AVERAGE(INDIRECT($E$1&(ROW()-$H$5)):INDIRECT($E$1&(ROW()-1))) -> 0.634258746 | I186: -48.69618721 | K186: 0
B187: 1950-10-23 | C187: =data!A187 -> 1951-06-29 | D187: =data!G187 -> 3.282828283 | E187: =AVERAGE(INDIRECT($D$1&ROW()-$E$4):D187) -> 3.282828283 | F187: -1 | G187: =E187/AVERAGE(INDIRECT($E$1&(ROW()-$H$5)):INDIRECT($E$1&(ROW()-1))) -> 0.6349616061 | I187: -48.61282818 | K187: 0
B188: 1950-10-30 | C188: =data!A188 -> 1951-07-06 | D188: =data!G188 -> 3.525423729 | E188: =AVERAGE(INDIRECT($D$1&ROW()-$E$4):D188) -> 3.343477144 | F188: -1 | G188: =E188/AVERAGE(INDIRECT($E$1&(ROW()-$H$5)):INDIRECT($E$1&(ROW()-1))) -> 0.6537529597 | I188: -46.36828996 | K188: 0
B189: 1950-11-06 | C189: =data!A189 -> 1951-07-13 | D189: =data!G189 -> 3.525423729 | E189: =AVERAGE(INDIRECT($D$1&ROW()-$E$4):D189) -> 3.404126006 | F189: -1 | G189: =E189/AVERAGE(INDIRECT($E$1&(ROW()-$H$5)):INDIRECT($E$1&(ROW()-1))) -> 0.6728090497 | I189: -44.06122945 | K189: 0
B190: 1950-11-13 | C190: =data!A190 -> 1951-07-20 | D190: =data!G190 -> 3.525423729 | E190: =AVERAGE(INDIRECT($D$1&ROW()-$E$4):D190) -> 3.464774867 | F190: -1 | G190: =E190/AVERAGE(INDIRECT($E$1&(ROW()-$H$5)):INDIRECT($E$1&(ROW()-1))) -> 0.6921074412 | I190: -41.69360332 | K190: 0
B191: 1950-11-20 | C191: =data!A191 -> 1951-07-27 | D191: =data!G191 -> 3.525423729 | E191: =AVERAGE(INDIRECT($D$1&ROW()-$E$4):D191) -> 3.525423729 | F191: -1 | G191: =E191/AVERAGE(INDIRECT($E$1&(ROW()-$H$5)):INDIRECT($E$1&(ROW()-1))) -> 0.7116412452 | I191: -39.26556982 | K191: 0
B192: 1950-11-27 | C192: =data!A192 -> 1951-08-03 | D192: =data!G192 -> 3.525423729 | E192: =AVERAGE(INDIRECT($D$1&ROW()-$E$4):D192) -> 3.525423729 | F192: -1 | G192: =E192/AVERAGE(INDIRECT($E$1&(ROW()-$H$5)):INDIRECT($E$1&(ROW()-1))) -> 0.7190331818 | I192: -38.33858363 | K192: 0
B193: 1950-12-04 | C193: =data!A193 -> 1951-08-10 | D193: =data!G193 -> 3.392255892 | E193: =AVERAGE(INDIRECT($D$1&ROW()-$E$4):D193) -> 3.49213177 | F193: -1 | G193: =E193/AVERAGE(INDIRECT($E$1&(ROW()-$H$5)):INDIRECT($E$1&(ROW()-1))) -> 0.7196604526 | I193: -38.25971596 | K193: 0
B194: =INT(C194-($G$6/2*7)) -> 1950-12-11 | C194: =data!A194 -> 1951-08-17 | D194: =data!G194 -> 3.392255892 | E194: =AVERAGE(INDIRECT($D$1&ROW()-$E$4):D194) -> 3.458839811 | F194: =-1 -> -1 | G194: =E194/AVERAGE(INDIRECT($E$1&(ROW()-$H$5)):INDIRECT($E$1&(ROW()-1))) -> 0.7203194812 | I194: -38.17681961 | K194: 0
B195: 1950-12-18 | C195: =data!A195 -> 1951-08-24 | D195: =data!G195 -> 3.392255892 | E195: =AVERAGE(INDIRECT($D$1&ROW()-$E$4):D195) -> 3.425547851 | F195: -1 | G195: =E195/AVERAGE(INDIRECT($E$1&(ROW()-$H$5)):INDIRECT($E$1&(ROW()-1))) -> 0.7210113349 | I195: -38.08975779 | K195: 0
B196: 1950-12-25 | C196: =data!A196 -> 1951-08-31 | D196: =data!G196 -> 3.392255892 | E196: =AVERAGE(INDIRECT($D$1&ROW()-$E$4):D196) -> 3.392255892 | F196: -1 | G196: =E196/AVERAGE(INDIRECT($E$1&(ROW()-$H$5)):INDIRECT($E$1&(ROW()-1))) -> 0.7217371322 | I196: -37.99838163 | K196: 0
B197: 1951-01-01 | C197: =data!A197 -> 1951-09-07 | D197: =data!G197 -> 3.403716216 | E197: =AVERAGE(INDIRECT($D$1&ROW()-$E$4):D197) -> 3.395120973 | F197: -1 | G197: =E197/AVERAGE(INDIRECT($E$1&(ROW()-$H$5)):INDIRECT($E$1&(ROW()-1))) -> 0.730275263 | I197: -36.9202476 | K197: 0
B198: 1951-01-08 | C198: =data!A198 -> 1951-09-14 | D198: =data!G198 -> 3.403716216 | E198: =AVERAGE(INDIRECT($D$1&ROW()-$E$4):D198) -> 3.397986054 | F198: -1 | G198: =E198/AVERAGE(INDIRECT($E$1&(ROW()-$H$5)):INDIRECT($E$1&(ROW()-1))) -> 0.7389963265 | I198: -35.81293516 | K198: 0
B199: 1951-01-15 | C199: =data!A199 -> 1951-09-21 | D199: =data!G199 -> 3.403716216 | E199: =AVERAGE(INDIRECT($D$1&ROW()-$E$4):D199) -> 3.400851135 | F199: -1 | G199: =E199/AVERAGE(INDIRECT($E$1&(ROW()-$H$5)):INDIRECT($E$1&(ROW()-1))) -> 0.7475562778 | I199: -34.72014152 | K199: 0
B200: 1951-01-22 | C200: =data!A200 -> 1951-09-28 | D200: =data!G200 -> 3.403716216 | E200: =AVERAGE(INDIRECT($D$1&ROW()-$E$4):D200) -> 3.403716216 | F200: -1 | G200: =E200/AVERAGE(INDIRECT($E$1&(ROW()-$H$5)):INDIRECT($E$1&(ROW()-1))) -> 0.7559375022 | I200: -33.64450194 | K200: =$K$5+$I$5 -> 0
B201: 1951-01-29 | C201: =data!A201 -> 1951-10-05 | D201: =data!G201 -> 3.403716216 | E201: =AVERAGE(INDIRECT($D$1&ROW()-$E$4):D201) -> 3.403716216 | F201: -1 | G201: =E201/AVERAGE(INDIRECT($E$1&(ROW()-$H$5)):INDIRECT($E$1&(ROW()-1))) -> 0.7634794931 | I201: -32.67180689 | K201: 0
B202: 1951-02-05 | C202: =data!A202 -> 1951-10-12 | D202: =data!G202 -> 3.629441624 | E202: =AVERAGE(INDIRECT($D$1&ROW()-$E$4):D202) -> 3.460147568 | F202: -1 | G202: =E202/AVERAGE(INDIRECT($E$1&(ROW()-$H$5)):INDIRECT($E$1&(ROW()-1))) -> 0.7835811157 | I202: -30.0574363 | K202: 0
... 3377 more rows

Sheet Prob
A1: =IF(CELL("COL",A1:A1)>26,CHAR(64+INT(CELL("COL",A1:A1)/26.1)),"")&CHAR(MOD(CELL("COL",A1:A1)-1,26)+65) -> A | G1: =IF(CELL("COL",G1:G1)>26,CHAR(64+INT(CELL("COL",G1:G1)/26.1)),"")&CHAR(MOD(CELL("COL",G1:G1)-1,26)+65) -> G | M1: =IF(CELL("COL",M1:M1)>26,CHAR(64+INT(CELL("COL",M1:M1)/26.1)),"")&CHAR(MOD(CELL("COL",M1:M1)-1,26)+65) -> M | N1: N | O1: O | P1: P | Q1: Q | R1: R | S1: =IF(CELL("COL",S1:S1)>26,CHAR(64+INT(CELL("COL",S1:S1)/26.1)),"")&CHAR(MOD(CELL("COL",S1:S1)-1,26)+65) -> S
G2: unemploymnt | M2: UER | N2: UER | O2: slope of | P2: slope of | Q2: delta EMA | R2: UER | S2: UER rate | T2: Probab. | U2: Probab. | V2: recession | X2: zero
G3: real-time | M3: shortEMA | N3: longEMA | O3: longEMA | P3: longEMA> | Q3: > | R3: shortEMA | S3: of change | V3: dates
M4: N= | N4: N= | O4: 10 | P4: 0.025 | Q4: 0.07 | R4: N= | S4: 19 | U4: 100
A5: 1948-01-02 | M5: 12 | N5: 60 | O5: days | P5: and | R5: 3 | W5: =IF(ISNUMBER(V5),2000,-2000) -> -2000 | X5: 0
A6: 1948-01-09 | M6: =2/(1+M5) -> 0.1538461538 | N6: =2/(1+N5) -> 0.03278688525 | P6: UERg>0 | R6: =2/(1+R5) -> 0.5 | W6: -2000 | X6: 0
A7: 1948-01-16 | W7: -2000 | X7: 0
A8: 1948-01-23 | W8: -2000 | X8: 0
A9: 1948-01-30 | W9: -2000 | X9: 0
A10: 1948-02-06 | W10: -2000 | X10: 0
A11: 1948-02-13 | G11: 3.4 | W11: -2000 | X11: 0
A12: 1948-02-20 | G12: 3.4 | M12: =G12 -> 3.4 | N12: =M12 -> 3.4 | R12: =G12 -> 3.4 | W12: -2000 | X12: 0
A13: 1948-02-27 | G13: 3.4 | M13: =M12+M$6*($G13-M12) -> 3.4 | N13: =N12+N$6*(G13-N12) -> 3.4 | R13: =R12+R$6*($G13-R12) -> 3.4 | W13: -2000 | X13: 0
A14: 1948-03-05 | G14: 3.4 | M14: =M13+M$6*(G14-M13) -> 3.4 | N14: 3.4 | R14: =R13+R$6*($G14-R13) -> 3.4 | W14: -2000 | X14: 0
A15: 1948-03-12 | G15: 3.4 | M15: 3.4 | N15: 3.4 | R15: 3.4 | W15: -2000 | X15: 0
A16: 1948-03-19 | G16: 3.8 | M16: 3.461538462 | N16: 3.413114754 | R16: 3.6 | W16: -2000 | X16: 0
A17: 1948-03-26 | G17: 3.8 | M17: 3.513609467 | N17: 3.425799516 | R17: 3.7 | W17: -2000 | X17: 0
A18: 1948-04-02 | G18: 3.8 | M18: 3.557669549 | N18: 3.438068385 | R18: 3.75 | W18: -2000 | X18: 0
A19: 1948-04-09 | G19: 3.8 | M19: 3.594951157 | N19: 3.449934995 | R19: 3.775 | W19: -2000 | X19: 0
A20: 1948-04-16 | G20: 4 | M20: 3.657266364 | N20: 3.467969913 | R20: 3.8875 | W20: -2000 | X20: 0
A21: 1948-04-23 | G21: 4 | M21: 3.709994615 | N21: 3.485413523 | R21: 3.94375 | W21: -2000 | X21: 0
A22: 1948-04-30 | G22: 4 | M22: 3.754610828 | N22: 3.50228521 | O22: =N22-INDIRECT($N$1&ROW()-$O$4) -> 0.1022852103 | P22: =IF(AND(growth!K22>0,O22>$P$4),1,0) -> 0 | R22: 3.971875 | W22: -2000 | X22: 0
A23: 1948-05-07 | G23: 4 | M23: 3.792363009 | N23: 3.518603728 | O23: 0.118603728 | P23: =IF(AND(growth!K23>0,O23>$P$4),1,0) -> 0 | R23: 3.9859375 | W23: -2000 | X23: 0
A24: 1948-05-14 | G24: 3.9 | M24: 3.808922546 | N24: 3.531108524 | O24: 0.1311085238 | P24: =IF(AND(growth!K24>0,O24>$P$4),1,0) -> 0 | R24: 3.94296875 | W24: -2000 | X24: 0
A25: 1948-05-21 | G25: 3.9 | M25: 3.822934462 | N25: 3.543203326 | O25: 0.1432033263 | P25: =IF(AND(growth!K25>0,O25>$P$4),1,0) -> 0 | R25: 3.921484375 | W25: -2000 | X25: 0
A26: 1948-05-28 | G26: 3.9 | M26: 3.834790699 | N26: 3.554901578 | O26: 0.1417868238 | P26: =IF(AND(growth!K26>0,O26>$P$4),1,0) -> 0 | R26: 3.910742187 | W26: -2000 | X26: 0
A27: 1948-06-04 | G27: 3.9 | M27: 3.844822899 | N27: 3.56621628 | O27: 0.140416764 | P27: =IF(AND(growth!K27>0,O27>$P$4),1,0) -> 0 | R27: 3.905371094 | W27: -2000 | X27: 0
A28: 1948-06-11 | G28: 3.9 | M28: 3.853311684 | N28: 3.577160009 | O28: 0.1390916242 | P28: =IF(AND(growth!K28>0,O28>$P$4),1,0) -> 0 | R28: 3.902685547 | W28: -2000 | X28: 0
A29: 1948-06-18 | G29: 3.5 | M29: 3.79895604 | N29: 3.574630172 | O29: 0.1246951775 | P29: =IF(AND(growth!K29>0,O29>$P$4),1,0) -> 0 | R29: 3.701342773 | W29: -2000 | X29: 0
A30: 1948-06-25 | G30: 3.5 | M30: 3.752962803 | N30: 3.572183282 | O30: 0.1042133684 | P30: =IF(AND(growth!K30>0,O30>$P$4),1,0) -> 0 | R30: 3.600671387 | W30: -2000 | X30: 0
A31: 1948-07-02 | G31: 3.5 | M31: 3.714045449 | N31: 3.569816617 | O31: 0.08440309404 | P31: =IF(AND(growth!K31>0,O31>$P$4),1,0) -> 0 | Q31: =IF(OR(M31-N31>$Q$4,P31=1),1,0) -> 1 | R31: 3.550335693 | S31: =(R31-INDIRECT($R$1&ROW()-$S$4))/INDIRECT($R$1&ROW()-$S$4)*100 -> 4.42163804 | T31: =1/(1+EXP(-(-4.11261712472703 - 0.0627034767430871*R31 - 1.59012907637327*O31 + 0.87573350914687*P31 + 2.67040134362929*Q31 + 0.216308687788336*S31))) -> 0.3009859483 | U31: =T31*$U$4 -> 30.09859483 | W31: -2000 | X31: 0
A32: 1948-07-09 | G32: 3.5 | M32: 3.68111538 | N32: 3.567527547 | O32: 0.06524233686 | P32: =IF(AND(growth!K32>0,O32>$P$4),1,0) -> 0 | Q32: =IF(OR(M32-N32>$Q$4,P32=1),1,0) -> 1 | R32: 3.525167847 | S32: =(R32-INDIRECT($R$1&ROW()-$S$4))/INDIRECT($R$1&ROW()-$S$4)*100 -> 3.681407255 | T32: =1/(1+EXP(-(-4.11261712472703 - 0.0627034767430871*R32 - 1.59012907637327*O32 + 0.87573350914687*P32 + 2.67040134362929*Q32 + 0.216308687788336*S32))) -> 0.274745099 | U32: =T32*$U$4 -> 27.4745099 | W32: -2000 | X32: 0
A33: 1948-07-16 | G33: 3.6 | M33: 3.66863609 | N33: 3.568592218 | O33: 0.04998848975 | P33: =IF(AND(growth!K33>0,O33>$P$4),1,0) -> 0 | Q33: 1 | R33: 3.562583923 | S33: 4.781880098 | T33: 0.329437972 | U33: 32.9437972 | W33: -2000 | X33: 0
A34: 1948-07-23 | G34: 3.6 | M34: 3.658076692 | N34: 3.569621981 | O34: 0.03851345729 | P34: =IF(AND(growth!K34>0,O34>$P$4),1,0) -> 0 | Q34: 1 | R34: 3.581291962 | S34: 5.33211652 | T34: 0.3601683626 | U34: 36.01683626 | W34: -2000 | X34: 0
A35: 1948-07-30 | G35: 3.6 | M35: 3.649141816 | N35: 3.570617982 | O35: 0.02741465542 | P35: =IF(AND(growth!K35>0,O35>$P$4),1,0) -> 0 | Q35: 1 | R35: 3.590645981 | S35: -0.2598338657 | T35: 0.1458959995 | U35: 14.58959995 | W35: -2000 | X35: 0
A36: 1948-08-06 | G36: 3.6 | M36: 3.641581537 | N36: 3.571581327 | O36: 0.01667974868 | P36: =IF(AND(growth!K36>0,O36>$P$4),1,0) -> 0 | Q36: 1 | R36: 3.59532299 | S36: -2.829108367 | T36: 0.09061583065 | U36: 9.061583065 | W36: -2000 | X36: 0
A37: 1948-08-13 | G37: 3.6 | M37: 3.635184377 | N37: 3.572513086 | O37: 0.006296806101 | P37: =IF(AND(growth!K37>0,O37>$P$4),1,0) -> 0 | Q37: 0 | R37: 3.597661495 | S37: -4.062360128 | T37: 0.005341252518 | U37: 0.5341252518 | W37: -2000 | X37: 0
A38: 1948-08-20 | G38: 3.6 | M38: 3.629771396 | N38: 3.573414297 | O38: -0.003745712131 | P38: =IF(AND(growth!K38>0,O38>$P$4),1,0) -> 0 | Q38: 0 | R38: 3.598830748 | S38: -4.666735163 | T38: 0.004764553461 | U38: 0.4764553461 | W38: -2000 | X38: 0
A39: 1948-08-27 | G39: 3.6 | M39: 3.625191181 | N39: 3.574285959 | O39: -0.0003442133729 | P39: =IF(AND(growth!K39>0,O39>$P$4),1,0) -> 0 | Q39: 0 | R39: 3.599415374 | S39: -7.410537008 | T39: 0.002623211801 | U39: 0.2623211801 | W39: -2000 | X39: 0
A40: 1948-09-03 | G40: 3.6 | M40: 3.621315615 | N40: 3.575129042 | O40: 0.002945760836 | P40: =IF(AND(growth!K40>0,O40>$P$4),1,0) -> 0 | Q40: 0 | R40: 3.599707687 | S40: -8.723735356 | T40: 0.00196551173 | U40: 0.196551173 | W40: -2000 | X40: 0
A41: 1948-09-10 | G41: 3.6 | M41: 3.61803629 | N41: 3.575944484 | O41: 0.006127867038 | P41: =IF(AND(growth!K41>0,O41>$P$4),1,0) -> 0 | Q41: 0 | R41: 3.599853843 | S41: -9.366386318 | T41: 0.001702225127 | U41: 0.1702225127 | W41: -2000 | X41: 0
A42: 1948-09-17 | G42: 3.9 | M42: 3.661415322 | N42: 3.586569255 | O42: 0.01904170746 | P42: =IF(AND(growth!K42>0,O42>$P$4),1,0) -> 0 | Q42: 1 | R42: 3.749926922 | S42: -5.921080756 | T42: 0.04795226137 | U42: 4.795226137 | W42: -2000 | X42: 0
A43: 1948-09-24 | G43: 3.9 | M43: 3.698120657 | N43: 3.596845673 | O43: 0.02825345476 | P43: =IF(AND(growth!K43>0,O43>$P$4),1,0) -> 0 | Q43: 1 | R43: 3.824963461 | S43: -2.992803053 | T43: 0.08514964794 | U43: 8.514964794 | W43: -2000 | X43: 0
A44: 1948-10-01 | G44: 3.9 | M44: 3.729179018 | N44: 3.606785159 | O44: 0.03716317755 | P44: =IF(AND(growth!K44>0,O44>$P$4),1,0) -> 0 | Q44: 1 | R44: 3.86248173 | S44: -1.504599762 | T44: 0.1121506457 | U44: 11.21506457 | W44: -2000 | X44: 0
A45: 1948-10-08 | G45: 3.9 | M45: 3.755459169 | N45: 3.61639876 | O45: 0.04578077829 | P45: =IF(AND(growth!K45>0,O45>$P$4),1,0) -> 0 | Q45: 1 | R45: 3.881240865 | S45: -0.7543663292 | T45: 0.1276881063 | U45: 12.76881063 | W45: -2000 | X45: 0
A46: 1948-10-15 | G46: 3.8 | M46: 3.762311604 | N46: 3.622418473 | O46: 0.05083714622 | P46: =IF(AND(growth!K46>0,O46>$P$4),1,0) -> 0 | Q46: 1 | R46: 3.840620433 | S46: -1.657989973 | T46: 0.106928019 | U46: 10.6928019 | W46: -2000 | X46: 0
A47: 1948-10-22 | G47: 3.8 | M47: 3.768109819 | N47: 3.628240818 | O47: 0.05572773159 | P47: =IF(AND(growth!K47>0,O47>$P$4),1,0) -> 0 | Q47: 1 | R47: 3.820310216 | S47: -2.110734508 | T47: 0.09735660277 | U47: 9.735660277 | W47: -2000 | X47: 0
A48: 1948-10-29 | G48: 3.8 | M48: 3.773016001 | N48: 3.633872267 | O48: 0.06045796989 | P48: =IF(AND(growth!K48>0,O48>$P$4),1,0) -> 0 | Q48: 1 | R48: 3.810155108 | S48: 2.939807021 | T48: 0.2420714976 | U48: 24.20714976 | W48: -2000 | X48: 0
A49: 1948-11-05 | G49: 3.8 | M49: 3.777167385 | N49: 3.639319077 | O49: 0.06503311842 | P49: =IF(AND(growth!K49>0,O49>$P$4),1,0) -> 0 | Q49: 1 | R49: 3.805077554 | S49: 5.676890374 | T49: 0.3644137929 | U49: 36.44137929 | W49: -2000 | X49: 0
A50: 1948-11-12 | G50: 3.7 | M50: 3.76529548 | N50: 3.641308616 | O50: 0.06617957356 | P50: =IF(AND(growth!K50>0,O50>$P$4),1,0) -> 0 | Q50: 1 | R50: 3.752538777 | S50: 5.695322954 | T50: 0.3656789994 | U50: 36.56789994 | W50: -2000 | X50: 0
A51: 1948-11-19 | G51: 3.7 | M51: 3.755250021 | N51: 3.643232924 | O51: 0.06728844 | P51: =IF(AND(growth!K51>0,O51>$P$4),1,0) -> 0 | Q51: 1 | R51: 3.726269389 | S51: 5.704736642 | T51: 0.3661245206 | U51: 36.61245206 | W51: -2000 | X51: 0
A52: 1948-11-26 | G52: 3.7 | M52: 3.746750018 | N52: 3.645094139 | O52: 0.05852488459 | P52: =IF(AND(growth!K52>0,O52>$P$4),1,0) -> 0 | Q52: 1 | R52: 3.713134694 | S52: 4.225887001 | T52: 0.2985927049 | U52: 29.85927049 | W52: -2000 | X52: 0
A53: 1948-12-03 | G53: 3.7 | M53: 3.739557708 | N53: 3.646894331 | O53: 0.05004865886 | P53: =IF(AND(growth!K53>0,O53>$P$4),1,0) -> 0 | Q53: 1 | R53: 3.706567347 | S53: 3.498050056 | T53: 0.2694222809 | U53: 26.94222809 | V53: 1948-12-03 | W53: 2000 | X53: 0 | Y53: =T53 -> 0.2694222809
A54: 1948-12-10 | G54: 3.7 | M54: 3.733471906 | N54: 3.648635501 | O54: 0.04185034218 | P54: =IF(AND(growth!K54>0,O54>$P$4),1,0) -> 0 | Q54: 1 | R54: 3.703283674 | S54: 3.136975723 | T54: 0.2568478555 | U54: 25.68478555 | V54: 1948-12-10 | W54: 2000 | X54: 0
A55: 1948-12-17 | G55: 3.8 | M55: 3.743706998 | N55: 3.653598271 | O55: 0.03719951129 | P55: =IF(AND(growth!K55>0,O55>$P$4),1,0) -> 0 | Q55: 1 | R55: 3.751641837 | S55: 4.347838756 | T55: 0.3108532084 | U55: 31.08532084 | V55: 1948-12-17 | W55: 2000 | X55: 0
A56: 1948-12-24 | G56: 3.8 | M56: 3.75236746 | N56: 3.658398328 | O56: 0.03597985518 | P56: =IF(AND(growth!K56>0,O56>$P$4),1,0) -> 0 | Q56: 1 | R56: 3.775820918 | S56: 4.952089668 | T56: 0.3396160987 | U56: 33.96160987 | V56: 1948-12-24 | W56: 2000 | X56: 0
A57: 1948-12-31 | G57: 3.8 | M57: 3.759695543 | N57: 3.663041006 | O57: 0.0348001878 | P57: =IF(AND(growth!K57>0,O57>$P$4),1,0) -> 0 | Q57: 1 | R57: 3.787910459 | S57: 5.253920644 | T57: 0.3546642752 | U57: 35.46642752 | V57: 1948-12-31 | W57: 2000 | X57: 0
A58: 1949-01-07 | G58: 3.8 | M58: 3.765896228 | N58: 3.667531465 | O58: 0.03365919803 | P58: =IF(AND(growth!K58>0,O58>$P$4),1,0) -> 0 | Q58: 1 | R58: 3.79395523 | S58: 5.404762596 | T58: 0.3624987229 | U58: 36.24987229 | V58: 1949-01-07 | W58: 2000 | X58: 0
A59: 1949-01-14 | G59: 4 | M59: 3.801912193 | N59: 3.678432072 | O59: 0.03911299482 | P59: =IF(AND(growth!K59>0,O59>$P$4),1,0) -> 0 | Q59: 1 | R59: 3.896977615 | S59: 8.258168545 | T59: 0.5093861634 | U59: 50.93861634 | V59: 1949-01-14 | W59: 2000 | X59: 0
A60: 1949-01-21 | G60: 4 | M60: 3.832387241 | N60: 3.688975283 | O60: 0.04766666712 | P60: =IF(AND(growth!K60>0,O60>$P$4),1,0) -> 0 | Q60: 1 | R60: 3.948488807 | S60: 9.684697744 | T60: 0.5815862114 | U60: 58.15862114 | V60: 1949-01-21 | W60: 2000 | X60: 0
A61: 1949-01-28 | G61: 4 | M61: 3.858173819 | N61: 3.699172815 | O61: 0.05593989115 | P61: =IF(AND(growth!K61>0,O61>$P$4),1,0) -> 0 | Q61: 1 | R61: 3.974244404 | S61: 5.981916092 | T61: 0.3807358832 | U61: 38.07358832 | V61: 1949-01-28 | W61: 2000 | X61: 0
A62: 1949-02-04 | G62: 4 | M62: 3.879993231 | N62: 3.709036001 | O62: 0.06394186193 | P62: =IF(AND(growth!K62>0,O62>$P$4),1,0) -> 0 | Q62: 1 | R62: 3.987122202 | S62: 4.239484707 | T62: 0.2938287525 | U62: 29.38287525 | V62: 1949-02-04 | W62: 2000 | X62: 0
A63: 1949-02-11 | G63: 4 | M63: 3.898455811 | N63: 3.718575804 | O63: 0.07168147301 | P63: =IF(AND(growth!K63>0,O63>$P$4),1,0) -> 0 | Q63: 1 | R63: 3.993561101 | S63: 3.393656712 | T63: 0.2549219969 | U63: 25.49219969 | V63: 1949-02-11 | W63: 2000 | X63: 0
A64: 1949-02-18 | G64: 4.3 | M64: 3.96023184 | N64: 3.737638893 | O64: 0.08900339193 | P64: =IF(AND(growth!K64>0,O64>$P$4),1,0) -> 0 | Q64: 1 | R64: 4.14678055 | S64: 6.841618299 | T64: 0.4100257949 | U64: 41.00257949 | V64: 1949-02-18 | W64: 2000 | X64: 0
A65: 1949-02-25 | G65: 4.3 | M65: 4.012503865 | N65: 3.756076962 | O65: 0.1024786906 | P65: =IF(AND(growth!K65>0,O65>$P$4),1,0) -> 0 | Q65: 1 | R65: 4.223390275 | S65: 9.966354378 | T65: 0.5709719192 | U65: 57.09719192 | V65: 1949-02-25 | W65: 2000 | X65: 0
A66: 1949-03-04 | G66: 4.3 | M66: 4.056734039 | N66: 3.773910504 | O66: 0.1155121761 | P66: =IF(AND(growth!K66>0,O66>$P$4),1,0) -> 0 | Q66: 1 | R66: 4.261695138 | S66: 11.55364084 | T66: 0.647035742 | U66: 64.7035742 | V66: 1949-03-04 | W66: 2000 | X66: 0
A67: 1949-03-11 | G67: 4.3 | M67: 4.094159572 | N67: 3.79115934 | O67: 0.1281183343 | P67: =IF(AND(growth!K67>0,O67>$P$4),1,0) -> 0 | Q67: 1 | R67: 4.280847569 | S67: 12.3536299 | T67: 0.6808830649 | U67: 68.08830649 | V67: 1949-03-11 | W67: 2000 | X67: 0
A68: 1949-03-18 | G68: 4.7 | M68: 4.187365792 | N68: 3.820957394 | O68: 0.1534259299 | P68: =IF(AND(growth!K68>0,O68>$P$4),1,0) -> 0 | Q68: 1 | R68: 4.490423784 | S68: 18.01136036 | T68: 0.873057338 | U68: 87.3057338 | V68: 1949-03-18 | W68: 2000 | X68: 0
A69: 1949-03-25 | G69: 4.7 | M69: 4.266232593 | N69: 3.849778463 | O69: 0.1713463912 | P69: =IF(AND(growth!K69>0,O69>$P$4),1,0) -> 0 | Q69: 1 | R69: 4.595211892 | S69: 22.45608014 | T69: 0.945557562 | U69: 94.5557562 | V69: 1949-03-25 | W69: =IF(ISNUMBER(V69),2000,-2000) -> 2000 | X69: 0
A70: 1949-04-01 | G70: 4.7 | M70: 4.33296604 | N70: 3.877654579 | O70: 0.1886792964 | P70: =IF(AND(growth!K70>0,O70>$P$4),1,0) -> 0 | Q70: 1 | R70: 4.647605946 | S70: 24.72544149 | T70: 0.9649285462 | U70: 96.49285462 | V70: 1949-04-01 | W70: 2000 | X70: 0
A71: 1949-04-08 | G71: 4.7 | M71: 4.389432803 | N71: 3.904616724 | O71: 0.2054439096 | P71: =IF(AND(growth!K71>0,O71>$P$4),1,0) -> 0 | Q71: 1 | R71: 4.673802973 | S71: 25.87216349 | T71: 0.9716511926 | U71: 97.16511926 | V71: 1949-04-08 | W71: 2000 | X71: 0
A72: 1949-04-15 | G72: 5 | M72: 4.483366218 | N72: 3.94053093 | O72: 0.231494929 | P72: =IF(AND(growth!K72>0,O72>$P$4),1,0) -> 0 | Q72: 1 | R72: 4.836901487 | S72: 30.49544318 | T72: 0.9888247561 | U72: 98.88247561 | V72: 1949-04-15 | W72: 2000 | X72: 0
A73: 1949-04-22 | G73: 5 | M73: 4.562848338 | N73: 3.975267621 | O73: 0.2566918166 | P73: =IF(AND(growth!K73>0,O73>$P$4),1,0) -> 0 | Q73: 1 | R73: 4.918450743 | S73: 32.81323217 | T73: 0.9928891294 | U73: 99.28891294 | V73: 1949-04-22 | W73: 2000 | X73: 0
A74: 1949-04-29 | G74: 5 | M74: 4.63010244 | N74: 4.008865404 | O74: 0.2712265111 | P74: =IF(AND(growth!K74>0,O74>$P$4),1,0) -> 0 | Q74: 1 | R74: 4.959225372 | S74: 32.18813489 | T74: 0.9916583004 | U74: 99.16583004 | V74: 1949-04-29 | W74: 2000 | X74: 0
A75: 1949-05-06 | G75: 5 | M75: 4.687009757 | N75: 4.04136162 | O75: 0.2852846583 | P75: =IF(AND(growth!K75>0,O75>$P$4),1,0) -> 0 | Q75: 1 | R75: 4.979612686 | S75: 31.88159061 | T75: 0.9908804261 | U75: 99.08804261 | V75: 1949-05-06 | W75: 2000 | X75: 0
A76: 1949-05-13 | G76: 5.3 | M76: 4.781315948 | N76: 4.082628452 | O76: 0.3087179482 | P76: =IF(AND(growth!K76>0,O76>$P$4),1,0) -> 0 | Q76: 1 | R76: 5.139806343 | S76: 35.68975292 | T76: 0.9957838286 | U76: 99.57838286 | V76: 1949-05-13 | W76: 2000 | X76: 0
A77: 1949-05-20 | G77: 5.3 | M77: 4.861113495 | N77: =N76+N$6*(G77-N76) -> 4.122542273 | O77: 0.3313829335 | P77: =IF(AND(growth!K77>0,O77>$P$4),1,0) -> 0 | Q77: 1 | R77: 5.219903171 | S77: 37.58473297 | T77: 0.997080563 | U77: 99.7080563 | V77: 1949-05-20 | W77: 2000 | X77: 0
A78: 1949-05-27 | G78: 5.3 | M78: =M77+M$6*(G78-M77) -> 4.928634496 | N78: 4.161147445 | O78: 0.3401900504 | P78: =IF(AND(growth!K78>0,O78>$P$4),1,0) -> 0 | Q78: 1 | R78: =R77+R$6*($G78-R77) -> 5.259951586 | S78: 34.97515525 | T78: 0.9947925857 | U78: 99.47925857 | V78: 1949-05-27 | W78: 2000 | X78: 0
A79: 1949-06-03 | G79: 5.3 | M79: 4.98576765 | N79: 4.198486873 | O79: 0.3487084094 | P79: =IF(AND(growth!K79>0,O79>$P$4),1,0) -> 0 | Q79: 1 | R79: 5.279975793 | S79: 33.72143244 | T79: 0.9930804353 | U79: 99.30804353 | V79: 1949-06-03 | W79: 2000 | X79: 0
A80: 1949-06-10 | G80: 5.3 | M80: 5.034111089 | N80: 4.234602057 | O80: 0.356947478 | P80: =IF(AND(growth!K80>0,O80>$P$4),1,0) -> 0 | Q80: 1 | R80: 5.289987896 | S80: 33.10675839 | T80: 0.9919959431 | U80: 99.19959431 | V80: 1949-06-10 | W80: 2000 | X80: 0
A81: 1949-06-17 | G81: 6.1 | M81: 5.198093998 | N81: 4.295762646 | O81: 0.3911459213 | P81: =IF(AND(growth!K81>0,O81>$P$4),1,0) -> 0 | Q81: 1 | R81: 5.694993948 | S81: 42.83469781 | T81: 0.9989355511 | U81: 99.89355511 | V81: 1949-06-17 | W81: 2000 | X81: 0
A82: 1949-06-24 | G82: 6.1 | M82: 5.336848768 | N82: 4.354917969 | O82: 0.4143870386 | P82: =IF(AND(growth!K82>0,O82>$P$4),1,0) -> 0 | Q82: 1 | R82: 5.897496974 | S82: 47.67514068 | T82: 0.9996071182 | U82: 99.96071182 | V82: 1949-06-24 | W82: 2000 | X82: 0
A83: 1949-07-01 | G83: 6.1 | M83: 5.454256649 | N83: 4.412133773 | O83: 0.4368661521 | P83: =IF(AND(growth!K83>0,O83>$P$4),1,0) -> 0 | Q83: 1 | R83: 5.998748487 | S83: 44.66037964 | T83: 0.9992137085 | U83: 99.92137085 | V83: 1949-07-01 | W83: 2000 | X83: 0
A84: 1949-07-08 | G84: 6.1 | M84: 5.55360178 | N84: 4.467473649 | O84: 0.4586082455 | P84: =IF(AND(growth!K84>0,O84>$P$4),1,0) -> 0 | Q84: 1 | R84: 6.049374244 | S84: 43.23502801 | T84: 0.9988889447 | U84: 99.88889447 | V84: 1949-07-08 | W84: 2000 | X84: 0
A85: 1949-07-15 | G85: 6.2 | M85: 5.65304766 | N85: 4.524277792 | O85: 0.4829161719 | P85: =IF(AND(growth!K85>0,O85>$P$4),1,0) -> 0 | Q85: 1 | R85: 6.124687122 | S85: 43.71481122 | T85: 0.9989540043 | U85: 99.89540043 | V85: 1949-07-15 | W85: 2000 | X85: 0
A86: 1949-07-22 | G86: 6.2 | M86: 5.737194174 | N86: 4.579219504 | O86: =N86-INDIRECT($N$1&ROW()-$O$4) -> 0.4965910515 | P86: =IF(AND(growth!K86>0,O86>$P$4),1,0) -> 1 | Q86: 1 | R86: 6.162343561 | S86: 43.95148301 | T86: 0.9995756642 | U86: 99.95756642 | V86: 1949-07-22 | W86: 2000 | X86: 0
A87: 1949-07-29 | G87: 6.2 | M87: 5.80839507 | N87: 4.632359848 | O87: 0.5098175744 | P87: =IF(AND(growth!K87>0,O87>$P$4),1,0) -> 1 | Q87: 1 | R87: 6.18117178 | S87: 37.6523036 | T87: 0.9983073763 | U87: 99.83073763 | V87: 1949-07-29 | W87: 2000 | X87: 0
A88: 1949-08-05 | G88: 6.2 | M88: 5.868641983 | N88: 4.683757886 | O88: 0.5226104408 | P88: =IF(AND(growth!K88>0,O88>$P$4),1,0) -> 1 | Q88: 1 | R88: 6.19058589 | S88: 34.71818135 | T88: 0.9967445781 | U88: 99.67445781 | V88: 1949-08-05 | W88: 2000 | X88: 0
A89: 1949-08-12 | G89: 6.7 | M89: 5.996543216 | N89: 4.749864184 | O89: 0.5513773116 | P89: =IF(AND(growth!K89>0,O89>$P$4),1,0) -> 1 | Q89: 1 | R89: 6.445292945 | S89: 38.67984979 | T89: 0.9985276203 | U89: 99.85276203 | V89: 1949-08-12 | W89: 2000 | X89: 0
A90: 1949-08-19 | G90: 6.7 | M90: 6.104767337 | N90: 4.813803064 | O90: 0.5792010063 | P90: =IF(AND(growth!K90>0,O90>$P$4),1,0) -> 1 | Q90: 1 | R90: 6.572646473 | S90: 40.62737583 | T90: 0.9989815352 | U90: 99.89815352 | V90: 1949-08-19 | W90: 2000 | X90: 0
A91: 1949-08-26 | G91: 6.7 | M91: 6.196341593 | N91: 4.875645586 | O91: 0.5798829405 | P91: =IF(AND(growth!K91>0,O91>$P$4),1,0) -> 1 | Q91: 1 | R91: 6.636323236 | S91: 37.2019516 | T91: 0.9978548831 | U91: 99.78548831 | V91: 1949-08-26 | W91: 2000 | X91: 0
A92: 1949-09-02 | G92: 6.7 | M92: 6.273827501 | N92: 4.935460485 | O92: 0.5805425162 | P92: =IF(AND(growth!K92>0,O92>$P$4),1,0) -> 1 | Q92: 1 | R92: 6.668161618 | S92: 35.57443118 | T92: 0.9969431897 | U92: 99.69431897 | V92: 1949-09-02 | W92: 2000 | X92: 0
A93: 1949-09-09 | G93: 6.7 | M93: 6.339392501 | N93: 4.99331424 | O93: 0.5811804665 | P93: =IF(AND(growth!K93>0,O93>$P$4),1,0) -> 1 | Q93: 1 | R93: 6.684080809 | S93: 34.78074312 | T93: 0.9963654455 | U93: 99.63654455 | V93: 1949-09-09 | W93: 2000 | X93: 0
A94: 1949-09-16 | G94: 6.8 | M94: 6.410255193 | N94: 5.052549838 | O94: 0.5850761889 | P94: =IF(AND(growth!K94>0,O94>$P$4),1,0) -> 1 | Q94: 1 | R94: 6.742040405 | S94: 35.39286748 | T94: 0.996783393 | U94: 99.6783393 | V94: 1949-09-16 | W94: 2000 | X94: 0
A95: 1949-09-23 | G95: 6.8 | M95: 6.470215933 | N95: 5.109843286 | O95: 0.5855654942 | P95: =IF(AND(growth!K95>0,O95>$P$4),1,0) -> 1 | Q95: 1 | R95: 6.771020202 | S95: 31.73687393 | T95: 0.9929158643 | U95: 99.29158643 | V95: 1949-09-23 | W95: 2000 | X95: 0
A96: 1949-09-30 | G96: 6.8 | M96: 6.520951943 | N96: 5.16525826 | O96: 0.5860387567 | P96: =IF(AND(growth!K96>0,O96>$P$4),1,0) -> 1 | Q96: =IF(OR(M96-N96>$Q$4,P96=1),1,0) -> 1 | R96: 6.785510101 | S96: =(R96-INDIRECT($R$1&ROW()-$S$4))/INDIRECT($R$1&ROW()-$S$4)*100 -> 29.99302627 | T96: =1/(1+EXP(-(-4.11261712472703 - 0.0627034767430871*R96 - 1.59012907637327*O96 + 0.87573350914687*P96 + 2.67040134362929*Q96 + 0.216308687788336*S96))) -> 0.9896863268 | U96: =T96*$U$4 -> 98.96863268 | V96: 1949-09-30 | W96: 2000 | X96: 0
A97: 1949-10-07 | G97: 6.8 | M97: 6.563882413 | N97: 5.21885635 | O97: 0.5864965024 | P97: =IF(AND(growth!K97>0,O97>$P$4),1,0) -> 1 | Q97: 1 | R97: 6.792755051 | S97: 29.1410185 | T97: 0.9876104957 | U97: 98.76104957 | V97: 1949-10-07 | W97: 2000 | X97: 0
A98: 1949-10-14 | G98: 6.6 | M98: 6.569438965 | N98: 5.264139749 | O98: 0.580381863 | P98: =IF(AND(growth!K98>0,O98>$P$4),1,0) -> 1 | Q98: 1 | R98: 6.696377525 | S98: 26.82591338 | T98: 0.9800314792 | U98: 98.00314792 | V98: 1949-10-14 | W98: 2000 | X98: 0
A99: 1949-10-21 | G99: 6.6 | M99: 6.574140663 | N99: 5.307938445 | O99: 0.5580742609 | P99: =IF(AND(growth!K99>0,O99>$P$4),1,0) -> 1 | Q99: 1 | R99: 6.648188763 | S99: 25.67493334 | T99: 0.9754683647 | U99: 97.54683647 | V99: 1949-10-21 | W99: 2000 | X99: 0
A100: 1949-10-28 | G100: 6.6 | M100: 6.578119022 | N100: 5.350301119 | O100: 0.5364980556 | P100: =IF(AND(growth!K100>0,O100>$P$4),1,0) -> 1 | Q100: 1 | R100: 6.624094381 | S100: 16.31433574 | T100: 0.8447488687 | U100: 84.47488687 | V100: 1949-10-28 | W100: 2000 | X100: 0
A101: 1949-11-04 | G101: 6.6 | M101: 6.581485327 | N101: 5.391274853 | O101: 0.5156292669 | P101: =IF(AND(growth!K101>0,O101>$P$4),1,0) -> 1 | Q101: 1 | R101: 6.612047191 | S101: 12.1161608 | T101: 0.6942009181 | U101: 69.42009181 | W101: -2000 | X101: 0
A102: 1949-11-11 | G102: 6.6 | M102: 6.584333738 | N102: 5.430905186 | O102: 0.4954447008 | P102: =IF(AND(growth!K102>0,O102>$P$4),1,0) -> 1 | Q102: 1 | R102: 6.606023595 | S102: 10.12336339 | T102: 0.603781729 | U102: 60.3781729 | W102: -2000 | X102: 0
A103: 1949-11-18 | G103: 7.9 | M103: 6.786743932 | N103: 5.511859114 | O103: 0.5185448745 | P103: =IF(AND(growth!K103>0,O103>$P$4),1,0) -> 1 | Q103: 1 | R103: 7.253011798 | S103: 19.89689356 | T103: 0.9211478754 | U103: 92.11478754 | W103: -2000 | X103: 0
A104: 1949-11-25 | G104: 7.9 | M104: 6.958014096 | N104: 5.590158815 | O104: 0.537608977 | P104: =IF(AND(growth!K104>0,O104>$P$4),1,0) -> 1 | Q104: 1 | R104: 7.576505899 | S104: 23.70437458 | T104: 0.9619857651 | U104: 96.19857651 | W104: -2000 | X104: 0
A105: 1949-12-02 | G105: 7.9 | M105: 7.102935005 | N105: 5.665891313 | O105: 0.5560480269 | P105: =IF(AND(growth!K105>0,O105>$P$4),1,0) -> 1 | Q105: 1 | R105: 7.738252949 | S105: 25.57321534 | T105: 0.9732946484 | U105: 97.32946484 | W105: -2000 | X105: 0
A106: 1949-12-09 | G106: 7.9 | M106: 7.225560389 | N106: 5.739140778 | O106: 0.5738825179 | P106: =IF(AND(growth!K106>0,O106>$P$4),1,0) -> 1 | Q106: 1 | R106: 7.819126475 | S106: 26.49909681 | T106: 0.9773053271 | U106: 97.73053271 | W106: -2000 | X106: 0
A107: 1949-12-16 | G107: 6.4 | M107: 7.098551098 | N107: 5.760808294 | O107: 0.5419519435 | P107: =IF(AND(growth!K107>0,O107>$P$4),1,0) -> 1 | Q107: 1 | R107: 7.109563237 | S107: 14.84475562 | T107: 0.7919960709 | U107: 79.19960709 | W107: -2000 | X107: 0
A108: 1949-12-23 | G108: 6.4 | M108: 6.991081698 | N108: 5.781765399 | O108: 0.5176256503 | P108: =IF(AND(growth!K108>0,O108>$P$4),1,0) -> 1 | Q108: 1 | R108: 6.754781619 | S108: 4.801778231 | T108: 0.3155160136 | U108: 31.55160136 | W108: -2000 | X108: 0
A109: 1949-12-30 | G109: 6.4 | M109: 6.900146052 | N109: 5.802035386 | O109: 0.4940969404 | P109: =IF(AND(growth!K109>0,O109>$P$4),1,0) -> 1 | Q109: 1 | R109: 6.577390809 | S109: 0.07218305143 | T109: 0.148176952 | U109: 14.8176952 | W109: -2000 | X109: 0
A110: 1950-01-06 | G110: 6.4 | M110: 6.823200506 | N110: 5.821640783 | O110: 0.4713396637 | P110: =IF(AND(growth!K110>0,O110>$P$4),1,0) -> 1 | Q110: 1 | R110: 6.488695405 | S110: -2.224542512 | T110: 0.09938964173 | U110: 9.938964173 | W110: -2000 | X110: 0
A111: 1950-01-13 | G111: 6.6 | M111: 6.788861967 | N111: 5.847160757 | O111: 0.4558859042 | P111: =IF(AND(growth!K111>0,O111>$P$4),1,0) -> 1 | Q111: 1 | R111: 6.544347702 | S111: -1.856792365 | T111: 0.1087674401 | U111: 10.87674401 | W111: -2000 | X111: 0
A112: 1950-01-20 | G112: 6.6 | M112: 6.759806279 | N112: 5.871844011 | O112: 0.4409388254 | P112: =IF(AND(growth!K112>0,O112>$P$4),1,0) -> 1 | Q112: 1 | R112: 6.572173851 | S112: -1.674231074 | T112: 0.114875356 | U112: 11.4875356 | W112: -2000 | X112: 0
A113: 1950-01-27 | G113: 6.6 | M113: 6.735220698 | N113: 5.895717978 | O113: 0.3838588639 | P113: =IF(AND(growth!K113>0,O113>$P$4),1,0) -> 1 | Q113: 1 | R113: 6.586086926 | S113: -2.313149575 | T113: 0.1100537377 | U113: 11.00537377 | W113: -2000 | X113: 0
A114: 1950-02-03 | G114: 6.6 | M114: 6.714417514 | N114: 5.918809192 | O114: 0.3286503766 | P114: =IF(AND(growth!K114>0,O114>$P$4),1,0) -> 1 | Q114: 1 | R114: 6.593043463 | S114: -2.628506992 | T114: 0.1119421728 | U114: 11.19421728 | W114: -2000 | X114: 0
A115: 1950-02-10 | G115: 6.6 | M115: 6.696814819 | N115: 5.941143317 | O115: 0.2752520036 | P115: =IF(AND(growth!K115>0,O115>$P$4),1,0) -> 1 | Q115: 1 | R115: 6.596521731 | S115: -2.785175571 | T115: 0.1170930388 | U115: 11.70930388 | W115: -2000 | X115: 0
A116: 1950-02-17 | G116: 6.5 | M116: 6.666535616 | N116: 5.959466487 | O116: 0.2203257084 | P116: =IF(AND(growth!K116>0,O116>$P$4),1,0) -> 1 | Q116: 1 | R116: 6.548260866 | S116: -3.599337574 | T116: 0.1085154742 | U116: 10.85154742 | W116: -2000 | X116: 0
A117: 1950-02-24 | G117: 6.5 | M117: 6.640914752 | N117: 5.977188897 | O117: 0.2163806032 | P117: =IF(AND(growth!K117>0,O117>$P$4),1,0) -> 1 | Q117: 1 | R117: 6.524130433 | S117: -2.572242855 | T117: 0.1328444476 | U117: 13.28444476 | W117: -2000 | X117: 0
A118: 1950-03-03 | G118: 6.5 | M118: 6.61923556 | N118: 5.994330245 | O118: 0.2125648457 | P118: =IF(AND(growth!K118>0,O118>$P$4),1,0) -> 1 | Q118: 1 | R118: 6.512065216 | S118: -2.047528298 | T118: 0.1473278055 | U118: 14.73278055 | W118: -2000 | X118: 0
A119: 1950-03-10 | G119: 6.5 | M119: 6.600891627 | N119: 6.010909581 | O119: 0.208874195 | P119: =IF(AND(growth!K119>0,O119>$P$4),1,0) -> 1 | Q119: 1 | R119: 6.506032608 | S119: -1.782308136 | T119: 0.1555000267 | U119: 15.55000267 | W119: -2000 | X119: 0
A120: 1950-03-17 | G120: 6.4 | M120: 6.569985223 | N120: 6.023666644 | O120: 0.2020258608 | P120: =IF(AND(growth!K120>0,O120>$P$4),1,0) -> 1 | Q120: 1 | R120: 6.453016304 | S120: -2.405168656 | T120: 0.1403223882 | U120: 14.03223882 | W120: -2000 | X120: 0
A121: 1950-03-24 | G121: 6.4 | M121: 6.54383365 | N121: 6.036005442 | O121: 0.188844685 | P121: =IF(AND(growth!K121>0,O121>$P$4),1,0) -> 1 | Q121: 1 | R121: 6.426508152 | S121: -2.717450834 | T121: 0.1349897713 | U121: 13.49897713 | W121: -2000 | X121: 0
A122: 1950-03-31 | G122: 6.4 | M122: 6.521705396 | N122: 6.04793969 | O122: 0.1760956789 | P122: =IF(AND(growth!K122>0,O122>$P$4),1,0) -> 1 | Q122: 1 | R122: 6.413254076 | S122: -11.57805537 | T122: 0.0229086759 | U122: 2.29086759 | W122: -2000 | X122: 0
A123: 1950-04-07 | G123: 6.4 | M123: 6.502981489 | N123: 6.059482651 | O123: 0.1637646731 | P123: =IF(AND(growth!K123>0,O123>$P$4),1,0) -> 1 | Q123: 1 | R123: 6.406627038 | S123: -15.44087573 | T123: 0.01026596096 | U123: 1.026596096 | W123: -2000 | X123: 0
A124: 1950-04-14 | G124: 6.3 | M124: 6.471753568 | N124: 6.067368466 | O124: 0.1485592739 | P124: =IF(AND(growth!K124>0,O124>$P$4),1,0) -> 1 | Q124: 1 | R124: 6.353313519 | S124: -17.89731403 | T124: 0.006228139252 | U124: 0.6228139252 | W124: -2000 | X124: 0
A125: 1950-04-21 | G125: 6.3 | M125: 6.445329942 | N125: 6.074995729 | O125: 0.1338524125 | P125: =IF(AND(growth!K125>0,O125>$P$4),1,0) -> 1 | Q125: 1 | R125: 6.32665676 | S125: -19.08742262 | T125: 0.004943117988 | U125: 0.4943117988 | W125: -2000 | X125: 0
A126: 1950-04-28 | G126: 6.3 | M126: 6.422971489 | N126: 6.082372918 | O126: 0.1229064318 | P126: =IF(AND(growth!K126>0,O126>$P$4),1,0) -> 1 | Q126: 1 | R126: 6.31332838 | S126: -11.19949048 | T126: 0.02711090387 | U126: 2.711090387 | W126: -2000 | X126: 0
A127: 1950-05-05 | G127: 6.3 | M127: 6.404052799 | N127: 6.089508233 | O127: 0.1123193356 | P127: =IF(AND(growth!K127>0,O127>$P$4),1,0) -> 1 | Q127: 1 | R127: 6.30666419 | S127: -6.634077223 | T127: 0.07072912565 | U127: 7.072912565 | W127: -2000 | X127: 0
A128: 1950-05-12 | G128: 6.3 | M128: 6.388044676 | N128: 6.096409602 | O128: 0.1020793574 | P128: =IF(AND(growth!K128>0,O128>$P$4),1,0) -> 1 | Q128: 1 | R128: 6.303332095 | S128: -4.166678282 | T128: 0.1165688602 | U128: 11.65688602 | W128: -2000 | X128: 0
A129: 1950-05-19 | G129: 5.8 | M129: 6.297576264 | N129: 6.086691254 | O129: 0.07578167357 | P129: =IF(AND(growth!K129>0,O129>$P$4),1,0) -> 1 | Q129: 1 | R129: 6.051666047 | S129: -6.735242294 | T129: 0.07423828834 | U129: 7.423828834 | W129: -2000 | X129: 0
A130: 1950-05-26 | G130: 5.8 | M130: 6.22102607 | N130: 6.077291541 | O130: 0.05362489739 | P130: =IF(AND(growth!K130>0,O130>$P$4),1,0) -> 1 | Q130: 1 | R130: 5.925833024 | S130: -9.451128007 | T130: 0.04446010647 | U130: 4.446010647 | W130: -2000 | X130: 0
A131: 1950-06-02 | G131: 5.8 | M131: 6.156252828 | N131: 6.068200015 | O131: 0.03219457288 | P131: =IF(AND(growth!K131>0,O131>$P$4),1,0) -> 1 | Q131: 1 | R131: 5.862916512 | S131: -10.79182254 | T131: 0.03490265669 | U131: 3.490265669 | W131: -2000 | X131: 0
A132: 1950-06-09 | G132: 5.8 | M132: 6.101444701 | N132: 6.059406572 | O132: 0.01146688197 | P132: =IF(AND(growth!K132>0,O132>$P$4),1,0) -> 0 | Q132: 0 | R132: 5.831458256 | S132: -11.4579215 | T132: 0.000934138174 | U132: 0.0934138174 | W132: -2000 | X132: 0
A133: 1950-06-16 | G133: 5.5 | M133: 6.008914747 | N133: 6.041065373 | O133: -0.01841727809 | P133: =IF(AND(growth!K133>0,O133>$P$4),1,0) -> 0 | Q133: 0 | R133: 5.665729128 | S133: -14.06504204 | T133: 0.0005633854536 | U133: 0.05633854536 | W133: =IF(ISNUMBER(V133),2000,-2000) -> -2000 | X133: 0
A134: 1950-06-23 | G134: 5.5 | M134: 5.93062017 | N134: 6.023325525 | O134: -0.04404294111 | P134: =IF(AND(growth!K134>0,O134>$P$4),1,0) -> 0 | Q134: 0 | R134: 5.582864564 | S134: -15.36654026 | T134: 0.000445189898 | U134: 0.0445189898 | W134: -2000 | X134: 0
A135: 1950-06-30 | G135: 5.5 | M135: 5.864370913 | N135: 6.006167311 | O135: -0.06882841845 | P135: =IF(AND(growth!K135>0,O135>$P$4),1,0) -> 0 | Q135: 0 | R135: 5.541432282 | S135: -15.37551121 | T135: 0.0004633822411 | U135: 0.04633822411 | W135: -2000 | X135: 0
A136: 1950-07-07 | G136: 5.5 | M136: 5.80831385 | N136: 5.989571661 | O136: -0.09280125719 | P136: =IF(AND(growth!K136>0,O136>$P$4),1,0) -> 0 | Q136: 0 | R136: 5.520716141 | S136: -15.38004646 | T136: 0.0004815316679 | U136: 0.04815316679 | W136: -2000 | X136: 0
A137: 1950-07-14 | G137: 5.4 | M137: 5.745496334 | N137: 5.970241443 | O137: -0.1192667897 | P137: =IF(AND(growth!K137>0,O137>$P$4),1,0) -> 0 | Q137: 0 | R137: 5.46035807 | S137: -16.15013227 | T137: 0.0004268013903 | U137: 0.04268013903 | W137: -2000 | X137: 0
A138: 1950-07-21 | G138: 5.4 | M138: 5.692343052 | N138: 5.951545002 | O138: -0.1448645999 | P138: =IF(AND(growth!K138>0,O138>$P$4),1,0) -> 0 | Q138: 0 | R138: 5.430179035 | S138: -16.53624625 | T138: 0.0004096946949 | U138: 0.04096946949 | W138: -2000 | X138: 0
A139: 1950-07-28 | G139: 5.4 | M139: 5.647367198 | N139: 5.933461559 | O139: -0.153229695 | P139: =IF(AND(growth!K139>0,O139>$P$4),1,0) -> 0 | Q139: 0 | R139: 5.415089518 | S139: -16.0843664 | T139: 0.0004582234594 | U139: 0.04582234594 | W139: -2000 | X139: 0
A140: 1950-08-04 | G140: 5.4 | M140: 5.609310706 | N140: 5.915971016 | O140: -0.1613205247 | P140: =IF(AND(growth!K140>0,O140>$P$4),1,0) -> 0 | Q140: 0 | R140: 5.407544759 | S140: -15.8556306 | T140: 0.0004879160431 | U140: 0.04879160431 | W140: -2000 | X140: 0
A141: 1950-08-11 | G141: 5.4 | M141: 5.577109059 | N141: =N140+N$6*(G141-N140) -> 5.899053934 | O141: -0.1691460812 | P141: =IF(AND(growth!K141>0,O141>$P$4),1,0) -> 0 | Q141: 0 | R141: 5.403772379 | S141: -15.74055362 | T141: 0.0005065874707 | U141: 0.05065874707 | W141: -2000 | X141: 0
A142: 1950-08-18 | G142: 5 | M142: =M141+M$6*(G142-M141) -> 5.48832305 | N142: 5.869576756 | O142: -0.1898298163 | P142: =IF(AND(growth!K142>0,O142>$P$4),1,0) -> 0 | Q142: 0 | R142: =R141+R$6*($G142-R141) -> 5.20188619 | S142: -18.80460406 | T142: 0.0002733350664 | U142: 0.02733350664 | W142: -2000 | X142: 0
A143: 1950-08-25 | G143: 5 | M143: 5.413196427 | N143: 5.841066042 | O143: -0.1999993305 | P143: =IF(AND(growth!K143>0,O143>$P$4),1,0) -> 0 | Q143: 0 | R143: 5.100943095 | S143: -19.71208284 | T143: 0.0002297396653 | U143: 0.02297396653 | W143: -2000 | X143: 0
A144: 1950-09-01 | G144: 5 | M144: 5.349627746 | N144: 5.813490107 | O144: -0.209835418 | P144: =IF(AND(growth!K144>0,O144>$P$4),1,0) -> 0 | Q144: 0 | R144: 5.050471547 | S144: -20.17155759 | T144: 0.000211956608 | U144: 0.0211956608 | W144: -2000 | X144: 0
A145: 1950-09-08 | G145: 5 | M145: 5.295838862 | N145: 5.7868183 | O145: -0.2193490109 | P145: =IF(AND(growth!K145>0,O145>$P$4),1,0) -> 0 | Q145: 0 | R145: 5.025235774 | S145: -20.40275 | T145: 0.0002050163642 | U145: 0.02050163642 | W145: -2000 | X145: 0
A146: 1950-09-15 | G146: 4.5 | M146: 5.173402114 | N146: 5.744627536 | O146: -0.2449441253 | P146: =IF(AND(growth!K146>0,O146>$P$4),1,0) -> 0 | Q146: 0 | R146: 4.762617887 | S146: -24.4827734 | T146: 8.982174494e-05 | U146: 0.008982174494 | W146: -2000 | X146: 0
A147: 1950-09-22 | G147: 4.5 | M147: 5.069801789 | N147: 5.703820076 | O147: -0.2664213671 | P147: =IF(AND(growth!K147>0,O147>$P$4),1,0) -> 0 | Q147: 0 | R147: 4.631308943 | S147: -26.52602031 | T147: 6.02359735e-05 | U147: 0.00602359735 | W147: -2000 | X147: 0
A148: 1950-09-29 | G148: 4.5 | M148: 4.982139975 | N148: 5.664350565 | O148: -0.287194437 | P148: =IF(AND(growth!K148>0,O148>$P$4),1,0) -> 0 | Q148: 0 | R148: 4.565654472 | S148: -24.55541274 | T148: 9.574059469e-05 | U148: 0.009574059469 | W148: -2000 | X148: 0
A149: 1950-10-06 | G149: 4.5 | M149: 4.907964594 | N149: 5.626175137 | O149: -0.3072864227 | P149: =IF(AND(growth!K149>0,O149>$P$4),1,0) -> 0 | Q149: 0 | R149: 4.532827236 | S149: -23.5073412 | T149: 0.000124254029 | U149: 0.0124254029 | W149: -2000 | X149: 0
A150: 1950-10-13 | G150: 4.4 | M150: 4.829816195 | N150: 5.585972673 | O150: =N150-INDIRECT($N$1&ROW()-$O$4) -> -0.3299983432 | P150: =IF(AND(growth!K150>0,O150>$P$4),1,0) -> 0 | Q150: 0 | R150: 4.466413618 | S150: -23.8192526 | T150: 0.0001209214943 | U150: 0.01209214943 | W150: -2000 | X150: 0
A151: 1950-10-20 | G151: 4.4 | M151: 4.763690627 | N151: 5.547088323 | O151: -0.3519656107 | P151: =IF(AND(growth!K151>0,O151>$P$4),1,0) -> 0 | Q151: 0 | R151: 4.433206809 | S151: -23.97773225 | T151: 0.0001212523178 | U151: 0.01212523178 | W151: -2000 | X151: 0
A152: 1950-10-27 | G152: 4.4 | M152: 4.707738223 | N152: 5.50947887 | O152: -0.3600978857 | P152: =IF(AND(growth!K152>0,O152>$P$4),1,0) -> 0 | Q152: 0 | R152: 4.416603404 | S152: -22.04704276 | T152: 0.0001866818021 | U152: 0.01866818021 | W152: -2000 | X152: 0
A153: 1950-11-03 | G153: 4.4 | M153: 4.660393881 | N153: 5.473102514 | O153: -0.3679635288 | P153: =IF(AND(growth!K153>0,O153>$P$4),1,0) -> 0 | Q153: 0 | R153: 4.408301702 | S153: -21.03871316 | T153: 0.0002352139248 | U153: 0.02352139248 | W153: -2000 | X153: 0
A154: 1950-11-10 | G154: 4.4 | M154: 4.620333284 | N154: 5.437918825 | O154: -0.375571282 | P154: =IF(AND(growth!K154>0,O154>$P$4),1,0) -> 0 | Q154: 0 | R154: 4.404150851 | S154: -20.52323971 | T154: 0.0002662200896 | U154: 0.02662200896 | W154: -2000 | X154: 0
A155: 1950-11-17 | G155: 4.2 | M155: 4.555666625 | N155: 5.397331322 | O155: -0.3894869777 | P155: =IF(AND(growth!K155>0,O155>$P$4),1,0) -> 0 | Q155: 0 | R155: 4.302075426 | S155: -22.07396077 | T155: 0.000195877121 | U155: 0.0195877121 | W155: -2000 | X155: 0
A156: 1950-11-24 | G156: 4.2 | M156: 4.500948682 | N156: 5.358074558 | O156: -0.3865529784 | P156: =IF(AND(growth!K156>0,O156>$P$4),1,0) -> 0 | Q156: 0 | R156: 4.251037713 | S156: -22.14727207 | T156: 0.0001925137978 | U156: 0.01925137978 | W156: -2000 | X156: 0
A157: 1950-12-01 | G157: 4.2 | M157: 4.454648885 | N157: 5.3201049 | O157: -0.3837151758 | P157: =IF(AND(growth!K157>0,O157>$P$4),1,0) -> 0 | Q157: 0 | R157: 4.225518856 | S157: -22.18453887 | T157: 0.0001904131993 | U157: 0.01904131993 | W157: -2000 | X157: 0
A158: 1950-12-08 | G158: 4.2 | M158: 4.415472134 | N158: 5.283380149 | O158: -0.380970416 | P158: =IF(AND(growth!K158>0,O158>$P$4),1,0) -> 0 | Q158: 0 | R158: 4.212759428 | S158: -22.20332804 | T158: 0.0001889663899 | U158: 0.01889663899 | W158: -2000 | X158: 0
A159: 1950-12-15 | G159: 4.2 | M159: 4.382322575 | N159: 5.247859489 | O159: -0.3783156482 | P159: =IF(AND(growth!K159>0,O159>$P$4),1,0) -> 0 | Q159: 0 | R159: 4.206379714 | S159: -22.21276195 | T159: 0.0001878621113 | U159: 0.01878621113 | W159: -2000 | X159: 0
A160: 1950-12-22 | G160: 4.2 | M160: 4.354272948 | N160: 5.21350344 | O160: -0.3724692335 | P160: =IF(AND(growth!K160>0,O160>$P$4),1,0) -> 0 | Q160: =IF(OR(M160-N160>$Q$4,P160=1),1,0) -> 0 | R160: 4.203189857 | S160: =(R160-INDIRECT($R$1&ROW()-$S$4))/INDIRECT($R$1&ROW()-$S$4)*100 -> -22.21748878 | T160: =1/(1+EXP(-(-4.11261712472703 - 0.0627034767430871*R160 - 1.59012907637327*O160 + 0.87573350914687*P160 + 2.67040134362929*Q160 + 0.216308687788336*S160))) -> 0.0001859710731 | U160: =T160*$U$4 -> 0.01859710731 | W160: -2000 | X160: 0
A161: 1950-12-29 | G161: 4.2 | M161: 4.330538648 | N161: 5.180273819 | O161: -0.3668145046 | P161: =IF(AND(growth!K161>0,O161>$P$4),1,0) -> 0 | Q161: 0 | R161: 4.201594929 | S161: -19.22939535 | T161: 0.000351737148 | U161: 0.0351737148 | W161: -2000 | X161: 0
A162: 1951-01-05 | G162: 4.2 | M162: 4.310455779 | N162: 5.148133694 | O162: -0.3613451765 | P162: =IF(AND(growth!K162>0,O162>$P$4),1,0) -> 0 | Q162: 0 | R162: 4.200797464 | S162: -17.6466511 | T162: 0.0004910074144 | U162: 0.04910074144 | W162: -2000 | X162: 0
A163: 1951-01-12 | G163: 4.3 | M163: 4.308847198 | N163: 5.120326031 | O163: -0.3527764822 | P163: =IF(AND(growth!K163>0,O163>$P$4),1,0) -> 0 | Q163: 0 | R163: 4.250398732 | S163: -15.84154683 | T163: 0.0007133420174 | U163: 0.07133420174 | W163: -2000 | X163: 0
A164: 1951-01-19 | G164: 4.3 | M164: 4.30748609 | N164: 5.093430096 | O164: -0.3444887287 | P164: =IF(AND(growth!K164>0,O164>$P$4),1,0) -> 0 | Q164: 0 | R164: 4.275199366 | S164: -14.92539736 | T164: 0.0008568430685 | U164: 0.08568430685 | W164: -2000 | X164: 0
A165: 1951-01-26 | G165: 4.3 | M165: 4.306334384 | N165: 5.067415994 | O165: -0.3299153278 | P165: =IF(AND(growth!K165>0,O165>$P$4),1,0) -> 0 | Q165: 0 | R165: 4.287599683 | S165: -9.973888628 | T165: 0.002437613172 | U165: 0.2437613172 | W165: -2000 | X165: 0
A166: 1951-02-02 | G166: 4.3 | M166: 4.305359864 | N166: 5.042254814 | O166: -0.3158197432 | P166: =IF(AND(growth!K166>0,O166>$P$4),1,0) -> 0 | Q166: 0 | R166: 4.293799842 | S166: -7.287553174 | T166: 0.00425235796 | U166: 0.425235796 | W166: -2000 | X166: 0
A167: 1951-02-09 | G167: 4.3 | M167: 4.304535269 | N167: 5.017918591 | O167: -0.302186309 | P167: =IF(AND(growth!K167>0,O167>$P$4),1,0) -> 0 | Q167: 0 | R167: 4.296899921 | S167: -5.886440873 | T167: 0.005625406638 | U167: 0.5625406638 | W167: -2000 | X167: 0
A168: 1951-02-16 | G168: 3.7 | M168: 4.211529843 | N168: 4.974708145 | O168: -0.3086720038 | P168: =IF(AND(growth!K168>0,O168>$P$4),1,0) -> 0 | Q168: 0 | R168: 3.99844996 | S168: -11.78905014 | T168: 0.001621825976 | U168: 0.1621825976 | W168: -2000 | X168: 0
A169: 1951-02-23 | G169: 3.7 | M169: 4.132832944 | N169: 4.932914436 | O169: -0.3149450529 | P169: =IF(AND(growth!K169>0,O169>$P$4),1,0) -> 0 | Q169: 0 | R169: 3.84922498 | S169: -13.81843892 | T169: 0.001066589423 | U169: 0.1066589423 | W169: -2000 | X169: 0
A170: 1951-03-02 | G170: 3.7 | M170: 4.06624326 | N170: 4.892491012 | O170: -0.3210124282 | P170: =IF(AND(growth!K170>0,O170>$P$4),1,0) -> 0 | Q170: 0 | R170: 3.77461249 | S170: -14.85593493 | T170: 0.0008646549132 | U170: 0.08646549132 | W170: -2000 | X170: 0
A171: 1951-03-09 | G171: 3.7 | M171: 4.009898143 | N171: 4.853392946 | O171: -0.3268808732 | P171: =IF(AND(growth!K171>0,O171>$P$4),1,0) -> 0 | Q171: 0 | R171: 3.737306245 | S171: -15.38053335 | T171: 0.000781027063 | U171: 0.0781027063 | W171: -2000 | X171: 0
A172: 1951-03-16 | G172: 3.4 | M172: 3.91606766 | N172: 4.805740718 | O172: -0.3423929757 | P172: =IF(AND(growth!K172>0,O172>$P$4),1,0) -> 0 | Q172: 0 | R172: 3.568653123 | S172: -19.04698536 | T172: 0.0003662004368 | U172: 0.03662004368 | W172: -2000 | X172: 0
A173: 1951-03-23 | G173: 3.4 | M173: 3.836672635 | N173: 4.759650858 | O173: -0.3606751732 | P173: =IF(AND(growth!K173>0,O173>$P$4),1,0) -> 0 | Q173: 0 | R173: 3.484326561 | S173: -20.88539473 | T173: 0.0002546747111 | U173: 0.02546747111 | W173: -2000 | X173: 0
A174: 1951-03-30 | G174: 3.4 | M174: 3.76949223 | N174: 4.715072142 | O174: -0.3783579544 | P174: =IF(AND(growth!K174>0,O174>$P$4),1,0) -> 0 | Q174: 0 | R174: 3.442163281 | S174: -19.98830936 | T174: 0.0003188535606 | U174: 0.03188535606 | W174: -2000 | X174: 0
A175: 1951-04-06 | G175: 3.4 | M175: 3.712647271 | N175: 4.671955022 | O175: -0.3954609723 | P175: =IF(AND(growth!K175>0,O175>$P$4),1,0) -> 0 | Q175: 0 | R175: 3.42108164 | S175: -19.52361114 | T175: 0.0003627537338 | U175: 0.03627537338 | W175: -2000 | X175: 0
A176: 1951-04-13 | G176: 3.4 | M176: 3.664547691 | N176: 4.630251579 | O176: -0.4120032355 | P176: =IF(AND(growth!K176>0,O176>$P$4),1,0) -> 0 | Q176: 0 | R176: 3.41054082 | S176: -19.28705241 | T176: 0.000392222662 | U176: 0.0392222662 | W176: -2000 | X176: 0
A177: 1951-04-20 | G177: 3.4 | M177: 3.623848046 | N177: 4.589915461 | O177: -0.4280031294 | P177: =IF(AND(growth!K177>0,O177>$P$4),1,0) -> 0 | Q177: 0 | R177: 3.40527041 | S177: -19.16769832 | T177: 0.0004129797762 | U177: 0.04129797762 | W177: -2000 | X177: 0
A178: 1951-04-27 | G178: 3.4 | M178: 3.589409885 | N178: 4.55090184 | O178: -0.4238063055 | P178: =IF(AND(growth!K178>0,O178>$P$4),1,0) -> 0 | Q178: 0 | R178: 3.402635205 | S178: -19.10774974 | T178: 0.0004156547925 | U178: 0.04156547925 | W178: -2000 | X178: 0
A179: 1951-05-04 | G179: 3.4 | M179: 3.560269903 | N179: 4.513167353 | O179: -0.4197470824 | P179: =IF(AND(growth!K179>0,O179>$P$4),1,0) -> 0 | Q179: 0 | R179: 3.401317603 | S179: -19.07770721 | T179: 0.0004157073086 | U179: 0.04157073086 | W179: -2000 | X179: 0
A180: 1951-05-11 | G180: 3.4 | M180: 3.535612995 | N180: 4.476670063 | O180: -0.4158209485 | P180: =IF(AND(growth!K180>0,O180>$P$4),1,0) -> 0 | Q180: 0 | R180: 3.400658801 | S180: -19.06266884 | T180: 0.0004144837755 | U180: 0.04144837755 | W180: -2000 | X180: 0
A181: 1951-05-18 | G181: 3.1 | M181: 3.468595611 | N181: 4.43153334 | O181: -0.421859606 | P181: =IF(AND(growth!K181>0,O181>$P$4),1,0) -> 0 | Q181: 0 | R181: 3.250329401 | S181: -22.62589596 | T181: 0.0001954929521 | U181: 0.01954929521 | W181: -2000 | X181: 0
A182: 1951-05-25 | G182: 3.1 | M182: 3.411888594 | N182: 4.387876509 | O182: -0.417864209 | P182: =IF(AND(growth!K182>0,O182>$P$4),1,0) -> 0 | Q182: 0 | R182: 3.1751647 | S182: -25.29725091 | T182: 0.0001095228189 | U182: 0.01095228189 | W182: -2000 | X182: 0
A183: 1951-06-01 | G183: 3.1 | M183: 3.363905733 | N183: 4.345651049 | O183: -0.4139998087 | P183: =IF(AND(growth!K183>0,O183>$P$4),1,0) -> 0 | Q183: 0 | R183: 3.13758235 | S183: -26.6096834 | T183: 8.214462381e-05 | U183: 0.008214462381 | W183: -2000 | X183: 0
A184: 1951-06-08 | G184: 3.1 | M184: 3.323304851 | N184: 4.304810031 | O184: -0.4102621101 | P184: =IF(AND(growth!K184>0,O184>$P$4),1,0) -> 0 | Q184: 0 | R184: 3.118791175 | S184: -27.26020604 | T184: 7.102370318e-05 | U184: 0.007102370318 | W184: -2000 | X184: 0
A185: 1951-06-15 | G185: 3 | M185: 3.273565643 | N185: 4.262029375 | O185: -0.4099256475 | P185: =IF(AND(growth!K185>0,O185>$P$4),1,0) -> 0 | Q185: 0 | R185: 3.059395588 | S185: -28.7485281 | T185: 5.163942104e-05 | U185: 0.005163942104 | W185: -2000 | X185: 0
A186: 1951-06-22 | G186: 3 | M186: 3.231478621 | N186: 4.220651362 | O186: -0.4096002164 | P186: =IF(AND(growth!K186>0,O186>$P$4),1,0) -> 0 | Q186: 0 | R186: 3.029697794 | S186: -29.49107846 | T186: 4.403644301e-05 | U186: 0.004403644301 | W186: -2000 | X186: 0
A187: 1951-06-29 | G187: 3 | M187: 3.195866526 | N187: 4.180630006 | O187: -0.4092854552 | P187: =IF(AND(growth!K187>0,O187>$P$4),1,0) -> 0 | Q187: 0 | R187: 3.014848897 | S187: -24.59955916 | T187: 0.0001269055809 | U187: 0.01269055809 | W187: -2000 | X187: 0
A188: 1951-07-06 | G188: 3 | M188: 3.165733214 | N188: 4.141920826 | O188: -0.4089810141 | P188: =IF(AND(growth!K188>0,O188>$P$4),1,0) -> 0 | Q188: 0 | R188: 3.007424448 | S188: -21.86935126 | T188: 0.0002290385494 | U188: 0.02290385494 | W188: -2000 | X188: 0
A189: 1951-07-13 | G189: 3.2 | M189: 3.171005027 | N189: 4.111038176 | O189: -0.4021291775 | P189: =IF(AND(growth!K189>0,O189>$P$4),1,0) -> 0 | Q189: 0 | R189: 3.103712224 | S189: -17.77401701 | T189: 0.0005459332994 | U189: 0.05459332994 | W189: -2000 | X189: 0
A190: 1951-07-20 | G190: 3.2 | M190: 3.175465792 | N190: 4.081168072 | O190: -0.3955019914 | P190: =IF(AND(growth!K190>0,O190>$P$4),1,0) -> 0 | Q190: 0 | R190: 3.151856112 | S190: -15.66502969 | T190: 0.0008496532134 | U190: 0.08496532134 | W190: -2000 | X190: 0
A191: 1951-07-27 | G191: 3.2 | M191: 3.179240286 | N191: 4.052277315 | O191: -0.3792560245 | P191: =IF(AND(growth!K191>0,O191>$P$4),1,0) -> 0 | Q191: 0 | R191: 3.175928056 | S191: -11.00485402 | T191: 0.002262232434 | U191: 0.2262232434 | W191: -2000 | X191: 0
A192: 1951-08-03 | G192: 3.2 | M192: 3.182434088 | N192: 4.024333797 | O192: -0.3635427122 | P192: =IF(AND(growth!K192>0,O192>$P$4),1,0) -> 0 | Q192: 0 | R192: 3.187964028 | S192: -8.505590048 | T192: 0.003779914779 | U192: 0.3779914779 | W192: -2000 | X192: 0
A193: 1951-08-10 | G193: 3.2 | M193: 3.185136536 | N193: 3.997306459 | O193: -0.3483445905 | P193: =IF(AND(growth!K193>0,O193>$P$4),1,0) -> 0 | Q193: 0 | R193: 3.193982014 | S193: -7.210037595 | T193: 0.004875856037 | U193: 0.4875856037 | W193: -2000 | X193: 0
A194: 1951-08-17 | G194: 3.1 | M194: 3.172038607 | N194: 3.967886575 | O194: -0.3369234564 | P194: =IF(AND(growth!K194>0,O194>$P$4),1,0) -> 0 | Q194: 0 | R194: 3.146991007 | S194: -8.011812115 | T194: 0.004040986811 | U194: 0.4040986811 | W194: -2000 | X194: 0
A195: 1951-08-24 | G195: 3.1 | M195: 3.160955745 | N195: 3.939431278 | O195: -0.3225980971 | P195: =IF(AND(growth!K195>0,O195>$P$4),1,0) -> 0 | Q195: 0 | R195: 3.123495504 | S195: -8.416416392 | T195: 0.003625819553 | U195: 0.3625819553 | W195: -2000 | X195: 0
A196: 1951-08-31 | G196: 3.1 | M196: 3.151577938 | N196: 3.911908941 | O196: -0.3087424218 | P196: =IF(AND(growth!K196>0,O196>$P$4),1,0) -> 0 | Q196: 0 | R196: 3.111747752 | S196: -8.619657853 | T196: 0.003397537322 | U196: 0.3397537322 | W196: -2000 | X196: 0
A197: 1951-09-07 | G197: 3.1 | M197: 3.14364287 | N197: 3.885288975 | O197: -0.2953410309 | P197: =IF(AND(growth!K197>0,O197>$P$4),1,0) -> 0 | Q197: 0 | R197: 3.105873876 | S197: -8.721514687 | T197: 0.003255089035 | U197: 0.3255089035 | W197: =IF(ISNUMBER(V197),2000,-2000) -> -2000 | X197: 0
A198: 1951-09-14 | G198: 3.1 | M198: 3.136928583 | N198: 3.859541796 | O198: -0.2823790299 | P198: =IF(AND(growth!K198>0,O198>$P$4),1,0) -> 0 | Q198: 0 | R198: 3.102936938 | S198: -8.77250229 | T198: 0.0031546081 | U198: 0.31546081 | W198: -2000 | X198: 0
A199: 1951-09-21 | G199: 3.1 | M199: 3.131247262 | N199: 3.834638786 | O199: -0.2763993896 | P199: =IF(AND(growth!K199>0,O199>$P$4),1,0) -> 0 | Q199: 0 | R199: 3.101468469 | S199: -8.798010908 | T199: 0.003107992369 | U199: 0.3107992369 | W199: -2000 | X199: 0
A200: 1951-09-28 | G200: 3.1 | M200: 3.126439991 | N200: 3.810552269 | O200: -0.270615803 | P200: =IF(AND(growth!K200>0,O200>$P$4),1,0) -> 0 | Q200: 0 | R200: 3.100734234 | S200: -4.602461711 | T200: 0.007597704988 | U200: 0.7597704988 | W200: -2000 | X200: 0
... 3379 more rows

Sheet opt
A1: =IF(CELL("COL",A1:A1)>26,CHAR(64+INT(CELL("COL",A1:A1)/26.1)),"")&CHAR(MOD(CELL("COL",A1:A1)-1,26)+65) -> A | B1: B | C1: C | D1: D | E1: E | F1: F | G1: G | H1: H | I1: I | J1: J | K1: K | L1: L | M1: M | N1: N | O1: O | P1: P | Q1: Q | R1: R | S1: S | T1: T | U1: U | V1: V | W1: W | X1: X | Y1: Y | Z1: Z | AA1: AA | AB1: AB | AC1: AC | AD1: AD | AE1: AE | AF1: AF | AG1: AG | AH1: AH | AI1: AI | AJ1: AJ | AK1: AK | AL1: AL | AM1: AM | AN1: AN | AO1: AO | AP1: AP | AQ1: AQ | AR1: AR | AS1: AS | AT1: AT | AU1: AU | AV1: AV | AW1: AW | AX1: AX | AY1: AY | AZ1: AZ | BA1: BA | BB1: BB | BC1: BC | BD1: BD | BE1: BE | BF1: BF | BG1: BG | BH1: BH | BI1: BI | BJ1: BJ | BK1: BK | BL1: BL | BM1: =IF(CELL("COL",BM1:BM1)>26,CHAR(64+INT(CELL("COL",BM1:BM1)/26.1)),"")&CHAR(MOD(CELL("COL",BM1:BM1)-1,26)+65) -> BM | BN1: BN | BO1: BO | BP1: BP | BQ1: BQ | BR1: BR | BS1: BS | BT1: BT | BU1: BU | BV1: BV | BW1: BW | BX1: BX | BY1: BY | BZ1: BZ
D2: UER | E2: =J7 -> 1 | J2: UER | U2: false pos. penalty | V2: tail penalty | Z2: Recessions | AE2: rec tail length | AF2: pos lead to rec end | AG2: all leads to rec end | AH2: pos lead to rec start | AJ2: neg lead to rec start | AK2: lead to rec start | AL2: Nr rec with neg lead to start | AM2: Nr rec with pos lead to end | AN2: row number of end of recession tail | AR2: weeks of false positives in lead | AS2: weeks of false positives | AT2: Nr of false positives | AU2: Nr of false positives at end | AX2: lead to rec 1 | AY2: lead to rec 2 | AZ2: lead to rec 3 | BA2: lead to rec 4 | BB2: lead to rec 5 | BC2: lead to rec 6 | BD2: lead to rec 7 | BE2: lead to rec 1 end | BF2: lead to rec 2 end | BG2: lead to rec 3 end | BH2: lead to rec 4 end | BI2: lead to rec 5 end | BJ2: lead to rec 6 end | BK2: lead to rec 7 end | BL2: acceptable window to rec start | BM2: acceptable window to rec end | BN2: NBER lead to rec start | BO2: NBER lead to rec end | BP2: Recess. length wks | BQ2: score lead to rec start | BR2: score lead to rec end | BW2: =SUM(BW5:BW57) -> 115.6815055
A3: =data!AA997 -> 0 | C3: 1967-01-06 | D3: =-A3 -> 0 | E3: =D3 -> 0 | J3: =MAX(J23:J3000) -> 0 | R3: required lead before recession starts | S3: 14 | Z3: acceptable window after rec start | AA3: acceptable window before & after rec end | BW3: =MAX(BW5:BW57) -> 3.03762718
A4: =data!AA998 -> 0 | C4: 1967-01-13 | D4: =-A4 -> 0 | E4: =E3+E$2*(D4-E3) -> 0 | N4: max lead allowed for AUC without penalty | O4: 26 | P4: wks | X4: (c)
A5: =data!AA999 -> 0 | C5: 1967-01-20 | D5: 0 | E5: 0 | N5: tot of leads which exceed 26 wks | O5: =AW12 -> 0 | P5: wks | T5: =SUM(T58:T2500) -> 298 | U5: 3 | V5: 2 | X5: =SUM(X58:X2500) -> 62 | AC5: 1970 | AD5: =SUM(AD58:AD2500) -> 360 | AE5: =MAX(AE207:AE363) -> 0 | AF5: =AF207 -> 13 | AG5: =AF5-AE5 -> 13 | AH5: =AI5 -> 8 | AI5: =SUM(AI143:AI158) -> 8 | AJ5: =IF(AH5=0,MAX(AJ159:AJ206),0) -> 0 | AK5: =-AJ5+AH5 -> 8 | AL5: =Q17-AK20 -> 4 | AM5: =AG20 -> 3 | AR5: =SUM(AR7:AR12) -> 0 | AS5: =SUM(AS58:AS22500) -> 0 | AT5: =SUM(AT58:AT22500) -> 0 | AU5: =SUM(AU58:AU22500) -> 0 | AV5: =IF(AW5>0,1,) -> 0 | AW5: =IF(AX5>$O$4,AX5,0) -> 0 | AX5: =AK5 -> 8 | AY5: =AK6 -> -12 | AZ5: =AK7 -> -1 | BA5: =AK8 -> -18 | BB5: =AK9 -> -5 | BC5: =AK10 -> 4 | BD5: =AK11 -> 17 | BE5: =AG5 -> 13 | BF5: =AG6 -> -6 | BG5: =AG7 -> -6 | BH5: =AG8 -> 12 | BI5: =AG9 -> -7 | BJ5: =AG10 -> -12 | BK5: =AG11 -> 0 | BL5: =Z6 -> 2 | BM5: =AA6 -> 10 | BN5: =IF(OR(AX5=0,AX5>0,ABS(AX5)<$BL$5),0,ABS(AX5+$BL$5)) -> 0 | BO5: =IF(OR(ABS(BE5)<$BM$5,ABS(BE5)=$BM$5),0,IF(ABS(BE5)>$BM$5,ABS(BE5)-$BM$5,ABS(IF(BE5>$BM$5,BE5-$BM$5,IF(OR(ABS(BE5)<$BM$5,ABS(BE5)=$BM$5),BE5,IF(BE5>$BM$5,$BM$5,BE5+$BM$5)))))) -> 3 | BP5: =SUM(AD159:AD206) -> 48 | BQ5: =1-BN5/BP5 -> 1 | BR5: =1-BO5/BP5 -> 0.9375 | BU5: 0 | BV5: 1 | BW5: =BV5 -> 1
A6: =data!AA1000 -> 0 | C6: 1967-01-27 | D6: 0 | E6: 0 | J6: EMA of uer | N6: lead not included in AUC | O6: =O5-AV12*O4 -> 0 | P6: wks | T6: NBER | U6: =U5+Q18 -> 3 | Z6: 2 | AA6: 10 | AC6: 1973 | AE6: =MAX(AE433:AE684) -> 6 | AF6: =AF433 -> 0 | AG6: -6 | AH6: 0 | AI6: =SUM(AI207:AI363) -> 0 | AJ6: =IF(AH6=0,MAX(AJ364:AJ375),0) -> 12 | AK6: -12 | AV6: 0 | AW6: 0 | AX6: =AY5 -> -12 | BE6: =BF5 -> -6 | BN6: 10 | BO6: 0 | BP6: =SUM(AD364:AD432) -> 69 | BQ6: 0.8550724638 | BR6: 1 | BU6: 1 | BV6: 1 | BW6: =AVERAGE($BV$5:BV6) -> 1
A7: =data!AA1001 -> 0 | C7: 1967-02-03 | D7: 0 | E7: 0 | J7: 1 | S7: =AK30 -> 3 | T7: capture | U7: =AY24 -> 29 | V7: (a) wks captured before recession starts | AC7: 1980 | AE7: =MAX(AE711:AE763) -> 6 | AF7: =AF711 -> 0 | AG7: -6 | AH7: 0 | AI7: =SUM(AI650:AI684) -> 0 | AJ7: =IF(AH7=0,MAX(AJ685:AJ710),0) -> 1 | AK7: -1 | AQ7: 1973 | AR7: =SUM(INDIRECT($AR$1&364-$S$3):AR363) -> 0 | AT7: 8 | AV7: 0 | AW7: 0 | AX7: =AZ5 -> -1 | BE7: =BG5 -> -6 | BN7: 0 | BO7: 0 | BP7: =SUM(AD685:AD710) -> 26 | BQ7: 1 | BR7: 1 | BU7: 2 | BV7: 1.065319732 | BW7: =AVERAGE($BV$5:BV7) -> 1.021773244 | BY7: 0
A8: =data!AA1002 -> 0 | C8: 1967-02-10 | D8: 0 | E8: 0 | S8: =U8 -> 31 | T8: =T5/AD5 -> 0.8277777778 | U8: =-BE24 -> 31 | V8: (b) wks captured after recession ends, excluding any false positive and pos at end | AC8: 1981 | AE8: =MAX(AE833:AE1232) -> 0 | AF8: =AF833 -> 12 | AG8: 12 | AH8: 0 | AI8: =SUM(AI711:AI763) -> 0 | AJ8: =IF(AH8=0,MAX(AJ764:AJ790),0) -> 18 | AK8: -18 | AQ8: 1980 | AR8: =SUM(INDIRECT($AR$1&685-$S$3):AR684) -> 0 | AT8: combine | AV8: 0 | AW8: 0 | AX8: =BA5 -> -18 | BE8: =BH5 -> 12 | BN8: 16 | BO8: 2 | BP8: =SUM(AD764:AD832) -> 69 | BQ8: 0.768115942 | BR8: 0.9710144928 | BU8: 3 | BV8: 1.142007571 | BW8: =AVERAGE($BV$5:BV8) -> 1.051831826 | BY8: 0
A9: =data!AA1003 -> 0 | C9: 1967-02-17 | D9: 0 | E9: 0 | P9: UER | Q9: 0 | S9: =AJ30-AJ12+X5 -> 134 | T9: =(T8-0.9)*10 -> -0.7222222222 | U9: =X5 -> 62 | V9: (c) wks not captured after recession starts or before it ends | AC9: 1990 | AE9: =MAX(AE1268:AE1789) -> 7 | AF9: =AF1268 -> 0 | AG9: -7 | AH9: 0 | AI9: =SUM(AI833:AI1232) -> 0 | AJ9: =IF(AH9=0,MAX(AJ1233:AJ1267),0) -> 5 | AK9: -5 | AQ9: 1981 | AR9: =SUM(INDIRECT($AR$1&764-$S$3):AR763) -> 0 | AT9: false | AV9: 0 | AW9: 0 | AX9: =BB5 -> -5 | BE9: =BI5 -> -7 | BN9: 3 | BO9: 0 | BP9: =SUM(AD1233:AD1267) -> 35 | BQ9: 0.9142857143 | BR9: 1 | BU9: 4 | BV9: 1.231494206 | BW9: =AVERAGE($BV$5:BV9) -> 1.087764302 | BY9: 0
A10: =data!AA1004 -> 0 | C10: 1967-02-24 | D10: 0 | E10: 0 | I10: =MAX(C2351:C2500) -> 2012-05-11 | P10: MA1 = | Q10: =G3 -> 0 | R10: wks | S10: =S7+AD5+AR5 -> 363 | U10: =U7+AD5 -> 389 | V10: (d) total before + total for recession | AC10: 2001 | AE10: =MAX(AE1825:AE2141) -> 12 | AF10: =AF1825 -> 0 | AG10: -12 | AH10: 4 | AI10: =SUM(AI1268:AI1789) -> 4 | AJ10: =IF(AH10=0,MAX(AJ1790:AJ1824),0) -> 0 | AK10: 4 | AQ10: 1990 | AR10: =SUM(INDIRECT($AR$1&1233-$S$3):AR1232) -> 0 | AT10: positives | AV10: 0 | AW10: 0 | AX10: =BC5 -> 4 | BE10: =BJ5 -> -12 | BN10: 0 | BO10: 2 | BP10: =SUM(AD1790:AD1824) -> 35 | BQ10: 1 | BR10: 0.9428571429 | BU10: 5 | BV10: 1.335366126 | BW10: =AVERAGE($BV$5:BV10) -> 1.129031272 | BY10: 0
A11: =data!AA1005 -> 0 | C11: 1967-03-03 | D11: 0 | E11: =E10+E$2*(D11-E10) -> 0 | P11: MA1/MA2= | Q11: =I3 -> 0 | R11: wks | S11: =S10-S9 -> 229 | U11: =U10-U9 -> 327 | V11: (e) total captured= (d) - (c) | AA11: =IF(ISNUMBER(Z11),1000,-1000) -> -1000 | AC11: 2008 | AD11: =IF(ISNUMBER(Z11),1,0) -> 0 | AE11: =MAX(AE2220:AE2352) -> 0 | AF11: =AF2220 -> 0 | AG11: 0 | AH11: 17 | AI11: =SUM(AI1825:AI2141) -> 17 | AJ11: =IF(AH11=0,MAX(AJ2142:AJ2219),0) -> 0 | AK11: 17 | AQ11: 2001 | AR11: =SUM(INDIRECT($AR$1&1790-$S$3):AR1789) -> 0 | AV11: 0 | AW11: 0 | AX11: =BD5 -> 17 | BE11: =BK5 -> 0 | BN11: 0 | BO11: 0 | BP11: =SUM(AD2142:AD2219) -> 78 | BQ11: 1 | BR11: 1 | BU11: 6 | BV11: 1.455357917 | BW11: =AVERAGE($BV$5:BV11) -> 1.175649365 | BY11: 0
A12: =data!AA1006 -> 0 | C12: 1967-03-10 | D12: 0 | E12: 0 | P12: AUC Accuracy | Q12: =U17 -> 0.955178416 | T12: =BB35 -> 21 | U12: =BB35 -> 21 | V12: add for good leads | AA12: -1000 | AD12: 0 | AJ12: =SUM(AJ5:AJ11) -> 36 | AQ12: 2008 | AR12: =SUM(INDIRECT($AR$1&2142-$S$3):AR2141) -> 0 | AV12: =SUM(AV5:AV11) -> 0 | AW12: =SUM(AW5:AW11) -> 0 | AX12: =SUM(AX5:AX11) -> -7 | BE12: =SUM(BE5:BE11) -> -6 | BP12: =SUM(BP5:BP11) -> 360 | BQ12: =SUM(BQ5:BQ11) -> 6.53747412 | BR12: =SUM(BR5:BR11) -> 6.851371636 | BU12: 7 | BV12: 1.593326893 | BW12: =AVERAGE($BV$5:BV12) -> 1.227859056 | BY12: 0
A13: =data!AA1007 -> 0 | C13: 1967-03-17 | D13: 0 | E13: 0 | P13: NBER Capture | Q13: =T8 -> 0.8277777778 | S13: =U13 -> 0 | U13: =AU5 -> 0 | V13: tot wks positive at end | AA13: -1000 | AD13: 0 | AG13: =IF(OR(AG5>0,AG5=0),1,0) -> 1 | AK13: =IF(OR(AK5>0,AK5=0),1,0) -> 1 | AW13: Average | AX13: =AVERAGE(AX5:AX11) -> -1 | BD13: Average | BE13: =AVERAGE(BE5:BE11) -> -0.8571428571 | BQ13: =BQ12/$Q$17 -> 0.9339248743 | BR13: =BR12/$Q$17 -> 0.9787673765 | BS13: =AVERAGE(BQ13:BR13) -> 0.9563461254 | BU13: 8 | BV13: 1.751199802 | BW13: =AVERAGE($BV$5:BV13) -> 1.286008027 | BY13: 0
A14: =data!AA1008 -> 0 | C14: 1967-03-24 | D14: 0 | E14: 0 | P14: NBER Lead Score into recession start | Q14: =BQ13 -> 0.9339248743 | S14: =U14-AR5 -> 0 | U14: =AS5 -> 0 | V14: (f) total in false positives excluding any positives at end | AA14: -1000 | AD14: 0 | AG14: 0 | AK14: 0 | AW14: Std Dev | AX14: =STDEVP(AX5:AX11) -> 11.05828713 | BD14: Std Dev | BE14: =STDEVP(BE5:BE11) -> 9.046365828 | BU14: 9 | BV14: 1.930877055 | BW14: =AVERAGE($BV$5:BV14) -> 1.35049493 | BY14: 0
A15: =data!AA1009 -> 0 | C15: 1967-03-31 | D15: 0 | E15: 0 | P15: NBER Lead Score into recession end | Q15: =BR13 -> 0.9787673765 | U15: =U8*V5+U9+U14*U6+O6-U12 -> 103 | V15: (g) total incorrectly correctly captured= (b) + (c) + (f) - good leads | AA15: -1000 | AD15: 0 | AG15: 0 | AK15: 0 | AW15: Sharpe | AX15: =AX13/AX14 -> -0.09042991813 | BD15: Sharpe | BE15: =BE13/BE14 -> -0.09474996628 | BU15: 10 | BV15: 2.134074892 | BW15: =AVERAGE($BV$5:BV15) -> 1.421729472 | BY15: 0
A16: =data!AA1010 -> 0 | C16: 1967-04-07 | D16: 0 | E16: 0 | P16: combined AUC Accuracy and NBER Capture Score | Q16: =ROUND((T9+U18)/2,3) -> -0.097 | U16: =MAX(Y2330:Y2500) -> 2298 | V16: (h) total nr. of wks in series | AA16: -1000 | AD16: 0 | AG16: 1 | AK16: 0 | BU16: 11 | BV16: 2.362080796 | BW16: =AVERAGE($BV$5:BV16) -> 1.500092082 | BY16: 0
A17: =data!AA1011 -> 0 | C17: 1967-04-14 | D17: 0 | E17: 0 | P17: number of recessions | Q17: 7 | R17: nr | T17: AUC = | U17: =IF((U16-U15)/U16>1,1,(U16-U15)/U16) -> 0.955178416 | V17: AUC= (h - g) / h | Y17: Unemployment Rate | AA17: -1000 | AD17: 0 | AG17: 0 | AK17: 0 | AX17: =IF(AX5<0,AX5,0) -> 0 | AY17: =IF(AX5>0,AX5,0) -> 8 | BD17: =IF(BE17<0,1,0) -> 0 | BE17: =IF(BE5<0,BE5,0) -> 0 | BU17: 12 | BV17: 2.615394478 | BW17: =AVERAGE($BV$5:BV17) -> 1.585884574 | BY17: 0
A18: =data!AA1012 -> 0 | C18: 1967-04-21 | D18: 0 | E18: 0 | P18: False Positives | Q18: =AT5 -> 0 | U18: =IF(U17-0.9>0,(U17-0.9)*10*BS13,(U17-0.9)*10/BS13) -> 0.5276966436 | Y18: =AD5+7*$S$3 -> 458 | Z18: S Condition Positive | AA18: -1000 | AD18: 0 | AG18: 0 | AK18: 1 | AX18: -12 | AY18: 0 | BD18: 1 | BE18: -6 | BU18: 13 | BV18: 2.89322991 | BW18: =AVERAGE($BV$5:BV18) -> 1.679266384 | BY18: 0
A19: =data!AA1013 -> 0 | C19: 1967-04-28 | D19: 0 | E19: 0 | P19: False Positives | Q19: =AS5 -> 0 | R19: wks | Y19: =Y18-S9 -> 324 | Z19: S True Positive | AA19: -1000 | AD19: 0 | AG19: 1 | AK19: 1 | AX19: -1 | AY19: 0 | BD19: 1 | BE19: -6 | BU19: 14 | BV19: 3.192870563 | BW19: =AVERAGE($BV$5:BV19) -> 1.780173329 | BY19: 0
A20: =data!AA1014 -> 0 | C20: 1967-05-05 | D20: 0 | E20: 0 | P20: number of recessions with positive lead to start | Q20: =Q17-AL5 -> 3 | W20: number of recessions with negative lead to start | X20: =Q17-Q20 -> 4 | Y20: =S13+S14+S7+S8 -> 34 | Z20: S False Positive | AA20: -1000 | AD20: 0 | AG20: =SUM(AG13:AG19) -> 3 | AK20: =SUM(AK13:AK19) -> 3 | AX20: -18 | AY20: 0 | BD20: 0 | BE20: 0 | BU20: 15 | BV20: 3.508910184 | BW20: =AVERAGE($BV$5:BV20) -> 1.888219383 | BY20: 0
A21: =data!AA1015 -> 0 | C21: 1967-05-12 | D21: 0 | E21: 0 | P21: max lead to start of recession | Q21: =MAX(AX5:AX11) -> 17 | R21: wks | Y21: =U16-Y18 -> 1840 | Z21: S Condition Negative | AA21: -1000 | AD21: 0 | AX21: -5 | AY21: 0 | BD21: 1 | BE21: -7 | BU21: 16 | BV21: 3.832485271 | BW21: =AVERAGE($BV$5:BV21) -> 2.002587964 | BY21: 0
A22: =data!AA1016 -> 0 | C22: 1967-05-19 | D22: 0 | E22: 0 | P22: avg positive lead to start of recession excluding longest | Q22: =ROUND((AY24)/Q20,1) -> 9.7 | R22: wks | T22: Score… | U22: =T22&T23&Q16 -> Score…-0.097 | X22: =Y21-Y20 -> 1806 | Y22: =Y21-Y20 -> 1806 | Z22: S True Negative | AA22: -1000 | AD22: 0 | AX22: 0 | AY22: 4 | BD22: 1 | BE22: -12 | BU22: 17 | BV22: 4.150713274 | BW22: =AVERAGE($BV$5:BV22) -> 2.121928259 | BY22: 0
A23: =data!AA1017 -> 0 | C23: 1967-05-26 | D23: 0 | E23: 0 | P23: min lead to start of recession | Q23: =MIN(AX5:AX11) -> -18 | R23: wks | T23: =IF(Q16>0,"+","") ->  | Y23: =S9 -> 134 | Z23: S False Negative | AA23: -1000 | AD23: 0 | AJ23: =IF(AK5<$S$3,$S$3-AK5,0) -> 6 | AK23: =IF(OR(AK5=$S$3,AK5>$S$3),AK5-$S$3,0) -> 0 | AX23: 0 | AY23: 17 | BD23: 0 | BE23: 0 | BU23: 18 | BV23: 4.446666402 | BW23: =AVERAGE($BV$5:BV23) -> 2.244282898 | BY23: 0
A24: =data!AA1018 -> 0 | C24: 1967-06-02 | D24: 0 | E24: 0 | P24: avg negative lead to start of recession | Q24: =IF(ISNUMBER(ROUND(AX24/(AL5),1)),ROUND(AX24/(AL5),1),"none") -> -9 | R24: wks | Y24: =Y19/(Y19+Y23) -> 0.7074235808 | Z24: Sensitivity | AA24: -1000 | AD24: 0 | AJ24: 26 | AK24: =IF(OR(AK6=$S$3,AK6>$S$3),AK6-$S$3,0) -> 0 | AX24: =SUM(AX17:AX23) -> -36 | AY24: =SUM(AY17:AY23) -> 29 | BD24: =SUM(BD17:BD23) -> 4 | BE24: =SUM(BE17:BE23) -> -31 | BU24: 19 | BV24: 4.700264458 | BW24: =AVERAGE($BV$5:BV24) -> 2.367081976 | BY24: 0
A25: =data!AA1019 -> 0 | C25: 1967-06-09 | D25: 0 | E25: 0 | P25: Average of all leads to start of recession | Q25: =AX13 -> -1 | R25: wks | Y25: =Y22/(Y20+Y22) -> 0.9815217391 | Z25: Specificity | AA25: -1000 | AD25: 0 | AJ25: 15 | AK25: 0 | BU25: 20 | BV25: 4.890352801 | BW25: =AVERAGE($BV$5:BV25) -> 2.48723773 | BY25: 0
A26: =data!AA1020 -> 0 | C26: 1967-06-16 | D26: 0 | E26: 0 | P26: Std Dev for all leads to start of recession | Q26: =AX14 -> 11.05828713 | R26: wks | Y26: =IF(ISNUMBER(Y24/(1-Y25)),Y24/(1-Y25),"infinity") -> 38.28409967 | Z26: Likelihood Ratio +ve | AA26: -1000 | AD26: 0 | AJ26: 32 | AK26: 0 | AX26: =-AX24 -> 36 | BE26: =BE12-BE24 -> 25 | BU26: 21 | BV26: 4.997862076 | BW26: =AVERAGE($BV$5:BV26) -> 2.601357018 | BY26: 0
A27: =data!AA1021 -> 0 | C27: 1967-06-23 | D27: 0 | E27: 0 | P27: Sharpe | Q27: =AX15 -> -0.09042991813 | Y27: =(1-Y24)/Y25 -> 0.2980845024 | Z27: Likelihood Ratio -ve | AA27: -1000 | AD27: 0 | AJ27: 19 | AK27: 0 | BU27: 22 | BV27: 5.009391024 | BW27: =AVERAGE($BV$5:BV27) -> 2.706054149 | BY27: 0
A28: =data!AA1022 -> 0 | C28: 1967-06-30 | D28: 0 | E28: 0 | Y28: =Y19/(Y19+Y20) -> 0.905027933 | Z28: Pos Predictive Value | AA28: -1000 | AD28: 0 | AJ28: 10 | AK28: 0 | AY28: =AY17 -> 8 | AZ28: =IF(OR(AY28<$O$4,AY28=$O$4),AY28,$O$4) -> 8 | BA28: =IF(AZ28>$O$4,0,ROUND(AZ28*VLOOKUP(AZ28,$BU$5:$BW$57,3),0)) -> 10 | BU28: 23 | BV28: 4.939373345 | BW28: =AVERAGE($BV$5:BV28) -> 2.799109116 | BY28: 0
A29: =data!AA1023 -> 0 | C29: 1967-07-07 | D29: 0 | E29: 0 | P29: number of recessions with positive lead to end | Q29: =AM5 -> 3 | Y29: =Y22/(Y22+Y23) -> 0.9309278351 | Z29: Neg Predictive Value | AA29: -1000 | AD29: 0 | AJ29: 0 | AK29: 3 | AY29: 0 | AZ29: 0 | BA29: 0 | BU29: 24 | BV29: 4.773375338 | BW29: =AVERAGE($BV$5:BV29) -> 2.878079764 | BY29: 0
A30: =data!AA1024 -> 0 | C30: 1967-07-14 | D30: 0 | E30: 0 | P30: max lead to end of recession | Q30: =MAX(BE5:BE11) -> 13 | R30: wks | Y30: =Y28 -> 0.905027933 | Z30: Pos post-test probability | AA30: =IF(ISNUMBER(Z39),1000,-1000) -> -1000 | AD30: =IF(ISNUMBER(Z39),1,0) -> 0 | AJ30: =SUM(AJ23:AJ29) -> 108 | AK30: =SUM(AK23:AK29) -> 3 | AY30: 0 | AZ30: 0 | BA30: 0 | BU30: 25 | BV30: 4.524798264 | BW30: =AVERAGE($BV$5:BV30) -> 2.941415091 | BY30: 0
A31: =data!AA1025 -> 0 | C31: 1967-07-21 | D31: 0 | E31: 0 | P31: avg positive lead to end of recession | Q31: =IF(ISNUMBER(ROUND(BE26/(Q29),1)),ROUND(BE26/(Q29),1),"none") -> 8.3 | R31: wks | Y31: =1-Y29 -> 0.06907216495 | Z31: Neg post-test probability | AA31: -1000 | AD31: 0 | AY31: 0 | AZ31: 0 | BA31: 0 | BU31: 26 | BV31: 4.212711476 | BW31: =AVERAGE($BV$5:BV31) -> 2.988500143 | BY31: 0
A32: =data!AA1026 -> 0 | C32: 1967-07-28 | D32: 0 | E32: 0 | P32: min lead to end of recession | Q32: =MIN(BE5:BE11) -> -12 | R32: wks | Y32: =U22 -> Score…-0.097 | AA32: -1000 | AD32: 0 | AY32: 0 | AZ32: 0 | BA32: 0 | BU32: 27 | BV32: 3.858269616 | BW32: =AVERAGE($BV$5:BV32) -> 3.019563338 | BY32: 0
A33: =data!AA1027 -> 0 | C33: 1967-08-04 | D33: 0 | E33: 0 | P33: avg negative lead to end of recession | Q33: =ROUND(BE24/BD24,0) -> -8 | Y33: =Y19+Y20+Y22+Y23 -> 2298 | AA33: -1000 | AD33: 0 | AY33: 4 | AZ33: 4 | BA33: 4 | BU33: 28 | BV33: 3.481552882 | BW33: =AVERAGE($BV$5:BV33) -> 3.035494012 | BY33: 0
A34: =data!AA1028 -> 0 | C34: 1967-08-11 | D34: 0 | E34: 0 | P34: Average of all leads to end of recession | Q34: =BE13 -> -0.8571428571 | R34: wks | AA34: -1000 | AD34: 0 | AY34: 17 | AZ34: 17 | BA34: 36 | BU34: 29 | BV34: 3.099489063 | BW34: =AVERAGE($BV$5:BV34) -> 3.03762718 | BY34: 0
A35: =data!AA1029 -> 0 | C35: 1967-08-18 | D35: 0 | E35: 0 | P35: Std Dev for all leads to end of recession | Q35: =BE14 -> 9.046365828 | R35: wks | AA35: -1000 | AD35: 0 | AY35: =SUM(AY28:AY34) -> 29 | AZ35: =SUM(AZ28:AZ34) -> 29 | BA35: =SUM(BA28:BA34) -> 50 | BB35: =BA35-AZ35 -> 21 | BU35: 30 | BV35: 2.724960711 | BW35: =AVERAGE($BV$5:BV35) -> 3.027541165 | BY35: 0
A36: =data!AA1030 -> 0 | C36: 1967-08-25 | D36: 0 | E36: 0 | P36: Sharpe | Q36: =-BE15 -> 0.09474996628 | AA36: -1000 | AD36: 0 | BU36: 31 | BV36: 2.366831327 | BW36: =AVERAGE($BV$5:BV36) -> 3.006893983 | BY36: 0
A37: =data!AA1031 -> 0 | C37: 1967-09-01 | D37: 0 | E37: 0 | AA37: -1000 | AD37: 0 | BU37: 32 | BV37: 2.030507163 | BW37: =AVERAGE($BV$5:BV37) -> 2.977306503 | BY37: 0
A38: =data!AA1032 -> 0 | C38: 1967-09-08 | D38: 0 | E38: 0 | AA38: -1000 | AD38: 0 | BU38: 33 | BV38: 1.718704749 | BW38: =AVERAGE($BV$5:BV38) -> 2.940288805 | BY38: 0
A39: =data!AA1033 -> 0 | C39: 1967-09-15 | D39: 0 | E39: 0 | X39: =Y39 -> 0.1993037424 | Y39: =(Y19+Y23)/U16 -> 0.1993037424 | Z39: Pretest probability | AA39: =IF(ISNUMBER(#REF!),1000,-1000) -> -1000 | AD39: =IF(ISNUMBER(#REF!),1,0) -> 0 | BU39: 34 | BV39: 1.432210114 | BW39: =AVERAGE($BV$5:BV39) -> 2.897200842 | BY39: 0
A40: =data!AA1034 -> 0 | C40: 1967-09-22 | D40: 0 | E40: 0 | X40: =X39/(1-X39) -> 0.2489130435 | Y40: =Y39/(1-Y39) -> 0.2489130435 | Z40: Pretest odds | AA40: =IF(ISNUMBER(#REF!),1000,-1000) -> -1000 | AD40: =IF(ISNUMBER(#REF!),1,0) -> 0 | BU40: 35 | BV40: 1.170523546 | BW40: =AVERAGE($BV$5:BV40) -> 2.849237584 | BY40: 0
A41: =data!AA1035 -> 0 | C41: 1967-09-29 | D41: 0 | E41: 0 | X41: =X40*Y27 -> 0.07419712071 | Y41: =Y40*Y26 -> 9.529411765 | Z41: Posttest odds | AA41: =IF(ISNUMBER(#REF!),1000,-1000) -> -1000 | AD41: =IF(ISNUMBER(#REF!),1,0) -> 0 | BU41: 36 | BV41: 0.9323575606 | BW41: =AVERAGE($BV$5:BV41) -> 2.797430016 | BY41: 0
A42: =data!AA1036 -> 0 | C42: 1967-10-06 | D42: 0 | E42: 0 | X42: =X41/(X41+1) -> 0.06907216495 | Y42: =Y41/(Y41+1) -> 0.905027933 | Z42: Posttest probability | AA42: =IF(ISNUMBER(#REF!),1000,-1000) -> -1000 | AD42: =IF(ISNUMBER(#REF!),1,0) -> 0 | BU42: 37 | BV42: 0.7159959201 | BW42: =AVERAGE($BV$5:BV42) -> 2.742655434 | BY42: 0
A43: =data!AA1037 -> 0 | C43: 1967-10-13 | D43: 0 | E43: 0 | Y43: =U22 -> Score…-0.097 | AA43: =IF(ISNUMBER(#REF!),1000,-1000) -> -1000 | AD43: =IF(ISNUMBER(#REF!),1,0) -> 0 | BU43: 38 | BV43: 0.5195382126 | BW43: =AVERAGE($BV$5:BV43) -> 2.685652429 | BY43: 0
A44: =data!AA1038 -> 0 | C44: 1967-10-20 | D44: 0 | E44: 0 | Y44: =Y19+Y20+Y22+Y23 -> 2298 | AA44: =IF(ISNUMBER(#REF!),1000,-1000) -> -1000 | AD44: =IF(ISNUMBER(#REF!),1,0) -> 0 | BU44: 39 | BV44: 0.3410576905 | BW44: =AVERAGE($BV$5:BV44) -> 2.62703756 | BY44: 0
A45: =data!AA1039 -> 0 | C45: 1967-10-27 | D45: 0 | E45: 0 | AA45: -1000 | AD45: 0 | BU45: 40 | BV45: 0.1786970383 | BW45: =AVERAGE($BV$5:BV45) -> 2.567321938 | BY45: 0
A46: =data!AA1040 -> 0 | C46: 1967-11-03 | D46: 0 | E46: 0 | AA46: -1000 | AD46: 0 | BU46: 41 | BV46: 0.03072167224 | BW46: =AVERAGE($BV$5:BV46) -> 2.506926693 | BY46: 0
A47: =data!AA1041 -> 0 | C47: 1967-11-10 | D47: 0 | E47: 0 | AA47: -1000 | AD47: 0 | BU47: 42 | BV47: -0.1044548985 | BW47: =AVERAGE($BV$5:BV47) -> 2.446196889 | BY47: 0
A48: =data!AA1042 -> 0 | C48: 1967-11-17 | D48: 0 | E48: 0 | AA48: -1000 | AD48: 0 | BU48: 43 | BV48: -0.2282633618 | BW48: =AVERAGE($BV$5:BV48) -> 2.385413701 | BY48: 0
A49: =data!AA1043 -> 0 | C49: 1967-11-24 | D49: 0 | E49: 0 | AA49: -1000 | AD49: 0 | BU49: 44 | BV49: -0.3419815252 | BW49: =AVERAGE($BV$5:BV49) -> 2.324804918 | BY49: 0
A50: =data!AA1044 -> 0 | C50: 1967-12-01 | D50: 0 | E50: 0 | AA50: -1000 | AD50: 0 | BU50: 45 | BV50: -0.4467432145 | BW50: =AVERAGE($BV$5:BV50) -> 2.264553872 | BY50: 0
A51: =data!AA1045 -> 0 | C51: 1967-12-08 | D51: 0 | E51: 0 | AA51: -1000 | AD51: 0 | BU51: 46 | BV51: -0.5435501527 | BW51: =AVERAGE($BV$5:BV51) -> 2.204806978 | BY51: 0
A52: =data!AA1046 -> 0 | C52: 1967-12-15 | D52: 0 | E52: 0 | AA52: -1000 | AD52: 0 | BU52: 47 | BV52: -0.6332849474 | BW52: =AVERAGE($BV$5:BV52) -> 2.145680063 | BY52: 0
A53: =data!AA1047 -> 0 | C53: 1967-12-22 | D53: 0 | E53: 0 | AA53: -1000 | AD53: 0 | BU53: 48 | BV53: -0.7167240646 | BW53: =AVERAGE($BV$5:BV53) -> 2.087263652 | BY53: 0
A54: =data!AA1048 -> 0 | C54: 1967-12-29 | D54: 0 | E54: 0 | AA54: -1000 | AD54: 0 | BU54: 49 | BV54: -0.7945501527 | BW54: =AVERAGE($BV$5:BV54) -> 2.029627376 | BY54: 0
A55: =data!AA1049 -> 0 | C55: 1968-01-05 | D55: 0 | E55: 0 | AA55: -1000 | AD55: 0 | BU55: 50 | BV55: -0.8673633907 | BW55: =AVERAGE($BV$5:BV55) -> 1.972823635 | BY55: 0
A56: =data!AA1050 -> 0 | C56: 1968-01-12 | D56: 0 | E56: 0 | AA56: -1000 | AD56: 0 | BU56: 51 | BV56: -0.9356917286 | BW56: =AVERAGE($BV$5:BV56) -> 1.916890648 | BY56: 0
A57: =data!AA1051 -> 0 | C57: 1968-01-19 | D57: 0 | E57: 0 | AA57: -1000 | AD57: 0 | BU57: 52 | BV57: -1 | BW57: =AVERAGE($BV$5:BV57) -> 1.861854975 | BY57: 0
A58: =data!AA1052 -> 0 | C58: 1968-01-26 | D58: 0 | E58: 0 | J58: =E58+$Q$9 -> 0 | K58: =IF(J58<0,1,0) -> 0 | M58: =K58+AD58 -> 0 | O58: =J58/$J$3*100 ->  | T58: =IF(K58+M58=3,1,0) -> 0 | X58: =IF(AND(K58=0,M58=1),1,0) -> 0 | Y58: =ROW() -> 58 | AA58: -1000 | AD58: 0 | AH58: =IF(AE57=AE58,M58,0) -> 0 | AI58: =AH58-AS58 -> 0 | BY58: 0
A59: =data!AA1053 -> 0 | C59: 1968-02-02 | D59: 0 | E59: 0 | J59: 0 | K59: 0 | M59: 0 | O59: =J59/$J$3*100 ->  | T59: 0 | X59: 0 | AA59: -1000 | AD59: 0 | AH59: 0 | AI59: 0 | BY59: 0
A60: =data!AA1054 -> 0 | C60: 1968-02-09 | D60: 0 | E60: 0 | J60: 0 | K60: 0 | M60: 0 | T60: 0 | X60: 0 | AA60: -1000 | AD60: 0 | AH60: 0 | AI60: 0 | BY60: 0
A61: =data!AA1055 -> 0 | C61: 1968-02-16 | D61: 0 | E61: 0 | J61: 0 | K61: 0 | M61: 0 | T61: 0 | X61: 0 | AA61: -1000 | AD61: 0 | AH61: 0 | AI61: 0 | BY61: 0
A62: =data!AA1056 -> 0 | C62: 1968-02-23 | D62: 0 | E62: 0 | J62: 0 | K62: 0 | M62: 0 | T62: 0 | X62: 0 | AA62: -1000 | AD62: 0 | AH62: 0 | AI62: 0 | BY62: 0
A63: =data!AA1057 -> 0 | C63: 1968-03-01 | D63: 0 | E63: 0 | J63: 0 | K63: 0 | M63: 0 | T63: 0 | X63: 0 | AA63: -1000 | AD63: 0 | AH63: 0 | AI63: 0 | BY63: 0
A64: =data!AA1058 -> 0 | C64: 1968-03-08 | D64: 0 | E64: 0 | J64: 0 | K64: 0 | M64: 0 | T64: 0 | X64: 0 | AA64: -1000 | AD64: 0 | AH64: 0 | AI64: 0 | BY64: 0
A65: =data!AA1059 -> 0 | C65: 1968-03-15 | D65: 0 | E65: 0 | J65: 0 | K65: 0 | M65: 0 | T65: 0 | X65: 0 | AA65: -1000 | AD65: 0 | AH65: 0 | AI65: 0 | BY65: 0
A66: =data!AA1060 -> 0 | C66: 1968-03-22 | D66: 0 | E66: 0 | J66: 0 | K66: 0 | M66: 0 | T66: 0 | X66: 0 | AA66: -1000 | AD66: 0 | AH66: 0 | AI66: 0 | BY66: 0
A67: =data!AA1061 -> 0 | C67: 1968-03-29 | D67: 0 | E67: 0 | J67: 0 | K67: 0 | M67: 0 | T67: 0 | X67: 0 | AA67: -1000 | AD67: 0 | AH67: 0 | AI67: 0 | BY67: 0
A68: =data!AA1062 -> 0 | C68: 1968-04-05 | D68: =-A68 -> 0 | E68: =E67+E$2*(D68-E67) -> 0 | J68: 0 | K68: 0 | M68: 0 | T68: 0 | X68: 0 | AA68: -1000 | AD68: 0 | AH68: 0 | AI68: 0 | BY68: 0
A69: =data!AA1063 -> 0 | C69: 1968-04-12 | D69: 0 | E69: 0 | J69: 0 | K69: 0 | M69: 0 | T69: 0 | X69: 0 | AA69: -1000 | AD69: 0 | AH69: 0 | AI69: 0 | BY69: 0
A70: =data!AA1064 -> 0 | C70: 1968-04-19 | D70: 0 | E70: 0 | J70: 0 | K70: 0 | M70: 0 | T70: 0 | X70: 0 | AA70: -1000 | AD70: 0 | AH70: 0 | AI70: 0 | BY70: 0
A71: =data!AA1065 -> 0 | C71: 1968-04-26 | D71: 0 | E71: 0 | J71: 0 | K71: 0 | M71: 0 | T71: 0 | X71: 0 | AA71: -1000 | AD71: 0 | AH71: 0 | AI71: 0 | BY71: 0
A72: =data!AA1066 -> 0 | C72: 1968-05-03 | D72: 0 | E72: 0 | J72: 0 | K72: 0 | M72: 0 | T72: 0 | X72: 0 | AA72: -1000 | AD72: 0 | AH72: 0 | AI72: 0 | BY72: 0
A73: =data!AA1067 -> 0 | C73: 1968-05-10 | D73: 0 | E73: 0 | J73: 0 | K73: 0 | M73: 0 | T73: 0 | X73: 0 | AA73: -1000 | AD73: 0 | AH73: 0 | AI73: 0 | BY73: 0
A74: =data!AA1068 -> 0 | C74: 1968-05-17 | D74: 0 | E74: 0 | J74: 0 | K74: 0 | M74: 0 | T74: 0 | X74: 0 | AA74: -1000 | AD74: 0 | AH74: 0 | AI74: 0 | BY74: 0
A75: =data!AA1069 -> 0 | C75: 1968-05-24 | D75: 0 | E75: 0 | J75: 0 | K75: 0 | M75: 0 | T75: 0 | X75: 0 | AA75: =IF(ISNUMBER(Z75),1000,-1000) -> -1000 | AD75: =IF(ISNUMBER(Z75),1,0) -> 0 | AH75: 0 | AI75: 0 | BY75: 0
A76: =data!AA1070 -> 0 | C76: 1968-05-31 | D76: 0 | E76: 0 | J76: 0 | K76: 0 | M76: 0 | T76: 0 | X76: 0 | AA76: -1000 | AD76: 0 | AH76: 0 | AI76: 0 | BY76: 0
A77: =data!AA1071 -> 0 | C77: 1968-06-07 | D77: 0 | E77: 0 | J77: 0 | K77: 0 | M77: 0 | T77: 0 | X77: 0 | AA77: -1000 | AD77: 0 | AH77: 0 | AI77: 0 | BY77: 0
A78: =data!AA1072 -> 0 | C78: 1968-06-14 | D78: 0 | E78: 0 | J78: 0 | K78: 0 | M78: 0 | T78: 0 | X78: 0 | AA78: -1000 | AD78: 0 | AH78: 0 | AI78: 0 | BY78: 0
A79: =data!AA1073 -> 0 | C79: 1968-06-21 | D79: 0 | E79: 0 | J79: 0 | K79: 0 | M79: 0 | T79: 0 | X79: 0 | AA79: -1000 | AB79: 0 | AD79: 0 | AH79: 0 | AI79: 0 | BY79: 0
A80: =data!AA1074 -> 0 | C80: 1968-06-28 | D80: 0 | E80: 0 | J80: 0 | K80: 0 | M80: 0 | T80: 0 | X80: 0 | AA80: -1000 | AB80: 0 | AD80: 0 | AH80: 0 | AI80: 0 | BY80: 0
A81: =data!AA1075 -> 0 | C81: 1968-07-05 | D81: 0 | E81: 0 | J81: 0 | K81: 0 | M81: 0 | T81: 0 | X81: 0 | AA81: -1000 | AB81: 0 | AD81: 0 | AH81: 0 | AI81: 0 | BY81: 0
A82: =data!AA1076 -> 0 | C82: 1968-07-12 | D82: 0 | E82: 0 | J82: 0 | K82: 0 | M82: 0 | T82: 0 | X82: 0 | AA82: -1000 | AB82: 0 | AD82: 0 | AH82: 0 | AI82: 0 | BY82: 0
A83: =data!AA1077 -> 0 | C83: 1968-07-19 | D83: 0 | E83: 0 | J83: 0 | K83: 0 | M83: 0 | T83: 0 | X83: 0 | AA83: -1000 | AB83: 0 | AD83: 0 | AH83: 0 | AI83: 0 | BY83: 0
A84: =data!AA1078 -> 0 | C84: 1968-07-26 | D84: 0 | E84: 0 | J84: 0 | K84: 0 | M84: 0 | T84: 0 | X84: 0 | AA84: -1000 | AB84: 0 | AD84: 0 | AH84: 0 | AI84: 0 | BY84: 0
A85: =data!AA1079 -> 0 | C85: 1968-08-02 | D85: 0 | E85: 0 | J85: 0 | K85: 0 | M85: 0 | T85: 0 | X85: 0 | AA85: -1000 | AB85: 0 | AD85: 0 | AH85: 0 | AI85: 0 | BY85: 0
A86: =data!AA1080 -> 0 | C86: 1968-08-09 | D86: 0 | E86: 0 | J86: 0 | K86: 0 | M86: 0 | T86: 0 | X86: 0 | AA86: -1000 | AB86: 0 | AD86: 0 | AH86: 0 | AI86: 0 | BY86: 0
A87: =data!AA1081 -> 0 | C87: 1968-08-16 | D87: 0 | E87: 0 | J87: 0 | K87: 0 | M87: 0 | T87: 0 | X87: 0 | AA87: -1000 | AB87: 0 | AD87: 0 | AH87: 0 | AI87: 0 | BY87: 0
A88: =data!AA1082 -> 0 | C88: 1968-08-23 | D88: 0 | E88: 0 | J88: 0 | K88: 0 | M88: 0 | T88: 0 | X88: 0 | AA88: -1000 | AB88: 0 | AD88: 0 | AH88: 0 | AI88: 0 | BY88: 0
A89: =data!AA1083 -> 0 | C89: 1968-08-30 | D89: 0 | E89: 0 | J89: 0 | K89: 0 | M89: 0 | T89: 0 | X89: 0 | AA89: -1000 | AB89: 0 | AD89: 0 | AH89: 0 | AI89: 0 | BY89: 0
A90: =data!AA1084 -> 0 | C90: 1968-09-06 | D90: 0 | E90: 0 | J90: 0 | K90: 0 | M90: 0 | T90: 0 | X90: 0 | AA90: -1000 | AB90: 0 | AD90: 0 | AH90: 0 | AI90: 0 | BY90: 0
A91: =data!AA1085 -> 0 | C91: 1968-09-13 | D91: 0 | E91: 0 | J91: 0 | K91: 0 | M91: 0 | T91: 0 | X91: 0 | AA91: -1000 | AB91: 0 | AD91: 0 | AH91: 0 | AI91: 0 | BY91: 0
A92: =data!AA1086 -> 0 | C92: 1968-09-20 | D92: 0 | E92: 0 | J92: 0 | K92: 0 | M92: 0 | T92: 0 | X92: 0 | AA92: -1000 | AB92: 0 | AD92: 0 | AH92: 0 | AI92: 0 | BY92: 0
A93: =data!AA1087 -> 0 | C93: 1968-09-27 | D93: 0 | E93: 0 | J93: 0 | K93: 0 | M93: 0 | T93: 0 | X93: 0 | AA93: -1000 | AB93: 0 | AD93: 0 | AH93: 0 | AI93: 0 | BY93: 0
A94: =data!AA1088 -> 0 | C94: 1968-10-04 | D94: 0 | E94: 0 | J94: 0 | K94: 0 | M94: 0 | T94: 0 | X94: 0 | AA94: -1000 | AB94: 0 | AD94: 0 | AH94: 0 | AI94: 0 | BY94: 0
A95: =data!AA1089 -> 0 | C95: 1968-10-11 | D95: 0 | E95: 0 | J95: 0 | K95: 0 | M95: 0 | T95: 0 | X95: 0 | AA95: -1000 | AB95: 0 | AD95: 0 | AH95: 0 | AI95: 0 | BY95: 0
A96: =data!AA1090 -> 0 | C96: 1968-10-18 | D96: 0 | E96: 0 | J96: 0 | K96: 0 | M96: 0 | T96: 0 | X96: 0 | AA96: -1000 | AB96: 0 | AD96: 0 | AH96: 0 | AI96: 0 | BY96: 0
A97: =data!AA1091 -> 0 | C97: 1968-10-25 | D97: 0 | E97: 0 | J97: 0 | K97: 0 | M97: 0 | T97: 0 | X97: 0 | AA97: -1000 | AB97: 0 | AD97: 0 | AH97: 0 | AI97: 0 | BY97: 0
A98: =data!AA1092 -> 0 | C98: 1968-11-01 | D98: 0 | E98: 0 | J98: 0 | K98: 0 | M98: 0 | T98: 0 | X98: 0 | AA98: -1000 | AB98: 0 | AD98: 0 | AH98: 0 | AI98: 0 | BY98: 0
A99: =data!AA1093 -> 0 | C99: 1968-11-08 | D99: 0 | E99: 0 | J99: 0 | K99: 0 | M99: 0 | T99: 0 | X99: 0 | AA99: -1000 | AB99: 0 | AD99: 0 | AH99: 0 | AI99: 0 | BY99: 0
A100: =data!AA1094 -> 0 | C100: 1968-11-15 | D100: 0 | E100: 0 | J100: 0 | K100: 0 | M100: 0 | T100: 0 | X100: 0 | AA100: -1000 | AB100: 0 | AD100: 0 | AH100: 0 | AI100: 0 | BY100: 0
A101: =data!AA1095 -> 0 | C101: 1968-11-22 | D101: 0 | E101: 0 | J101: 0 | K101: 0 | M101: 0 | T101: 0 | X101: 0 | AA101: -1000 | AB101: 0 | AD101: 0 | AH101: 0 | AI101: 0 | BY101: 0
A102: =data!AA1096 -> 0 | C102: 1968-11-29 | D102: 0 | E102: 0 | J102: 0 | K102: 0 | M102: 0 | T102: 0 | X102: 0 | AA102: -1000 | AB102: 0 | AD102: 0 | AH102: 0 | AI102: 0 | BY102: 0
A103: =data!AA1097 -> 0 | C103: 1968-12-06 | D103: 0 | E103: 0 | J103: 0 | K103: 0 | M103: 0 | T103: 0 | X103: 0 | AA103: -1000 | AB103: 0 | AD103: 0 | AH103: 0 | AI103: 0 | BY103: 0
A104: =data!AA1098 -> 0 | C104: 1968-12-13 | D104: 0 | E104: 0 | J104: 0 | K104: 0 | M104: 0 | T104: 0 | X104: 0 | AA104: -1000 | AB104: 0 | AD104: 0 | AH104: 0 | AI104: 0 | BY104: 0
A105: =data!AA1099 -> 0 | C105: 1968-12-20 | D105: 0 | E105: 0 | J105: 0 | K105: 0 | M105: 0 | T105: 0 | X105: 0 | AA105: -1000 | AB105: 0 | AD105: 0 | AH105: 0 | AI105: 0 | BY105: 0
A106: =data!AA1100 -> 0 | C106: 1968-12-27 | D106: 0 | E106: 0 | J106: 0 | K106: 0 | M106: 0 | T106: 0 | X106: 0 | AA106: -1000 | AB106: 0 | AD106: 0 | AH106: 0 | AI106: 0 | BY106: 0
A107: =data!AA1101 -> 0 | C107: 1969-01-03 | D107: 0 | E107: 0 | J107: 0 | K107: 0 | M107: 0 | T107: 0 | X107: 0 | AA107: -1000 | AB107: 0 | AD107: 0 | AH107: 0 | AI107: 0 | BY107: 0
